Workbook

Sheet PSP 8 GERAL (hidden)
D2: Cliente: | E2: BNDES - Banco Nacional de Desenvolvimento
D3: Trecho: | E3: Minas Gerais - Lote 3 | J3: 2022 | K3: 2023 | L3: 2024 | M3: 2025 | N3: 2026 | O3: 2027 | P3: 2028 | Q3: 2029 | R3: 2030 | S3: 2031 | T3: 2032 | U3: 2033 | V3: 2034 | W3: 2035 | X3: 2036 | Y3: 2037 | Z3: 2038 | AA3: 2039 | AB3: 2040 | AC3: 2041 | AD3: 2042 | AE3: 2043 | AF3: 2044 | AG3: 2045 | AH3: 2046 | AI3: 2047 | AJ3: 2048 | AK3: 2049 | AL3: 2050 | AM3: 2051
D4: Objeto: | E4: Contratação de serviços técnicos especializados necessários à desestatização do sistema rodoviário no Estado de Minas Gerais, de até 2.798,6 km de extensão
E6: MEMÓRIA DE CÁLCULO - HDM4 | H6: 922,324,741.86 | J6: SERVIÇOS INICIAIS | L6: RECUPERAÇÃO RODOVIÁRIA | P6: MANUTENÇÃO RODOVIÁRIA
C8: Item | D8: Código | E8: Descrição | F8: unidade | G8: Quanitdade Total | H8: Preço Total | J8: Ano 1 | K8: Ano 2 | L8: Ano 3 | M8: Ano 4 | N8: Ano 5 | O8: Ano 6 | P8: Ano 7 | Q8: Ano 8 | R8: Ano 9 | S8: Ano 10 | T8: Ano 11 | U8: Ano 12 | V8: Ano 13 | W8: Ano 14 | X8: Ano 15 | Y8: Ano 16 | Z8: Ano 17 | AA8: Ano 18 | AB8: Ano 19 | AC8: Ano 20 | AD8: Ano 21 | AE8: Ano 22 | AF8: Ano 23 | AG8: Ano 24 | AH8: Ano 25 | AI8: Ano 26 | AJ8: Ano 27 | AK8: Ano 28 | AL8: Ano 29 | AM8: Ano 30
J9: 63,588,201.20 | K9: 55,377,169.55 | L9: 13,276,884.92 | M9: 52,522,659.79 | N9: 61,432,247.77 | O9: 79,323,235.10 | P9: 6,221,613.44 | Q9: 12,976,408.40 | R9: 44,847,313.98 | S9: 39,277,529.83 | T9: 29,297,138.64 | U9: 16,962,458.08 | V9: 20,688,729.80 | W9: 13,592,447.33 | X9: 11,382,287.92 | Y9: 36,494,518.49 | Z9: 26,580,995.71 | AA9: 10,080,816.74 | AB9: 18,370,786.31 | AC9: 16,857,114.92 | AD9: 24,946,220.12 | AE9: 17,753,601.83 | AF9: 15,002,881.81 | AG9: 21,627,399.87 | AH9: 18,920,315.20 | AI9: 12,030,027.28 | AJ9: 23,945,855.53 | AK9: 15,763,594.26 | AL9: 21,293,039.60 | AM9: 8,011,865.10
A10: x | C10: 8.0 | E10: MANUTENÇÃO PAVIMENTAÇÃO | G10: 808,445,358.50 | H10: =H11+H612+H1213+H1514 ->  | J10: =J11+J612+J1213+J1514 -> 
A11: x | C11: 8.1 | E11: PISTAS | H11: =H12+H42+H72+H102+H252+H282+H312+H342+H132+H162+H372+H402+H432+H462+H492+H522+H192+H222+H552+H582 ->  | J11: =J12+J42+J72+J102+J252+J282+J312+J342+J132+J162+J372+J402+J432+J462+J492+J522+J192+J222+J552+J582 ->  | AO11: =SUM(J11:AM11)=H11 -> 
A12: x | C12: 8.1.1 | E12: Fresagem5+Recomposição5p | H12: =SUM(H13:H41) ->  | J12: =SUM(J13:J41) ->  | K12: =SUM(K13:K41) ->  | AN12: =SUM(J12:AM12) ->  | AO12: =SUM(J12:AM12)=H12 -> 
C13: 8.1.1.1 | E13: 167EMG0200 | F13: M2 | G13: =_xlfn.XLOOKUP($E13,'Resumo Quant.'!$C:$C,'Resumo Quant.'!$D:$D) -> 0 | H13: =_xlfn.XLOOKUP($E13,'Resumo Preços'!$C:$C,'Resumo Preços'!$D:$D) -> 0 | J13: =$H13*'Cron. Físico'!H13 -> 0 | K13: =$H13*'Cron. Físico'!I13 -> 0 | L13: =$H13*'Cron. Físico'!J13 -> 0 | M13: =$H13*'Cron. Físico'!K13 -> 0 | N13: =$H13*'Cron. Físico'!L13 -> 0 | O13: =$H13*'Cron. Físico'!M13 -> 0 | P13: =$H13*'Cron. Físico'!N13 -> 0 | Q13: =$H13*'Cron. Físico'!O13 -> 0 | R13: =$H13*'Cron. Físico'!P13 -> 0 | S13: =$H13*'Cron. Físico'!Q13 -> 0 | T13: =$H13*'Cron. Físico'!R13 -> 0 | U13: =$H13*'Cron. Físico'!S13 -> 0 | V13: =$H13*'Cron. Físico'!T13 -> 0 | W13: =$H13*'Cron. Físico'!U13 -> 0 | X13: =$H13*'Cron. Físico'!V13 -> 0 | Y13: =$H13*'Cron. Físico'!W13 -> 0 | Z13: =$H13*'Cron. Físico'!X13 -> 0 | AA13: =$H13*'Cron. Físico'!Y13 -> 0 | AB13: =$H13*'Cron. Físico'!Z13 -> 0 | AC13: =$H13*'Cron. Físico'!AA13 -> 0 | AD13: =$H13*'Cron. Físico'!AB13 -> 0 | AE13: =$H13*'Cron. Físico'!AC13 -> 0 | AF13: =$H13*'Cron. Físico'!AD13 -> 0 | AG13: =$H13*'Cron. Físico'!AE13 -> 0 | AH13: =$H13*'Cron. Físico'!AF13 -> 0 | AI13: =$H13*'Cron. Físico'!AG13 -> 0 | AJ13: =$H13*'Cron. Físico'!AH13 -> 0 | AK13: =$H13*'Cron. Físico'!AI13 -> 0 | AL13: =$H13*'Cron. Físico'!AJ13 -> 0 | AM13: =$H13*'Cron. Físico'!AK13 -> 0 | AN13: =SUM(J13:AM13)/H13 ->  | AO13: TRUE
C14: 8.1.1.2 | E14: 167EMG0205 | F14: M2 | G14: =_xlfn.XLOOKUP($E14,'Resumo Quant.'!$C:$C,'Resumo Quant.'!$D:$D) -> 0 | H14: =_xlfn.XLOOKUP($E14,'Resumo Preços'!$C:$C,'Resumo Preços'!$D:$D) -> 0 | J14: =$H14*'Cron. Físico'!H14 -> 0 | K14: =$H14*'Cron. Físico'!I14 -> 0 | L14: =$H14*'Cron. Físico'!J14 -> 0 | M14: =$H14*'Cron. Físico'!K14 -> 0 | N14: =$H14*'Cron. Físico'!L14 -> 0 | O14: =$H14*'Cron. Físico'!M14 -> 0 | P14: =$H14*'Cron. Físico'!N14 -> 0 | Q14: =$H14*'Cron. Físico'!O14 -> 0 | R14: =$H14*'Cron. Físico'!P14 -> 0 | S14: =$H14*'Cron. Físico'!Q14 -> 0 | T14: =$H14*'Cron. Físico'!R14 -> 0 | U14: =$H14*'Cron. Físico'!S14 -> 0 | V14: =$H14*'Cron. Físico'!T14 -> 0 | W14: =$H14*'Cron. Físico'!U14 -> 0 | X14: =$H14*'Cron. Físico'!V14 -> 0 | Y14: =$H14*'Cron. Físico'!W14 -> 0 | Z14: =$H14*'Cron. Físico'!X14 -> 0 | AA14: =$H14*'Cron. Físico'!Y14 -> 0 | AB14: =$H14*'Cron. Físico'!Z14 -> 0 | AC14: =$H14*'Cron. Físico'!AA14 -> 0 | AD14: =$H14*'Cron. Físico'!AB14 -> 0 | AE14: =$H14*'Cron. Físico'!AC14 -> 0 | AF14: =$H14*'Cron. Físico'!AD14 -> 0 | AG14: =$H14*'Cron. Físico'!AE14 -> 0 | AH14: =$H14*'Cron. Físico'!AF14 -> 0 | AI14: =$H14*'Cron. Físico'!AG14 -> 0 | AJ14: =$H14*'Cron. Físico'!AH14 -> 0 | AK14: =$H14*'Cron. Físico'!AI14 -> 0 | AL14: =$H14*'Cron. Físico'!AJ14 -> 0 | AM14: =$H14*'Cron. Físico'!AK14 -> 0 | AO14: TRUE
C15: 8.1.1.3 | E15: 167EMG0220 | F15: M2 | G15: =_xlfn.XLOOKUP($E15,'Resumo Quant.'!$C:$C,'Resumo Quant.'!$D:$D) -> 36,000.00 | H15: =_xlfn.XLOOKUP($E15,'Resumo Preços'!$C:$C,'Resumo Preços'!$D:$D) -> 645,480.00 | J15: =$H15*'Cron. Físico'!H15 -> 0 | K15: =$H15*'Cron. Físico'!I15 -> 0 | L15: =$H15*'Cron. Físico'!J15 -> 0 | M15: =$H15*'Cron. Físico'!K15 -> 0 | N15: =$H15*'Cron. Físico'!L15 -> 0 | O15: =$H15*'Cron. Físico'!M15 -> 645,480.00 | P15: =$H15*'Cron. Físico'!N15 -> 0 | Q15: =$H15*'Cron. Físico'!O15 -> 0 | R15: =$H15*'Cron. Físico'!P15 -> 0 | S15: =$H15*'Cron. Físico'!Q15 -> 0 | T15: =$H15*'Cron. Físico'!R15 -> 0 | U15: =$H15*'Cron. Físico'!S15 -> 0 | V15: =$H15*'Cron. Físico'!T15 -> 0 | W15: =$H15*'Cron. Físico'!U15 -> 0 | X15: =$H15*'Cron. Físico'!V15 -> 0 | Y15: =$H15*'Cron. Físico'!W15 -> 0 | Z15: =$H15*'Cron. Físico'!X15 -> 0 | AA15: =$H15*'Cron. Físico'!Y15 -> 0 | AB15: =$H15*'Cron. Físico'!Z15 -> 0 | AC15: =$H15*'Cron. Físico'!AA15 -> 0 | AD15: =$H15*'Cron. Físico'!AB15 -> 0 | AE15: =$H15*'Cron. Físico'!AC15 -> 0 | AF15: =$H15*'Cron. Físico'!AD15 -> 0 | AG15: =$H15*'Cron. Físico'!AE15 -> 0 | AH15: =$H15*'Cron. Físico'!AF15 -> 0 | AI15: =$H15*'Cron. Físico'!AG15 -> 0 | AJ15: =$H15*'Cron. Físico'!AH15 -> 0 | AK15: =$H15*'Cron. Físico'!AI15 -> 0 | AL15: =$H15*'Cron. Físico'!AJ15 -> 0 | AM15: =$H15*'Cron. Físico'!AK15 -> 0 | AN15: 100.00% | AO15: TRUE
C16: 8.1.1.4 | E16: 265BMG0270 | F16: M2 | G16: =_xlfn.XLOOKUP($E16,'Resumo Quant.'!$C:$C,'Resumo Quant.'!$D:$D) -> 0 | H16: =_xlfn.XLOOKUP($E16,'Resumo Preços'!$C:$C,'Resumo Preços'!$D:$D) -> 0 | J16: =$H16*'Cron. Físico'!H16 -> 0 | K16: =$H16*'Cron. Físico'!I16 -> 0 | L16: =$H16*'Cron. Físico'!J16 -> 0 | M16: =$H16*'Cron. Físico'!K16 -> 0 | N16: =$H16*'Cron. Físico'!L16 -> 0 | O16: =$H16*'Cron. Físico'!M16 -> 0 | P16: =$H16*'Cron. Físico'!N16 -> 0 | Q16: =$H16*'Cron. Físico'!O16 -> 0 | R16: =$H16*'Cron. Físico'!P16 -> 0 | S16: =$H16*'Cron. Físico'!Q16 -> 0 | T16: =$H16*'Cron. Físico'!R16 -> 0 | U16: =$H16*'Cron. Físico'!S16 -> 0 | V16: =$H16*'Cron. Físico'!T16 -> 0 | W16: =$H16*'Cron. Físico'!U16 -> 0 | X16: =$H16*'Cron. Físico'!V16 -> 0 | Y16: =$H16*'Cron. Físico'!W16 -> 0 | Z16: =$H16*'Cron. Físico'!X16 -> 0 | AA16: =$H16*'Cron. Físico'!Y16 -> 0 | AB16: =$H16*'Cron. Físico'!Z16 -> 0 | AC16: =$H16*'Cron. Físico'!AA16 -> 0 | AD16: =$H16*'Cron. Físico'!AB16 -> 0 | AE16: =$H16*'Cron. Físico'!AC16 -> 0 | AF16: =$H16*'Cron. Físico'!AD16 -> 0 | AG16: =$H16*'Cron. Físico'!AE16 -> 0 | AH16: =$H16*'Cron. Físico'!AF16 -> 0 | AI16: =$H16*'Cron. Físico'!AG16 -> 0 | AJ16: =$H16*'Cron. Físico'!AH16 -> 0 | AK16: =$H16*'Cron. Físico'!AI16 -> 0 | AL16: =$H16*'Cron. Físico'!AJ16 -> 0 | AM16: =$H16*'Cron. Físico'!AK16 -> 0 | AO16: TRUE
C17: 8.1.1.5 | E17: 265BMG0290 | F17: M2 | G17: =_xlfn.XLOOKUP($E17,'Resumo Quant.'!$C:$C,'Resumo Quant.'!$D:$D) -> 0 | H17: =_xlfn.XLOOKUP($E17,'Resumo Preços'!$C:$C,'Resumo Preços'!$D:$D) -> 0 | J17: =$H17*'Cron. Físico'!H17 -> 0 | K17: =$H17*'Cron. Físico'!I17 -> 0 | L17: =$H17*'Cron. Físico'!J17 -> 0 | M17: =$H17*'Cron. Físico'!K17 -> 0 | N17: =$H17*'Cron. Físico'!L17 -> 0 | O17: =$H17*'Cron. Físico'!M17 -> 0 | P17: =$H17*'Cron. Físico'!N17 -> 0 | Q17: =$H17*'Cron. Físico'!O17 -> 0 | R17: =$H17*'Cron. Físico'!P17 -> 0 | S17: =$H17*'Cron. Físico'!Q17 -> 0 | T17: =$H17*'Cron. Físico'!R17 -> 0 | U17: =$H17*'Cron. Físico'!S17 -> 0 | V17: =$H17*'Cron. Físico'!T17 -> 0 | W17: =$H17*'Cron. Físico'!U17 -> 0 | X17: =$H17*'Cron. Físico'!V17 -> 0 | Y17: =$H17*'Cron. Físico'!W17 -> 0 | Z17: =$H17*'Cron. Físico'!X17 -> 0 | AA17: =$H17*'Cron. Físico'!Y17 -> 0 | AB17: =$H17*'Cron. Físico'!Z17 -> 0 | AC17: =$H17*'Cron. Físico'!AA17 -> 0 | AD17: =$H17*'Cron. Físico'!AB17 -> 0 | AE17: =$H17*'Cron. Físico'!AC17 -> 0 | AF17: =$H17*'Cron. Físico'!AD17 -> 0 | AG17: =$H17*'Cron. Físico'!AE17 -> 0 | AH17: =$H17*'Cron. Físico'!AF17 -> 0 | AI17: =$H17*'Cron. Físico'!AG17 -> 0 | AJ17: =$H17*'Cron. Físico'!AH17 -> 0 | AK17: =$H17*'Cron. Físico'!AI17 -> 0 | AL17: =$H17*'Cron. Físico'!AJ17 -> 0 | AM17: =$H17*'Cron. Físico'!AK17 -> 0 | AO17: TRUE
C18: 8.1.1.6 | E18: 265BMG0305 | F18: M2 | G18: =_xlfn.XLOOKUP($E18,'Resumo Quant.'!$C:$C,'Resumo Quant.'!$D:$D) -> 0 | H18: =_xlfn.XLOOKUP($E18,'Resumo Preços'!$C:$C,'Resumo Preços'!$D:$D) -> 0 | J18: =$H18*'Cron. Físico'!H18 -> 0 | K18: =$H18*'Cron. Físico'!I18 -> 0 | L18: =$H18*'Cron. Físico'!J18 -> 0 | M18: =$H18*'Cron. Físico'!K18 -> 0 | N18: =$H18*'Cron. Físico'!L18 -> 0 | O18: =$H18*'Cron. Físico'!M18 -> 0 | P18: =$H18*'Cron. Físico'!N18 -> 0 | Q18: =$H18*'Cron. Físico'!O18 -> 0 | R18: =$H18*'Cron. Físico'!P18 -> 0 | S18: =$H18*'Cron. Físico'!Q18 -> 0 | T18: =$H18*'Cron. Físico'!R18 -> 0 | U18: =$H18*'Cron. Físico'!S18 -> 0 | V18: =$H18*'Cron. Físico'!T18 -> 0 | W18: =$H18*'Cron. Físico'!U18 -> 0 | X18: =$H18*'Cron. Físico'!V18 -> 0 | Y18: =$H18*'Cron. Físico'!W18 -> 0 | Z18: =$H18*'Cron. Físico'!X18 -> 0 | AA18: =$H18*'Cron. Físico'!Y18 -> 0 | AB18: =$H18*'Cron. Físico'!Z18 -> 0 | AC18: =$H18*'Cron. Físico'!AA18 -> 0 | AD18: =$H18*'Cron. Físico'!AB18 -> 0 | AE18: =$H18*'Cron. Físico'!AC18 -> 0 | AF18: =$H18*'Cron. Físico'!AD18 -> 0 | AG18: =$H18*'Cron. Físico'!AE18 -> 0 | AH18: =$H18*'Cron. Físico'!AF18 -> 0 | AI18: =$H18*'Cron. Físico'!AG18 -> 0 | AJ18: =$H18*'Cron. Físico'!AH18 -> 0 | AK18: =$H18*'Cron. Físico'!AI18 -> 0 | AL18: =$H18*'Cron. Físico'!AJ18 -> 0 | AM18: =$H18*'Cron. Físico'!AK18 -> 0 | AO18: TRUE
C19: 8.1.1.7 | E19: 265BMG0310 | F19: M2 | G19: =_xlfn.XLOOKUP($E19,'Resumo Quant.'!$C:$C,'Resumo Quant.'!$D:$D) -> 0 | H19: =_xlfn.XLOOKUP($E19,'Resumo Preços'!$C:$C,'Resumo Preços'!$D:$D) -> 0 | J19: =$H19*'Cron. Físico'!H19 -> 0 | K19: =$H19*'Cron. Físico'!I19 -> 0 | L19: =$H19*'Cron. Físico'!J19 -> 0 | M19: =$H19*'Cron. Físico'!K19 -> 0 | N19: =$H19*'Cron. Físico'!L19 -> 0 | O19: =$H19*'Cron. Físico'!M19 -> 0 | P19: =$H19*'Cron. Físico'!N19 -> 0 | Q19: =$H19*'Cron. Físico'!O19 -> 0 | R19: =$H19*'Cron. Físico'!P19 -> 0 | S19: =$H19*'Cron. Físico'!Q19 -> 0 | T19: =$H19*'Cron. Físico'!R19 -> 0 | U19: =$H19*'Cron. Físico'!S19 -> 0 | V19: =$H19*'Cron. Físico'!T19 -> 0 | W19: =$H19*'Cron. Físico'!U19 -> 0 | X19: =$H19*'Cron. Físico'!V19 -> 0 | Y19: =$H19*'Cron. Físico'!W19 -> 0 | Z19: =$H19*'Cron. Físico'!X19 -> 0 | AA19: =$H19*'Cron. Físico'!Y19 -> 0 | AB19: =$H19*'Cron. Físico'!Z19 -> 0 | AC19: =$H19*'Cron. Físico'!AA19 -> 0 | AD19: =$H19*'Cron. Físico'!AB19 -> 0 | AE19: =$H19*'Cron. Físico'!AC19 -> 0 | AF19: =$H19*'Cron. Físico'!AD19 -> 0 | AG19: =$H19*'Cron. Físico'!AE19 -> 0 | AH19: =$H19*'Cron. Físico'!AF19 -> 0 | AI19: =$H19*'Cron. Físico'!AG19 -> 0 | AJ19: =$H19*'Cron. Físico'!AH19 -> 0 | AK19: =$H19*'Cron. Físico'!AI19 -> 0 | AL19: =$H19*'Cron. Físico'!AJ19 -> 0 | AM19: =$H19*'Cron. Físico'!AK19 -> 0 | AO19: TRUE
C20: 8.1.1.8 | E20: 265BMG0311 | F20: M2 | G20: =_xlfn.XLOOKUP($E20,'Resumo Quant.'!$C:$C,'Resumo Quant.'!$D:$D) -> 19,398.34 | H20: =_xlfn.XLOOKUP($E20,'Resumo Preços'!$C:$C,'Resumo Preços'!$D:$D) -> 347,812.24 | J20: =$H20*'Cron. Físico'!H20 -> 0 | K20: =$H20*'Cron. Físico'!I20 -> 0 | L20: =$H20*'Cron. Físico'!J20 -> 0 | M20: =$H20*'Cron. Físico'!K20 -> 0 | N20: =$H20*'Cron. Físico'!L20 -> 0 | O20: =$H20*'Cron. Físico'!M20 -> 347,812.24 | P20: =$H20*'Cron. Físico'!N20 -> 0 | Q20: =$H20*'Cron. Físico'!O20 -> 0 | R20: =$H20*'Cron. Físico'!P20 -> 0 | S20: =$H20*'Cron. Físico'!Q20 -> 0 | T20: =$H20*'Cron. Físico'!R20 -> 0 | U20: =$H20*'Cron. Físico'!S20 -> 0 | V20: =$H20*'Cron. Físico'!T20 -> 0 | W20: =$H20*'Cron. Físico'!U20 -> 0 | X20: =$H20*'Cron. Físico'!V20 -> 0 | Y20: =$H20*'Cron. Físico'!W20 -> 0 | Z20: =$H20*'Cron. Físico'!X20 -> 0 | AA20: =$H20*'Cron. Físico'!Y20 -> 0 | AB20: =$H20*'Cron. Físico'!Z20 -> 0 | AC20: =$H20*'Cron. Físico'!AA20 -> 0 | AD20: =$H20*'Cron. Físico'!AB20 -> 0 | AE20: =$H20*'Cron. Físico'!AC20 -> 0 | AF20: =$H20*'Cron. Físico'!AD20 -> 0 | AG20: =$H20*'Cron. Físico'!AE20 -> 0 | AH20: =$H20*'Cron. Físico'!AF20 -> 0 | AI20: =$H20*'Cron. Físico'!AG20 -> 0 | AJ20: =$H20*'Cron. Físico'!AH20 -> 0 | AK20: =$H20*'Cron. Físico'!AI20 -> 0 | AL20: =$H20*'Cron. Físico'!AJ20 -> 0 | AM20: =$H20*'Cron. Físico'!AK20 -> 0 | AN20: 100.00% | AO20: TRUE
C21: 8.1.1.9 | E21: 863LMG0010 | F21: M2 | G21: =_xlfn.XLOOKUP($E21,'Resumo Quant.'!$C:$C,'Resumo Quant.'!$D:$D) -> 0 | H21: =_xlfn.XLOOKUP($E21,'Resumo Preços'!$C:$C,'Resumo Preços'!$D:$D) -> 0 | J21: =$H21*'Cron. Físico'!H21 -> 0 | K21: =$H21*'Cron. Físico'!I21 -> 0 | L21: =$H21*'Cron. Físico'!J21 -> 0 | M21: =$H21*'Cron. Físico'!K21 -> 0 | N21: =$H21*'Cron. Físico'!L21 -> 0 | O21: =$H21*'Cron. Físico'!M21 -> 0 | P21: =$H21*'Cron. Físico'!N21 -> 0 | Q21: =$H21*'Cron. Físico'!O21 -> 0 | R21: =$H21*'Cron. Físico'!P21 -> 0 | S21: =$H21*'Cron. Físico'!Q21 -> 0 | T21: =$H21*'Cron. Físico'!R21 -> 0 | U21: =$H21*'Cron. Físico'!S21 -> 0 | V21: =$H21*'Cron. Físico'!T21 -> 0 | W21: =$H21*'Cron. Físico'!U21 -> 0 | X21: =$H21*'Cron. Físico'!V21 -> 0 | Y21: =$H21*'Cron. Físico'!W21 -> 0 | Z21: =$H21*'Cron. Físico'!X21 -> 0 | AA21: =$H21*'Cron. Físico'!Y21 -> 0 | AB21: =$H21*'Cron. Físico'!Z21 -> 0 | AC21: =$H21*'Cron. Físico'!AA21 -> 0 | AD21: =$H21*'Cron. Físico'!AB21 -> 0 | AE21: =$H21*'Cron. Físico'!AC21 -> 0 | AF21: =$H21*'Cron. Físico'!AD21 -> 0 | AG21: =$H21*'Cron. Físico'!AE21 -> 0 | AH21: =$H21*'Cron. Físico'!AF21 -> 0 | AI21: =$H21*'Cron. Físico'!AG21 -> 0 | AJ21: =$H21*'Cron. Físico'!AH21 -> 0 | AK21: =$H21*'Cron. Físico'!AI21 -> 0 | AL21: =$H21*'Cron. Físico'!AJ21 -> 0 | AM21: =$H21*'Cron. Físico'!AK21 -> 0 | AO21: TRUE
C22: 8.1.1.10 | E22: 491CMG0010 | F22: M2 | G22: =_xlfn.XLOOKUP($E22,'Resumo Quant.'!$C:$C,'Resumo Quant.'!$D:$D) -> 0 | H22: =_xlfn.XLOOKUP($E22,'Resumo Preços'!$C:$C,'Resumo Preços'!$D:$D) -> 0 | J22: =$H22*'Cron. Físico'!H22 -> 0 | K22: =$H22*'Cron. Físico'!I22 -> 0 | L22: =$H22*'Cron. Físico'!J22 -> 0 | M22: =$H22*'Cron. Físico'!K22 -> 0 | N22: =$H22*'Cron. Físico'!L22 -> 0 | O22: =$H22*'Cron. Físico'!M22 -> 0 | P22: =$H22*'Cron. Físico'!N22 -> 0 | Q22: =$H22*'Cron. Físico'!O22 -> 0 | R22: =$H22*'Cron. Físico'!P22 -> 0 | S22: =$H22*'Cron. Físico'!Q22 -> 0 | T22: =$H22*'Cron. Físico'!R22 -> 0 | U22: =$H22*'Cron. Físico'!S22 -> 0 | V22: =$H22*'Cron. Físico'!T22 -> 0 | W22: =$H22*'Cron. Físico'!U22 -> 0 | X22: =$H22*'Cron. Físico'!V22 -> 0 | Y22: =$H22*'Cron. Físico'!W22 -> 0 | Z22: =$H22*'Cron. Físico'!X22 -> 0 | AA22: =$H22*'Cron. Físico'!Y22 -> 0 | AB22: =$H22*'Cron. Físico'!Z22 -> 0 | AC22: =$H22*'Cron. Físico'!AA22 -> 0 | AD22: =$H22*'Cron. Físico'!AB22 -> 0 | AE22: =$H22*'Cron. Físico'!AC22 -> 0 | AF22: =$H22*'Cron. Físico'!AD22 -> 0 | AG22: =$H22*'Cron. Físico'!AE22 -> 0 | AH22: =$H22*'Cron. Físico'!AF22 -> 0 | AI22: =$H22*'Cron. Físico'!AG22 -> 0 | AJ22: =$H22*'Cron. Físico'!AH22 -> 0 | AK22: =$H22*'Cron. Físico'!AI22 -> 0 | AL22: =$H22*'Cron. Físico'!AJ22 -> 0 | AM22: =$H22*'Cron. Físico'!AK22 -> 0 | AO22: TRUE
C23: 8.1.1.11 | E23: 491CMG0023 | F23: M2 | G23: =_xlfn.XLOOKUP($E23,'Resumo Quant.'!$C:$C,'Resumo Quant.'!$D:$D) -> 0 | H23: =_xlfn.XLOOKUP($E23,'Resumo Preços'!$C:$C,'Resumo Preços'!$D:$D) -> 0 | J23: =$H23*'Cron. Físico'!H23 -> 0 | K23: =$H23*'Cron. Físico'!I23 -> 0 | L23: =$H23*'Cron. Físico'!J23 -> 0 | M23: =$H23*'Cron. Físico'!K23 -> 0 | N23: =$H23*'Cron. Físico'!L23 -> 0 | O23: =$H23*'Cron. Físico'!M23 -> 0 | P23: =$H23*'Cron. Físico'!N23 -> 0 | Q23: =$H23*'Cron. Físico'!O23 -> 0 | R23: =$H23*'Cron. Físico'!P23 -> 0 | S23: =$H23*'Cron. Físico'!Q23 -> 0 | T23: =$H23*'Cron. Físico'!R23 -> 0 | U23: =$H23*'Cron. Físico'!S23 -> 0 | V23: =$H23*'Cron. Físico'!T23 -> 0 | W23: =$H23*'Cron. Físico'!U23 -> 0 | X23: =$H23*'Cron. Físico'!V23 -> 0 | Y23: =$H23*'Cron. Físico'!W23 -> 0 | Z23: =$H23*'Cron. Físico'!X23 -> 0 | AA23: =$H23*'Cron. Físico'!Y23 -> 0 | AB23: =$H23*'Cron. Físico'!Z23 -> 0 | AC23: =$H23*'Cron. Físico'!AA23 -> 0 | AD23: =$H23*'Cron. Físico'!AB23 -> 0 | AE23: =$H23*'Cron. Físico'!AC23 -> 0 | AF23: =$H23*'Cron. Físico'!AD23 -> 0 | AG23: =$H23*'Cron. Físico'!AE23 -> 0 | AH23: =$H23*'Cron. Físico'!AF23 -> 0 | AI23: =$H23*'Cron. Físico'!AG23 -> 0 | AJ23: =$H23*'Cron. Físico'!AH23 -> 0 | AK23: =$H23*'Cron. Físico'!AI23 -> 0 | AL23: =$H23*'Cron. Físico'!AJ23 -> 0 | AM23: =$H23*'Cron. Físico'!AK23 -> 0 | AO23: TRUE
C24: 8.1.1.12 | E24: 491CMG0050 | F24: M2 | G24: =_xlfn.XLOOKUP($E24,'Resumo Quant.'!$C:$C,'Resumo Quant.'!$D:$D) -> 10,052.08 | H24: =_xlfn.XLOOKUP($E24,'Resumo Preços'!$C:$C,'Resumo Preços'!$D:$D) -> 180,233.79 | J24: =$H24*'Cron. Físico'!H24 -> 0 | K24: =$H24*'Cron. Físico'!I24 -> 0 | L24: =$H24*'Cron. Físico'!J24 -> 0 | M24: =$H24*'Cron. Físico'!K24 -> 0 | N24: =$H24*'Cron. Físico'!L24 -> 0 | O24: =$H24*'Cron. Físico'!M24 -> 180,233.79 | P24: =$H24*'Cron. Físico'!N24 -> 0 | Q24: =$H24*'Cron. Físico'!O24 -> 0 | R24: =$H24*'Cron. Físico'!P24 -> 0 | S24: =$H24*'Cron. Físico'!Q24 -> 0 | T24: =$H24*'Cron. Físico'!R24 -> 0 | U24: =$H24*'Cron. Físico'!S24 -> 0 | V24: =$H24*'Cron. Físico'!T24 -> 0 | W24: =$H24*'Cron. Físico'!U24 -> 0 | X24: =$H24*'Cron. Físico'!V24 -> 0 | Y24: =$H24*'Cron. Físico'!W24 -> 0 | Z24: =$H24*'Cron. Físico'!X24 -> 0 | AA24: =$H24*'Cron. Físico'!Y24 -> 0 | AB24: =$H24*'Cron. Físico'!Z24 -> 0 | AC24: =$H24*'Cron. Físico'!AA24 -> 0 | AD24: =$H24*'Cron. Físico'!AB24 -> 0 | AE24: =$H24*'Cron. Físico'!AC24 -> 0 | AF24: =$H24*'Cron. Físico'!AD24 -> 0 | AG24: =$H24*'Cron. Físico'!AE24 -> 0 | AH24: =$H24*'Cron. Físico'!AF24 -> 0 | AI24: =$H24*'Cron. Físico'!AG24 -> 0 | AJ24: =$H24*'Cron. Físico'!AH24 -> 0 | AK24: =$H24*'Cron. Físico'!AI24 -> 0 | AL24: =$H24*'Cron. Físico'!AJ24 -> 0 | AM24: =$H24*'Cron. Físico'!AK24 -> 0 | AN24: 100.00% | AO24: TRUE
C25: 8.1.1.13 | E25: 491CMG0090 | F25: M2 | G25: =_xlfn.XLOOKUP($E25,'Resumo Quant.'!$C:$C,'Resumo Quant.'!$D:$D) -> 0 | H25: =_xlfn.XLOOKUP($E25,'Resumo Preços'!$C:$C,'Resumo Preços'!$D:$D) -> 0 | J25: =$H25*'Cron. Físico'!H25 -> 0 | K25: =$H25*'Cron. Físico'!I25 -> 0 | L25: =$H25*'Cron. Físico'!J25 -> 0 | M25: =$H25*'Cron. Físico'!K25 -> 0 | N25: =$H25*'Cron. Físico'!L25 -> 0 | O25: =$H25*'Cron. Físico'!M25 -> 0 | P25: =$H25*'Cron. Físico'!N25 -> 0 | Q25: =$H25*'Cron. Físico'!O25 -> 0 | R25: =$H25*'Cron. Físico'!P25 -> 0 | S25: =$H25*'Cron. Físico'!Q25 -> 0 | T25: =$H25*'Cron. Físico'!R25 -> 0 | U25: =$H25*'Cron. Físico'!S25 -> 0 | V25: =$H25*'Cron. Físico'!T25 -> 0 | W25: =$H25*'Cron. Físico'!U25 -> 0 | X25: =$H25*'Cron. Físico'!V25 -> 0 | Y25: =$H25*'Cron. Físico'!W25 -> 0 | Z25: =$H25*'Cron. Físico'!X25 -> 0 | AA25: =$H25*'Cron. Físico'!Y25 -> 0 | AB25: =$H25*'Cron. Físico'!Z25 -> 0 | AC25: =$H25*'Cron. Físico'!AA25 -> 0 | AD25: =$H25*'Cron. Físico'!AB25 -> 0 | AE25: =$H25*'Cron. Físico'!AC25 -> 0 | AF25: =$H25*'Cron. Físico'!AD25 -> 0 | AG25: =$H25*'Cron. Físico'!AE25 -> 0 | AH25: =$H25*'Cron. Físico'!AF25 -> 0 | AI25: =$H25*'Cron. Físico'!AG25 -> 0 | AJ25: =$H25*'Cron. Físico'!AH25 -> 0 | AK25: =$H25*'Cron. Físico'!AI25 -> 0 | AL25: =$H25*'Cron. Físico'!AJ25 -> 0 | AM25: =$H25*'Cron. Físico'!AK25 -> 0 | AO25: TRUE
C26: 8.1.1.14 | E26: 491CMG0100 | F26: M2 | G26: =_xlfn.XLOOKUP($E26,'Resumo Quant.'!$C:$C,'Resumo Quant.'!$D:$D) -> 0 | H26: =_xlfn.XLOOKUP($E26,'Resumo Preços'!$C:$C,'Resumo Preços'!$D:$D) -> 0 | J26: =$H26*'Cron. Físico'!H26 -> 0 | K26: =$H26*'Cron. Físico'!I26 -> 0 | L26: =$H26*'Cron. Físico'!J26 -> 0 | M26: =$H26*'Cron. Físico'!K26 -> 0 | N26: =$H26*'Cron. Físico'!L26 -> 0 | O26: =$H26*'Cron. Físico'!M26 -> 0 | P26: =$H26*'Cron. Físico'!N26 -> 0 | Q26: =$H26*'Cron. Físico'!O26 -> 0 | R26: =$H26*'Cron. Físico'!P26 -> 0 | S26: =$H26*'Cron. Físico'!Q26 -> 0 | T26: =$H26*'Cron. Físico'!R26 -> 0 | U26: =$H26*'Cron. Físico'!S26 -> 0 | V26: =$H26*'Cron. Físico'!T26 -> 0 | W26: =$H26*'Cron. Físico'!U26 -> 0 | X26: =$H26*'Cron. Físico'!V26 -> 0 | Y26: =$H26*'Cron. Físico'!W26 -> 0 | Z26: =$H26*'Cron. Físico'!X26 -> 0 | AA26: =$H26*'Cron. Físico'!Y26 -> 0 | AB26: =$H26*'Cron. Físico'!Z26 -> 0 | AC26: =$H26*'Cron. Físico'!AA26 -> 0 | AD26: =$H26*'Cron. Físico'!AB26 -> 0 | AE26: =$H26*'Cron. Físico'!AC26 -> 0 | AF26: =$H26*'Cron. Físico'!AD26 -> 0 | AG26: =$H26*'Cron. Físico'!AE26 -> 0 | AH26: =$H26*'Cron. Físico'!AF26 -> 0 | AI26: =$H26*'Cron. Físico'!AG26 -> 0 | AJ26: =$H26*'Cron. Físico'!AH26 -> 0 | AK26: =$H26*'Cron. Físico'!AI26 -> 0 | AL26: =$H26*'Cron. Físico'!AJ26 -> 0 | AM26: =$H26*'Cron. Físico'!AK26 -> 0 | AO26: TRUE
C27: 8.1.1.15 | E27: 491CMG0230 | F27: M2 | G27: =_xlfn.XLOOKUP($E27,'Resumo Quant.'!$C:$C,'Resumo Quant.'!$D:$D) -> 36,981.45 | H27: =_xlfn.XLOOKUP($E27,'Resumo Preços'!$C:$C,'Resumo Preços'!$D:$D) -> 663,077.40 | J27: =$H27*'Cron. Físico'!H27 -> 0 | K27: =$H27*'Cron. Físico'!I27 -> 0 | L27: =$H27*'Cron. Físico'!J27 -> 0 | M27: =$H27*'Cron. Físico'!K27 -> 0 | N27: =$H27*'Cron. Físico'!L27 -> 663,077.40 | O27: =$H27*'Cron. Físico'!M27 -> 0 | P27: =$H27*'Cron. Físico'!N27 -> 0 | Q27: =$H27*'Cron. Físico'!O27 -> 0 | R27: =$H27*'Cron. Físico'!P27 -> 0 | S27: =$H27*'Cron. Físico'!Q27 -> 0 | T27: =$H27*'Cron. Físico'!R27 -> 0 | U27: =$H27*'Cron. Físico'!S27 -> 0 | V27: =$H27*'Cron. Físico'!T27 -> 0 | W27: =$H27*'Cron. Físico'!U27 -> 0 | X27: =$H27*'Cron. Físico'!V27 -> 0 | Y27: =$H27*'Cron. Físico'!W27 -> 0 | Z27: =$H27*'Cron. Físico'!X27 -> 0 | AA27: =$H27*'Cron. Físico'!Y27 -> 0 | AB27: =$H27*'Cron. Físico'!Z27 -> 0 | AC27: =$H27*'Cron. Físico'!AA27 -> 0 | AD27: =$H27*'Cron. Físico'!AB27 -> 0 | AE27: =$H27*'Cron. Físico'!AC27 -> 0 | AF27: =$H27*'Cron. Físico'!AD27 -> 0 | AG27: =$H27*'Cron. Físico'!AE27 -> 0 | AH27: =$H27*'Cron. Físico'!AF27 -> 0 | AI27: =$H27*'Cron. Físico'!AG27 -> 0 | AJ27: =$H27*'Cron. Físico'!AH27 -> 0 | AK27: =$H27*'Cron. Físico'!AI27 -> 0 | AL27: =$H27*'Cron. Físico'!AJ27 -> 0 | AM27: =$H27*'Cron. Físico'!AK27 -> 0 | AN27: 100.00% | AO27: TRUE
C28: 8.1.1.16 | E28: 491CMG0030 | F28: M2 | G28: =_xlfn.XLOOKUP($E28,'Resumo Quant.'!$C:$C,'Resumo Quant.'!$D:$D) -> 30,396.86 | H28: =_xlfn.XLOOKUP($E28,'Resumo Preços'!$C:$C,'Resumo Preços'!$D:$D) -> 545,015.70 | J28: =$H28*'Cron. Físico'!H28 -> 0 | K28: =$H28*'Cron. Físico'!I28 -> 0 | L28: =$H28*'Cron. Físico'!J28 -> 0 | M28: =$H28*'Cron. Físico'!K28 -> 0 | N28: =$H28*'Cron. Físico'!L28 -> 0 | O28: =$H28*'Cron. Físico'!M28 -> 545,015.70 | P28: =$H28*'Cron. Físico'!N28 -> 0 | Q28: =$H28*'Cron. Físico'!O28 -> 0 | R28: =$H28*'Cron. Físico'!P28 -> 0 | S28: =$H28*'Cron. Físico'!Q28 -> 0 | T28: =$H28*'Cron. Físico'!R28 -> 0 | U28: =$H28*'Cron. Físico'!S28 -> 0 | V28: =$H28*'Cron. Físico'!T28 -> 0 | W28: =$H28*'Cron. Físico'!U28 -> 0 | X28: =$H28*'Cron. Físico'!V28 -> 0 | Y28: =$H28*'Cron. Físico'!W28 -> 0 | Z28: =$H28*'Cron. Físico'!X28 -> 0 | AA28: =$H28*'Cron. Físico'!Y28 -> 0 | AB28: =$H28*'Cron. Físico'!Z28 -> 0 | AC28: =$H28*'Cron. Físico'!AA28 -> 0 | AD28: =$H28*'Cron. Físico'!AB28 -> 0 | AE28: =$H28*'Cron. Físico'!AC28 -> 0 | AF28: =$H28*'Cron. Físico'!AD28 -> 0 | AG28: =$H28*'Cron. Físico'!AE28 -> 0 | AH28: =$H28*'Cron. Físico'!AF28 -> 0 | AI28: =$H28*'Cron. Físico'!AG28 -> 0 | AJ28: =$H28*'Cron. Físico'!AH28 -> 0 | AK28: =$H28*'Cron. Físico'!AI28 -> 0 | AL28: =$H28*'Cron. Físico'!AJ28 -> 0 | AM28: =$H28*'Cron. Físico'!AK28 -> 0 | AN28: 100.00% | AO28: TRUE
C29: 8.1.1.17 | E29: 491CMG0110 | F29: M2 | G29: =_xlfn.XLOOKUP($E29,'Resumo Quant.'!$C:$C,'Resumo Quant.'!$D:$D) -> 0 | H29: =_xlfn.XLOOKUP($E29,'Resumo Preços'!$C:$C,'Resumo Preços'!$D:$D) -> 0 | J29: =$H29*'Cron. Físico'!H29 -> 0 | K29: =$H29*'Cron. Físico'!I29 -> 0 | L29: =$H29*'Cron. Físico'!J29 -> 0 | M29: =$H29*'Cron. Físico'!K29 -> 0 | N29: =$H29*'Cron. Físico'!L29 -> 0 | O29: =$H29*'Cron. Físico'!M29 -> 0 | P29: =$H29*'Cron. Físico'!N29 -> 0 | Q29: =$H29*'Cron. Físico'!O29 -> 0 | R29: =$H29*'Cron. Físico'!P29 -> 0 | S29: =$H29*'Cron. Físico'!Q29 -> 0 | T29: =$H29*'Cron. Físico'!R29 -> 0 | U29: =$H29*'Cron. Físico'!S29 -> 0 | V29: =$H29*'Cron. Físico'!T29 -> 0 | W29: =$H29*'Cron. Físico'!U29 -> 0 | X29: =$H29*'Cron. Físico'!V29 -> 0 | Y29: =$H29*'Cron. Físico'!W29 -> 0 | Z29: =$H29*'Cron. Físico'!X29 -> 0 | AA29: =$H29*'Cron. Físico'!Y29 -> 0 | AB29: =$H29*'Cron. Físico'!Z29 -> 0 | AC29: =$H29*'Cron. Físico'!AA29 -> 0 | AD29: =$H29*'Cron. Físico'!AB29 -> 0 | AE29: =$H29*'Cron. Físico'!AC29 -> 0 | AF29: =$H29*'Cron. Físico'!AD29 -> 0 | AG29: =$H29*'Cron. Físico'!AE29 -> 0 | AH29: =$H29*'Cron. Físico'!AF29 -> 0 | AI29: =$H29*'Cron. Físico'!AG29 -> 0 | AJ29: =$H29*'Cron. Físico'!AH29 -> 0 | AK29: =$H29*'Cron. Físico'!AI29 -> 0 | AL29: =$H29*'Cron. Físico'!AJ29 -> 0 | AM29: =$H29*'Cron. Físico'!AK29 -> 0 | AO29: TRUE
C30: 8.1.1.18 | E30: 491CMG0130 | F30: M2 | G30: =_xlfn.XLOOKUP($E30,'Resumo Quant.'!$C:$C,'Resumo Quant.'!$D:$D) -> 0 | H30: =_xlfn.XLOOKUP($E30,'Resumo Preços'!$C:$C,'Resumo Preços'!$D:$D) -> 0 | J30: =$H30*'Cron. Físico'!H30 -> 0 | K30: =$H30*'Cron. Físico'!I30 -> 0 | L30: =$H30*'Cron. Físico'!J30 -> 0 | M30: =$H30*'Cron. Físico'!K30 -> 0 | N30: =$H30*'Cron. Físico'!L30 -> 0 | O30: =$H30*'Cron. Físico'!M30 -> 0 | P30: =$H30*'Cron. Físico'!N30 -> 0 | Q30: =$H30*'Cron. Físico'!O30 -> 0 | R30: =$H30*'Cron. Físico'!P30 -> 0 | S30: =$H30*'Cron. Físico'!Q30 -> 0 | T30: =$H30*'Cron. Físico'!R30 -> 0 | U30: =$H30*'Cron. Físico'!S30 -> 0 | V30: =$H30*'Cron. Físico'!T30 -> 0 | W30: =$H30*'Cron. Físico'!U30 -> 0 | X30: =$H30*'Cron. Físico'!V30 -> 0 | Y30: =$H30*'Cron. Físico'!W30 -> 0 | Z30: =$H30*'Cron. Físico'!X30 -> 0 | AA30: =$H30*'Cron. Físico'!Y30 -> 0 | AB30: =$H30*'Cron. Físico'!Z30 -> 0 | AC30: =$H30*'Cron. Físico'!AA30 -> 0 | AD30: =$H30*'Cron. Físico'!AB30 -> 0 | AE30: =$H30*'Cron. Físico'!AC30 -> 0 | AF30: =$H30*'Cron. Físico'!AD30 -> 0 | AG30: =$H30*'Cron. Físico'!AE30 -> 0 | AH30: =$H30*'Cron. Físico'!AF30 -> 0 | AI30: =$H30*'Cron. Físico'!AG30 -> 0 | AJ30: =$H30*'Cron. Físico'!AH30 -> 0 | AK30: =$H30*'Cron. Físico'!AI30 -> 0 | AL30: =$H30*'Cron. Físico'!AJ30 -> 0 | AM30: =$H30*'Cron. Físico'!AK30 -> 0 | AO30: TRUE
C31: 8.1.1.19 | E31: 491CMG0150 | F31: M2 | G31: =_xlfn.XLOOKUP($E31,'Resumo Quant.'!$C:$C,'Resumo Quant.'!$D:$D) -> 0 | H31: =_xlfn.XLOOKUP($E31,'Resumo Preços'!$C:$C,'Resumo Preços'!$D:$D) -> 0 | J31: =$H31*'Cron. Físico'!H31 -> 0 | K31: =$H31*'Cron. Físico'!I31 -> 0 | L31: =$H31*'Cron. Físico'!J31 -> 0 | M31: =$H31*'Cron. Físico'!K31 -> 0 | N31: =$H31*'Cron. Físico'!L31 -> 0 | O31: =$H31*'Cron. Físico'!M31 -> 0 | P31: =$H31*'Cron. Físico'!N31 -> 0 | Q31: =$H31*'Cron. Físico'!O31 -> 0 | R31: =$H31*'Cron. Físico'!P31 -> 0 | S31: =$H31*'Cron. Físico'!Q31 -> 0 | T31: =$H31*'Cron. Físico'!R31 -> 0 | U31: =$H31*'Cron. Físico'!S31 -> 0 | V31: =$H31*'Cron. Físico'!T31 -> 0 | W31: =$H31*'Cron. Físico'!U31 -> 0 | X31: =$H31*'Cron. Físico'!V31 -> 0 | Y31: =$H31*'Cron. Físico'!W31 -> 0 | Z31: =$H31*'Cron. Físico'!X31 -> 0 | AA31: =$H31*'Cron. Físico'!Y31 -> 0 | AB31: =$H31*'Cron. Físico'!Z31 -> 0 | AC31: =$H31*'Cron. Físico'!AA31 -> 0 | AD31: =$H31*'Cron. Físico'!AB31 -> 0 | AE31: =$H31*'Cron. Físico'!AC31 -> 0 | AF31: =$H31*'Cron. Físico'!AD31 -> 0 | AG31: =$H31*'Cron. Físico'!AE31 -> 0 | AH31: =$H31*'Cron. Físico'!AF31 -> 0 | AI31: =$H31*'Cron. Físico'!AG31 -> 0 | AJ31: =$H31*'Cron. Físico'!AH31 -> 0 | AK31: =$H31*'Cron. Físico'!AI31 -> 0 | AL31: =$H31*'Cron. Físico'!AJ31 -> 0 | AM31: =$H31*'Cron. Físico'!AK31 -> 0 | AO31: TRUE
C32: 8.1.1.20 | E32: 491CMG0170 | F32: M2 | G32: =_xlfn.XLOOKUP($E32,'Resumo Quant.'!$C:$C,'Resumo Quant.'!$D:$D) -> 0 | H32: =_xlfn.XLOOKUP($E32,'Resumo Preços'!$C:$C,'Resumo Preços'!$D:$D) -> 0 | J32: =$H32*'Cron. Físico'!H32 -> 0 | K32: =$H32*'Cron. Físico'!I32 -> 0 | L32: =$H32*'Cron. Físico'!J32 -> 0 | M32: =$H32*'Cron. Físico'!K32 -> 0 | N32: =$H32*'Cron. Físico'!L32 -> 0 | O32: =$H32*'Cron. Físico'!M32 -> 0 | P32: =$H32*'Cron. Físico'!N32 -> 0 | Q32: =$H32*'Cron. Físico'!O32 -> 0 | R32: =$H32*'Cron. Físico'!P32 -> 0 | S32: =$H32*'Cron. Físico'!Q32 -> 0 | T32: =$H32*'Cron. Físico'!R32 -> 0 | U32: =$H32*'Cron. Físico'!S32 -> 0 | V32: =$H32*'Cron. Físico'!T32 -> 0 | W32: =$H32*'Cron. Físico'!U32 -> 0 | X32: =$H32*'Cron. Físico'!V32 -> 0 | Y32: =$H32*'Cron. Físico'!W32 -> 0 | Z32: =$H32*'Cron. Físico'!X32 -> 0 | AA32: =$H32*'Cron. Físico'!Y32 -> 0 | AB32: =$H32*'Cron. Físico'!Z32 -> 0 | AC32: =$H32*'Cron. Físico'!AA32 -> 0 | AD32: =$H32*'Cron. Físico'!AB32 -> 0 | AE32: =$H32*'Cron. Físico'!AC32 -> 0 | AF32: =$H32*'Cron. Físico'!AD32 -> 0 | AG32: =$H32*'Cron. Físico'!AE32 -> 0 | AH32: =$H32*'Cron. Físico'!AF32 -> 0 | AI32: =$H32*'Cron. Físico'!AG32 -> 0 | AJ32: =$H32*'Cron. Físico'!AH32 -> 0 | AK32: =$H32*'Cron. Físico'!AI32 -> 0 | AL32: =$H32*'Cron. Físico'!AJ32 -> 0 | AM32: =$H32*'Cron. Físico'!AK32 -> 0 | AO32: TRUE
C33: 8.1.1.21 | E33: 491CMG0190 | F33: M2 | G33: =_xlfn.XLOOKUP($E33,'Resumo Quant.'!$C:$C,'Resumo Quant.'!$D:$D) -> 20,811.21 | H33: =_xlfn.XLOOKUP($E33,'Resumo Preços'!$C:$C,'Resumo Preços'!$D:$D) -> 373,145.00 | J33: =$H33*'Cron. Físico'!H33 -> 0 | K33: =$H33*'Cron. Físico'!I33 -> 0 | L33: =$H33*'Cron. Físico'!J33 -> 0 | M33: =$H33*'Cron. Físico'!K33 -> 0 | N33: =$H33*'Cron. Físico'!L33 -> 373,145.00 | O33: =$H33*'Cron. Físico'!M33 -> 0 | P33: =$H33*'Cron. Físico'!N33 -> 0 | Q33: =$H33*'Cron. Físico'!O33 -> 0 | R33: =$H33*'Cron. Físico'!P33 -> 0 | S33: =$H33*'Cron. Físico'!Q33 -> 0 | T33: =$H33*'Cron. Físico'!R33 -> 0 | U33: =$H33*'Cron. Físico'!S33 -> 0 | V33: =$H33*'Cron. Físico'!T33 -> 0 | W33: =$H33*'Cron. Físico'!U33 -> 0 | X33: =$H33*'Cron. Físico'!V33 -> 0 | Y33: =$H33*'Cron. Físico'!W33 -> 0 | Z33: =$H33*'Cron. Físico'!X33 -> 0 | AA33: =$H33*'Cron. Físico'!Y33 -> 0 | AB33: =$H33*'Cron. Físico'!Z33 -> 0 | AC33: =$H33*'Cron. Físico'!AA33 -> 0 | AD33: =$H33*'Cron. Físico'!AB33 -> 0 | AE33: =$H33*'Cron. Físico'!AC33 -> 0 | AF33: =$H33*'Cron. Físico'!AD33 -> 0 | AG33: =$H33*'Cron. Físico'!AE33 -> 0 | AH33: =$H33*'Cron. Físico'!AF33 -> 0 | AI33: =$H33*'Cron. Físico'!AG33 -> 0 | AJ33: =$H33*'Cron. Físico'!AH33 -> 0 | AK33: =$H33*'Cron. Físico'!AI33 -> 0 | AL33: =$H33*'Cron. Físico'!AJ33 -> 0 | AM33: =$H33*'Cron. Físico'!AK33 -> 0 | AN33: 100.00% | AO33: TRUE
C34: 8.1.1.22 | E34: 491CMG0210D | F34: M2 | G34: =_xlfn.XLOOKUP($E34,'Resumo Quant.'!$C:$C,'Resumo Quant.'!$D:$D) -> 0 | H34: =_xlfn.XLOOKUP($E34,'Resumo Preços'!$C:$C,'Resumo Preços'!$D:$D) -> 0 | J34: =$H34*'Cron. Físico'!H34 -> 0 | K34: =$H34*'Cron. Físico'!I34 -> 0 | L34: =$H34*'Cron. Físico'!J34 -> 0 | M34: =$H34*'Cron. Físico'!K34 -> 0 | N34: =$H34*'Cron. Físico'!L34 -> 0 | O34: =$H34*'Cron. Físico'!M34 -> 0 | P34: =$H34*'Cron. Físico'!N34 -> 0 | Q34: =$H34*'Cron. Físico'!O34 -> 0 | R34: =$H34*'Cron. Físico'!P34 -> 0 | S34: =$H34*'Cron. Físico'!Q34 -> 0 | T34: =$H34*'Cron. Físico'!R34 -> 0 | U34: =$H34*'Cron. Físico'!S34 -> 0 | V34: =$H34*'Cron. Físico'!T34 -> 0 | W34: =$H34*'Cron. Físico'!U34 -> 0 | X34: =$H34*'Cron. Físico'!V34 -> 0 | Y34: =$H34*'Cron. Físico'!W34 -> 0 | Z34: =$H34*'Cron. Físico'!X34 -> 0 | AA34: =$H34*'Cron. Físico'!Y34 -> 0 | AB34: =$H34*'Cron. Físico'!Z34 -> 0 | AC34: =$H34*'Cron. Físico'!AA34 -> 0 | AD34: =$H34*'Cron. Físico'!AB34 -> 0 | AE34: =$H34*'Cron. Físico'!AC34 -> 0 | AF34: =$H34*'Cron. Físico'!AD34 -> 0 | AG34: =$H34*'Cron. Físico'!AE34 -> 0 | AH34: =$H34*'Cron. Físico'!AF34 -> 0 | AI34: =$H34*'Cron. Físico'!AG34 -> 0 | AJ34: =$H34*'Cron. Físico'!AH34 -> 0 | AK34: =$H34*'Cron. Físico'!AI34 -> 0 | AL34: =$H34*'Cron. Físico'!AJ34 -> 0 | AM34: =$H34*'Cron. Físico'!AK34 -> 0 | AO34: TRUE
C35: 8.1.1.23 | E35: 146BMG0250 | F35: M2 | G35: =_xlfn.XLOOKUP($E35,'Resumo Quant.'!$C:$C,'Resumo Quant.'!$D:$D) -> 0 | H35: =_xlfn.XLOOKUP($E35,'Resumo Preços'!$C:$C,'Resumo Preços'!$D:$D) -> 0 | J35: =$H35*'Cron. Físico'!H35 -> 0 | K35: =$H35*'Cron. Físico'!I35 -> 0 | L35: =$H35*'Cron. Físico'!J35 -> 0 | M35: =$H35*'Cron. Físico'!K35 -> 0 | N35: =$H35*'Cron. Físico'!L35 -> 0 | O35: =$H35*'Cron. Físico'!M35 -> 0 | P35: =$H35*'Cron. Físico'!N35 -> 0 | Q35: =$H35*'Cron. Físico'!O35 -> 0 | R35: =$H35*'Cron. Físico'!P35 -> 0 | S35: =$H35*'Cron. Físico'!Q35 -> 0 | T35: =$H35*'Cron. Físico'!R35 -> 0 | U35: =$H35*'Cron. Físico'!S35 -> 0 | V35: =$H35*'Cron. Físico'!T35 -> 0 | W35: =$H35*'Cron. Físico'!U35 -> 0 | X35: =$H35*'Cron. Físico'!V35 -> 0 | Y35: =$H35*'Cron. Físico'!W35 -> 0 | Z35: =$H35*'Cron. Físico'!X35 -> 0 | AA35: =$H35*'Cron. Físico'!Y35 -> 0 | AB35: =$H35*'Cron. Físico'!Z35 -> 0 | AC35: =$H35*'Cron. Físico'!AA35 -> 0 | AD35: =$H35*'Cron. Físico'!AB35 -> 0 | AE35: =$H35*'Cron. Físico'!AC35 -> 0 | AF35: =$H35*'Cron. Físico'!AD35 -> 0 | AG35: =$H35*'Cron. Físico'!AE35 -> 0 | AH35: =$H35*'Cron. Físico'!AF35 -> 0 | AI35: =$H35*'Cron. Físico'!AG35 -> 0 | AJ35: =$H35*'Cron. Físico'!AH35 -> 0 | AK35: =$H35*'Cron. Físico'!AI35 -> 0 | AL35: =$H35*'Cron. Físico'!AJ35 -> 0 | AM35: =$H35*'Cron. Físico'!AK35 -> 0 | AO35: TRUE
C36: 8.1.1.24 | E36: 146BMG0252 | F36: M2 | G36: =_xlfn.XLOOKUP($E36,'Resumo Quant.'!$C:$C,'Resumo Quant.'!$D:$D) -> 0 | H36: =_xlfn.XLOOKUP($E36,'Resumo Preços'!$C:$C,'Resumo Preços'!$D:$D) -> 0 | J36: =$H36*'Cron. Físico'!H36 -> 0 | K36: =$H36*'Cron. Físico'!I36 -> 0 | L36: =$H36*'Cron. Físico'!J36 -> 0 | M36: =$H36*'Cron. Físico'!K36 -> 0 | N36: =$H36*'Cron. Físico'!L36 -> 0 | O36: =$H36*'Cron. Físico'!M36 -> 0 | P36: =$H36*'Cron. Físico'!N36 -> 0 | Q36: =$H36*'Cron. Físico'!O36 -> 0 | R36: =$H36*'Cron. Físico'!P36 -> 0 | S36: =$H36*'Cron. Físico'!Q36 -> 0 | T36: =$H36*'Cron. Físico'!R36 -> 0 | U36: =$H36*'Cron. Físico'!S36 -> 0 | V36: =$H36*'Cron. Físico'!T36 -> 0 | W36: =$H36*'Cron. Físico'!U36 -> 0 | X36: =$H36*'Cron. Físico'!V36 -> 0 | Y36: =$H36*'Cron. Físico'!W36 -> 0 | Z36: =$H36*'Cron. Físico'!X36 -> 0 | AA36: =$H36*'Cron. Físico'!Y36 -> 0 | AB36: =$H36*'Cron. Físico'!Z36 -> 0 | AC36: =$H36*'Cron. Físico'!AA36 -> 0 | AD36: =$H36*'Cron. Físico'!AB36 -> 0 | AE36: =$H36*'Cron. Físico'!AC36 -> 0 | AF36: =$H36*'Cron. Físico'!AD36 -> 0 | AG36: =$H36*'Cron. Físico'!AE36 -> 0 | AH36: =$H36*'Cron. Físico'!AF36 -> 0 | AI36: =$H36*'Cron. Físico'!AG36 -> 0 | AJ36: =$H36*'Cron. Físico'!AH36 -> 0 | AK36: =$H36*'Cron. Físico'!AI36 -> 0 | AL36: =$H36*'Cron. Físico'!AJ36 -> 0 | AM36: =$H36*'Cron. Físico'!AK36 -> 0 | AO36: TRUE
C37: 8.1.1.25 | E37: 369CMG0070 | F37: M2 | G37: =_xlfn.XLOOKUP($E37,'Resumo Quant.'!$C:$C,'Resumo Quant.'!$D:$D) -> 0 | H37: =_xlfn.XLOOKUP($E37,'Resumo Preços'!$C:$C,'Resumo Preços'!$D:$D) -> 0 | J37: =$H37*'Cron. Físico'!H37 -> 0 | K37: =$H37*'Cron. Físico'!I37 -> 0 | L37: =$H37*'Cron. Físico'!J37 -> 0 | M37: =$H37*'Cron. Físico'!K37 -> 0 | N37: =$H37*'Cron. Físico'!L37 -> 0 | O37: =$H37*'Cron. Físico'!M37 -> 0 | P37: =$H37*'Cron. Físico'!N37 -> 0 | Q37: =$H37*'Cron. Físico'!O37 -> 0 | R37: =$H37*'Cron. Físico'!P37 -> 0 | S37: =$H37*'Cron. Físico'!Q37 -> 0 | T37: =$H37*'Cron. Físico'!R37 -> 0 | U37: =$H37*'Cron. Físico'!S37 -> 0 | V37: =$H37*'Cron. Físico'!T37 -> 0 | W37: =$H37*'Cron. Físico'!U37 -> 0 | X37: =$H37*'Cron. Físico'!V37 -> 0 | Y37: =$H37*'Cron. Físico'!W37 -> 0 | Z37: =$H37*'Cron. Físico'!X37 -> 0 | AA37: =$H37*'Cron. Físico'!Y37 -> 0 | AB37: =$H37*'Cron. Físico'!Z37 -> 0 | AC37: =$H37*'Cron. Físico'!AA37 -> 0 | AD37: =$H37*'Cron. Físico'!AB37 -> 0 | AE37: =$H37*'Cron. Físico'!AC37 -> 0 | AF37: =$H37*'Cron. Físico'!AD37 -> 0 | AG37: =$H37*'Cron. Físico'!AE37 -> 0 | AH37: =$H37*'Cron. Físico'!AF37 -> 0 | AI37: =$H37*'Cron. Físico'!AG37 -> 0 | AJ37: =$H37*'Cron. Físico'!AH37 -> 0 | AK37: =$H37*'Cron. Físico'!AI37 -> 0 | AL37: =$H37*'Cron. Físico'!AJ37 -> 0 | AM37: =$H37*'Cron. Físico'!AK37 -> 0 | AO37: TRUE
C38: 8.1.1.26 | E38: 369CMG0090 | F38: M2 | G38: =_xlfn.XLOOKUP($E38,'Resumo Quant.'!$C:$C,'Resumo Quant.'!$D:$D) -> 89,331.00 | H38: =_xlfn.XLOOKUP($E38,'Resumo Preços'!$C:$C,'Resumo Preços'!$D:$D) -> 1,601,704.83 | J38: =$H38*'Cron. Físico'!H38 -> 0 | K38: =$H38*'Cron. Físico'!I38 -> 0 | L38: =$H38*'Cron. Físico'!J38 -> 0 | M38: =$H38*'Cron. Físico'!K38 -> 1,601,704.83 | N38: =$H38*'Cron. Físico'!L38 -> 0 | O38: =$H38*'Cron. Físico'!M38 -> 0 | P38: =$H38*'Cron. Físico'!N38 -> 0 | Q38: =$H38*'Cron. Físico'!O38 -> 0 | R38: =$H38*'Cron. Físico'!P38 -> 0 | S38: =$H38*'Cron. Físico'!Q38 -> 0 | T38: =$H38*'Cron. Físico'!R38 -> 0 | U38: =$H38*'Cron. Físico'!S38 -> 0 | V38: =$H38*'Cron. Físico'!T38 -> 0 | W38: =$H38*'Cron. Físico'!U38 -> 0 | X38: =$H38*'Cron. Físico'!V38 -> 0 | Y38: =$H38*'Cron. Físico'!W38 -> 0 | Z38: =$H38*'Cron. Físico'!X38 -> 0 | AA38: =$H38*'Cron. Físico'!Y38 -> 0 | AB38: =$H38*'Cron. Físico'!Z38 -> 0 | AC38: =$H38*'Cron. Físico'!AA38 -> 0 | AD38: =$H38*'Cron. Físico'!AB38 -> 0 | AE38: =$H38*'Cron. Físico'!AC38 -> 0 | AF38: =$H38*'Cron. Físico'!AD38 -> 0 | AG38: =$H38*'Cron. Físico'!AE38 -> 0 | AH38: =$H38*'Cron. Físico'!AF38 -> 0 | AI38: =$H38*'Cron. Físico'!AG38 -> 0 | AJ38: =$H38*'Cron. Físico'!AH38 -> 0 | AK38: =$H38*'Cron. Físico'!AI38 -> 0 | AL38: =$H38*'Cron. Físico'!AJ38 -> 0 | AM38: =$H38*'Cron. Físico'!AK38 -> 0 | AN38: 100.00% | AO38: TRUE
C39: 8.1.1.27 | E39: VARGINHA | F39: M2 | G39: =_xlfn.XLOOKUP($E39,'Resumo Quant.'!$C:$C,'Resumo Quant.'!$D:$D) ->  | H39: =_xlfn.XLOOKUP($E39,'Resumo Preços'!$C:$C,'Resumo Preços'!$D:$D) ->  | J39: =$H39*'Cron. Físico'!#REF! ->  | K39: =$H39*'Cron. Físico'!#REF! ->  | L39: =$H39*'Cron. Físico'!#REF! ->  | M39: =$H39*'Cron. Físico'!#REF! ->  | N39: =$H39*'Cron. Físico'!#REF! ->  | O39: =$H39*'Cron. Físico'!#REF! ->  | P39: =$H39*'Cron. Físico'!#REF! ->  | Q39: =$H39*'Cron. Físico'!#REF! ->  | R39: =$H39*'Cron. Físico'!#REF! ->  | S39: =$H39*'Cron. Físico'!#REF! ->  | T39: =$H39*'Cron. Físico'!#REF! ->  | U39: =$H39*'Cron. Físico'!#REF! ->  | V39: =$H39*'Cron. Físico'!#REF! ->  | W39: =$H39*'Cron. Físico'!#REF! ->  | X39: =$H39*'Cron. Físico'!#REF! ->  | Y39: =$H39*'Cron. Físico'!#REF! ->  | Z39: =$H39*'Cron. Físico'!#REF! ->  | AA39: =$H39*'Cron. Físico'!#REF! ->  | AB39: =$H39*'Cron. Físico'!#REF! ->  | AC39: =$H39*'Cron. Físico'!#REF! ->  | AD39: =$H39*'Cron. Físico'!#REF! ->  | AE39: =$H39*'Cron. Físico'!#REF! ->  | AF39: =$H39*'Cron. Físico'!#REF! ->  | AG39: =$H39*'Cron. Físico'!#REF! ->  | AH39: =$H39*'Cron. Físico'!#REF! ->  | AI39: =$H39*'Cron. Físico'!#REF! ->  | AJ39: =$H39*'Cron. Físico'!#REF! ->  | AK39: =$H39*'Cron. Físico'!#REF! ->  | AL39: =$H39*'Cron. Físico'!#REF! ->  | AM39: =$H39*'Cron. Físico'!#REF! ->  | AN39: =SUM(J39:AM39)/H39 ->  | AO39: =SUM(J39:AM39)=H39 -> 
C40: 8.1.1.28 | E40: CAMPOS GERAIS | F40: M2 | G40: =_xlfn.XLOOKUP($E40,'Resumo Quant.'!$C:$C,'Resumo Quant.'!$D:$D) ->  | H40: =_xlfn.XLOOKUP($E40,'Resumo Preços'!$C:$C,'Resumo Preços'!$D:$D) ->  | J40: =$H40*'Cron. Físico'!#REF! ->  | K40: =$H40*'Cron. Físico'!#REF! ->  | L40: =$H40*'Cron. Físico'!#REF! ->  | M40: =$H40*'Cron. Físico'!#REF! ->  | N40: =$H40*'Cron. Físico'!#REF! ->  | O40: =$H40*'Cron. Físico'!#REF! ->  | P40: =$H40*'Cron. Físico'!#REF! ->  | Q40: =$H40*'Cron. Físico'!#REF! ->  | R40: =$H40*'Cron. Físico'!#REF! ->  | S40: =$H40*'Cron. Físico'!#REF! ->  | T40: =$H40*'Cron. Físico'!#REF! ->  | U40: =$H40*'Cron. Físico'!#REF! ->  | V40: =$H40*'Cron. Físico'!#REF! ->  | W40: =$H40*'Cron. Físico'!#REF! ->  | X40: =$H40*'Cron. Físico'!#REF! ->  | Y40: =$H40*'Cron. Físico'!#REF! ->  | Z40: =$H40*'Cron. Físico'!#REF! ->  | AA40: =$H40*'Cron. Físico'!#REF! ->  | AB40: =$H40*'Cron. Físico'!#REF! ->  | AC40: =$H40*'Cron. Físico'!#REF! ->  | AD40: =$H40*'Cron. Físico'!#REF! ->  | AE40: =$H40*'Cron. Físico'!#REF! ->  | AF40: =$H40*'Cron. Físico'!#REF! ->  | AG40: =$H40*'Cron. Físico'!#REF! ->  | AH40: =$H40*'Cron. Físico'!#REF! ->  | AI40: =$H40*'Cron. Físico'!#REF! ->  | AJ40: =$H40*'Cron. Físico'!#REF! ->  | AK40: =$H40*'Cron. Físico'!#REF! ->  | AL40: =$H40*'Cron. Físico'!#REF! ->  | AM40: =$H40*'Cron. Físico'!#REF! -> 
C41: 8.1.1.29 | E41: ALFENAS | F41: M2 | G41: =_xlfn.XLOOKUP($E41,'Resumo Quant.'!$C:$C,'Resumo Quant.'!$D:$D) ->  | H41: =_xlfn.XLOOKUP($E41,'Resumo Preços'!$C:$C,'Resumo Preços'!$D:$D) ->  | J41: =$H41*'Cron. Físico'!#REF! ->  | K41: =$H41*'Cron. Físico'!#REF! ->  | L41: =$H41*'Cron. Físico'!#REF! ->  | M41: =$H41*'Cron. Físico'!#REF! ->  | N41: =$H41*'Cron. Físico'!#REF! ->  | O41: =$H41*'Cron. Físico'!#REF! ->  | P41: =$H41*'Cron. Físico'!#REF! ->  | Q41: =$H41*'Cron. Físico'!#REF! ->  | R41: =$H41*'Cron. Físico'!#REF! ->  | S41: =$H41*'Cron. Físico'!#REF! ->  | T41: =$H41*'Cron. Físico'!#REF! ->  | U41: =$H41*'Cron. Físico'!#REF! ->  | V41: =$H41*'Cron. Físico'!#REF! ->  | W41: =$H41*'Cron. Físico'!#REF! ->  | X41: =$H41*'Cron. Físico'!#REF! ->  | Y41: =$H41*'Cron. Físico'!#REF! ->  | Z41: =$H41*'Cron. Físico'!#REF! ->  | AA41: =$H41*'Cron. Físico'!#REF! ->  | AB41: =$H41*'Cron. Físico'!#REF! ->  | AC41: =$H41*'Cron. Físico'!#REF! ->  | AD41: =$H41*'Cron. Físico'!#REF! ->  | AE41: =$H41*'Cron. Físico'!#REF! ->  | AF41: =$H41*'Cron. Físico'!#REF! ->  | AG41: =$H41*'Cron. Físico'!#REF! ->  | AH41: =$H41*'Cron. Físico'!#REF! ->  | AI41: =$H41*'Cron. Físico'!#REF! ->  | AJ41: =$H41*'Cron. Físico'!#REF! ->  | AK41: =$H41*'Cron. Físico'!#REF! ->  | AL41: =$H41*'Cron. Físico'!#REF! ->  | AM41: =$H41*'Cron. Físico'!#REF! -> 
A42: x | C42: 8.1.2 | E42: MF+MRAF2 | H42: =SUM(H43:H71) ->  | J42: =SUM(J43:J71) ->  | K42: =SUM(K43:K71) ->  | AN42: =SUM(J42:AM42) -> 
C43: 8.1.2.1 | E43: 167EMG0200 | F43: M2 | G43: =_xlfn.XLOOKUP($E43,'Resumo Quant.'!$C:$C,'Resumo Quant.'!$E:$E) -> 446,460.70 | H43: =_xlfn.XLOOKUP($E43,'Resumo Preços'!$C:$C,'Resumo Preços'!$E:$E) -> 1,281,342.21 | J43: =$H43*'Cron. Físico'!H40 -> 0 | K43: =$H43*'Cron. Físico'!I40 -> 0 | L43: =$H43*'Cron. Físico'!J40 -> 0 | M43: =$H43*'Cron. Físico'!K40 -> 0 | N43: =$H43*'Cron. Físico'!L40 -> 0 | O43: =$H43*'Cron. Físico'!M40 -> 0 | P43: =$H43*'Cron. Físico'!N40 -> 84,068.44 | Q43: =$H43*'Cron. Físico'!O40 -> 172,200.00 | R43: =$H43*'Cron. Físico'!P40 -> 0 | S43: =$H43*'Cron. Físico'!Q40 -> 0 | T43: =$H43*'Cron. Físico'!R40 -> 0 | U43: =$H43*'Cron. Físico'!S40 -> 84,068.44 | V43: =$H43*'Cron. Físico'!T40 -> 86,100.00 | W43: =$H43*'Cron. Físico'!U40 -> 86,100.00 | X43: =$H43*'Cron. Físico'!V40 -> 0 | Y43: =$H43*'Cron. Físico'!W40 -> 0 | Z43: =$H43*'Cron. Físico'!X40 -> 84,068.44 | AA43: =$H43*'Cron. Físico'!Y40 -> 86,100.00 | AB43: =$H43*'Cron. Físico'!Z40 -> 86,100.00 | AC43: =$H43*'Cron. Físico'!AA40 -> 0 | AD43: =$H43*'Cron. Físico'!AB40 -> 0 | AE43: =$H43*'Cron. Físico'!AC40 -> 84,068.44 | AF43: =$H43*'Cron. Físico'!AD40 -> 86,100.00 | AG43: =$H43*'Cron. Físico'!AE40 -> 86,100.00 | AH43: =$H43*'Cron. Físico'!AF40 -> 0 | AI43: =$H43*'Cron. Físico'!AG40 -> 0 | AJ43: =$H43*'Cron. Físico'!AH40 -> 84,068.44 | AK43: =$H43*'Cron. Físico'!AI40 -> 86,100.00 | AL43: =$H43*'Cron. Físico'!AJ40 -> 86,100.00 | AM43: =$H43*'Cron. Físico'!AK40 -> 0 | AN43: =SUM(J43:AM43)/H43 -> 100.00% | AO43: TRUE
C44: 8.1.2.2 | E44: 167EMG0205 | F44: M2 | G44: =_xlfn.XLOOKUP($E44,'Resumo Quant.'!$C:$C,'Resumo Quant.'!$E:$E) -> 52,429.38 | H44: =_xlfn.XLOOKUP($E44,'Resumo Preços'!$C:$C,'Resumo Preços'!$E:$E) -> 150,472.32 | J44: =$H44*'Cron. Físico'!H41 -> 0 | K44: =$H44*'Cron. Físico'!I41 -> 0 | L44: =$H44*'Cron. Físico'!J41 -> 0 | M44: =$H44*'Cron. Físico'!K41 -> 0 | N44: =$H44*'Cron. Físico'!L41 -> 0 | O44: =$H44*'Cron. Físico'!M41 -> 0 | P44: =$H44*'Cron. Físico'!N41 -> 50,157.44 | Q44: =$H44*'Cron. Físico'!O41 -> 0 | R44: =$H44*'Cron. Físico'!P41 -> 0 | S44: =$H44*'Cron. Físico'!Q41 -> 0 | T44: =$H44*'Cron. Físico'!R41 -> 0 | U44: =$H44*'Cron. Físico'!S41 -> 50,157.44 | V44: =$H44*'Cron. Físico'!T41 -> 0 | W44: =$H44*'Cron. Físico'!U41 -> 0 | X44: =$H44*'Cron. Físico'!V41 -> 0 | Y44: =$H44*'Cron. Físico'!W41 -> 0 | Z44: =$H44*'Cron. Físico'!X41 -> 0 | AA44: =$H44*'Cron. Físico'!Y41 -> 0 | AB44: =$H44*'Cron. Físico'!Z41 -> 0 | AC44: =$H44*'Cron. Físico'!AA41 -> 0 | AD44: =$H44*'Cron. Físico'!AB41 -> 0 | AE44: =$H44*'Cron. Físico'!AC41 -> 0 | AF44: =$H44*'Cron. Físico'!AD41 -> 0 | AG44: =$H44*'Cron. Físico'!AE41 -> 0 | AH44: =$H44*'Cron. Físico'!AF41 -> 0 | AI44: =$H44*'Cron. Físico'!AG41 -> 0 | AJ44: =$H44*'Cron. Físico'!AH41 -> 0 | AK44: =$H44*'Cron. Físico'!AI41 -> 50,157.44 | AL44: =$H44*'Cron. Físico'!AJ41 -> 0 | AM44: =$H44*'Cron. Físico'!AK41 -> 0 | AN44: 100.00% | AO44: TRUE
C45: 8.1.2.3 | E45: 167EMG0220 | F45: M2 | G45: =_xlfn.XLOOKUP($E45,'Resumo Quant.'!$C:$C,'Resumo Quant.'!$E:$E) -> 500,733.81 | H45: =_xlfn.XLOOKUP($E45,'Resumo Preços'!$C:$C,'Resumo Preços'!$E:$E) -> 1,437,106.03 | J45: =$H45*'Cron. Físico'!H42 -> 0 | K45: =$H45*'Cron. Físico'!I42 -> 0 | L45: =$H45*'Cron. Físico'!J42 -> 0 | M45: =$H45*'Cron. Físico'!K42 -> 0 | N45: =$H45*'Cron. Físico'!L42 -> 0 | O45: =$H45*'Cron. Físico'!M42 -> 0 | P45: =$H45*'Cron. Físico'!N42 -> 0 | Q45: =$H45*'Cron. Físico'!O42 -> 85,693.21 | R45: =$H45*'Cron. Físico'!P42 -> 0 | S45: =$H45*'Cron. Físico'!Q42 -> 61,992.00 | T45: =$H45*'Cron. Físico'!R42 -> 0 | U45: =$H45*'Cron. Físico'!S42 -> 103,320.00 | V45: =$H45*'Cron. Físico'!T42 -> 85,693.21 | W45: =$H45*'Cron. Físico'!U42 -> 0 | X45: =$H45*'Cron. Físico'!V42 -> 0 | Y45: =$H45*'Cron. Físico'!W42 -> 61,992.00 | Z45: =$H45*'Cron. Físico'!X42 -> 103,320.00 | AA45: =$H45*'Cron. Físico'!Y42 -> 0 | AB45: =$H45*'Cron. Físico'!Z42 -> 104,046.14 | AC45: =$H45*'Cron. Físico'!AA42 -> 0 | AD45: =$H45*'Cron. Físico'!AB42 -> 0 | AE45: =$H45*'Cron. Físico'!AC42 -> 165,312.00 | AF45: =$H45*'Cron. Físico'!AD42 -> 104,046.14 | AG45: =$H45*'Cron. Físico'!AE42 -> 0 | AH45: =$H45*'Cron. Físico'!AF42 -> 0 | AI45: =$H45*'Cron. Físico'!AG42 -> 103,320.00 | AJ45: =$H45*'Cron. Físico'!AH42 -> 207,366.14 | AK45: =$H45*'Cron. Físico'!AI42 -> 61,992.00 | AL45: =$H45*'Cron. Físico'!AJ42 -> 85,693.21 | AM45: =$H45*'Cron. Físico'!AK42 -> 103,320.00 | AN45: 100.00% | AO45: TRUE
C46: 8.1.2.4 | E46: 265BMG0270 | F46: M2 | G46: =_xlfn.XLOOKUP($E46,'Resumo Quant.'!$C:$C,'Resumo Quant.'!$E:$E) -> 175,341.90 | H46: =_xlfn.XLOOKUP($E46,'Resumo Preços'!$C:$C,'Resumo Preços'!$E:$E) -> 503,231.25 | J46: =$H46*'Cron. Físico'!H43 -> 0 | K46: =$H46*'Cron. Físico'!I43 -> 0 | L46: =$H46*'Cron. Físico'!J43 -> 0 | M46: =$H46*'Cron. Físico'!K43 -> 0 | N46: =$H46*'Cron. Físico'!L43 -> 0 | O46: =$H46*'Cron. Físico'!M43 -> 0 | P46: =$H46*'Cron. Físico'!N43 -> 0 | Q46: =$H46*'Cron. Físico'!O43 -> 94,901.37 | R46: =$H46*'Cron. Físico'!P43 -> 0 | S46: =$H46*'Cron. Físico'!Q43 -> 0 | T46: =$H46*'Cron. Físico'!R43 -> 0 | U46: =$H46*'Cron. Físico'!S43 -> 0 | V46: =$H46*'Cron. Físico'!T43 -> 0 | W46: =$H46*'Cron. Físico'!U43 -> 0 | X46: =$H46*'Cron. Físico'!V43 -> 94,901.37 | Y46: =$H46*'Cron. Físico'!W43 -> 0 | Z46: =$H46*'Cron. Físico'!X43 -> 0 | AA46: =$H46*'Cron. Físico'!Y43 -> 0 | AB46: =$H46*'Cron. Físico'!Z43 -> 0 | AC46: =$H46*'Cron. Físico'!AA43 -> 0 | AD46: =$H46*'Cron. Físico'!AB43 -> 0 | AE46: =$H46*'Cron. Físico'!AC43 -> 94,901.37 | AF46: =$H46*'Cron. Físico'!AD43 -> 0 | AG46: =$H46*'Cron. Físico'!AE43 -> 0 | AH46: =$H46*'Cron. Físico'!AF43 -> 0 | AI46: =$H46*'Cron. Físico'!AG43 -> 0 | AJ46: =$H46*'Cron. Físico'!AH43 -> 0 | AK46: =$H46*'Cron. Físico'!AI43 -> 123,625.77 | AL46: =$H46*'Cron. Físico'!AJ43 -> 94,901.37 | AM46: =$H46*'Cron. Físico'!AK43 -> 0 | AN46: 100.00% | AO46: TRUE
C47: 8.1.2.5 | E47: 265BMG0290 | F47: M2 | G47: =_xlfn.XLOOKUP($E47,'Resumo Quant.'!$C:$C,'Resumo Quant.'!$E:$E) -> 364,729.53 | H47: =_xlfn.XLOOKUP($E47,'Resumo Preços'!$C:$C,'Resumo Preços'!$E:$E) -> 1,046,773.75 | J47: =$H47*'Cron. Físico'!H44 -> 0 | K47: =$H47*'Cron. Físico'!I44 -> 0 | L47: =$H47*'Cron. Físico'!J44 -> 0 | M47: =$H47*'Cron. Físico'!K44 -> 0 | N47: =$H47*'Cron. Físico'!L44 -> 0 | O47: =$H47*'Cron. Físico'!M44 -> 0 | P47: =$H47*'Cron. Físico'!N44 -> 0 | Q47: =$H47*'Cron. Físico'!O44 -> 0 | R47: =$H47*'Cron. Físico'!P44 -> 0 | S47: =$H47*'Cron. Físico'!Q44 -> 0 | T47: =$H47*'Cron. Físico'!R44 -> 0 | U47: =$H47*'Cron. Físico'!S44 -> 0 | V47: =$H47*'Cron. Físico'!T44 -> 0 | W47: =$H47*'Cron. Físico'!U44 -> 0 | X47: =$H47*'Cron. Físico'!V44 -> 0 | Y47: =$H47*'Cron. Físico'!W44 -> 0 | Z47: =$H47*'Cron. Físico'!X44 -> 0 | AA47: =$H47*'Cron. Físico'!Y44 -> 0 | AB47: =$H47*'Cron. Físico'!Z44 -> 0 | AC47: =$H47*'Cron. Físico'!AA44 -> 348,924.58 | AD47: =$H47*'Cron. Físico'!AB44 -> 0 | AE47: =$H47*'Cron. Físico'!AC44 -> 0 | AF47: =$H47*'Cron. Físico'!AD44 -> 0 | AG47: =$H47*'Cron. Físico'!AE44 -> 348,924.58 | AH47: =$H47*'Cron. Físico'!AF44 -> 0 | AI47: =$H47*'Cron. Físico'!AG44 -> 0 | AJ47: =$H47*'Cron. Físico'!AH44 -> 0 | AK47: =$H47*'Cron. Físico'!AI44 -> 348,924.58 | AL47: =$H47*'Cron. Físico'!AJ44 -> 0 | AM47: =$H47*'Cron. Físico'!AK44 -> 0 | AN47: 100.00% | AO47: TRUE
C48: 8.1.2.6 | E48: 265BMG0305 | F48: M2 | G48: =_xlfn.XLOOKUP($E48,'Resumo Quant.'!$C:$C,'Resumo Quant.'!$E:$E) -> 216,654.12 | H48: =_xlfn.XLOOKUP($E48,'Resumo Preços'!$C:$C,'Resumo Preços'!$E:$E) -> 621,797.32 | J48: =$H48*'Cron. Físico'!H45 -> 0 | K48: =$H48*'Cron. Físico'!I45 -> 0 | L48: =$H48*'Cron. Físico'!J45 -> 0 | M48: =$H48*'Cron. Físico'!K45 -> 0 | N48: =$H48*'Cron. Físico'!L45 -> 0 | O48: =$H48*'Cron. Físico'!M45 -> 0 | P48: =$H48*'Cron. Físico'!N45 -> 0 | Q48: =$H48*'Cron. Físico'!O45 -> 0 | R48: =$H48*'Cron. Físico'!P45 -> 0 | S48: =$H48*'Cron. Físico'!Q45 -> 0 | T48: =$H48*'Cron. Físico'!R45 -> 0 | U48: =$H48*'Cron. Físico'!S45 -> 0 | V48: =$H48*'Cron. Físico'!T45 -> 0 | W48: =$H48*'Cron. Físico'!U45 -> 0 | X48: =$H48*'Cron. Físico'!V45 -> 0 | Y48: =$H48*'Cron. Físico'!W45 -> 0 | Z48: =$H48*'Cron. Físico'!X45 -> 0 | AA48: =$H48*'Cron. Físico'!Y45 -> 0 | AB48: =$H48*'Cron. Físico'!Z45 -> 0 | AC48: =$H48*'Cron. Físico'!AA45 -> 207,265.77 | AD48: =$H48*'Cron. Físico'!AB45 -> 0 | AE48: =$H48*'Cron. Físico'!AC45 -> 0 | AF48: =$H48*'Cron. Físico'!AD45 -> 0 | AG48: =$H48*'Cron. Físico'!AE45 -> 207,265.77 | AH48: =$H48*'Cron. Físico'!AF45 -> 0 | AI48: =$H48*'Cron. Físico'!AG45 -> 0 | AJ48: =$H48*'Cron. Físico'!AH45 -> 0 | AK48: =$H48*'Cron. Físico'!AI45 -> 207,265.77 | AL48: =$H48*'Cron. Físico'!AJ45 -> 0 | AM48: =$H48*'Cron. Físico'!AK45 -> 0 | AN48: 100.00% | AO48: TRUE
C49: 8.1.2.7 | E49: 265BMG0310 | F49: M2 | G49: =_xlfn.XLOOKUP($E49,'Resumo Quant.'!$C:$C,'Resumo Quant.'!$E:$E) -> 534,361.17 | H49: =_xlfn.XLOOKUP($E49,'Resumo Preços'!$C:$C,'Resumo Preços'!$E:$E) -> 1,533,616.56 | J49: =$H49*'Cron. Físico'!H46 -> 0 | K49: =$H49*'Cron. Físico'!I46 -> 0 | L49: =$H49*'Cron. Físico'!J46 -> 0 | M49: =$H49*'Cron. Físico'!K46 -> 0 | N49: =$H49*'Cron. Físico'!L46 -> 219,088.08 | O49: =$H49*'Cron. Físico'!M46 -> 0 | P49: =$H49*'Cron. Físico'!N46 -> 0 | Q49: =$H49*'Cron. Físico'!O46 -> 0 | R49: =$H49*'Cron. Físico'!P46 -> 130,060.68 | S49: =$H49*'Cron. Físico'!Q46 -> 89,027.40 | T49: =$H49*'Cron. Físico'!R46 -> 0 | U49: =$H49*'Cron. Físico'!S46 -> 0 | V49: =$H49*'Cron. Físico'!T46 -> 130,060.68 | W49: =$H49*'Cron. Físico'!U46 -> 89,027.40 | X49: =$H49*'Cron. Físico'!V46 -> 0 | Y49: =$H49*'Cron. Físico'!W46 -> 0 | Z49: =$H49*'Cron. Físico'!X46 -> 130,060.68 | AA49: =$H49*'Cron. Físico'!Y46 -> 89,027.40 | AB49: =$H49*'Cron. Físico'!Z46 -> 0 | AC49: =$H49*'Cron. Físico'!AA46 -> 0 | AD49: =$H49*'Cron. Físico'!AB46 -> 130,060.68 | AE49: =$H49*'Cron. Físico'!AC46 -> 89,027.40 | AF49: =$H49*'Cron. Físico'!AD46 -> 0 | AG49: =$H49*'Cron. Físico'!AE46 -> 0 | AH49: =$H49*'Cron. Físico'!AF46 -> 0 | AI49: =$H49*'Cron. Físico'!AG46 -> 219,088.08 | AJ49: =$H49*'Cron. Físico'!AH46 -> 0 | AK49: =$H49*'Cron. Físico'!AI46 -> 0 | AL49: =$H49*'Cron. Físico'!AJ46 -> 0 | AM49: =$H49*'Cron. Físico'!AK46 -> 219,088.08 | AN49: 100.00% | AO49: TRUE
C50: 8.1.2.8 | E50: 265BMG0311 | F50: M2 | G50: =_xlfn.XLOOKUP($E50,'Resumo Quant.'!$C:$C,'Resumo Quant.'!$E:$E) -> 182,533.36 | H50: =_xlfn.XLOOKUP($E50,'Resumo Preços'!$C:$C,'Resumo Preços'!$E:$E) -> 523,870.74 | J50: =$H50*'Cron. Físico'!H47 -> 0 | K50: =$H50*'Cron. Físico'!I47 -> 0 | L50: =$H50*'Cron. Físico'!J47 -> 0 | M50: =$H50*'Cron. Físico'!K47 -> 0 | N50: =$H50*'Cron. Físico'!L47 -> 0 | O50: =$H50*'Cron. Físico'!M47 -> 0 | P50: =$H50*'Cron. Físico'!N47 -> 0 | Q50: =$H50*'Cron. Físico'!O47 -> 0 | R50: =$H50*'Cron. Físico'!P47 -> 0 | S50: =$H50*'Cron. Físico'!Q47 -> 0 | T50: =$H50*'Cron. Físico'!R47 -> 0 | U50: =$H50*'Cron. Físico'!S47 -> 55,673.24 | V50: =$H50*'Cron. Físico'!T47 -> 0 | W50: =$H50*'Cron. Físico'!U47 -> 0 | X50: =$H50*'Cron. Físico'!V47 -> 0 | Y50: =$H50*'Cron. Físico'!W47 -> 0 | Z50: =$H50*'Cron. Físico'!X47 -> 100,392.60 | AA50: =$H50*'Cron. Físico'!Y47 -> 55,673.24 | AB50: =$H50*'Cron. Físico'!Z47 -> 0 | AC50: =$H50*'Cron. Físico'!AA47 -> 0 | AD50: =$H50*'Cron. Físico'!AB47 -> 0 | AE50: =$H50*'Cron. Físico'!AC47 -> 100,392.60 | AF50: =$H50*'Cron. Físico'!AD47 -> 55,673.24 | AG50: =$H50*'Cron. Físico'!AE47 -> 0 | AH50: =$H50*'Cron. Físico'!AF47 -> 0 | AI50: =$H50*'Cron. Físico'!AG47 -> 0 | AJ50: =$H50*'Cron. Físico'!AH47 -> 100,392.60 | AK50: =$H50*'Cron. Físico'!AI47 -> 55,673.24 | AL50: =$H50*'Cron. Físico'!AJ47 -> 0 | AM50: =$H50*'Cron. Físico'!AK47 -> 0 | AN50: 100.00% | AO50: TRUE
C51: 8.1.2.9 | E51: 863LMG0010 | F51: M2 | G51: =_xlfn.XLOOKUP($E51,'Resumo Quant.'!$C:$C,'Resumo Quant.'!$E:$E) -> 66,107.82 | H51: =_xlfn.XLOOKUP($E51,'Resumo Preços'!$C:$C,'Resumo Preços'!$E:$E) -> 189,729.44 | J51: =$H51*'Cron. Físico'!H48 -> 0 | K51: =$H51*'Cron. Físico'!I48 -> 0 | L51: =$H51*'Cron. Físico'!J48 -> 0 | M51: =$H51*'Cron. Físico'!K48 -> 0 | N51: =$H51*'Cron. Físico'!L48 -> 0 | O51: =$H51*'Cron. Físico'!M48 -> 0 | P51: =$H51*'Cron. Físico'!N48 -> 0 | Q51: =$H51*'Cron. Físico'!O48 -> 0 | R51: =$H51*'Cron. Físico'!P48 -> 0 | S51: =$H51*'Cron. Físico'!Q48 -> 0 | T51: =$H51*'Cron. Físico'!R48 -> 0 | U51: =$H51*'Cron. Físico'!S48 -> 0 | V51: =$H51*'Cron. Físico'!T48 -> 0 | W51: =$H51*'Cron. Físico'!U48 -> 0 | X51: =$H51*'Cron. Físico'!V48 -> 0 | Y51: =$H51*'Cron. Físico'!W48 -> 0 | Z51: =$H51*'Cron. Físico'!X48 -> 0 | AA51: =$H51*'Cron. Físico'!Y48 -> 0 | AB51: =$H51*'Cron. Físico'!Z48 -> 0 | AC51: =$H51*'Cron. Físico'!AA48 -> 0 | AD51: =$H51*'Cron. Físico'!AB48 -> 0 | AE51: =$H51*'Cron. Físico'!AC48 -> 0 | AF51: =$H51*'Cron. Físico'!AD48 -> 94,864.72 | AG51: =$H51*'Cron. Físico'!AE48 -> 0 | AH51: =$H51*'Cron. Físico'!AF48 -> 0 | AI51: =$H51*'Cron. Físico'!AG48 -> 0 | AJ51: =$H51*'Cron. Físico'!AH48 -> 0 | AK51: =$H51*'Cron. Físico'!AI48 -> 94,864.72 | AL51: =$H51*'Cron. Físico'!AJ48 -> 0 | AM51: =$H51*'Cron. Físico'!AK48 -> 0 | AN51: 100.00% | AO51: TRUE
C52: 8.1.2.10 | E52: 491CMG0010 | F52: M2 | G52: =_xlfn.XLOOKUP($E52,'Resumo Quant.'!$C:$C,'Resumo Quant.'!$E:$E) -> 607,176.05 | H52: =_xlfn.XLOOKUP($E52,'Resumo Preços'!$C:$C,'Resumo Preços'!$E:$E) -> 1,742,595.26 | J52: =$H52*'Cron. Físico'!H49 -> 0 | K52: =$H52*'Cron. Físico'!I49 -> 49,938.00 | L52: =$H52*'Cron. Físico'!J49 -> 0 | M52: =$H52*'Cron. Físico'!K49 -> 89,338.57 | N52: =$H52*'Cron. Físico'!L49 -> 0 | O52: =$H52*'Cron. Físico'!M49 -> 0 | P52: =$H52*'Cron. Físico'!N49 -> 36,162.00 | Q52: =$H52*'Cron. Físico'!O49 -> 0 | R52: =$H52*'Cron. Físico'!P49 -> 136,038.00 | S52: =$H52*'Cron. Físico'!Q49 -> 89,338.57 | T52: =$H52*'Cron. Físico'!R49 -> 0 | U52: =$H52*'Cron. Físico'!S49 -> 36,162.00 | V52: =$H52*'Cron. Físico'!T49 -> 0 | W52: =$H52*'Cron. Físico'!U49 -> 173,080.49 | X52: =$H52*'Cron. Físico'!V49 -> 0 | Y52: =$H52*'Cron. Físico'!W49 -> 139,276.57 | Z52: =$H52*'Cron. Físico'!X49 -> 36,162.00 | AA52: =$H52*'Cron. Físico'!Y49 -> 86,980.49 | AB52: =$H52*'Cron. Físico'!Z49 -> 86,100.00 | AC52: =$H52*'Cron. Físico'!AA49 -> 0 | AD52: =$H52*'Cron. Físico'!AB49 -> 89,338.57 | AE52: =$H52*'Cron. Físico'!AC49 -> 123,142.49 | AF52: =$H52*'Cron. Físico'!AD49 -> 49,938.00 | AG52: =$H52*'Cron. Físico'!AE49 -> 86,100.00 | AH52: =$H52*'Cron. Físico'!AF49 -> 0 | AI52: =$H52*'Cron. Físico'!AG49 -> 176,319.05 | AJ52: =$H52*'Cron. Físico'!AH49 -> 36,162.00 | AK52: =$H52*'Cron. Físico'!AI49 -> 0 | AL52: =$H52*'Cron. Físico'!AJ49 -> 86,100.00 | AM52: =$H52*'Cron. Físico'!AK49 -> 136,918.49 | AN52: 100.00% | AO52: TRUE
C53: 8.1.2.11 | E53: 491CMG0023 | F53: M2 | G53: =_xlfn.XLOOKUP($E53,'Resumo Quant.'!$C:$C,'Resumo Quant.'!$E:$E) -> 328,282.95 | H53: =_xlfn.XLOOKUP($E53,'Resumo Preços'!$C:$C,'Resumo Preços'!$E:$E) -> 942,172.07 | J53: =$H53*'Cron. Físico'!H50 -> 0 | K53: =$H53*'Cron. Físico'!I50 -> 0 | L53: =$H53*'Cron. Físico'!J50 -> 0 | M53: =$H53*'Cron. Físico'!K50 -> 0 | N53: =$H53*'Cron. Físico'!L50 -> 0 | O53: =$H53*'Cron. Físico'!M50 -> 0 | P53: =$H53*'Cron. Físico'!N50 -> 0 | Q53: =$H53*'Cron. Físico'!O50 -> 0 | R53: =$H53*'Cron. Físico'!P50 -> 205,654.41 | S53: =$H53*'Cron. Físico'!Q50 -> 0 | T53: =$H53*'Cron. Físico'!R50 -> 0 | U53: =$H53*'Cron. Físico'!S50 -> 0 | V53: =$H53*'Cron. Físico'!T50 -> 0 | W53: =$H53*'Cron. Físico'!U50 -> 119,554.41 | X53: =$H53*'Cron. Físico'!V50 -> 86,100.00 | Y53: =$H53*'Cron. Físico'!W50 -> 0 | Z53: =$H53*'Cron. Físico'!X50 -> 0 | AA53: =$H53*'Cron. Físico'!Y50 -> 0 | AB53: =$H53*'Cron. Físico'!Z50 -> 119,554.41 | AC53: =$H53*'Cron. Físico'!AA50 -> 0 | AD53: =$H53*'Cron. Físico'!AB50 -> 86,100.00 | AE53: =$H53*'Cron. Físico'!AC50 -> 0 | AF53: =$H53*'Cron. Físico'!AD50 -> 0 | AG53: =$H53*'Cron. Físico'!AE50 -> 119,554.41 | AH53: =$H53*'Cron. Físico'!AF50 -> 0 | AI53: =$H53*'Cron. Físico'!AG50 -> 0 | AJ53: =$H53*'Cron. Físico'!AH50 -> 86,100.00 | AK53: =$H53*'Cron. Físico'!AI50 -> 0 | AL53: =$H53*'Cron. Físico'!AJ50 -> 119,554.41 | AM53: =$H53*'Cron. Físico'!AK50 -> 0 | AN53: 100.00% | AO53: TRUE
C54: 8.1.2.12 | E54: 491CMG0050 | F54: M2 | G54: =_xlfn.XLOOKUP($E54,'Resumo Quant.'!$C:$C,'Resumo Quant.'!$E:$E) -> 1,009,634.97 | H54: =_xlfn.XLOOKUP($E54,'Resumo Preços'!$C:$C,'Resumo Preços'!$E:$E) -> 2,897,652.36 | J54: =$H54*'Cron. Físico'!H51 -> 0 | K54: =$H54*'Cron. Físico'!I51 -> 287,422.89 | L54: =$H54*'Cron. Físico'!J51 -> 0 | M54: =$H54*'Cron. Físico'!K51 -> 181,339.54 | N54: =$H54*'Cron. Físico'!L51 -> 0 | O54: =$H54*'Cron. Físico'!M51 -> 0 | P54: =$H54*'Cron. Físico'!N51 -> 172,200.00 | Q54: =$H54*'Cron. Físico'!O51 -> 204,192.89 | R54: =$H54*'Cron. Físico'!P51 -> 0 | S54: =$H54*'Cron. Físico'!Q51 -> 92,369.54 | T54: =$H54*'Cron. Físico'!R51 -> 28,849.47 | U54: =$H54*'Cron. Físico'!S51 -> 261,170.00 | V54: =$H54*'Cron. Físico'!T51 -> 88,302.29 | W54: =$H54*'Cron. Físico'!U51 -> 26,920.60 | X54: =$H54*'Cron. Físico'!V51 -> 0 | Y54: =$H54*'Cron. Físico'!W51 -> 210,189.01 | Z54: =$H54*'Cron. Físico'!X51 -> 172,200.00 | AA54: =$H54*'Cron. Físico'!Y51 -> 88,302.29 | AB54: =$H54*'Cron. Físico'!Z51 -> 0 | AC54: =$H54*'Cron. Físico'!AA51 -> 115,890.60 | AD54: =$H54*'Cron. Físico'!AB51 -> 28,849.47 | AE54: =$H54*'Cron. Físico'!AC51 -> 264,569.54 | AF54: =$H54*'Cron. Físico'!AD51 -> 88,302.29 | AG54: =$H54*'Cron. Físico'!AE51 -> 88,970.00 | AH54: =$H54*'Cron. Físico'!AF51 -> 0 | AI54: =$H54*'Cron. Físico'!AG51 -> 55,770.07 | AJ54: =$H54*'Cron. Físico'!AH51 -> 264,569.54 | AK54: =$H54*'Cron. Físico'!AI51 -> 177,272.29 | AL54: =$H54*'Cron. Físico'!AJ51 -> 0 | AM54: =$H54*'Cron. Físico'!AK51 -> 0 | AN54: 100.00% | AO54: TRUE
C55: 8.1.2.13 | E55: 491CMG0090 | F55: M2 | G55: =_xlfn.XLOOKUP($E55,'Resumo Quant.'!$C:$C,'Resumo Quant.'!$E:$E) -> 445,125.50 | H55: =_xlfn.XLOOKUP($E55,'Resumo Preços'!$C:$C,'Resumo Preços'!$E:$E) -> 1,277,510.19 | J55: =$H55*'Cron. Físico'!H52 -> 0 | K55: =$H55*'Cron. Físico'!I52 -> 0 | L55: =$H55*'Cron. Físico'!J52 -> 0 | M55: =$H55*'Cron. Físico'!K52 -> 0 | N55: =$H55*'Cron. Físico'!L52 -> 0 | O55: =$H55*'Cron. Físico'!M52 -> 44,169.30 | P55: =$H55*'Cron. Físico'!N52 -> 169,557.02 | Q55: =$H55*'Cron. Físico'!O52 -> 0 | R55: =$H55*'Cron. Físico'!P52 -> 24,108.00 | S55: =$H55*'Cron. Físico'!Q52 -> 44,169.30 | T55: =$H55*'Cron. Físico'!R52 -> 0 | U55: =$H55*'Cron. Físico'!S52 -> 169,557.02 | V55: =$H55*'Cron. Físico'!T52 -> 0 | W55: =$H55*'Cron. Físico'!U52 -> 68,277.30 | X55: =$H55*'Cron. Físico'!V52 -> 0 | Y55: =$H55*'Cron. Físico'!W52 -> 0 | Z55: =$H55*'Cron. Físico'!X52 -> 169,557.02 | AA55: =$H55*'Cron. Físico'!Y52 -> 44,169.30 | AB55: =$H55*'Cron. Físico'!Z52 -> 24,108.00 | AC55: =$H55*'Cron. Físico'!AA52 -> 0 | AD55: =$H55*'Cron. Físico'!AB52 -> 0 | AE55: =$H55*'Cron. Físico'!AC52 -> 213,726.32 | AF55: =$H55*'Cron. Físico'!AD52 -> 0 | AG55: =$H55*'Cron. Físico'!AE52 -> 24,108.00 | AH55: =$H55*'Cron. Físico'!AF52 -> 0 | AI55: =$H55*'Cron. Físico'!AG52 -> 44,169.30 | AJ55: =$H55*'Cron. Físico'!AH52 -> 169,557.02 | AK55: =$H55*'Cron. Físico'!AI52 -> 0 | AL55: =$H55*'Cron. Físico'!AJ52 -> 24,108.00 | AM55: =$H55*'Cron. Físico'!AK52 -> 44,169.30 | AN55: 100.00% | AO55: TRUE
C56: 8.1.2.14 | E56: 491CMG0100 | F56: M2 | G56: =_xlfn.XLOOKUP($E56,'Resumo Quant.'!$C:$C,'Resumo Quant.'!$E:$E) -> 982,118.98 | H56: =_xlfn.XLOOKUP($E56,'Resumo Preços'!$C:$C,'Resumo Preços'!$E:$E) -> 2,818,681.47 | J56: =$H56*'Cron. Físico'!H53 -> 0 | K56: =$H56*'Cron. Físico'!I53 -> 0 | L56: =$H56*'Cron. Físico'!J53 -> 0 | M56: =$H56*'Cron. Físico'!K53 -> 0 | N56: =$H56*'Cron. Físico'!L53 -> 320,581.61 | O56: =$H56*'Cron. Físico'!M53 -> 37,697.71 | P56: =$H56*'Cron. Físico'!N53 -> 0 | Q56: =$H56*'Cron. Físico'!O53 -> 0 | R56: =$H56*'Cron. Físico'!P53 -> 320,581.61 | S56: =$H56*'Cron. Físico'!Q53 -> 0 | T56: =$H56*'Cron. Físico'!R53 -> 37,697.71 | U56: =$H56*'Cron. Físico'!S53 -> 0 | V56: =$H56*'Cron. Físico'!T53 -> 320,581.61 | W56: =$H56*'Cron. Físico'!U53 -> 0 | X56: =$H56*'Cron. Físico'!V53 -> 96,530.41 | Y56: =$H56*'Cron. Físico'!W53 -> 37,697.71 | Z56: =$H56*'Cron. Físico'!X53 -> 320,581.61 | AA56: =$H56*'Cron. Físico'!Y53 -> 0 | AB56: =$H56*'Cron. Físico'!Z53 -> 96,530.41 | AC56: =$H56*'Cron. Físico'!AA53 -> 0 | AD56: =$H56*'Cron. Físico'!AB53 -> 358,279.32 | AE56: =$H56*'Cron. Físico'!AC53 -> 0 | AF56: =$H56*'Cron. Físico'!AD53 -> 96,530.41 | AG56: =$H56*'Cron. Físico'!AE53 -> 0 | AH56: =$H56*'Cron. Físico'!AF53 -> 320,581.61 | AI56: =$H56*'Cron. Físico'!AG53 -> 37,697.71 | AJ56: =$H56*'Cron. Físico'!AH53 -> 96,530.41 | AK56: =$H56*'Cron. Físico'!AI53 -> 0 | AL56: =$H56*'Cron. Físico'!AJ53 -> 320,581.61 | AM56: =$H56*'Cron. Físico'!AK53 -> 0 | AN56: 100.00% | AO56: TRUE
C57: 8.1.2.15 | E57: 491CMG0230 | F57: M2 | G57: =_xlfn.XLOOKUP($E57,'Resumo Quant.'!$C:$C,'Resumo Quant.'!$E:$E) -> 930,586.36 | H57: =_xlfn.XLOOKUP($E57,'Resumo Preços'!$C:$C,'Resumo Preços'!$E:$E) -> 2,670,782.85 | J57: =$H57*'Cron. Físico'!H54 -> 0 | K57: =$H57*'Cron. Físico'!I54 -> 0 | L57: =$H57*'Cron. Físico'!J54 -> 0 | M57: =$H57*'Cron. Físico'!K54 -> 137,115.08 | N57: =$H57*'Cron. Físico'!L54 -> 0 | O57: =$H57*'Cron. Físico'!M54 -> 110,998.08 | P57: =$H57*'Cron. Físico'!N54 -> 26,117.00 | Q57: =$H57*'Cron. Físico'!O54 -> 0 | R57: =$H57*'Cron. Físico'!P54 -> 217,134.84 | S57: =$H57*'Cron. Físico'!Q54 -> 26,117.00 | T57: =$H57*'Cron. Físico'!R54 -> 0 | U57: =$H57*'Cron. Físico'!S54 -> 110,998.08 | V57: =$H57*'Cron. Físico'!T54 -> 247,075.17 | W57: =$H57*'Cron. Físico'!U54 -> 0 | X57: =$H57*'Cron. Físico'!V54 -> 110,998.08 | Y57: =$H57*'Cron. Físico'!W54 -> 140,938.41 | Z57: =$H57*'Cron. Físico'!X54 -> 106,136.76 | AA57: =$H57*'Cron. Físico'!Y54 -> 110,998.08 | AB57: =$H57*'Cron. Físico'!Z54 -> 140,938.41 | AC57: =$H57*'Cron. Físico'!AA54 -> 0 | AD57: =$H57*'Cron. Físico'!AB54 -> 217,134.84 | AE57: =$H57*'Cron. Físico'!AC54 -> 140,938.41 | AF57: =$H57*'Cron. Físico'!AD54 -> 0 | AG57: =$H57*'Cron. Físico'!AE54 -> 217,134.84 | AH57: =$H57*'Cron. Físico'!AF54 -> 140,938.41 | AI57: =$H57*'Cron. Físico'!AG54 -> 0 | AJ57: =$H57*'Cron. Físico'!AH54 -> 217,134.84 | AK57: =$H57*'Cron. Físico'!AI54 -> 140,938.41 | AL57: =$H57*'Cron. Físico'!AJ54 -> 0 | AM57: =$H57*'Cron. Físico'!AK54 -> 110,998.08 | AN57: 100.00% | AO57: TRUE
C58: 8.1.2.16 | E58: 491CMG0030 | F58: M2 | G58: =_xlfn.XLOOKUP($E58,'Resumo Quant.'!$C:$C,'Resumo Quant.'!$E:$E) -> 400,307.44 | H58: =_xlfn.XLOOKUP($E58,'Resumo Preços'!$C:$C,'Resumo Preços'!$E:$E) -> 1,148,882.35 | J58: =$H58*'Cron. Físico'!H55 -> 0 | K58: =$H58*'Cron. Físico'!I55 -> 0 | L58: =$H58*'Cron. Físico'!J55 -> 0 | M58: =$H58*'Cron. Físico'!K55 -> 0 | N58: =$H58*'Cron. Físico'!L55 -> 0 | O58: =$H58*'Cron. Físico'!M55 -> 0 | P58: =$H58*'Cron. Físico'!N55 -> 0 | Q58: =$H58*'Cron. Físico'!O55 -> 0 | R58: =$H58*'Cron. Físico'!P55 -> 86,100.00 | S58: =$H58*'Cron. Físico'!Q55 -> 0 | T58: =$H58*'Cron. Físico'!R55 -> 87,238.99 | U58: =$H58*'Cron. Físico'!S55 -> 0 | V58: =$H58*'Cron. Físico'!T55 -> 0 | W58: =$H58*'Cron. Físico'!U55 -> 0 | X58: =$H58*'Cron. Físico'!V55 -> 199,981.60 | Y58: =$H58*'Cron. Físico'!W55 -> 87,238.99 | Z58: =$H58*'Cron. Físico'!X55 -> 0 | AA58: =$H58*'Cron. Físico'!Y55 -> 0 | AB58: =$H58*'Cron. Físico'!Z55 -> 113,881.60 | AC58: =$H58*'Cron. Físico'!AA55 -> 0 | AD58: =$H58*'Cron. Físico'!AB55 -> 173,338.99 | AE58: =$H58*'Cron. Físico'!AC55 -> 0 | AF58: =$H58*'Cron. Físico'!AD55 -> 113,881.60 | AG58: =$H58*'Cron. Físico'!AE55 -> 0 | AH58: =$H58*'Cron. Físico'!AF55 -> 0 | AI58: =$H58*'Cron. Físico'!AG55 -> 87,238.99 | AJ58: =$H58*'Cron. Físico'!AH55 -> 199,981.60 | AK58: =$H58*'Cron. Físico'!AI55 -> 0 | AL58: =$H58*'Cron. Físico'!AJ55 -> 0 | AM58: =$H58*'Cron. Físico'!AK55 -> 0 | AN58: 100.00% | AO58: TRUE
C59: 8.1.2.17 | E59: 491CMG0110 | F59: M2 | G59: =_xlfn.XLOOKUP($E59,'Resumo Quant.'!$C:$C,'Resumo Quant.'!$E:$E) -> 1,168,317.28 | H59: =_xlfn.XLOOKUP($E59,'Resumo Preços'!$C:$C,'Resumo Preços'!$E:$E) -> 3,353,070.59 | J59: =$H59*'Cron. Físico'!H56 -> 0 | K59: =$H59*'Cron. Físico'!I56 -> 100,450.00 | L59: =$H59*'Cron. Físico'!J56 -> 0 | M59: =$H59*'Cron. Físico'!K56 -> 86,100.00 | N59: =$H59*'Cron. Físico'!L56 -> 0 | O59: =$H59*'Cron. Físico'!M56 -> 100,450.00 | P59: =$H59*'Cron. Físico'!N56 -> 0 | Q59: =$H59*'Cron. Físico'!O56 -> 118,818.00 | R59: =$H59*'Cron. Físico'!P56 -> 281,698.77 | S59: =$H59*'Cron. Físico'!Q56 -> 100,450.00 | T59: =$H59*'Cron. Físico'!R56 -> 0 | U59: =$H59*'Cron. Físico'!S56 -> 118,818.00 | V59: =$H59*'Cron. Físico'!T56 -> 281,698.77 | W59: =$H59*'Cron. Físico'!U56 -> 100,450.00 | X59: =$H59*'Cron. Físico'!V56 -> 0 | Y59: =$H59*'Cron. Físico'!W56 -> 118,818.00 | Z59: =$H59*'Cron. Físico'!X56 -> 281,698.77 | AA59: =$H59*'Cron. Físico'!Y56 -> 100,450.00 | AB59: =$H59*'Cron. Físico'!Z56 -> 0 | AC59: =$H59*'Cron. Físico'!AA56 -> 118,818.00 | AD59: =$H59*'Cron. Físico'!AB56 -> 281,698.77 | AE59: =$H59*'Cron. Físico'!AC56 -> 100,450.00 | AF59: =$H59*'Cron. Físico'!AD56 -> 0 | AG59: =$H59*'Cron. Físico'!AE56 -> 138,908.00 | AH59: =$H59*'Cron. Físico'!AF56 -> 281,698.77 | AI59: =$H59*'Cron. Físico'!AG56 -> 100,450.00 | AJ59: =$H59*'Cron. Físico'!AH56 -> 106,190.00 | AK59: =$H59*'Cron. Físico'!AI56 -> 32,718.00 | AL59: =$H59*'Cron. Físico'!AJ56 -> 281,698.77 | AM59: =$H59*'Cron. Físico'!AK56 -> 120,540.00 | AN59: 100.00% | AO59: TRUE
C60: 8.1.2.18 | E60: 491CMG0130 | F60: M2 | G60: =_xlfn.XLOOKUP($E60,'Resumo Quant.'!$C:$C,'Resumo Quant.'!$E:$E) -> 964,775.48 | H60: =_xlfn.XLOOKUP($E60,'Resumo Preços'!$C:$C,'Resumo Preços'!$E:$E) -> 2,768,905.63 | J60: =$H60*'Cron. Físico'!H57 -> 0 | K60: =$H60*'Cron. Físico'!I57 -> 425,908.00 | L60: =$H60*'Cron. Físico'!J57 -> 0 | M60: =$H60*'Cron. Físico'!K57 -> 0 | N60: =$H60*'Cron. Físico'!L57 -> 0 | O60: =$H60*'Cron. Físico'!M57 -> 0 | P60: =$H60*'Cron. Físico'!N57 -> 124,558.00 | Q60: =$H60*'Cron. Físico'!O57 -> 301,350.00 | R60: =$H60*'Cron. Físico'!P57 -> 0 | S60: =$H60*'Cron. Físico'!Q57 -> 0 | T60: =$H60*'Cron. Físico'!R57 -> 0 | U60: =$H60*'Cron. Físico'!S57 -> 124,558.00 | V60: =$H60*'Cron. Físico'!T57 -> 0 | W60: =$H60*'Cron. Físico'!U57 -> 301,350.00 | X60: =$H60*'Cron. Físico'!V57 -> 78,476.91 | Y60: =$H60*'Cron. Físico'!W57 -> 0 | Z60: =$H60*'Cron. Físico'!X57 -> 124,558.00 | AA60: =$H60*'Cron. Físico'!Y57 -> 0 | AB60: =$H60*'Cron. Físico'!Z57 -> 279,376.91 | AC60: =$H60*'Cron. Físico'!AA57 -> 100,450.00 | AD60: =$H60*'Cron. Físico'!AB57 -> 0 | AE60: =$H60*'Cron. Físico'!AC57 -> 124,558.00 | AF60: =$H60*'Cron. Físico'!AD57 -> 78,476.91 | AG60: =$H60*'Cron. Físico'!AE57 -> 200,900.00 | AH60: =$H60*'Cron. Físico'!AF57 -> 0 | AI60: =$H60*'Cron. Físico'!AG57 -> 100,450.00 | AJ60: =$H60*'Cron. Físico'!AH57 -> 203,034.91 | AK60: =$H60*'Cron. Físico'!AI57 -> 0 | AL60: =$H60*'Cron. Físico'!AJ57 -> 200,900.00 | AM60: =$H60*'Cron. Físico'!AK57 -> 0 | AN60: 100.00% | AO60: TRUE
C61: 8.1.2.19 | E61: 491CMG0150 | F61: M2 | G61: =_xlfn.XLOOKUP($E61,'Resumo Quant.'!$C:$C,'Resumo Quant.'!$E:$E) -> 691,821.72 | H61: =_xlfn.XLOOKUP($E61,'Resumo Preços'!$C:$C,'Resumo Preços'!$E:$E) -> 1,985,528.34 | J61: =$H61*'Cron. Físico'!H58 -> 0 | K61: =$H61*'Cron. Físico'!I58 -> 0 | L61: =$H61*'Cron. Físico'!J58 -> 0 | M61: =$H61*'Cron. Físico'!K58 -> 0 | N61: =$H61*'Cron. Físico'!L58 -> 0 | O61: =$H61*'Cron. Físico'!M58 -> 0 | P61: =$H61*'Cron. Físico'!N58 -> 86,100.00 | Q61: =$H61*'Cron. Físico'!O58 -> 0 | R61: =$H61*'Cron. Físico'!P58 -> 75,596.03 | S61: =$H61*'Cron. Físico'!Q58 -> 0 | T61: =$H61*'Cron. Físico'!R58 -> 0 | U61: =$H61*'Cron. Físico'!S58 -> 86,100.00 | V61: =$H61*'Cron. Físico'!T58 -> 86,100.00 | W61: =$H61*'Cron. Físico'!U58 -> 151,938.03 | X61: =$H61*'Cron. Físico'!V58 -> 91,209.55 | Y61: =$H61*'Cron. Físico'!W58 -> 0 | Z61: =$H61*'Cron. Físico'!X58 -> 172,200.00 | AA61: =$H61*'Cron. Físico'!Y58 -> 76,342.00 | AB61: =$H61*'Cron. Físico'!Z58 -> 166,805.58 | AC61: =$H61*'Cron. Físico'!AA58 -> 0 | AD61: =$H61*'Cron. Físico'!AB58 -> 86,100.00 | AE61: =$H61*'Cron. Físico'!AC58 -> 162,442.00 | AF61: =$H61*'Cron. Físico'!AD58 -> 91,209.55 | AG61: =$H61*'Cron. Físico'!AE58 -> 75,596.03 | AH61: =$H61*'Cron. Físico'!AF58 -> 86,100.00 | AI61: =$H61*'Cron. Físico'!AG58 -> 76,342.00 | AJ61: =$H61*'Cron. Físico'!AH58 -> 177,309.55 | AK61: =$H61*'Cron. Físico'!AI58 -> 0 | AL61: =$H61*'Cron. Físico'!AJ58 -> 161,696.03 | AM61: =$H61*'Cron. Físico'!AK58 -> 76,342.00 | AN61: 100.00% | AO61: TRUE
C62: 8.1.2.20 | E62: 491CMG0170 | F62: M2 | G62: =_xlfn.XLOOKUP($E62,'Resumo Quant.'!$C:$C,'Resumo Quant.'!$E:$E) -> 527,236.00 | H62: =_xlfn.XLOOKUP($E62,'Resumo Preços'!$C:$C,'Resumo Preços'!$E:$E) -> 1,513,167.32 | J62: =$H62*'Cron. Físico'!H59 -> 0 | K62: =$H62*'Cron. Físico'!I59 -> 0 | L62: =$H62*'Cron. Físico'!J59 -> 0 | M62: =$H62*'Cron. Físico'!K59 -> 0 | N62: =$H62*'Cron. Físico'!L59 -> 0 | O62: =$H62*'Cron. Físico'!M59 -> 0 | P62: =$H62*'Cron. Físico'!N59 -> 0 | Q62: =$H62*'Cron. Físico'!O59 -> 0 | R62: =$H62*'Cron. Físico'!P59 -> 0 | S62: =$H62*'Cron. Físico'!Q59 -> 0 | T62: =$H62*'Cron. Físico'!R59 -> 0 | U62: =$H62*'Cron. Físico'!S59 -> 0 | V62: =$H62*'Cron. Físico'!T59 -> 288,570.46 | W62: =$H62*'Cron. Físico'!U59 -> 14,063.00 | X62: =$H62*'Cron. Físico'!V59 -> 0 | Y62: =$H62*'Cron. Físico'!W59 -> 0 | Z62: =$H62*'Cron. Físico'!X59 -> 288,570.46 | AA62: =$H62*'Cron. Físico'!Y59 -> 14,063.00 | AB62: =$H62*'Cron. Físico'!Z59 -> 0 | AC62: =$H62*'Cron. Físico'!AA59 -> 0 | AD62: =$H62*'Cron. Físico'!AB59 -> 288,570.46 | AE62: =$H62*'Cron. Físico'!AC59 -> 14,063.00 | AF62: =$H62*'Cron. Físico'!AD59 -> 0 | AG62: =$H62*'Cron. Físico'!AE59 -> 0 | AH62: =$H62*'Cron. Físico'!AF59 -> 288,570.46 | AI62: =$H62*'Cron. Físico'!AG59 -> 14,063.00 | AJ62: =$H62*'Cron. Físico'!AH59 -> 0 | AK62: =$H62*'Cron. Físico'!AI59 -> 0 | AL62: =$H62*'Cron. Físico'!AJ59 -> 288,570.46 | AM62: =$H62*'Cron. Físico'!AK59 -> 14,063.00 | AN62: 100.00% | AO62: TRUE
C63: 8.1.2.21 | E63: 491CMG0190 | F63: M2 | G63: =_xlfn.XLOOKUP($E63,'Resumo Quant.'!$C:$C,'Resumo Quant.'!$E:$E) -> 145,678.47 | H63: =_xlfn.XLOOKUP($E63,'Resumo Preços'!$C:$C,'Resumo Preços'!$E:$E) -> 418,097.21 | J63: =$H63*'Cron. Físico'!H60 -> 0 | K63: =$H63*'Cron. Físico'!I60 -> 0 | L63: =$H63*'Cron. Físico'!J60 -> 0 | M63: =$H63*'Cron. Físico'!K60 -> 0 | N63: =$H63*'Cron. Físico'!L60 -> 0 | O63: =$H63*'Cron. Físico'!M60 -> 0 | P63: =$H63*'Cron. Físico'!N60 -> 0 | Q63: =$H63*'Cron. Físico'!O60 -> 0 | R63: =$H63*'Cron. Físico'!P60 -> 59,728.17 | S63: =$H63*'Cron. Físico'!Q60 -> 0 | T63: =$H63*'Cron. Físico'!R60 -> 0 | U63: =$H63*'Cron. Físico'!S60 -> 0 | V63: =$H63*'Cron. Físico'!T60 -> 59,728.17 | W63: =$H63*'Cron. Físico'!U60 -> 0 | X63: =$H63*'Cron. Físico'!V60 -> 0 | Y63: =$H63*'Cron. Físico'!W60 -> 0 | Z63: =$H63*'Cron. Físico'!X60 -> 59,728.17 | AA63: =$H63*'Cron. Físico'!Y60 -> 0 | AB63: =$H63*'Cron. Físico'!Z60 -> 0 | AC63: =$H63*'Cron. Físico'!AA60 -> 59,728.17 | AD63: =$H63*'Cron. Físico'!AB60 -> 0 | AE63: =$H63*'Cron. Físico'!AC60 -> 0 | AF63: =$H63*'Cron. Físico'!AD60 -> 0 | AG63: =$H63*'Cron. Físico'!AE60 -> 59,728.17 | AH63: =$H63*'Cron. Físico'!AF60 -> 0 | AI63: =$H63*'Cron. Físico'!AG60 -> 0 | AJ63: =$H63*'Cron. Físico'!AH60 -> 59,728.17 | AK63: =$H63*'Cron. Físico'!AI60 -> 0 | AL63: =$H63*'Cron. Físico'!AJ60 -> 0 | AM63: =$H63*'Cron. Físico'!AK60 -> 59,728.17 | AN63: 100.00% | AO63: TRUE
C64: 8.1.2.22 | E64: 491CMG0210D | F64: M2 | G64: =_xlfn.XLOOKUP($E64,'Resumo Quant.'!$C:$C,'Resumo Quant.'!$E:$E) -> 95,200.00 | H64: =_xlfn.XLOOKUP($E64,'Resumo Preços'!$C:$C,'Resumo Preços'!$E:$E) -> 273,224.00 | J64: =$H64*'Cron. Físico'!H61 -> 0 | K64: =$H64*'Cron. Físico'!I61 -> 0 | L64: =$H64*'Cron. Físico'!J61 -> 0 | M64: =$H64*'Cron. Físico'!K61 -> 0 | N64: =$H64*'Cron. Físico'!L61 -> 0 | O64: =$H64*'Cron. Físico'!M61 -> 0 | P64: =$H64*'Cron. Físico'!N61 -> 0 | Q64: =$H64*'Cron. Físico'!O61 -> 34,153.00 | R64: =$H64*'Cron. Físico'!P61 -> 0 | S64: =$H64*'Cron. Físico'!Q61 -> 0 | T64: =$H64*'Cron. Físico'!R61 -> 34,153.00 | U64: =$H64*'Cron. Físico'!S61 -> 0 | V64: =$H64*'Cron. Físico'!T61 -> 0 | W64: =$H64*'Cron. Físico'!U61 -> 34,153.00 | X64: =$H64*'Cron. Físico'!V61 -> 0 | Y64: =$H64*'Cron. Físico'!W61 -> 0 | Z64: =$H64*'Cron. Físico'!X61 -> 34,153.00 | AA64: =$H64*'Cron. Físico'!Y61 -> 0 | AB64: =$H64*'Cron. Físico'!Z61 -> 0 | AC64: =$H64*'Cron. Físico'!AA61 -> 34,153.00 | AD64: =$H64*'Cron. Físico'!AB61 -> 0 | AE64: =$H64*'Cron. Físico'!AC61 -> 0 | AF64: =$H64*'Cron. Físico'!AD61 -> 34,153.00 | AG64: =$H64*'Cron. Físico'!AE61 -> 0 | AH64: =$H64*'Cron. Físico'!AF61 -> 0 | AI64: =$H64*'Cron. Físico'!AG61 -> 34,153.00 | AJ64: =$H64*'Cron. Físico'!AH61 -> 0 | AK64: =$H64*'Cron. Físico'!AI61 -> 0 | AL64: =$H64*'Cron. Físico'!AJ61 -> 34,153.00 | AM64: =$H64*'Cron. Físico'!AK61 -> 0 | AN64: 100.00% | AO64: TRUE
C65: 8.1.2.23 | E65: 146BMG0250 | F65: M2 | G65: =_xlfn.XLOOKUP($E65,'Resumo Quant.'!$C:$C,'Resumo Quant.'!$E:$E) -> 497,947.39 | H65: =_xlfn.XLOOKUP($E65,'Resumo Preços'!$C:$C,'Resumo Preços'!$E:$E) -> 1,429,109.01 | J65: =$H65*'Cron. Físico'!H62 -> 0 | K65: =$H65*'Cron. Físico'!I62 -> 92,575.52 | L65: =$H65*'Cron. Físico'!J62 -> 0 | M65: =$H65*'Cron. Físico'!K62 -> 0 | N65: =$H65*'Cron. Físico'!L62 -> 0 | O65: =$H65*'Cron. Físico'!M62 -> 0 | P65: =$H65*'Cron. Físico'!N62 -> 0 | Q65: =$H65*'Cron. Físico'!O62 -> 0 | R65: =$H65*'Cron. Físico'!P62 -> 0 | S65: =$H65*'Cron. Físico'!Q62 -> 140,155.30 | T65: =$H65*'Cron. Físico'!R62 -> 305,355.86 | U65: =$H65*'Cron. Físico'!S62 -> 0 | V65: =$H65*'Cron. Físico'!T62 -> 0 | W65: =$H65*'Cron. Físico'!U62 -> 0 | X65: =$H65*'Cron. Físico'!V62 -> 0 | Y65: =$H65*'Cron. Físico'!W62 -> 0 | Z65: =$H65*'Cron. Físico'!X62 -> 0 | AA65: =$H65*'Cron. Físico'!Y62 -> 0 | AB65: =$H65*'Cron. Físico'!Z62 -> 140,155.30 | AC65: =$H65*'Cron. Físico'!AA62 -> 305,355.86 | AD65: =$H65*'Cron. Físico'!AB62 -> 0 | AE65: =$H65*'Cron. Físico'!AC62 -> 0 | AF65: =$H65*'Cron. Físico'!AD62 -> 0 | AG65: =$H65*'Cron. Físico'!AE62 -> 0 | AH65: =$H65*'Cron. Físico'!AF62 -> 0 | AI65: =$H65*'Cron. Físico'!AG62 -> 0 | AJ65: =$H65*'Cron. Físico'!AH62 -> 0 | AK65: =$H65*'Cron. Físico'!AI62 -> 140,155.30 | AL65: =$H65*'Cron. Físico'!AJ62 -> 305,355.86 | AM65: =$H65*'Cron. Físico'!AK62 -> 0 | AN65: 100.00% | AO65: =SUM(J65:AM65)=H65 -> TRUE
C66: 8.1.2.24 | E66: 146BMG0252 | F66: M2 | G66: =_xlfn.XLOOKUP($E66,'Resumo Quant.'!$C:$C,'Resumo Quant.'!$E:$E) -> 97,200.00 | H66: =_xlfn.XLOOKUP($E66,'Resumo Preços'!$C:$C,'Resumo Preços'!$E:$E) -> 278,964.00 | J66: =$H66*'Cron. Físico'!H63 -> 0 | K66: =$H66*'Cron. Físico'!I63 -> 0 | L66: =$H66*'Cron. Físico'!J63 -> 0 | M66: =$H66*'Cron. Físico'!K63 -> 43,050.00 | N66: =$H66*'Cron. Físico'!L63 -> 0 | O66: =$H66*'Cron. Físico'!M63 -> 0 | P66: =$H66*'Cron. Físico'!N63 -> 0 | Q66: =$H66*'Cron. Físico'!O63 -> 0 | R66: =$H66*'Cron. Físico'!P63 -> 0 | S66: =$H66*'Cron. Físico'!Q63 -> 0 | T66: =$H66*'Cron. Físico'!R63 -> 49,938.00 | U66: =$H66*'Cron. Físico'!S63 -> 0 | V66: =$H66*'Cron. Físico'!T63 -> 43,050.00 | W66: =$H66*'Cron. Físico'!U63 -> 0 | X66: =$H66*'Cron. Físico'!V63 -> 0 | Y66: =$H66*'Cron. Físico'!W63 -> 0 | Z66: =$H66*'Cron. Físico'!X63 -> 0 | AA66: =$H66*'Cron. Físico'!Y63 -> 0 | AB66: =$H66*'Cron. Físico'!Z63 -> 0 | AC66: =$H66*'Cron. Físico'!AA63 -> 49,938.00 | AD66: =$H66*'Cron. Físico'!AB63 -> 0 | AE66: =$H66*'Cron. Físico'!AC63 -> 43,050.00 | AF66: =$H66*'Cron. Físico'!AD63 -> 0 | AG66: =$H66*'Cron. Físico'!AE63 -> 0 | AH66: =$H66*'Cron. Físico'!AF63 -> 0 | AI66: =$H66*'Cron. Físico'!AG63 -> 0 | AJ66: =$H66*'Cron. Físico'!AH63 -> 0 | AK66: =$H66*'Cron. Físico'!AI63 -> 0 | AL66: =$H66*'Cron. Físico'!AJ63 -> 49,938.00 | AM66: =$H66*'Cron. Físico'!AK63 -> 0 | AN66: 100.00% | AO66: TRUE
C67: 8.1.2.25 | E67: 369CMG0070 | F67: M2 | G67: =_xlfn.XLOOKUP($E67,'Resumo Quant.'!$C:$C,'Resumo Quant.'!$E:$E) -> 684,976.60 | H67: =_xlfn.XLOOKUP($E67,'Resumo Preços'!$C:$C,'Resumo Preços'!$E:$E) -> 1,965,882.84 | J67: =$H67*'Cron. Físico'!H64 -> 0 | K67: =$H67*'Cron. Físico'!I64 -> 393,176.57 | L67: =$H67*'Cron. Físico'!J64 -> 0 | M67: =$H67*'Cron. Físico'!K64 -> 0 | N67: =$H67*'Cron. Físico'!L64 -> 0 | O67: =$H67*'Cron. Físico'!M64 -> 0 | P67: =$H67*'Cron. Físico'!N64 -> 0 | Q67: =$H67*'Cron. Físico'!O64 -> 206,626.57 | R67: =$H67*'Cron. Físico'!P64 -> 186,550.00 | S67: =$H67*'Cron. Físico'!Q64 -> 0 | T67: =$H67*'Cron. Físico'!R64 -> 0 | U67: =$H67*'Cron. Físico'!S64 -> 0 | V67: =$H67*'Cron. Físico'!T64 -> 0 | W67: =$H67*'Cron. Físico'!U64 -> 206,626.57 | X67: =$H67*'Cron. Físico'!V64 -> 186,550.00 | Y67: =$H67*'Cron. Físico'!W64 -> 0 | Z67: =$H67*'Cron. Físico'!X64 -> 0 | AA67: =$H67*'Cron. Físico'!Y64 -> 0 | AB67: =$H67*'Cron. Físico'!Z64 -> 0 | AC67: =$H67*'Cron. Físico'!AA64 -> 206,626.57 | AD67: =$H67*'Cron. Físico'!AB64 -> 186,550.00 | AE67: =$H67*'Cron. Físico'!AC64 -> 0 | AF67: =$H67*'Cron. Físico'!AD64 -> 0 | AG67: =$H67*'Cron. Físico'!AE64 -> 0 | AH67: =$H67*'Cron. Físico'!AF64 -> 0 | AI67: =$H67*'Cron. Físico'!AG64 -> 206,626.57 | AJ67: =$H67*'Cron. Físico'!AH64 -> 186,550.00 | AK67: =$H67*'Cron. Físico'!AI64 -> 0 | AL67: =$H67*'Cron. Físico'!AJ64 -> 0 | AM67: =$H67*'Cron. Físico'!AK64 -> 0 | AN67: 100.00% | AO67: TRUE
C68: 8.1.2.26 | E68: 369CMG0090 | F68: M2 | G68: =_xlfn.XLOOKUP($E68,'Resumo Quant.'!$C:$C,'Resumo Quant.'!$E:$E) -> 1,477,424.26 | H68: =_xlfn.XLOOKUP($E68,'Resumo Preços'!$C:$C,'Resumo Preços'!$E:$E) -> 4,240,207.63 | J68: =$H68*'Cron. Físico'!H65 -> 0 | K68: =$H68*'Cron. Físico'!I65 -> 0 | L68: =$H68*'Cron. Físico'!J65 -> 0 | M68: =$H68*'Cron. Físico'!K65 -> 85,054.11 | N68: =$H68*'Cron. Físico'!L65 -> 0 | O68: =$H68*'Cron. Físico'!M65 -> 90,116.34 | P68: =$H68*'Cron. Físico'!N65 -> 0 | Q68: =$H68*'Cron. Físico'!O65 -> 356,829.97 | R68: =$H68*'Cron. Físico'!P65 -> 244,735.58 | S68: =$H68*'Cron. Físico'!Q65 -> 90,116.34 | T68: =$H68*'Cron. Físico'!R65 -> 0 | U68: =$H68*'Cron. Físico'!S65 -> 356,829.97 | V68: =$H68*'Cron. Físico'!T65 -> 159,681.46 | W68: =$H68*'Cron. Físico'!U65 -> 175,170.45 | X68: =$H68*'Cron. Físico'!V65 -> 0 | Y68: =$H68*'Cron. Físico'!W65 -> 356,829.97 | Z68: =$H68*'Cron. Físico'!X65 -> 159,681.46 | AA68: =$H68*'Cron. Físico'!Y65 -> 90,116.34 | AB68: =$H68*'Cron. Físico'!Z65 -> 85,054.11 | AC68: =$H68*'Cron. Físico'!AA65 -> 356,829.97 | AD68: =$H68*'Cron. Físico'!AB65 -> 159,681.46 | AE68: =$H68*'Cron. Físico'!AC65 -> 90,116.34 | AF68: =$H68*'Cron. Físico'!AD65 -> 85,054.11 | AG68: =$H68*'Cron. Físico'!AE65 -> 356,829.97 | AH68: =$H68*'Cron. Físico'!AF65 -> 159,681.46 | AI68: =$H68*'Cron. Físico'!AG65 -> 90,116.34 | AJ68: =$H68*'Cron. Físico'!AH65 -> 85,054.11 | AK68: =$H68*'Cron. Físico'!AI65 -> 356,829.97 | AL68: =$H68*'Cron. Físico'!AJ65 -> 159,681.46 | AM68: =$H68*'Cron. Físico'!AK65 -> 90,116.34 | AN68: 100.00% | AO68: TRUE
C69: 8.1.2.27 | E69: VARGINHA | F69: M2 | G69: =_xlfn.XLOOKUP($E69,'Resumo Quant.'!$C:$C,'Resumo Quant.'!$E:$E) ->  | H69: =_xlfn.XLOOKUP($E69,'Resumo Preços'!$C:$C,'Resumo Preços'!$E:$E) ->  | J69: =$H69*'Cron. Físico'!#REF! ->  | K69: =$H69*'Cron. Físico'!#REF! ->  | L69: =$H69*'Cron. Físico'!#REF! ->  | M69: =$H69*'Cron. Físico'!#REF! ->  | N69: =$H69*'Cron. Físico'!#REF! ->  | O69: =$H69*'Cron. Físico'!#REF! ->  | P69: =$H69*'Cron. Físico'!#REF! ->  | Q69: =$H69*'Cron. Físico'!#REF! ->  | R69: =$H69*'Cron. Físico'!#REF! ->  | S69: =$H69*'Cron. Físico'!#REF! ->  | T69: =$H69*'Cron. Físico'!#REF! ->  | U69: =$H69*'Cron. Físico'!#REF! ->  | V69: =$H69*'Cron. Físico'!#REF! ->  | W69: =$H69*'Cron. Físico'!#REF! ->  | X69: =$H69*'Cron. Físico'!#REF! ->  | Y69: =$H69*'Cron. Físico'!#REF! ->  | Z69: =$H69*'Cron. Físico'!#REF! ->  | AA69: =$H69*'Cron. Físico'!#REF! ->  | AB69: =$H69*'Cron. Físico'!#REF! ->  | AC69: =$H69*'Cron. Físico'!#REF! ->  | AD69: =$H69*'Cron. Físico'!#REF! ->  | AE69: =$H69*'Cron. Físico'!#REF! ->  | AF69: =$H69*'Cron. Físico'!#REF! ->  | AG69: =$H69*'Cron. Físico'!#REF! ->  | AH69: =$H69*'Cron. Físico'!#REF! ->  | AI69: =$H69*'Cron. Físico'!#REF! ->  | AJ69: =$H69*'Cron. Físico'!#REF! ->  | AK69: =$H69*'Cron. Físico'!#REF! ->  | AL69: =$H69*'Cron. Físico'!#REF! ->  | AM69: =$H69*'Cron. Físico'!#REF! ->  | AN69: =SUM(J69:AM69)/H69 ->  | AO69: =SUM(J69:AM69)=H69 -> 
C70: 8.1.2.28 | E70: CAMPOS GERAIS | F70: M2 | G70: =_xlfn.XLOOKUP($E70,'Resumo Quant.'!$C:$C,'Resumo Quant.'!$E:$E) ->  | H70: =_xlfn.XLOOKUP($E70,'Resumo Preços'!$C:$C,'Resumo Preços'!$E:$E) ->  | J70: =$H70*'Cron. Físico'!#REF! ->  | K70: =$H70*'Cron. Físico'!#REF! ->  | L70: =$H70*'Cron. Físico'!#REF! ->  | M70: =$H70*'Cron. Físico'!#REF! ->  | N70: =$H70*'Cron. Físico'!#REF! ->  | O70: =$H70*'Cron. Físico'!#REF! ->  | P70: =$H70*'Cron. Físico'!#REF! ->  | Q70: =$H70*'Cron. Físico'!#REF! ->  | R70: =$H70*'Cron. Físico'!#REF! ->  | S70: =$H70*'Cron. Físico'!#REF! ->  | T70: =$H70*'Cron. Físico'!#REF! ->  | U70: =$H70*'Cron. Físico'!#REF! ->  | V70: =$H70*'Cron. Físico'!#REF! ->  | W70: =$H70*'Cron. Físico'!#REF! ->  | X70: =$H70*'Cron. Físico'!#REF! ->  | Y70: =$H70*'Cron. Físico'!#REF! ->  | Z70: =$H70*'Cron. Físico'!#REF! ->  | AA70: =$H70*'Cron. Físico'!#REF! ->  | AB70: =$H70*'Cron. Físico'!#REF! ->  | AC70: =$H70*'Cron. Físico'!#REF! ->  | AD70: =$H70*'Cron. Físico'!#REF! ->  | AE70: =$H70*'Cron. Físico'!#REF! ->  | AF70: =$H70*'Cron. Físico'!#REF! ->  | AG70: =$H70*'Cron. Físico'!#REF! ->  | AH70: =$H70*'Cron. Físico'!#REF! ->  | AI70: =$H70*'Cron. Físico'!#REF! ->  | AJ70: =$H70*'Cron. Físico'!#REF! ->  | AK70: =$H70*'Cron. Físico'!#REF! ->  | AL70: =$H70*'Cron. Físico'!#REF! ->  | AM70: =$H70*'Cron. Físico'!#REF! -> 
C71: 8.1.2.29 | E71: ALFENAS | F71: M2 | G71: =_xlfn.XLOOKUP($E71,'Resumo Quant.'!$C:$C,'Resumo Quant.'!$E:$E) ->  | H71: =_xlfn.XLOOKUP($E71,'Resumo Preços'!$C:$C,'Resumo Preços'!$E:$E) ->  | J71: =$H71*'Cron. Físico'!#REF! ->  | K71: =$H71*'Cron. Físico'!#REF! ->  | L71: =$H71*'Cron. Físico'!#REF! ->  | M71: =$H71*'Cron. Físico'!#REF! ->  | N71: =$H71*'Cron. Físico'!#REF! ->  | O71: =$H71*'Cron. Físico'!#REF! ->  | P71: =$H71*'Cron. Físico'!#REF! ->  | Q71: =$H71*'Cron. Físico'!#REF! ->  | R71: =$H71*'Cron. Físico'!#REF! ->  | S71: =$H71*'Cron. Físico'!#REF! ->  | T71: =$H71*'Cron. Físico'!#REF! ->  | U71: =$H71*'Cron. Físico'!#REF! ->  | V71: =$H71*'Cron. Físico'!#REF! ->  | W71: =$H71*'Cron. Físico'!#REF! ->  | X71: =$H71*'Cron. Físico'!#REF! ->  | Y71: =$H71*'Cron. Físico'!#REF! ->  | Z71: =$H71*'Cron. Físico'!#REF! ->  | AA71: =$H71*'Cron. Físico'!#REF! ->  | AB71: =$H71*'Cron. Físico'!#REF! ->  | AC71: =$H71*'Cron. Físico'!#REF! ->  | AD71: =$H71*'Cron. Físico'!#REF! ->  | AE71: =$H71*'Cron. Físico'!#REF! ->  | AF71: =$H71*'Cron. Físico'!#REF! ->  | AG71: =$H71*'Cron. Físico'!#REF! ->  | AH71: =$H71*'Cron. Físico'!#REF! ->  | AI71: =$H71*'Cron. Físico'!#REF! ->  | AJ71: =$H71*'Cron. Físico'!#REF! ->  | AK71: =$H71*'Cron. Físico'!#REF! ->  | AL71: =$H71*'Cron. Físico'!#REF! ->  | AM71: =$H71*'Cron. Físico'!#REF! -> 
A72: x | C72: 8.1.3 | E72: MRAF | H72: =SUM(H73:H101) ->  | J72: =SUM(J73:J101) ->  | K72: =SUM(K73:K101) ->  | AO72: =SUM(J72:AM72)=H72 -> 
C73: 8.1.3.1 | E73: 167EMG0200 | F73: M2 | G73: =_xlfn.XLOOKUP($E73,'Resumo Quant.'!$C:$C,'Resumo Quant.'!$F:$F) -> 0 | H73: =_xlfn.XLOOKUP($E73,'Resumo Preços'!$C:$C,'Resumo Preços'!$F:$F) -> 0 | J73: =$H73*'Cron. Físico'!H67 -> 0 | K73: =$H73*'Cron. Físico'!I67 -> 0 | L73: =$H73*'Cron. Físico'!J67 -> 0 | M73: =$H73*'Cron. Físico'!K67 -> 0 | N73: =$H73*'Cron. Físico'!L67 -> 0 | O73: =$H73*'Cron. Físico'!M67 -> 0 | P73: =$H73*'Cron. Físico'!N67 -> 0 | Q73: =$H73*'Cron. Físico'!O67 -> 0 | R73: =$H73*'Cron. Físico'!P67 -> 0 | S73: =$H73*'Cron. Físico'!Q67 -> 0 | T73: =$H73*'Cron. Físico'!R67 -> 0 | U73: =$H73*'Cron. Físico'!S67 -> 0 | V73: =$H73*'Cron. Físico'!T67 -> 0 | W73: =$H73*'Cron. Físico'!U67 -> 0 | X73: =$H73*'Cron. Físico'!V67 -> 0 | Y73: =$H73*'Cron. Físico'!W67 -> 0 | Z73: =$H73*'Cron. Físico'!X67 -> 0 | AA73: =$H73*'Cron. Físico'!Y67 -> 0 | AB73: =$H73*'Cron. Físico'!Z67 -> 0 | AC73: =$H73*'Cron. Físico'!AA67 -> 0 | AD73: =$H73*'Cron. Físico'!AB67 -> 0 | AE73: =$H73*'Cron. Físico'!AC67 -> 0 | AF73: =$H73*'Cron. Físico'!AD67 -> 0 | AG73: =$H73*'Cron. Físico'!AE67 -> 0 | AH73: =$H73*'Cron. Físico'!AF67 -> 0 | AI73: =$H73*'Cron. Físico'!AG67 -> 0 | AJ73: =$H73*'Cron. Físico'!AH67 -> 0 | AK73: =$H73*'Cron. Físico'!AI67 -> 0 | AL73: =$H73*'Cron. Físico'!AJ67 -> 0 | AM73: =$H73*'Cron. Físico'!AK67 -> 0 | AN73: =SUM(J73:AM73)/H73 ->  | AO73: TRUE
C74: 8.1.3.2 | E74: 167EMG0205 | F74: M2 | G74: =_xlfn.XLOOKUP($E74,'Resumo Quant.'!$C:$C,'Resumo Quant.'!$F:$F) -> 0 | H74: =_xlfn.XLOOKUP($E74,'Resumo Preços'!$C:$C,'Resumo Preços'!$F:$F) -> 0 | J74: =$H74*'Cron. Físico'!H68 -> 0 | K74: =$H74*'Cron. Físico'!I68 -> 0 | L74: =$H74*'Cron. Físico'!J68 -> 0 | M74: =$H74*'Cron. Físico'!K68 -> 0 | N74: =$H74*'Cron. Físico'!L68 -> 0 | O74: =$H74*'Cron. Físico'!M68 -> 0 | P74: =$H74*'Cron. Físico'!N68 -> 0 | Q74: =$H74*'Cron. Físico'!O68 -> 0 | R74: =$H74*'Cron. Físico'!P68 -> 0 | S74: =$H74*'Cron. Físico'!Q68 -> 0 | T74: =$H74*'Cron. Físico'!R68 -> 0 | U74: =$H74*'Cron. Físico'!S68 -> 0 | V74: =$H74*'Cron. Físico'!T68 -> 0 | W74: =$H74*'Cron. Físico'!U68 -> 0 | X74: =$H74*'Cron. Físico'!V68 -> 0 | Y74: =$H74*'Cron. Físico'!W68 -> 0 | Z74: =$H74*'Cron. Físico'!X68 -> 0 | AA74: =$H74*'Cron. Físico'!Y68 -> 0 | AB74: =$H74*'Cron. Físico'!Z68 -> 0 | AC74: =$H74*'Cron. Físico'!AA68 -> 0 | AD74: =$H74*'Cron. Físico'!AB68 -> 0 | AE74: =$H74*'Cron. Físico'!AC68 -> 0 | AF74: =$H74*'Cron. Físico'!AD68 -> 0 | AG74: =$H74*'Cron. Físico'!AE68 -> 0 | AH74: =$H74*'Cron. Físico'!AF68 -> 0 | AI74: =$H74*'Cron. Físico'!AG68 -> 0 | AJ74: =$H74*'Cron. Físico'!AH68 -> 0 | AK74: =$H74*'Cron. Físico'!AI68 -> 0 | AL74: =$H74*'Cron. Físico'!AJ68 -> 0 | AM74: =$H74*'Cron. Físico'!AK68 -> 0 | AO74: TRUE
C75: 8.1.3.3 | E75: 167EMG0220 | F75: M2 | G75: =_xlfn.XLOOKUP($E75,'Resumo Quant.'!$C:$C,'Resumo Quant.'!$F:$F) -> 21,600.00 | H75: =_xlfn.XLOOKUP($E75,'Resumo Preços'!$C:$C,'Resumo Preços'!$F:$F) -> 30,888.00 | J75: =$H75*'Cron. Físico'!H69 -> 0 | K75: =$H75*'Cron. Físico'!I69 -> 0 | L75: =$H75*'Cron. Físico'!J69 -> 0 | M75: =$H75*'Cron. Físico'!K69 -> 0 | N75: =$H75*'Cron. Físico'!L69 -> 0 | O75: =$H75*'Cron. Físico'!M69 -> 30,888.00 | P75: =$H75*'Cron. Físico'!N69 -> 0 | Q75: =$H75*'Cron. Físico'!O69 -> 0 | R75: =$H75*'Cron. Físico'!P69 -> 0 | S75: =$H75*'Cron. Físico'!Q69 -> 0 | T75: =$H75*'Cron. Físico'!R69 -> 0 | U75: =$H75*'Cron. Físico'!S69 -> 0 | V75: =$H75*'Cron. Físico'!T69 -> 0 | W75: =$H75*'Cron. Físico'!U69 -> 0 | X75: =$H75*'Cron. Físico'!V69 -> 0 | Y75: =$H75*'Cron. Físico'!W69 -> 0 | Z75: =$H75*'Cron. Físico'!X69 -> 0 | AA75: =$H75*'Cron. Físico'!Y69 -> 0 | AB75: =$H75*'Cron. Físico'!Z69 -> 0 | AC75: =$H75*'Cron. Físico'!AA69 -> 0 | AD75: =$H75*'Cron. Físico'!AB69 -> 0 | AE75: =$H75*'Cron. Físico'!AC69 -> 0 | AF75: =$H75*'Cron. Físico'!AD69 -> 0 | AG75: =$H75*'Cron. Físico'!AE69 -> 0 | AH75: =$H75*'Cron. Físico'!AF69 -> 0 | AI75: =$H75*'Cron. Físico'!AG69 -> 0 | AJ75: =$H75*'Cron. Físico'!AH69 -> 0 | AK75: =$H75*'Cron. Físico'!AI69 -> 0 | AL75: =$H75*'Cron. Físico'!AJ69 -> 0 | AM75: =$H75*'Cron. Físico'!AK69 -> 0 | AN75: 100.00% | AO75: TRUE
C76: 8.1.3.4 | E76: 265BMG0270 | F76: M2 | G76: =_xlfn.XLOOKUP($E76,'Resumo Quant.'!$C:$C,'Resumo Quant.'!$F:$F) -> 0 | H76: =_xlfn.XLOOKUP($E76,'Resumo Preços'!$C:$C,'Resumo Preços'!$F:$F) -> 0 | J76: =$H76*'Cron. Físico'!H70 -> 0 | K76: =$H76*'Cron. Físico'!I70 -> 0 | L76: =$H76*'Cron. Físico'!J70 -> 0 | M76: =$H76*'Cron. Físico'!K70 -> 0 | N76: =$H76*'Cron. Físico'!L70 -> 0 | O76: =$H76*'Cron. Físico'!M70 -> 0 | P76: =$H76*'Cron. Físico'!N70 -> 0 | Q76: =$H76*'Cron. Físico'!O70 -> 0 | R76: =$H76*'Cron. Físico'!P70 -> 0 | S76: =$H76*'Cron. Físico'!Q70 -> 0 | T76: =$H76*'Cron. Físico'!R70 -> 0 | U76: =$H76*'Cron. Físico'!S70 -> 0 | V76: =$H76*'Cron. Físico'!T70 -> 0 | W76: =$H76*'Cron. Físico'!U70 -> 0 | X76: =$H76*'Cron. Físico'!V70 -> 0 | Y76: =$H76*'Cron. Físico'!W70 -> 0 | Z76: =$H76*'Cron. Físico'!X70 -> 0 | AA76: =$H76*'Cron. Físico'!Y70 -> 0 | AB76: =$H76*'Cron. Físico'!Z70 -> 0 | AC76: =$H76*'Cron. Físico'!AA70 -> 0 | AD76: =$H76*'Cron. Físico'!AB70 -> 0 | AE76: =$H76*'Cron. Físico'!AC70 -> 0 | AF76: =$H76*'Cron. Físico'!AD70 -> 0 | AG76: =$H76*'Cron. Físico'!AE70 -> 0 | AH76: =$H76*'Cron. Físico'!AF70 -> 0 | AI76: =$H76*'Cron. Físico'!AG70 -> 0 | AJ76: =$H76*'Cron. Físico'!AH70 -> 0 | AK76: =$H76*'Cron. Físico'!AI70 -> 0 | AL76: =$H76*'Cron. Físico'!AJ70 -> 0 | AM76: =$H76*'Cron. Físico'!AK70 -> 0 | AO76: TRUE
C77: 8.1.3.5 | E77: 265BMG0290 | F77: M2 | G77: =_xlfn.XLOOKUP($E77,'Resumo Quant.'!$C:$C,'Resumo Quant.'!$F:$F) -> 0 | H77: =_xlfn.XLOOKUP($E77,'Resumo Preços'!$C:$C,'Resumo Preços'!$F:$F) -> 0 | J77: =$H77*'Cron. Físico'!H71 -> 0 | K77: =$H77*'Cron. Físico'!I71 -> 0 | L77: =$H77*'Cron. Físico'!J71 -> 0 | M77: =$H77*'Cron. Físico'!K71 -> 0 | N77: =$H77*'Cron. Físico'!L71 -> 0 | O77: =$H77*'Cron. Físico'!M71 -> 0 | P77: =$H77*'Cron. Físico'!N71 -> 0 | Q77: =$H77*'Cron. Físico'!O71 -> 0 | R77: =$H77*'Cron. Físico'!P71 -> 0 | S77: =$H77*'Cron. Físico'!Q71 -> 0 | T77: =$H77*'Cron. Físico'!R71 -> 0 | U77: =$H77*'Cron. Físico'!S71 -> 0 | V77: =$H77*'Cron. Físico'!T71 -> 0 | W77: =$H77*'Cron. Físico'!U71 -> 0 | X77: =$H77*'Cron. Físico'!V71 -> 0 | Y77: =$H77*'Cron. Físico'!W71 -> 0 | Z77: =$H77*'Cron. Físico'!X71 -> 0 | AA77: =$H77*'Cron. Físico'!Y71 -> 0 | AB77: =$H77*'Cron. Físico'!Z71 -> 0 | AC77: =$H77*'Cron. Físico'!AA71 -> 0 | AD77: =$H77*'Cron. Físico'!AB71 -> 0 | AE77: =$H77*'Cron. Físico'!AC71 -> 0 | AF77: =$H77*'Cron. Físico'!AD71 -> 0 | AG77: =$H77*'Cron. Físico'!AE71 -> 0 | AH77: =$H77*'Cron. Físico'!AF71 -> 0 | AI77: =$H77*'Cron. Físico'!AG71 -> 0 | AJ77: =$H77*'Cron. Físico'!AH71 -> 0 | AK77: =$H77*'Cron. Físico'!AI71 -> 0 | AL77: =$H77*'Cron. Físico'!AJ71 -> 0 | AM77: =$H77*'Cron. Físico'!AK71 -> 0 | AO77: TRUE
C78: 8.1.3.6 | E78: 265BMG0305 | F78: M2 | G78: =_xlfn.XLOOKUP($E78,'Resumo Quant.'!$C:$C,'Resumo Quant.'!$F:$F) -> 0 | H78: =_xlfn.XLOOKUP($E78,'Resumo Preços'!$C:$C,'Resumo Preços'!$F:$F) -> 0 | J78: =$H78*'Cron. Físico'!H72 -> 0 | K78: =$H78*'Cron. Físico'!I72 -> 0 | L78: =$H78*'Cron. Físico'!J72 -> 0 | M78: =$H78*'Cron. Físico'!K72 -> 0 | N78: =$H78*'Cron. Físico'!L72 -> 0 | O78: =$H78*'Cron. Físico'!M72 -> 0 | P78: =$H78*'Cron. Físico'!N72 -> 0 | Q78: =$H78*'Cron. Físico'!O72 -> 0 | R78: =$H78*'Cron. Físico'!P72 -> 0 | S78: =$H78*'Cron. Físico'!Q72 -> 0 | T78: =$H78*'Cron. Físico'!R72 -> 0 | U78: =$H78*'Cron. Físico'!S72 -> 0 | V78: =$H78*'Cron. Físico'!T72 -> 0 | W78: =$H78*'Cron. Físico'!U72 -> 0 | X78: =$H78*'Cron. Físico'!V72 -> 0 | Y78: =$H78*'Cron. Físico'!W72 -> 0 | Z78: =$H78*'Cron. Físico'!X72 -> 0 | AA78: =$H78*'Cron. Físico'!Y72 -> 0 | AB78: =$H78*'Cron. Físico'!Z72 -> 0 | AC78: =$H78*'Cron. Físico'!AA72 -> 0 | AD78: =$H78*'Cron. Físico'!AB72 -> 0 | AE78: =$H78*'Cron. Físico'!AC72 -> 0 | AF78: =$H78*'Cron. Físico'!AD72 -> 0 | AG78: =$H78*'Cron. Físico'!AE72 -> 0 | AH78: =$H78*'Cron. Físico'!AF72 -> 0 | AI78: =$H78*'Cron. Físico'!AG72 -> 0 | AJ78: =$H78*'Cron. Físico'!AH72 -> 0 | AK78: =$H78*'Cron. Físico'!AI72 -> 0 | AL78: =$H78*'Cron. Físico'!AJ72 -> 0 | AM78: =$H78*'Cron. Físico'!AK72 -> 0 | AO78: TRUE
C79: 8.1.3.7 | E79: 265BMG0310 | F79: M2 | G79: =_xlfn.XLOOKUP($E79,'Resumo Quant.'!$C:$C,'Resumo Quant.'!$F:$F) -> 0 | H79: =_xlfn.XLOOKUP($E79,'Resumo Preços'!$C:$C,'Resumo Preços'!$F:$F) -> 0 | J79: =$H79*'Cron. Físico'!H73 -> 0 | K79: =$H79*'Cron. Físico'!I73 -> 0 | L79: =$H79*'Cron. Físico'!J73 -> 0 | M79: =$H79*'Cron. Físico'!K73 -> 0 | N79: =$H79*'Cron. Físico'!L73 -> 0 | O79: =$H79*'Cron. Físico'!M73 -> 0 | P79: =$H79*'Cron. Físico'!N73 -> 0 | Q79: =$H79*'Cron. Físico'!O73 -> 0 | R79: =$H79*'Cron. Físico'!P73 -> 0 | S79: =$H79*'Cron. Físico'!Q73 -> 0 | T79: =$H79*'Cron. Físico'!R73 -> 0 | U79: =$H79*'Cron. Físico'!S73 -> 0 | V79: =$H79*'Cron. Físico'!T73 -> 0 | W79: =$H79*'Cron. Físico'!U73 -> 0 | X79: =$H79*'Cron. Físico'!V73 -> 0 | Y79: =$H79*'Cron. Físico'!W73 -> 0 | Z79: =$H79*'Cron. Físico'!X73 -> 0 | AA79: =$H79*'Cron. Físico'!Y73 -> 0 | AB79: =$H79*'Cron. Físico'!Z73 -> 0 | AC79: =$H79*'Cron. Físico'!AA73 -> 0 | AD79: =$H79*'Cron. Físico'!AB73 -> 0 | AE79: =$H79*'Cron. Físico'!AC73 -> 0 | AF79: =$H79*'Cron. Físico'!AD73 -> 0 | AG79: =$H79*'Cron. Físico'!AE73 -> 0 | AH79: =$H79*'Cron. Físico'!AF73 -> 0 | AI79: =$H79*'Cron. Físico'!AG73 -> 0 | AJ79: =$H79*'Cron. Físico'!AH73 -> 0 | AK79: =$H79*'Cron. Físico'!AI73 -> 0 | AL79: =$H79*'Cron. Físico'!AJ73 -> 0 | AM79: =$H79*'Cron. Físico'!AK73 -> 0 | AO79: TRUE
C80: 8.1.3.8 | E80: 265BMG0311 | F80: M2 | G80: =_xlfn.XLOOKUP($E80,'Resumo Quant.'!$C:$C,'Resumo Quant.'!$F:$F) -> 0 | H80: =_xlfn.XLOOKUP($E80,'Resumo Preços'!$C:$C,'Resumo Preços'!$F:$F) -> 0 | J80: =$H80*'Cron. Físico'!H74 -> 0 | K80: =$H80*'Cron. Físico'!I74 -> 0 | L80: =$H80*'Cron. Físico'!J74 -> 0 | M80: =$H80*'Cron. Físico'!K74 -> 0 | N80: =$H80*'Cron. Físico'!L74 -> 0 | O80: =$H80*'Cron. Físico'!M74 -> 0 | P80: =$H80*'Cron. Físico'!N74 -> 0 | Q80: =$H80*'Cron. Físico'!O74 -> 0 | R80: =$H80*'Cron. Físico'!P74 -> 0 | S80: =$H80*'Cron. Físico'!Q74 -> 0 | T80: =$H80*'Cron. Físico'!R74 -> 0 | U80: =$H80*'Cron. Físico'!S74 -> 0 | V80: =$H80*'Cron. Físico'!T74 -> 0 | W80: =$H80*'Cron. Físico'!U74 -> 0 | X80: =$H80*'Cron. Físico'!V74 -> 0 | Y80: =$H80*'Cron. Físico'!W74 -> 0 | Z80: =$H80*'Cron. Físico'!X74 -> 0 | AA80: =$H80*'Cron. Físico'!Y74 -> 0 | AB80: =$H80*'Cron. Físico'!Z74 -> 0 | AC80: =$H80*'Cron. Físico'!AA74 -> 0 | AD80: =$H80*'Cron. Físico'!AB74 -> 0 | AE80: =$H80*'Cron. Físico'!AC74 -> 0 | AF80: =$H80*'Cron. Físico'!AD74 -> 0 | AG80: =$H80*'Cron. Físico'!AE74 -> 0 | AH80: =$H80*'Cron. Físico'!AF74 -> 0 | AI80: =$H80*'Cron. Físico'!AG74 -> 0 | AJ80: =$H80*'Cron. Físico'!AH74 -> 0 | AK80: =$H80*'Cron. Físico'!AI74 -> 0 | AL80: =$H80*'Cron. Físico'!AJ74 -> 0 | AM80: =$H80*'Cron. Físico'!AK74 -> 0 | AO80: TRUE
C81: 8.1.3.9 | E81: 863LMG0010 | F81: M2 | G81: =_xlfn.XLOOKUP($E81,'Resumo Quant.'!$C:$C,'Resumo Quant.'!$F:$F) -> 0 | H81: =_xlfn.XLOOKUP($E81,'Resumo Preços'!$C:$C,'Resumo Preços'!$F:$F) -> 0 | J81: =$H81*'Cron. Físico'!H75 -> 0 | K81: =$H81*'Cron. Físico'!I75 -> 0 | L81: =$H81*'Cron. Físico'!J75 -> 0 | M81: =$H81*'Cron. Físico'!K75 -> 0 | N81: =$H81*'Cron. Físico'!L75 -> 0 | O81: =$H81*'Cron. Físico'!M75 -> 0 | P81: =$H81*'Cron. Físico'!N75 -> 0 | Q81: =$H81*'Cron. Físico'!O75 -> 0 | R81: =$H81*'Cron. Físico'!P75 -> 0 | S81: =$H81*'Cron. Físico'!Q75 -> 0 | T81: =$H81*'Cron. Físico'!R75 -> 0 | U81: =$H81*'Cron. Físico'!S75 -> 0 | V81: =$H81*'Cron. Físico'!T75 -> 0 | W81: =$H81*'Cron. Físico'!U75 -> 0 | X81: =$H81*'Cron. Físico'!V75 -> 0 | Y81: =$H81*'Cron. Físico'!W75 -> 0 | Z81: =$H81*'Cron. Físico'!X75 -> 0 | AA81: =$H81*'Cron. Físico'!Y75 -> 0 | AB81: =$H81*'Cron. Físico'!Z75 -> 0 | AC81: =$H81*'Cron. Físico'!AA75 -> 0 | AD81: =$H81*'Cron. Físico'!AB75 -> 0 | AE81: =$H81*'Cron. Físico'!AC75 -> 0 | AF81: =$H81*'Cron. Físico'!AD75 -> 0 | AG81: =$H81*'Cron. Físico'!AE75 -> 0 | AH81: =$H81*'Cron. Físico'!AF75 -> 0 | AI81: =$H81*'Cron. Físico'!AG75 -> 0 | AJ81: =$H81*'Cron. Físico'!AH75 -> 0 | AK81: =$H81*'Cron. Físico'!AI75 -> 0 | AL81: =$H81*'Cron. Físico'!AJ75 -> 0 | AM81: =$H81*'Cron. Físico'!AK75 -> 0 | AO81: TRUE
C82: 8.1.3.10 | E82: 491CMG0010 | F82: M2 | G82: =_xlfn.XLOOKUP($E82,'Resumo Quant.'!$C:$C,'Resumo Quant.'!$F:$F) -> 0 | H82: =_xlfn.XLOOKUP($E82,'Resumo Preços'!$C:$C,'Resumo Preços'!$F:$F) -> 0 | J82: =$H82*'Cron. Físico'!H76 -> 0 | K82: =$H82*'Cron. Físico'!I76 -> 0 | L82: =$H82*'Cron. Físico'!J76 -> 0 | M82: =$H82*'Cron. Físico'!K76 -> 0 | N82: =$H82*'Cron. Físico'!L76 -> 0 | O82: =$H82*'Cron. Físico'!M76 -> 0 | P82: =$H82*'Cron. Físico'!N76 -> 0 | Q82: =$H82*'Cron. Físico'!O76 -> 0 | R82: =$H82*'Cron. Físico'!P76 -> 0 | S82: =$H82*'Cron. Físico'!Q76 -> 0 | T82: =$H82*'Cron. Físico'!R76 -> 0 | U82: =$H82*'Cron. Físico'!S76 -> 0 | V82: =$H82*'Cron. Físico'!T76 -> 0 | W82: =$H82*'Cron. Físico'!U76 -> 0 | X82: =$H82*'Cron. Físico'!V76 -> 0 | Y82: =$H82*'Cron. Físico'!W76 -> 0 | Z82: =$H82*'Cron. Físico'!X76 -> 0 | AA82: =$H82*'Cron. Físico'!Y76 -> 0 | AB82: =$H82*'Cron. Físico'!Z76 -> 0 | AC82: =$H82*'Cron. Físico'!AA76 -> 0 | AD82: =$H82*'Cron. Físico'!AB76 -> 0 | AE82: =$H82*'Cron. Físico'!AC76 -> 0 | AF82: =$H82*'Cron. Físico'!AD76 -> 0 | AG82: =$H82*'Cron. Físico'!AE76 -> 0 | AH82: =$H82*'Cron. Físico'!AF76 -> 0 | AI82: =$H82*'Cron. Físico'!AG76 -> 0 | AJ82: =$H82*'Cron. Físico'!AH76 -> 0 | AK82: =$H82*'Cron. Físico'!AI76 -> 0 | AL82: =$H82*'Cron. Físico'!AJ76 -> 0 | AM82: =$H82*'Cron. Físico'!AK76 -> 0 | AO82: TRUE
C83: 8.1.3.11 | E83: 491CMG0023 | F83: M2 | G83: =_xlfn.XLOOKUP($E83,'Resumo Quant.'!$C:$C,'Resumo Quant.'!$F:$F) -> 71,656.59 | H83: =_xlfn.XLOOKUP($E83,'Resumo Preços'!$C:$C,'Resumo Preços'!$F:$F) -> 102,468.92 | J83: =$H83*'Cron. Físico'!H77 -> 0 | K83: =$H83*'Cron. Físico'!I77 -> 0 | L83: =$H83*'Cron. Físico'!J77 -> 0 | M83: =$H83*'Cron. Físico'!K77 -> 0 | N83: =$H83*'Cron. Físico'!L77 -> 0 | O83: =$H83*'Cron. Físico'!M77 -> 102,468.92 | P83: =$H83*'Cron. Físico'!N77 -> 0 | Q83: =$H83*'Cron. Físico'!O77 -> 0 | R83: =$H83*'Cron. Físico'!P77 -> 0 | S83: =$H83*'Cron. Físico'!Q77 -> 0 | T83: =$H83*'Cron. Físico'!R77 -> 0 | U83: =$H83*'Cron. Físico'!S77 -> 0 | V83: =$H83*'Cron. Físico'!T77 -> 0 | W83: =$H83*'Cron. Físico'!U77 -> 0 | X83: =$H83*'Cron. Físico'!V77 -> 0 | Y83: =$H83*'Cron. Físico'!W77 -> 0 | Z83: =$H83*'Cron. Físico'!X77 -> 0 | AA83: =$H83*'Cron. Físico'!Y77 -> 0 | AB83: =$H83*'Cron. Físico'!Z77 -> 0 | AC83: =$H83*'Cron. Físico'!AA77 -> 0 | AD83: =$H83*'Cron. Físico'!AB77 -> 0 | AE83: =$H83*'Cron. Físico'!AC77 -> 0 | AF83: =$H83*'Cron. Físico'!AD77 -> 0 | AG83: =$H83*'Cron. Físico'!AE77 -> 0 | AH83: =$H83*'Cron. Físico'!AF77 -> 0 | AI83: =$H83*'Cron. Físico'!AG77 -> 0 | AJ83: =$H83*'Cron. Físico'!AH77 -> 0 | AK83: =$H83*'Cron. Físico'!AI77 -> 0 | AL83: =$H83*'Cron. Físico'!AJ77 -> 0 | AM83: =$H83*'Cron. Físico'!AK77 -> 0 | AN83: 100.00% | AO83: TRUE
C84: 8.1.3.12 | E84: 491CMG0050 | F84: M2 | G84: =_xlfn.XLOOKUP($E84,'Resumo Quant.'!$C:$C,'Resumo Quant.'!$F:$F) -> 0 | H84: =_xlfn.XLOOKUP($E84,'Resumo Preços'!$C:$C,'Resumo Preços'!$F:$F) -> 0 | J84: =$H84*'Cron. Físico'!H78 -> 0 | K84: =$H84*'Cron. Físico'!I78 -> 0 | L84: =$H84*'Cron. Físico'!J78 -> 0 | M84: =$H84*'Cron. Físico'!K78 -> 0 | N84: =$H84*'Cron. Físico'!L78 -> 0 | O84: =$H84*'Cron. Físico'!M78 -> 0 | P84: =$H84*'Cron. Físico'!N78 -> 0 | Q84: =$H84*'Cron. Físico'!O78 -> 0 | R84: =$H84*'Cron. Físico'!P78 -> 0 | S84: =$H84*'Cron. Físico'!Q78 -> 0 | T84: =$H84*'Cron. Físico'!R78 -> 0 | U84: =$H84*'Cron. Físico'!S78 -> 0 | V84: =$H84*'Cron. Físico'!T78 -> 0 | W84: =$H84*'Cron. Físico'!U78 -> 0 | X84: =$H84*'Cron. Físico'!V78 -> 0 | Y84: =$H84*'Cron. Físico'!W78 -> 0 | Z84: =$H84*'Cron. Físico'!X78 -> 0 | AA84: =$H84*'Cron. Físico'!Y78 -> 0 | AB84: =$H84*'Cron. Físico'!Z78 -> 0 | AC84: =$H84*'Cron. Físico'!AA78 -> 0 | AD84: =$H84*'Cron. Físico'!AB78 -> 0 | AE84: =$H84*'Cron. Físico'!AC78 -> 0 | AF84: =$H84*'Cron. Físico'!AD78 -> 0 | AG84: =$H84*'Cron. Físico'!AE78 -> 0 | AH84: =$H84*'Cron. Físico'!AF78 -> 0 | AI84: =$H84*'Cron. Físico'!AG78 -> 0 | AJ84: =$H84*'Cron. Físico'!AH78 -> 0 | AK84: =$H84*'Cron. Físico'!AI78 -> 0 | AL84: =$H84*'Cron. Físico'!AJ78 -> 0 | AM84: =$H84*'Cron. Físico'!AK78 -> 0 | AO84: TRUE
C85: 8.1.3.13 | E85: 491CMG0090 | F85: M2 | G85: =_xlfn.XLOOKUP($E85,'Resumo Quant.'!$C:$C,'Resumo Quant.'!$F:$F) -> 8,400.00 | H85: =_xlfn.XLOOKUP($E85,'Resumo Preços'!$C:$C,'Resumo Preços'!$F:$F) -> 12,012.00 | J85: =$H85*'Cron. Físico'!H79 -> 0 | K85: =$H85*'Cron. Físico'!I79 -> 0 | L85: =$H85*'Cron. Físico'!J79 -> 0 | M85: =$H85*'Cron. Físico'!K79 -> 0 | N85: =$H85*'Cron. Físico'!L79 -> 0 | O85: =$H85*'Cron. Físico'!M79 -> 12,012.00 | P85: =$H85*'Cron. Físico'!N79 -> 0 | Q85: =$H85*'Cron. Físico'!O79 -> 0 | R85: =$H85*'Cron. Físico'!P79 -> 0 | S85: =$H85*'Cron. Físico'!Q79 -> 0 | T85: =$H85*'Cron. Físico'!R79 -> 0 | U85: =$H85*'Cron. Físico'!S79 -> 0 | V85: =$H85*'Cron. Físico'!T79 -> 0 | W85: =$H85*'Cron. Físico'!U79 -> 0 | X85: =$H85*'Cron. Físico'!V79 -> 0 | Y85: =$H85*'Cron. Físico'!W79 -> 0 | Z85: =$H85*'Cron. Físico'!X79 -> 0 | AA85: =$H85*'Cron. Físico'!Y79 -> 0 | AB85: =$H85*'Cron. Físico'!Z79 -> 0 | AC85: =$H85*'Cron. Físico'!AA79 -> 0 | AD85: =$H85*'Cron. Físico'!AB79 -> 0 | AE85: =$H85*'Cron. Físico'!AC79 -> 0 | AF85: =$H85*'Cron. Físico'!AD79 -> 0 | AG85: =$H85*'Cron. Físico'!AE79 -> 0 | AH85: =$H85*'Cron. Físico'!AF79 -> 0 | AI85: =$H85*'Cron. Físico'!AG79 -> 0 | AJ85: =$H85*'Cron. Físico'!AH79 -> 0 | AK85: =$H85*'Cron. Físico'!AI79 -> 0 | AL85: =$H85*'Cron. Físico'!AJ79 -> 0 | AM85: =$H85*'Cron. Físico'!AK79 -> 0 | AN85: 100.00% | AO85: TRUE
C86: 8.1.3.14 | E86: 491CMG0100 | F86: M2 | G86: =_xlfn.XLOOKUP($E86,'Resumo Quant.'!$C:$C,'Resumo Quant.'!$F:$F) -> 0 | H86: =_xlfn.XLOOKUP($E86,'Resumo Preços'!$C:$C,'Resumo Preços'!$F:$F) -> 0 | J86: =$H86*'Cron. Físico'!H80 -> 0 | K86: =$H86*'Cron. Físico'!I80 -> 0 | L86: =$H86*'Cron. Físico'!J80 -> 0 | M86: =$H86*'Cron. Físico'!K80 -> 0 | N86: =$H86*'Cron. Físico'!L80 -> 0 | O86: =$H86*'Cron. Físico'!M80 -> 0 | P86: =$H86*'Cron. Físico'!N80 -> 0 | Q86: =$H86*'Cron. Físico'!O80 -> 0 | R86: =$H86*'Cron. Físico'!P80 -> 0 | S86: =$H86*'Cron. Físico'!Q80 -> 0 | T86: =$H86*'Cron. Físico'!R80 -> 0 | U86: =$H86*'Cron. Físico'!S80 -> 0 | V86: =$H86*'Cron. Físico'!T80 -> 0 | W86: =$H86*'Cron. Físico'!U80 -> 0 | X86: =$H86*'Cron. Físico'!V80 -> 0 | Y86: =$H86*'Cron. Físico'!W80 -> 0 | Z86: =$H86*'Cron. Físico'!X80 -> 0 | AA86: =$H86*'Cron. Físico'!Y80 -> 0 | AB86: =$H86*'Cron. Físico'!Z80 -> 0 | AC86: =$H86*'Cron. Físico'!AA80 -> 0 | AD86: =$H86*'Cron. Físico'!AB80 -> 0 | AE86: =$H86*'Cron. Físico'!AC80 -> 0 | AF86: =$H86*'Cron. Físico'!AD80 -> 0 | AG86: =$H86*'Cron. Físico'!AE80 -> 0 | AH86: =$H86*'Cron. Físico'!AF80 -> 0 | AI86: =$H86*'Cron. Físico'!AG80 -> 0 | AJ86: =$H86*'Cron. Físico'!AH80 -> 0 | AK86: =$H86*'Cron. Físico'!AI80 -> 0 | AL86: =$H86*'Cron. Físico'!AJ80 -> 0 | AM86: =$H86*'Cron. Físico'!AK80 -> 0 | AO86: TRUE
C87: 8.1.3.15 | E87: 491CMG0230 | F87: M2 | G87: =_xlfn.XLOOKUP($E87,'Resumo Quant.'!$C:$C,'Resumo Quant.'!$F:$F) -> 0 | H87: =_xlfn.XLOOKUP($E87,'Resumo Preços'!$C:$C,'Resumo Preços'!$F:$F) -> 0 | J87: =$H87*'Cron. Físico'!H81 -> 0 | K87: =$H87*'Cron. Físico'!I81 -> 0 | L87: =$H87*'Cron. Físico'!J81 -> 0 | M87: =$H87*'Cron. Físico'!K81 -> 0 | N87: =$H87*'Cron. Físico'!L81 -> 0 | O87: =$H87*'Cron. Físico'!M81 -> 0 | P87: =$H87*'Cron. Físico'!N81 -> 0 | Q87: =$H87*'Cron. Físico'!O81 -> 0 | R87: =$H87*'Cron. Físico'!P81 -> 0 | S87: =$H87*'Cron. Físico'!Q81 -> 0 | T87: =$H87*'Cron. Físico'!R81 -> 0 | U87: =$H87*'Cron. Físico'!S81 -> 0 | V87: =$H87*'Cron. Físico'!T81 -> 0 | W87: =$H87*'Cron. Físico'!U81 -> 0 | X87: =$H87*'Cron. Físico'!V81 -> 0 | Y87: =$H87*'Cron. Físico'!W81 -> 0 | Z87: =$H87*'Cron. Físico'!X81 -> 0 | AA87: =$H87*'Cron. Físico'!Y81 -> 0 | AB87: =$H87*'Cron. Físico'!Z81 -> 0 | AC87: =$H87*'Cron. Físico'!AA81 -> 0 | AD87: =$H87*'Cron. Físico'!AB81 -> 0 | AE87: =$H87*'Cron. Físico'!AC81 -> 0 | AF87: =$H87*'Cron. Físico'!AD81 -> 0 | AG87: =$H87*'Cron. Físico'!AE81 -> 0 | AH87: =$H87*'Cron. Físico'!AF81 -> 0 | AI87: =$H87*'Cron. Físico'!AG81 -> 0 | AJ87: =$H87*'Cron. Físico'!AH81 -> 0 | AK87: =$H87*'Cron. Físico'!AI81 -> 0 | AL87: =$H87*'Cron. Físico'!AJ81 -> 0 | AM87: =$H87*'Cron. Físico'!AK81 -> 0 | AO87: TRUE
C88: 8.1.3.16 | E88: 491CMG0030 | F88: M2 | G88: =_xlfn.XLOOKUP($E88,'Resumo Quant.'!$C:$C,'Resumo Quant.'!$F:$F) -> 30,000.00 | H88: =_xlfn.XLOOKUP($E88,'Resumo Preços'!$C:$C,'Resumo Preços'!$F:$F) -> 42,900.00 | J88: =$H88*'Cron. Físico'!H82 -> 0 | K88: =$H88*'Cron. Físico'!I82 -> 0 | L88: =$H88*'Cron. Físico'!J82 -> 0 | M88: =$H88*'Cron. Físico'!K82 -> 0 | N88: =$H88*'Cron. Físico'!L82 -> 0 | O88: =$H88*'Cron. Físico'!M82 -> 42,900.00 | P88: =$H88*'Cron. Físico'!N82 -> 0 | Q88: =$H88*'Cron. Físico'!O82 -> 0 | R88: =$H88*'Cron. Físico'!P82 -> 0 | S88: =$H88*'Cron. Físico'!Q82 -> 0 | T88: =$H88*'Cron. Físico'!R82 -> 0 | U88: =$H88*'Cron. Físico'!S82 -> 0 | V88: =$H88*'Cron. Físico'!T82 -> 0 | W88: =$H88*'Cron. Físico'!U82 -> 0 | X88: =$H88*'Cron. Físico'!V82 -> 0 | Y88: =$H88*'Cron. Físico'!W82 -> 0 | Z88: =$H88*'Cron. Físico'!X82 -> 0 | AA88: =$H88*'Cron. Físico'!Y82 -> 0 | AB88: =$H88*'Cron. Físico'!Z82 -> 0 | AC88: =$H88*'Cron. Físico'!AA82 -> 0 | AD88: =$H88*'Cron. Físico'!AB82 -> 0 | AE88: =$H88*'Cron. Físico'!AC82 -> 0 | AF88: =$H88*'Cron. Físico'!AD82 -> 0 | AG88: =$H88*'Cron. Físico'!AE82 -> 0 | AH88: =$H88*'Cron. Físico'!AF82 -> 0 | AI88: =$H88*'Cron. Físico'!AG82 -> 0 | AJ88: =$H88*'Cron. Físico'!AH82 -> 0 | AK88: =$H88*'Cron. Físico'!AI82 -> 0 | AL88: =$H88*'Cron. Físico'!AJ82 -> 0 | AM88: =$H88*'Cron. Físico'!AK82 -> 0 | AN88: 100.00% | AO88: TRUE
C89: 8.1.3.17 | E89: 491CMG0110 | F89: M2 | G89: =_xlfn.XLOOKUP($E89,'Resumo Quant.'!$C:$C,'Resumo Quant.'!$F:$F) -> 0 | H89: =_xlfn.XLOOKUP($E89,'Resumo Preços'!$C:$C,'Resumo Preços'!$F:$F) -> 0 | J89: =$H89*'Cron. Físico'!H83 -> 0 | K89: =$H89*'Cron. Físico'!I83 -> 0 | L89: =$H89*'Cron. Físico'!J83 -> 0 | M89: =$H89*'Cron. Físico'!K83 -> 0 | N89: =$H89*'Cron. Físico'!L83 -> 0 | O89: =$H89*'Cron. Físico'!M83 -> 0 | P89: =$H89*'Cron. Físico'!N83 -> 0 | Q89: =$H89*'Cron. Físico'!O83 -> 0 | R89: =$H89*'Cron. Físico'!P83 -> 0 | S89: =$H89*'Cron. Físico'!Q83 -> 0 | T89: =$H89*'Cron. Físico'!R83 -> 0 | U89: =$H89*'Cron. Físico'!S83 -> 0 | V89: =$H89*'Cron. Físico'!T83 -> 0 | W89: =$H89*'Cron. Físico'!U83 -> 0 | X89: =$H89*'Cron. Físico'!V83 -> 0 | Y89: =$H89*'Cron. Físico'!W83 -> 0 | Z89: =$H89*'Cron. Físico'!X83 -> 0 | AA89: =$H89*'Cron. Físico'!Y83 -> 0 | AB89: =$H89*'Cron. Físico'!Z83 -> 0 | AC89: =$H89*'Cron. Físico'!AA83 -> 0 | AD89: =$H89*'Cron. Físico'!AB83 -> 0 | AE89: =$H89*'Cron. Físico'!AC83 -> 0 | AF89: =$H89*'Cron. Físico'!AD83 -> 0 | AG89: =$H89*'Cron. Físico'!AE83 -> 0 | AH89: =$H89*'Cron. Físico'!AF83 -> 0 | AI89: =$H89*'Cron. Físico'!AG83 -> 0 | AJ89: =$H89*'Cron. Físico'!AH83 -> 0 | AK89: =$H89*'Cron. Físico'!AI83 -> 0 | AL89: =$H89*'Cron. Físico'!AJ83 -> 0 | AM89: =$H89*'Cron. Físico'!AK83 -> 0 | AO89: TRUE
C90: 8.1.3.18 | E90: 491CMG0130 | F90: M2 | G90: =_xlfn.XLOOKUP($E90,'Resumo Quant.'!$C:$C,'Resumo Quant.'!$F:$F) -> 0 | H90: =_xlfn.XLOOKUP($E90,'Resumo Preços'!$C:$C,'Resumo Preços'!$F:$F) -> 0 | J90: =$H90*'Cron. Físico'!H84 -> 0 | K90: =$H90*'Cron. Físico'!I84 -> 0 | L90: =$H90*'Cron. Físico'!J84 -> 0 | M90: =$H90*'Cron. Físico'!K84 -> 0 | N90: =$H90*'Cron. Físico'!L84 -> 0 | O90: =$H90*'Cron. Físico'!M84 -> 0 | P90: =$H90*'Cron. Físico'!N84 -> 0 | Q90: =$H90*'Cron. Físico'!O84 -> 0 | R90: =$H90*'Cron. Físico'!P84 -> 0 | S90: =$H90*'Cron. Físico'!Q84 -> 0 | T90: =$H90*'Cron. Físico'!R84 -> 0 | U90: =$H90*'Cron. Físico'!S84 -> 0 | V90: =$H90*'Cron. Físico'!T84 -> 0 | W90: =$H90*'Cron. Físico'!U84 -> 0 | X90: =$H90*'Cron. Físico'!V84 -> 0 | Y90: =$H90*'Cron. Físico'!W84 -> 0 | Z90: =$H90*'Cron. Físico'!X84 -> 0 | AA90: =$H90*'Cron. Físico'!Y84 -> 0 | AB90: =$H90*'Cron. Físico'!Z84 -> 0 | AC90: =$H90*'Cron. Físico'!AA84 -> 0 | AD90: =$H90*'Cron. Físico'!AB84 -> 0 | AE90: =$H90*'Cron. Físico'!AC84 -> 0 | AF90: =$H90*'Cron. Físico'!AD84 -> 0 | AG90: =$H90*'Cron. Físico'!AE84 -> 0 | AH90: =$H90*'Cron. Físico'!AF84 -> 0 | AI90: =$H90*'Cron. Físico'!AG84 -> 0 | AJ90: =$H90*'Cron. Físico'!AH84 -> 0 | AK90: =$H90*'Cron. Físico'!AI84 -> 0 | AL90: =$H90*'Cron. Físico'!AJ84 -> 0 | AM90: =$H90*'Cron. Físico'!AK84 -> 0 | AO90: TRUE
C91: 8.1.3.19 | E91: 491CMG0150 | F91: M2 | G91: =_xlfn.XLOOKUP($E91,'Resumo Quant.'!$C:$C,'Resumo Quant.'!$F:$F) -> 26,340.08 | H91: =_xlfn.XLOOKUP($E91,'Resumo Preços'!$C:$C,'Resumo Preços'!$F:$F) -> 37,666.31 | J91: =$H91*'Cron. Físico'!H85 -> 0 | K91: =$H91*'Cron. Físico'!I85 -> 0 | L91: =$H91*'Cron. Físico'!J85 -> 0 | M91: =$H91*'Cron. Físico'!K85 -> 0 | N91: =$H91*'Cron. Físico'!L85 -> 0 | O91: =$H91*'Cron. Físico'!M85 -> 37,666.31 | P91: =$H91*'Cron. Físico'!N85 -> 0 | Q91: =$H91*'Cron. Físico'!O85 -> 0 | R91: =$H91*'Cron. Físico'!P85 -> 0 | S91: =$H91*'Cron. Físico'!Q85 -> 0 | T91: =$H91*'Cron. Físico'!R85 -> 0 | U91: =$H91*'Cron. Físico'!S85 -> 0 | V91: =$H91*'Cron. Físico'!T85 -> 0 | W91: =$H91*'Cron. Físico'!U85 -> 0 | X91: =$H91*'Cron. Físico'!V85 -> 0 | Y91: =$H91*'Cron. Físico'!W85 -> 0 | Z91: =$H91*'Cron. Físico'!X85 -> 0 | AA91: =$H91*'Cron. Físico'!Y85 -> 0 | AB91: =$H91*'Cron. Físico'!Z85 -> 0 | AC91: =$H91*'Cron. Físico'!AA85 -> 0 | AD91: =$H91*'Cron. Físico'!AB85 -> 0 | AE91: =$H91*'Cron. Físico'!AC85 -> 0 | AF91: =$H91*'Cron. Físico'!AD85 -> 0 | AG91: =$H91*'Cron. Físico'!AE85 -> 0 | AH91: =$H91*'Cron. Físico'!AF85 -> 0 | AI91: =$H91*'Cron. Físico'!AG85 -> 0 | AJ91: =$H91*'Cron. Físico'!AH85 -> 0 | AK91: =$H91*'Cron. Físico'!AI85 -> 0 | AL91: =$H91*'Cron. Físico'!AJ85 -> 0 | AM91: =$H91*'Cron. Físico'!AK85 -> 0 | AN91: 100.00% | AO91: TRUE
C92: 8.1.3.20 | E92: 491CMG0170 | F92: M2 | G92: =_xlfn.XLOOKUP($E92,'Resumo Quant.'!$C:$C,'Resumo Quant.'!$F:$F) -> 0 | H92: =_xlfn.XLOOKUP($E92,'Resumo Preços'!$C:$C,'Resumo Preços'!$F:$F) -> 0 | J92: =$H92*'Cron. Físico'!H86 -> 0 | K92: =$H92*'Cron. Físico'!I86 -> 0 | L92: =$H92*'Cron. Físico'!J86 -> 0 | M92: =$H92*'Cron. Físico'!K86 -> 0 | N92: =$H92*'Cron. Físico'!L86 -> 0 | O92: =$H92*'Cron. Físico'!M86 -> 0 | P92: =$H92*'Cron. Físico'!N86 -> 0 | Q92: =$H92*'Cron. Físico'!O86 -> 0 | R92: =$H92*'Cron. Físico'!P86 -> 0 | S92: =$H92*'Cron. Físico'!Q86 -> 0 | T92: =$H92*'Cron. Físico'!R86 -> 0 | U92: =$H92*'Cron. Físico'!S86 -> 0 | V92: =$H92*'Cron. Físico'!T86 -> 0 | W92: =$H92*'Cron. Físico'!U86 -> 0 | X92: =$H92*'Cron. Físico'!V86 -> 0 | Y92: =$H92*'Cron. Físico'!W86 -> 0 | Z92: =$H92*'Cron. Físico'!X86 -> 0 | AA92: =$H92*'Cron. Físico'!Y86 -> 0 | AB92: =$H92*'Cron. Físico'!Z86 -> 0 | AC92: =$H92*'Cron. Físico'!AA86 -> 0 | AD92: =$H92*'Cron. Físico'!AB86 -> 0 | AE92: =$H92*'Cron. Físico'!AC86 -> 0 | AF92: =$H92*'Cron. Físico'!AD86 -> 0 | AG92: =$H92*'Cron. Físico'!AE86 -> 0 | AH92: =$H92*'Cron. Físico'!AF86 -> 0 | AI92: =$H92*'Cron. Físico'!AG86 -> 0 | AJ92: =$H92*'Cron. Físico'!AH86 -> 0 | AK92: =$H92*'Cron. Físico'!AI86 -> 0 | AL92: =$H92*'Cron. Físico'!AJ86 -> 0 | AM92: =$H92*'Cron. Físico'!AK86 -> 0 | AO92: TRUE
C93: 8.1.3.21 | E93: 491CMG0190 | F93: M2 | G93: =_xlfn.XLOOKUP($E93,'Resumo Quant.'!$C:$C,'Resumo Quant.'!$F:$F) -> 0 | H93: =_xlfn.XLOOKUP($E93,'Resumo Preços'!$C:$C,'Resumo Preços'!$F:$F) -> 0 | J93: =$H93*'Cron. Físico'!H87 -> 0 | K93: =$H93*'Cron. Físico'!I87 -> 0 | L93: =$H93*'Cron. Físico'!J87 -> 0 | M93: =$H93*'Cron. Físico'!K87 -> 0 | N93: =$H93*'Cron. Físico'!L87 -> 0 | O93: =$H93*'Cron. Físico'!M87 -> 0 | P93: =$H93*'Cron. Físico'!N87 -> 0 | Q93: =$H93*'Cron. Físico'!O87 -> 0 | R93: =$H93*'Cron. Físico'!P87 -> 0 | S93: =$H93*'Cron. Físico'!Q87 -> 0 | T93: =$H93*'Cron. Físico'!R87 -> 0 | U93: =$H93*'Cron. Físico'!S87 -> 0 | V93: =$H93*'Cron. Físico'!T87 -> 0 | W93: =$H93*'Cron. Físico'!U87 -> 0 | X93: =$H93*'Cron. Físico'!V87 -> 0 | Y93: =$H93*'Cron. Físico'!W87 -> 0 | Z93: =$H93*'Cron. Físico'!X87 -> 0 | AA93: =$H93*'Cron. Físico'!Y87 -> 0 | AB93: =$H93*'Cron. Físico'!Z87 -> 0 | AC93: =$H93*'Cron. Físico'!AA87 -> 0 | AD93: =$H93*'Cron. Físico'!AB87 -> 0 | AE93: =$H93*'Cron. Físico'!AC87 -> 0 | AF93: =$H93*'Cron. Físico'!AD87 -> 0 | AG93: =$H93*'Cron. Físico'!AE87 -> 0 | AH93: =$H93*'Cron. Físico'!AF87 -> 0 | AI93: =$H93*'Cron. Físico'!AG87 -> 0 | AJ93: =$H93*'Cron. Físico'!AH87 -> 0 | AK93: =$H93*'Cron. Físico'!AI87 -> 0 | AL93: =$H93*'Cron. Físico'!AJ87 -> 0 | AM93: =$H93*'Cron. Físico'!AK87 -> 0 | AO93: TRUE
C94: 8.1.3.22 | E94: 491CMG0210D | F94: M2 | G94: =_xlfn.XLOOKUP($E94,'Resumo Quant.'!$C:$C,'Resumo Quant.'!$F:$F) -> 0 | H94: =_xlfn.XLOOKUP($E94,'Resumo Preços'!$C:$C,'Resumo Preços'!$F:$F) -> 0 | J94: =$H94*'Cron. Físico'!H88 -> 0 | K94: =$H94*'Cron. Físico'!I88 -> 0 | L94: =$H94*'Cron. Físico'!J88 -> 0 | M94: =$H94*'Cron. Físico'!K88 -> 0 | N94: =$H94*'Cron. Físico'!L88 -> 0 | O94: =$H94*'Cron. Físico'!M88 -> 0 | P94: =$H94*'Cron. Físico'!N88 -> 0 | Q94: =$H94*'Cron. Físico'!O88 -> 0 | R94: =$H94*'Cron. Físico'!P88 -> 0 | S94: =$H94*'Cron. Físico'!Q88 -> 0 | T94: =$H94*'Cron. Físico'!R88 -> 0 | U94: =$H94*'Cron. Físico'!S88 -> 0 | V94: =$H94*'Cron. Físico'!T88 -> 0 | W94: =$H94*'Cron. Físico'!U88 -> 0 | X94: =$H94*'Cron. Físico'!V88 -> 0 | Y94: =$H94*'Cron. Físico'!W88 -> 0 | Z94: =$H94*'Cron. Físico'!X88 -> 0 | AA94: =$H94*'Cron. Físico'!Y88 -> 0 | AB94: =$H94*'Cron. Físico'!Z88 -> 0 | AC94: =$H94*'Cron. Físico'!AA88 -> 0 | AD94: =$H94*'Cron. Físico'!AB88 -> 0 | AE94: =$H94*'Cron. Físico'!AC88 -> 0 | AF94: =$H94*'Cron. Físico'!AD88 -> 0 | AG94: =$H94*'Cron. Físico'!AE88 -> 0 | AH94: =$H94*'Cron. Físico'!AF88 -> 0 | AI94: =$H94*'Cron. Físico'!AG88 -> 0 | AJ94: =$H94*'Cron. Físico'!AH88 -> 0 | AK94: =$H94*'Cron. Físico'!AI88 -> 0 | AL94: =$H94*'Cron. Físico'!AJ88 -> 0 | AM94: =$H94*'Cron. Físico'!AK88 -> 0 | AO94: TRUE
C95: 8.1.3.23 | E95: 146BMG0250 | F95: M2 | G95: =_xlfn.XLOOKUP($E95,'Resumo Quant.'!$C:$C,'Resumo Quant.'!$F:$F) -> 0 | H95: =_xlfn.XLOOKUP($E95,'Resumo Preços'!$C:$C,'Resumo Preços'!$F:$F) -> 0 | J95: =$H95*'Cron. Físico'!H89 -> 0 | K95: =$H95*'Cron. Físico'!I89 -> 0 | L95: =$H95*'Cron. Físico'!J89 -> 0 | M95: =$H95*'Cron. Físico'!K89 -> 0 | N95: =$H95*'Cron. Físico'!L89 -> 0 | O95: =$H95*'Cron. Físico'!M89 -> 0 | P95: =$H95*'Cron. Físico'!N89 -> 0 | Q95: =$H95*'Cron. Físico'!O89 -> 0 | R95: =$H95*'Cron. Físico'!P89 -> 0 | S95: =$H95*'Cron. Físico'!Q89 -> 0 | T95: =$H95*'Cron. Físico'!R89 -> 0 | U95: =$H95*'Cron. Físico'!S89 -> 0 | V95: =$H95*'Cron. Físico'!T89 -> 0 | W95: =$H95*'Cron. Físico'!U89 -> 0 | X95: =$H95*'Cron. Físico'!V89 -> 0 | Y95: =$H95*'Cron. Físico'!W89 -> 0 | Z95: =$H95*'Cron. Físico'!X89 -> 0 | AA95: =$H95*'Cron. Físico'!Y89 -> 0 | AB95: =$H95*'Cron. Físico'!Z89 -> 0 | AC95: =$H95*'Cron. Físico'!AA89 -> 0 | AD95: =$H95*'Cron. Físico'!AB89 -> 0 | AE95: =$H95*'Cron. Físico'!AC89 -> 0 | AF95: =$H95*'Cron. Físico'!AD89 -> 0 | AG95: =$H95*'Cron. Físico'!AE89 -> 0 | AH95: =$H95*'Cron. Físico'!AF89 -> 0 | AI95: =$H95*'Cron. Físico'!AG89 -> 0 | AJ95: =$H95*'Cron. Físico'!AH89 -> 0 | AK95: =$H95*'Cron. Físico'!AI89 -> 0 | AL95: =$H95*'Cron. Físico'!AJ89 -> 0 | AM95: =$H95*'Cron. Físico'!AK89 -> 0 | AO95: TRUE
C96: 8.1.3.24 | E96: 146BMG0252 | F96: M2 | G96: =_xlfn.XLOOKUP($E96,'Resumo Quant.'!$C:$C,'Resumo Quant.'!$F:$F) -> 0 | H96: =_xlfn.XLOOKUP($E96,'Resumo Preços'!$C:$C,'Resumo Preços'!$F:$F) -> 0 | J96: =$H96*'Cron. Físico'!H90 -> 0 | K96: =$H96*'Cron. Físico'!I90 -> 0 | L96: =$H96*'Cron. Físico'!J90 -> 0 | M96: =$H96*'Cron. Físico'!K90 -> 0 | N96: =$H96*'Cron. Físico'!L90 -> 0 | O96: =$H96*'Cron. Físico'!M90 -> 0 | P96: =$H96*'Cron. Físico'!N90 -> 0 | Q96: =$H96*'Cron. Físico'!O90 -> 0 | R96: =$H96*'Cron. Físico'!P90 -> 0 | S96: =$H96*'Cron. Físico'!Q90 -> 0 | T96: =$H96*'Cron. Físico'!R90 -> 0 | U96: =$H96*'Cron. Físico'!S90 -> 0 | V96: =$H96*'Cron. Físico'!T90 -> 0 | W96: =$H96*'Cron. Físico'!U90 -> 0 | X96: =$H96*'Cron. Físico'!V90 -> 0 | Y96: =$H96*'Cron. Físico'!W90 -> 0 | Z96: =$H96*'Cron. Físico'!X90 -> 0 | AA96: =$H96*'Cron. Físico'!Y90 -> 0 | AB96: =$H96*'Cron. Físico'!Z90 -> 0 | AC96: =$H96*'Cron. Físico'!AA90 -> 0 | AD96: =$H96*'Cron. Físico'!AB90 -> 0 | AE96: =$H96*'Cron. Físico'!AC90 -> 0 | AF96: =$H96*'Cron. Físico'!AD90 -> 0 | AG96: =$H96*'Cron. Físico'!AE90 -> 0 | AH96: =$H96*'Cron. Físico'!AF90 -> 0 | AI96: =$H96*'Cron. Físico'!AG90 -> 0 | AJ96: =$H96*'Cron. Físico'!AH90 -> 0 | AK96: =$H96*'Cron. Físico'!AI90 -> 0 | AL96: =$H96*'Cron. Físico'!AJ90 -> 0 | AM96: =$H96*'Cron. Físico'!AK90 -> 0 | AO96: TRUE
C97: 8.1.3.25 | E97: 369CMG0070 | F97: M2 | G97: =_xlfn.XLOOKUP($E97,'Resumo Quant.'!$C:$C,'Resumo Quant.'!$F:$F) -> 0 | H97: =_xlfn.XLOOKUP($E97,'Resumo Preços'!$C:$C,'Resumo Preços'!$F:$F) -> 0 | J97: =$H97*'Cron. Físico'!H91 -> 0 | K97: =$H97*'Cron. Físico'!I91 -> 0 | L97: =$H97*'Cron. Físico'!J91 -> 0 | M97: =$H97*'Cron. Físico'!K91 -> 0 | N97: =$H97*'Cron. Físico'!L91 -> 0 | O97: =$H97*'Cron. Físico'!M91 -> 0 | P97: =$H97*'Cron. Físico'!N91 -> 0 | Q97: =$H97*'Cron. Físico'!O91 -> 0 | R97: =$H97*'Cron. Físico'!P91 -> 0 | S97: =$H97*'Cron. Físico'!Q91 -> 0 | T97: =$H97*'Cron. Físico'!R91 -> 0 | U97: =$H97*'Cron. Físico'!S91 -> 0 | V97: =$H97*'Cron. Físico'!T91 -> 0 | W97: =$H97*'Cron. Físico'!U91 -> 0 | X97: =$H97*'Cron. Físico'!V91 -> 0 | Y97: =$H97*'Cron. Físico'!W91 -> 0 | Z97: =$H97*'Cron. Físico'!X91 -> 0 | AA97: =$H97*'Cron. Físico'!Y91 -> 0 | AB97: =$H97*'Cron. Físico'!Z91 -> 0 | AC97: =$H97*'Cron. Físico'!AA91 -> 0 | AD97: =$H97*'Cron. Físico'!AB91 -> 0 | AE97: =$H97*'Cron. Físico'!AC91 -> 0 | AF97: =$H97*'Cron. Físico'!AD91 -> 0 | AG97: =$H97*'Cron. Físico'!AE91 -> 0 | AH97: =$H97*'Cron. Físico'!AF91 -> 0 | AI97: =$H97*'Cron. Físico'!AG91 -> 0 | AJ97: =$H97*'Cron. Físico'!AH91 -> 0 | AK97: =$H97*'Cron. Físico'!AI91 -> 0 | AL97: =$H97*'Cron. Físico'!AJ91 -> 0 | AM97: =$H97*'Cron. Físico'!AK91 -> 0 | AO97: TRUE
C98: 8.1.3.26 | E98: 369CMG0090 | F98: M2 | G98: =_xlfn.XLOOKUP($E98,'Resumo Quant.'!$C:$C,'Resumo Quant.'!$F:$F) -> 0 | H98: =_xlfn.XLOOKUP($E98,'Resumo Preços'!$C:$C,'Resumo Preços'!$F:$F) -> 0 | J98: =$H98*'Cron. Físico'!H92 -> 0 | K98: =$H98*'Cron. Físico'!I92 -> 0 | L98: =$H98*'Cron. Físico'!J92 -> 0 | M98: =$H98*'Cron. Físico'!K92 -> 0 | N98: =$H98*'Cron. Físico'!L92 -> 0 | O98: =$H98*'Cron. Físico'!M92 -> 0 | P98: =$H98*'Cron. Físico'!N92 -> 0 | Q98: =$H98*'Cron. Físico'!O92 -> 0 | R98: =$H98*'Cron. Físico'!P92 -> 0 | S98: =$H98*'Cron. Físico'!Q92 -> 0 | T98: =$H98*'Cron. Físico'!R92 -> 0 | U98: =$H98*'Cron. Físico'!S92 -> 0 | V98: =$H98*'Cron. Físico'!T92 -> 0 | W98: =$H98*'Cron. Físico'!U92 -> 0 | X98: =$H98*'Cron. Físico'!V92 -> 0 | Y98: =$H98*'Cron. Físico'!W92 -> 0 | Z98: =$H98*'Cron. Físico'!X92 -> 0 | AA98: =$H98*'Cron. Físico'!Y92 -> 0 | AB98: =$H98*'Cron. Físico'!Z92 -> 0 | AC98: =$H98*'Cron. Físico'!AA92 -> 0 | AD98: =$H98*'Cron. Físico'!AB92 -> 0 | AE98: =$H98*'Cron. Físico'!AC92 -> 0 | AF98: =$H98*'Cron. Físico'!AD92 -> 0 | AG98: =$H98*'Cron. Físico'!AE92 -> 0 | AH98: =$H98*'Cron. Físico'!AF92 -> 0 | AI98: =$H98*'Cron. Físico'!AG92 -> 0 | AJ98: =$H98*'Cron. Físico'!AH92 -> 0 | AK98: =$H98*'Cron. Físico'!AI92 -> 0 | AL98: =$H98*'Cron. Físico'!AJ92 -> 0 | AM98: =$H98*'Cron. Físico'!AK92 -> 0 | AO98: TRUE
C99: 8.1.3.27 | E99: VARGINHA | F99: M2 | G99: =_xlfn.XLOOKUP($E99,'Resumo Quant.'!$C:$C,'Resumo Quant.'!$F:$F) ->  | H99: =_xlfn.XLOOKUP($E99,'Resumo Preços'!$C:$C,'Resumo Preços'!$F:$F) ->  | J99: =$H99*'Cron. Físico'!#REF! ->  | K99: =$H99*'Cron. Físico'!#REF! ->  | L99: =$H99*'Cron. Físico'!#REF! ->  | M99: =$H99*'Cron. Físico'!#REF! ->  | N99: =$H99*'Cron. Físico'!#REF! ->  | O99: =$H99*'Cron. Físico'!#REF! ->  | P99: =$H99*'Cron. Físico'!#REF! ->  | Q99: =$H99*'Cron. Físico'!#REF! ->  | R99: =$H99*'Cron. Físico'!#REF! ->  | S99: =$H99*'Cron. Físico'!#REF! ->  | T99: =$H99*'Cron. Físico'!#REF! ->  | U99: =$H99*'Cron. Físico'!#REF! ->  | V99: =$H99*'Cron. Físico'!#REF! ->  | W99: =$H99*'Cron. Físico'!#REF! ->  | X99: =$H99*'Cron. Físico'!#REF! ->  | Y99: =$H99*'Cron. Físico'!#REF! ->  | Z99: =$H99*'Cron. Físico'!#REF! ->  | AA99: =$H99*'Cron. Físico'!#REF! ->  | AB99: =$H99*'Cron. Físico'!#REF! ->  | AC99: =$H99*'Cron. Físico'!#REF! ->  | AD99: =$H99*'Cron. Físico'!#REF! ->  | AE99: =$H99*'Cron. Físico'!#REF! ->  | AF99: =$H99*'Cron. Físico'!#REF! ->  | AG99: =$H99*'Cron. Físico'!#REF! ->  | AH99: =$H99*'Cron. Físico'!#REF! ->  | AI99: =$H99*'Cron. Físico'!#REF! ->  | AJ99: =$H99*'Cron. Físico'!#REF! ->  | AK99: =$H99*'Cron. Físico'!#REF! ->  | AL99: =$H99*'Cron. Físico'!#REF! ->  | AM99: =$H99*'Cron. Físico'!#REF! ->  | AN99: =SUM(J99:AM99)/H99 ->  | AO99: =SUM(J99:AM99)=H99 -> 
C100: 8.1.3.28 | E100: CAMPOS GERAIS | F100: M2 | G100: =_xlfn.XLOOKUP($E100,'Resumo Quant.'!$C:$C,'Resumo Quant.'!$F:$F) ->  | H100: =_xlfn.XLOOKUP($E100,'Resumo Preços'!$C:$C,'Resumo Preços'!$F:$F) ->  | J100: =$H100*'Cron. Físico'!#REF! ->  | K100: =$H100*'Cron. Físico'!#REF! ->  | L100: =$H100*'Cron. Físico'!#REF! ->  | M100: =$H100*'Cron. Físico'!#REF! ->  | N100: =$H100*'Cron. Físico'!#REF! ->  | O100: =$H100*'Cron. Físico'!#REF! ->  | P100: =$H100*'Cron. Físico'!#REF! ->  | Q100: =$H100*'Cron. Físico'!#REF! ->  | R100: =$H100*'Cron. Físico'!#REF! ->  | S100: =$H100*'Cron. Físico'!#REF! ->  | T100: =$H100*'Cron. Físico'!#REF! ->  | U100: =$H100*'Cron. Físico'!#REF! ->  | V100: =$H100*'Cron. Físico'!#REF! ->  | W100: =$H100*'Cron. Físico'!#REF! ->  | X100: =$H100*'Cron. Físico'!#REF! ->  | Y100: =$H100*'Cron. Físico'!#REF! ->  | Z100: =$H100*'Cron. Físico'!#REF! ->  | AA100: =$H100*'Cron. Físico'!#REF! ->  | AB100: =$H100*'Cron. Físico'!#REF! ->  | AC100: =$H100*'Cron. Físico'!#REF! ->  | AD100: =$H100*'Cron. Físico'!#REF! ->  | AE100: =$H100*'Cron. Físico'!#REF! ->  | AF100: =$H100*'Cron. Físico'!#REF! ->  | AG100: =$H100*'Cron. Físico'!#REF! ->  | AH100: =$H100*'Cron. Físico'!#REF! ->  | AI100: =$H100*'Cron. Físico'!#REF! ->  | AJ100: =$H100*'Cron. Físico'!#REF! ->  | AK100: =$H100*'Cron. Físico'!#REF! ->  | AL100: =$H100*'Cron. Físico'!#REF! ->  | AM100: =$H100*'Cron. Físico'!#REF! -> 
C101: 8.1.3.29 | E101: ALFENAS | F101: M2 | G101: =_xlfn.XLOOKUP($E101,'Resumo Quant.'!$C:$C,'Resumo Quant.'!$F:$F) ->  | H101: =_xlfn.XLOOKUP($E101,'Resumo Preços'!$C:$C,'Resumo Preços'!$F:$F) ->  | J101: =$H101*'Cron. Físico'!#REF! ->  | K101: =$H101*'Cron. Físico'!#REF! ->  | L101: =$H101*'Cron. Físico'!#REF! ->  | M101: =$H101*'Cron. Físico'!#REF! ->  | N101: =$H101*'Cron. Físico'!#REF! ->  | O101: =$H101*'Cron. Físico'!#REF! ->  | P101: =$H101*'Cron. Físico'!#REF! ->  | Q101: =$H101*'Cron. Físico'!#REF! ->  | R101: =$H101*'Cron. Físico'!#REF! ->  | S101: =$H101*'Cron. Físico'!#REF! ->  | T101: =$H101*'Cron. Físico'!#REF! ->  | U101: =$H101*'Cron. Físico'!#REF! ->  | V101: =$H101*'Cron. Físico'!#REF! ->  | W101: =$H101*'Cron. Físico'!#REF! ->  | X101: =$H101*'Cron. Físico'!#REF! ->  | Y101: =$H101*'Cron. Físico'!#REF! ->  | Z101: =$H101*'Cron. Físico'!#REF! ->  | AA101: =$H101*'Cron. Físico'!#REF! ->  | AB101: =$H101*'Cron. Físico'!#REF! ->  | AC101: =$H101*'Cron. Físico'!#REF! ->  | AD101: =$H101*'Cron. Físico'!#REF! ->  | AE101: =$H101*'Cron. Físico'!#REF! ->  | AF101: =$H101*'Cron. Físico'!#REF! ->  | AG101: =$H101*'Cron. Físico'!#REF! ->  | AH101: =$H101*'Cron. Físico'!#REF! ->  | AI101: =$H101*'Cron. Físico'!#REF! ->  | AJ101: =$H101*'Cron. Físico'!#REF! ->  | AK101: =$H101*'Cron. Físico'!#REF! ->  | AL101: =$H101*'Cron. Físico'!#REF! ->  | AM101: =$H101*'Cron. Físico'!#REF! -> 
A102: x | C102: 8.1.4 | E102: Reconstrução | H102: =SUM(H103:H131) ->  | J102: =SUM(J103:J131) ->  | K102: =SUM(K103:K131) ->  | AO102: =SUM(J102:AM102)=H102 -> 
C103: 8.1.4.1 | E103: 167EMG0200 | F103: M2 | G103: =_xlfn.XLOOKUP($E103,'Resumo Quant.'!$C:$C,'Resumo Quant.'!$G:$G) -> 30,000.00 | H103: =_xlfn.XLOOKUP($E103,'Resumo Preços'!$C:$C,'Resumo Preços'!$G:$G) -> 2,091,000.00 | J103: =$H103*'Cron. Físico'!H94 -> 0 | K103: =$H103*'Cron. Físico'!I94 -> 0 | L103: =$H103*'Cron. Físico'!J94 -> 0 | M103: =$H103*'Cron. Físico'!K94 -> 2,091,000.00 | N103: =$H103*'Cron. Físico'!L94 -> 0 | O103: =$H103*'Cron. Físico'!M94 -> 0 | P103: =$H103*'Cron. Físico'!N94 -> 0 | Q103: =$H103*'Cron. Físico'!O94 -> 0 | R103: =$H103*'Cron. Físico'!P94 -> 0 | S103: =$H103*'Cron. Físico'!Q94 -> 0 | T103: =$H103*'Cron. Físico'!R94 -> 0 | U103: =$H103*'Cron. Físico'!S94 -> 0 | V103: =$H103*'Cron. Físico'!T94 -> 0 | W103: =$H103*'Cron. Físico'!U94 -> 0 | X103: =$H103*'Cron. Físico'!V94 -> 0 | Y103: =$H103*'Cron. Físico'!W94 -> 0 | Z103: =$H103*'Cron. Físico'!X94 -> 0 | AA103: =$H103*'Cron. Físico'!Y94 -> 0 | AB103: =$H103*'Cron. Físico'!Z94 -> 0 | AC103: =$H103*'Cron. Físico'!AA94 -> 0 | AD103: =$H103*'Cron. Físico'!AB94 -> 0 | AE103: =$H103*'Cron. Físico'!AC94 -> 0 | AF103: =$H103*'Cron. Físico'!AD94 -> 0 | AG103: =$H103*'Cron. Físico'!AE94 -> 0 | AH103: =$H103*'Cron. Físico'!AF94 -> 0 | AI103: =$H103*'Cron. Físico'!AG94 -> 0 | AJ103: =$H103*'Cron. Físico'!AH94 -> 0 | AK103: =$H103*'Cron. Físico'!AI94 -> 0 | AL103: =$H103*'Cron. Físico'!AJ94 -> 0 | AM103: =$H103*'Cron. Físico'!AK94 -> 0 | AN103: =SUM(J103:AM103)/H103 -> 100.00% | AO103: TRUE
C104: 8.1.4.2 | E104: 167EMG0205 | F104: M2 | G104: =_xlfn.XLOOKUP($E104,'Resumo Quant.'!$C:$C,'Resumo Quant.'!$G:$G) -> 17,476.46 | H104: =_xlfn.XLOOKUP($E104,'Resumo Preços'!$C:$C,'Resumo Preços'!$G:$G) -> 1,218,109.26 | J104: =$H104*'Cron. Físico'!H95 -> 0 | K104: =$H104*'Cron. Físico'!I95 -> 0 | L104: =$H104*'Cron. Físico'!J95 -> 1,218,109.26 | M104: =$H104*'Cron. Físico'!K95 -> 0 | N104: =$H104*'Cron. Físico'!L95 -> 0 | O104: =$H104*'Cron. Físico'!M95 -> 0 | P104: =$H104*'Cron. Físico'!N95 -> 0 | Q104: =$H104*'Cron. Físico'!O95 -> 0 | R104: =$H104*'Cron. Físico'!P95 -> 0 | S104: =$H104*'Cron. Físico'!Q95 -> 0 | T104: =$H104*'Cron. Físico'!R95 -> 0 | U104: =$H104*'Cron. Físico'!S95 -> 0 | V104: =$H104*'Cron. Físico'!T95 -> 0 | W104: =$H104*'Cron. Físico'!U95 -> 0 | X104: =$H104*'Cron. Físico'!V95 -> 0 | Y104: =$H104*'Cron. Físico'!W95 -> 0 | Z104: =$H104*'Cron. Físico'!X95 -> 0 | AA104: =$H104*'Cron. Físico'!Y95 -> 0 | AB104: =$H104*'Cron. Físico'!Z95 -> 0 | AC104: =$H104*'Cron. Físico'!AA95 -> 0 | AD104: =$H104*'Cron. Físico'!AB95 -> 0 | AE104: =$H104*'Cron. Físico'!AC95 -> 0 | AF104: =$H104*'Cron. Físico'!AD95 -> 0 | AG104: =$H104*'Cron. Físico'!AE95 -> 0 | AH104: =$H104*'Cron. Físico'!AF95 -> 0 | AI104: =$H104*'Cron. Físico'!AG95 -> 0 | AJ104: =$H104*'Cron. Físico'!AH95 -> 0 | AK104: =$H104*'Cron. Físico'!AI95 -> 0 | AL104: =$H104*'Cron. Físico'!AJ95 -> 0 | AM104: =$H104*'Cron. Físico'!AK95 -> 0 | AN104: 100.00% | AO104: TRUE
C105: 8.1.4.3 | E105: 167EMG0220 | F105: M2 | G105: =_xlfn.XLOOKUP($E105,'Resumo Quant.'!$C:$C,'Resumo Quant.'!$G:$G) -> 29,858.26 | H105: =_xlfn.XLOOKUP($E105,'Resumo Preços'!$C:$C,'Resumo Preços'!$G:$G) -> 2,081,120.72 | J105: =$H105*'Cron. Físico'!H96 -> 0 | K105: =$H105*'Cron. Físico'!I96 -> 0 | L105: =$H105*'Cron. Físico'!J96 -> 0 | M105: =$H105*'Cron. Físico'!K96 -> 2,081,120.72 | N105: =$H105*'Cron. Físico'!L96 -> 0 | O105: =$H105*'Cron. Físico'!M96 -> 0 | P105: =$H105*'Cron. Físico'!N96 -> 0 | Q105: =$H105*'Cron. Físico'!O96 -> 0 | R105: =$H105*'Cron. Físico'!P96 -> 0 | S105: =$H105*'Cron. Físico'!Q96 -> 0 | T105: =$H105*'Cron. Físico'!R96 -> 0 | U105: =$H105*'Cron. Físico'!S96 -> 0 | V105: =$H105*'Cron. Físico'!T96 -> 0 | W105: =$H105*'Cron. Físico'!U96 -> 0 | X105: =$H105*'Cron. Físico'!V96 -> 0 | Y105: =$H105*'Cron. Físico'!W96 -> 0 | Z105: =$H105*'Cron. Físico'!X96 -> 0 | AA105: =$H105*'Cron. Físico'!Y96 -> 0 | AB105: =$H105*'Cron. Físico'!Z96 -> 0 | AC105: =$H105*'Cron. Físico'!AA96 -> 0 | AD105: =$H105*'Cron. Físico'!AB96 -> 0 | AE105: =$H105*'Cron. Físico'!AC96 -> 0 | AF105: =$H105*'Cron. Físico'!AD96 -> 0 | AG105: =$H105*'Cron. Físico'!AE96 -> 0 | AH105: =$H105*'Cron. Físico'!AF96 -> 0 | AI105: =$H105*'Cron. Físico'!AG96 -> 0 | AJ105: =$H105*'Cron. Físico'!AH96 -> 0 | AK105: =$H105*'Cron. Físico'!AI96 -> 0 | AL105: =$H105*'Cron. Físico'!AJ96 -> 0 | AM105: =$H105*'Cron. Físico'!AK96 -> 0 | AN105: 100.00% | AO105: TRUE
C106: 8.1.4.4 | E106: 265BMG0270 | F106: M2 | G106: =_xlfn.XLOOKUP($E106,'Resumo Quant.'!$C:$C,'Resumo Quant.'!$G:$G) -> 0 | H106: =_xlfn.XLOOKUP($E106,'Resumo Preços'!$C:$C,'Resumo Preços'!$G:$G) -> 0 | J106: =$H106*'Cron. Físico'!H97 -> 0 | K106: =$H106*'Cron. Físico'!I97 -> 0 | L106: =$H106*'Cron. Físico'!J97 -> 0 | M106: =$H106*'Cron. Físico'!K97 -> 0 | N106: =$H106*'Cron. Físico'!L97 -> 0 | O106: =$H106*'Cron. Físico'!M97 -> 0 | P106: =$H106*'Cron. Físico'!N97 -> 0 | Q106: =$H106*'Cron. Físico'!O97 -> 0 | R106: =$H106*'Cron. Físico'!P97 -> 0 | S106: =$H106*'Cron. Físico'!Q97 -> 0 | T106: =$H106*'Cron. Físico'!R97 -> 0 | U106: =$H106*'Cron. Físico'!S97 -> 0 | V106: =$H106*'Cron. Físico'!T97 -> 0 | W106: =$H106*'Cron. Físico'!U97 -> 0 | X106: =$H106*'Cron. Físico'!V97 -> 0 | Y106: =$H106*'Cron. Físico'!W97 -> 0 | Z106: =$H106*'Cron. Físico'!X97 -> 0 | AA106: =$H106*'Cron. Físico'!Y97 -> 0 | AB106: =$H106*'Cron. Físico'!Z97 -> 0 | AC106: =$H106*'Cron. Físico'!AA97 -> 0 | AD106: =$H106*'Cron. Físico'!AB97 -> 0 | AE106: =$H106*'Cron. Físico'!AC97 -> 0 | AF106: =$H106*'Cron. Físico'!AD97 -> 0 | AG106: =$H106*'Cron. Físico'!AE97 -> 0 | AH106: =$H106*'Cron. Físico'!AF97 -> 0 | AI106: =$H106*'Cron. Físico'!AG97 -> 0 | AJ106: =$H106*'Cron. Físico'!AH97 -> 0 | AK106: =$H106*'Cron. Físico'!AI97 -> 0 | AL106: =$H106*'Cron. Físico'!AJ97 -> 0 | AM106: =$H106*'Cron. Físico'!AK97 -> 0 | AO106: TRUE
C107: 8.1.4.5 | E107: 265BMG0290 | F107: M2 | G107: =_xlfn.XLOOKUP($E107,'Resumo Quant.'!$C:$C,'Resumo Quant.'!$G:$G) -> 121,576.51 | H107: =_xlfn.XLOOKUP($E107,'Resumo Preços'!$C:$C,'Resumo Preços'!$G:$G) -> 8,473,882.75 | J107: =$H107*'Cron. Físico'!H98 -> 0 | K107: =$H107*'Cron. Físico'!I98 -> 0 | L107: =$H107*'Cron. Físico'!J98 -> 0 | M107: =$H107*'Cron. Físico'!K98 -> 8,473,882.75 | N107: =$H107*'Cron. Físico'!L98 -> 0 | O107: =$H107*'Cron. Físico'!M98 -> 0 | P107: =$H107*'Cron. Físico'!N98 -> 0 | Q107: =$H107*'Cron. Físico'!O98 -> 0 | R107: =$H107*'Cron. Físico'!P98 -> 0 | S107: =$H107*'Cron. Físico'!Q98 -> 0 | T107: =$H107*'Cron. Físico'!R98 -> 0 | U107: =$H107*'Cron. Físico'!S98 -> 0 | V107: =$H107*'Cron. Físico'!T98 -> 0 | W107: =$H107*'Cron. Físico'!U98 -> 0 | X107: =$H107*'Cron. Físico'!V98 -> 0 | Y107: =$H107*'Cron. Físico'!W98 -> 0 | Z107: =$H107*'Cron. Físico'!X98 -> 0 | AA107: =$H107*'Cron. Físico'!Y98 -> 0 | AB107: =$H107*'Cron. Físico'!Z98 -> 0 | AC107: =$H107*'Cron. Físico'!AA98 -> 0 | AD107: =$H107*'Cron. Físico'!AB98 -> 0 | AE107: =$H107*'Cron. Físico'!AC98 -> 0 | AF107: =$H107*'Cron. Físico'!AD98 -> 0 | AG107: =$H107*'Cron. Físico'!AE98 -> 0 | AH107: =$H107*'Cron. Físico'!AF98 -> 0 | AI107: =$H107*'Cron. Físico'!AG98 -> 0 | AJ107: =$H107*'Cron. Físico'!AH98 -> 0 | AK107: =$H107*'Cron. Físico'!AI98 -> 0 | AL107: =$H107*'Cron. Físico'!AJ98 -> 0 | AM107: =$H107*'Cron. Físico'!AK98 -> 0 | AN107: 100.00% | AO107: TRUE
C108: 8.1.4.6 | E108: 265BMG0305 | F108: M2 | G108: =_xlfn.XLOOKUP($E108,'Resumo Quant.'!$C:$C,'Resumo Quant.'!$G:$G) -> 72,218.04 | H108: =_xlfn.XLOOKUP($E108,'Resumo Preços'!$C:$C,'Resumo Preços'!$G:$G) -> 5,033,597.39 | J108: =$H108*'Cron. Físico'!H99 -> 0 | K108: =$H108*'Cron. Físico'!I99 -> 0 | L108: =$H108*'Cron. Físico'!J99 -> 0 | M108: =$H108*'Cron. Físico'!K99 -> 5,033,597.39 | N108: =$H108*'Cron. Físico'!L99 -> 0 | O108: =$H108*'Cron. Físico'!M99 -> 0 | P108: =$H108*'Cron. Físico'!N99 -> 0 | Q108: =$H108*'Cron. Físico'!O99 -> 0 | R108: =$H108*'Cron. Físico'!P99 -> 0 | S108: =$H108*'Cron. Físico'!Q99 -> 0 | T108: =$H108*'Cron. Físico'!R99 -> 0 | U108: =$H108*'Cron. Físico'!S99 -> 0 | V108: =$H108*'Cron. Físico'!T99 -> 0 | W108: =$H108*'Cron. Físico'!U99 -> 0 | X108: =$H108*'Cron. Físico'!V99 -> 0 | Y108: =$H108*'Cron. Físico'!W99 -> 0 | Z108: =$H108*'Cron. Físico'!X99 -> 0 | AA108: =$H108*'Cron. Físico'!Y99 -> 0 | AB108: =$H108*'Cron. Físico'!Z99 -> 0 | AC108: =$H108*'Cron. Físico'!AA99 -> 0 | AD108: =$H108*'Cron. Físico'!AB99 -> 0 | AE108: =$H108*'Cron. Físico'!AC99 -> 0 | AF108: =$H108*'Cron. Físico'!AD99 -> 0 | AG108: =$H108*'Cron. Físico'!AE99 -> 0 | AH108: =$H108*'Cron. Físico'!AF99 -> 0 | AI108: =$H108*'Cron. Físico'!AG99 -> 0 | AJ108: =$H108*'Cron. Físico'!AH99 -> 0 | AK108: =$H108*'Cron. Físico'!AI99 -> 0 | AL108: =$H108*'Cron. Físico'!AJ99 -> 0 | AM108: =$H108*'Cron. Físico'!AK99 -> 0 | AN108: 100.00% | AO108: TRUE
C109: 8.1.4.7 | E109: 265BMG0310 | F109: M2 | G109: =_xlfn.XLOOKUP($E109,'Resumo Quant.'!$C:$C,'Resumo Quant.'!$G:$G) -> 0 | H109: =_xlfn.XLOOKUP($E109,'Resumo Preços'!$C:$C,'Resumo Preços'!$G:$G) -> 0 | J109: =$H109*'Cron. Físico'!H100 -> 0 | K109: =$H109*'Cron. Físico'!I100 -> 0 | L109: =$H109*'Cron. Físico'!J100 -> 0 | M109: =$H109*'Cron. Físico'!K100 -> 0 | N109: =$H109*'Cron. Físico'!L100 -> 0 | O109: =$H109*'Cron. Físico'!M100 -> 0 | P109: =$H109*'Cron. Físico'!N100 -> 0 | Q109: =$H109*'Cron. Físico'!O100 -> 0 | R109: =$H109*'Cron. Físico'!P100 -> 0 | S109: =$H109*'Cron. Físico'!Q100 -> 0 | T109: =$H109*'Cron. Físico'!R100 -> 0 | U109: =$H109*'Cron. Físico'!S100 -> 0 | V109: =$H109*'Cron. Físico'!T100 -> 0 | W109: =$H109*'Cron. Físico'!U100 -> 0 | X109: =$H109*'Cron. Físico'!V100 -> 0 | Y109: =$H109*'Cron. Físico'!W100 -> 0 | Z109: =$H109*'Cron. Físico'!X100 -> 0 | AA109: =$H109*'Cron. Físico'!Y100 -> 0 | AB109: =$H109*'Cron. Físico'!Z100 -> 0 | AC109: =$H109*'Cron. Físico'!AA100 -> 0 | AD109: =$H109*'Cron. Físico'!AB100 -> 0 | AE109: =$H109*'Cron. Físico'!AC100 -> 0 | AF109: =$H109*'Cron. Físico'!AD100 -> 0 | AG109: =$H109*'Cron. Físico'!AE100 -> 0 | AH109: =$H109*'Cron. Físico'!AF100 -> 0 | AI109: =$H109*'Cron. Físico'!AG100 -> 0 | AJ109: =$H109*'Cron. Físico'!AH100 -> 0 | AK109: =$H109*'Cron. Físico'!AI100 -> 0 | AL109: =$H109*'Cron. Físico'!AJ100 -> 0 | AM109: =$H109*'Cron. Físico'!AK100 -> 0 | AO109: TRUE
C110: 8.1.4.8 | E110: 265BMG0311 | F110: M2 | G110: =_xlfn.XLOOKUP($E110,'Resumo Quant.'!$C:$C,'Resumo Quant.'!$G:$G) -> 0 | H110: =_xlfn.XLOOKUP($E110,'Resumo Preços'!$C:$C,'Resumo Preços'!$G:$G) -> 0 | J110: =$H110*'Cron. Físico'!H101 -> 0 | K110: =$H110*'Cron. Físico'!I101 -> 0 | L110: =$H110*'Cron. Físico'!J101 -> 0 | M110: =$H110*'Cron. Físico'!K101 -> 0 | N110: =$H110*'Cron. Físico'!L101 -> 0 | O110: =$H110*'Cron. Físico'!M101 -> 0 | P110: =$H110*'Cron. Físico'!N101 -> 0 | Q110: =$H110*'Cron. Físico'!O101 -> 0 | R110: =$H110*'Cron. Físico'!P101 -> 0 | S110: =$H110*'Cron. Físico'!Q101 -> 0 | T110: =$H110*'Cron. Físico'!R101 -> 0 | U110: =$H110*'Cron. Físico'!S101 -> 0 | V110: =$H110*'Cron. Físico'!T101 -> 0 | W110: =$H110*'Cron. Físico'!U101 -> 0 | X110: =$H110*'Cron. Físico'!V101 -> 0 | Y110: =$H110*'Cron. Físico'!W101 -> 0 | Z110: =$H110*'Cron. Físico'!X101 -> 0 | AA110: =$H110*'Cron. Físico'!Y101 -> 0 | AB110: =$H110*'Cron. Físico'!Z101 -> 0 | AC110: =$H110*'Cron. Físico'!AA101 -> 0 | AD110: =$H110*'Cron. Físico'!AB101 -> 0 | AE110: =$H110*'Cron. Físico'!AC101 -> 0 | AF110: =$H110*'Cron. Físico'!AD101 -> 0 | AG110: =$H110*'Cron. Físico'!AE101 -> 0 | AH110: =$H110*'Cron. Físico'!AF101 -> 0 | AI110: =$H110*'Cron. Físico'!AG101 -> 0 | AJ110: =$H110*'Cron. Físico'!AH101 -> 0 | AK110: =$H110*'Cron. Físico'!AI101 -> 0 | AL110: =$H110*'Cron. Físico'!AJ101 -> 0 | AM110: =$H110*'Cron. Físico'!AK101 -> 0 | AN110: =SUM(J110:AM110)/H110 ->  | AO110: =SUM(J110:AM110)=H110 -> TRUE
C111: 8.1.4.9 | E111: 863LMG0010 | F111: M2 | G111: =_xlfn.XLOOKUP($E111,'Resumo Quant.'!$C:$C,'Resumo Quant.'!$G:$G) -> 0 | H111: =_xlfn.XLOOKUP($E111,'Resumo Preços'!$C:$C,'Resumo Preços'!$G:$G) -> 0 | J111: =$H111*'Cron. Físico'!H102 -> 0 | K111: =$H111*'Cron. Físico'!I102 -> 0 | L111: =$H111*'Cron. Físico'!J102 -> 0 | M111: =$H111*'Cron. Físico'!K102 -> 0 | N111: =$H111*'Cron. Físico'!L102 -> 0 | O111: =$H111*'Cron. Físico'!M102 -> 0 | P111: =$H111*'Cron. Físico'!N102 -> 0 | Q111: =$H111*'Cron. Físico'!O102 -> 0 | R111: =$H111*'Cron. Físico'!P102 -> 0 | S111: =$H111*'Cron. Físico'!Q102 -> 0 | T111: =$H111*'Cron. Físico'!R102 -> 0 | U111: =$H111*'Cron. Físico'!S102 -> 0 | V111: =$H111*'Cron. Físico'!T102 -> 0 | W111: =$H111*'Cron. Físico'!U102 -> 0 | X111: =$H111*'Cron. Físico'!V102 -> 0 | Y111: =$H111*'Cron. Físico'!W102 -> 0 | Z111: =$H111*'Cron. Físico'!X102 -> 0 | AA111: =$H111*'Cron. Físico'!Y102 -> 0 | AB111: =$H111*'Cron. Físico'!Z102 -> 0 | AC111: =$H111*'Cron. Físico'!AA102 -> 0 | AD111: =$H111*'Cron. Físico'!AB102 -> 0 | AE111: =$H111*'Cron. Físico'!AC102 -> 0 | AF111: =$H111*'Cron. Físico'!AD102 -> 0 | AG111: =$H111*'Cron. Físico'!AE102 -> 0 | AH111: =$H111*'Cron. Físico'!AF102 -> 0 | AI111: =$H111*'Cron. Físico'!AG102 -> 0 | AJ111: =$H111*'Cron. Físico'!AH102 -> 0 | AK111: =$H111*'Cron. Físico'!AI102 -> 0 | AL111: =$H111*'Cron. Físico'!AJ102 -> 0 | AM111: =$H111*'Cron. Físico'!AK102 -> 0 | AO111: TRUE
C112: 8.1.4.10 | E112: 491CMG0010 | F112: M2 | G112: =_xlfn.XLOOKUP($E112,'Resumo Quant.'!$C:$C,'Resumo Quant.'!$G:$G) -> 60,306.79 | H112: =_xlfn.XLOOKUP($E112,'Resumo Preços'!$C:$C,'Resumo Preços'!$G:$G) -> 4,203,383.26 | J112: =$H112*'Cron. Físico'!H103 -> 0 | K112: =$H112*'Cron. Físico'!I103 -> 0 | L112: =$H112*'Cron. Físico'!J103 -> 0 | M112: =$H112*'Cron. Físico'!K103 -> 0 | N112: =$H112*'Cron. Físico'!L103 -> 4,203,383.26 | O112: =$H112*'Cron. Físico'!M103 -> 0 | P112: =$H112*'Cron. Físico'!N103 -> 0 | Q112: =$H112*'Cron. Físico'!O103 -> 0 | R112: =$H112*'Cron. Físico'!P103 -> 0 | S112: =$H112*'Cron. Físico'!Q103 -> 0 | T112: =$H112*'Cron. Físico'!R103 -> 0 | U112: =$H112*'Cron. Físico'!S103 -> 0 | V112: =$H112*'Cron. Físico'!T103 -> 0 | W112: =$H112*'Cron. Físico'!U103 -> 0 | X112: =$H112*'Cron. Físico'!V103 -> 0 | Y112: =$H112*'Cron. Físico'!W103 -> 0 | Z112: =$H112*'Cron. Físico'!X103 -> 0 | AA112: =$H112*'Cron. Físico'!Y103 -> 0 | AB112: =$H112*'Cron. Físico'!Z103 -> 0 | AC112: =$H112*'Cron. Físico'!AA103 -> 0 | AD112: =$H112*'Cron. Físico'!AB103 -> 0 | AE112: =$H112*'Cron. Físico'!AC103 -> 0 | AF112: =$H112*'Cron. Físico'!AD103 -> 0 | AG112: =$H112*'Cron. Físico'!AE103 -> 0 | AH112: =$H112*'Cron. Físico'!AF103 -> 0 | AI112: =$H112*'Cron. Físico'!AG103 -> 0 | AJ112: =$H112*'Cron. Físico'!AH103 -> 0 | AK112: =$H112*'Cron. Físico'!AI103 -> 0 | AL112: =$H112*'Cron. Físico'!AJ103 -> 0 | AM112: =$H112*'Cron. Físico'!AK103 -> 0 | AN112: 100.00% | AO112: TRUE
C113: 8.1.4.11 | E113: 491CMG0023 | F113: M2 | G113: =_xlfn.XLOOKUP($E113,'Resumo Quant.'!$C:$C,'Resumo Quant.'!$G:$G) -> 0 | H113: =_xlfn.XLOOKUP($E113,'Resumo Preços'!$C:$C,'Resumo Preços'!$G:$G) -> 0 | J113: =$H113*'Cron. Físico'!H104 -> 0 | K113: =$H113*'Cron. Físico'!I104 -> 0 | L113: =$H113*'Cron. Físico'!J104 -> 0 | M113: =$H113*'Cron. Físico'!K104 -> 0 | N113: =$H113*'Cron. Físico'!L104 -> 0 | O113: =$H113*'Cron. Físico'!M104 -> 0 | P113: =$H113*'Cron. Físico'!N104 -> 0 | Q113: =$H113*'Cron. Físico'!O104 -> 0 | R113: =$H113*'Cron. Físico'!P104 -> 0 | S113: =$H113*'Cron. Físico'!Q104 -> 0 | T113: =$H113*'Cron. Físico'!R104 -> 0 | U113: =$H113*'Cron. Físico'!S104 -> 0 | V113: =$H113*'Cron. Físico'!T104 -> 0 | W113: =$H113*'Cron. Físico'!U104 -> 0 | X113: =$H113*'Cron. Físico'!V104 -> 0 | Y113: =$H113*'Cron. Físico'!W104 -> 0 | Z113: =$H113*'Cron. Físico'!X104 -> 0 | AA113: =$H113*'Cron. Físico'!Y104 -> 0 | AB113: =$H113*'Cron. Físico'!Z104 -> 0 | AC113: =$H113*'Cron. Físico'!AA104 -> 0 | AD113: =$H113*'Cron. Físico'!AB104 -> 0 | AE113: =$H113*'Cron. Físico'!AC104 -> 0 | AF113: =$H113*'Cron. Físico'!AD104 -> 0 | AG113: =$H113*'Cron. Físico'!AE104 -> 0 | AH113: =$H113*'Cron. Físico'!AF104 -> 0 | AI113: =$H113*'Cron. Físico'!AG104 -> 0 | AJ113: =$H113*'Cron. Físico'!AH104 -> 0 | AK113: =$H113*'Cron. Físico'!AI104 -> 0 | AL113: =$H113*'Cron. Físico'!AJ104 -> 0 | AM113: =$H113*'Cron. Físico'!AK104 -> 0 | AO113: TRUE
C114: 8.1.4.12 | E114: 491CMG0050 | F114: M2 | G114: =_xlfn.XLOOKUP($E114,'Resumo Quant.'!$C:$C,'Resumo Quant.'!$G:$G) -> 0 | H114: =_xlfn.XLOOKUP($E114,'Resumo Preços'!$C:$C,'Resumo Preços'!$G:$G) -> 0 | J114: =$H114*'Cron. Físico'!H105 -> 0 | K114: =$H114*'Cron. Físico'!I105 -> 0 | L114: =$H114*'Cron. Físico'!J105 -> 0 | M114: =$H114*'Cron. Físico'!K105 -> 0 | N114: =$H114*'Cron. Físico'!L105 -> 0 | O114: =$H114*'Cron. Físico'!M105 -> 0 | P114: =$H114*'Cron. Físico'!N105 -> 0 | Q114: =$H114*'Cron. Físico'!O105 -> 0 | R114: =$H114*'Cron. Físico'!P105 -> 0 | S114: =$H114*'Cron. Físico'!Q105 -> 0 | T114: =$H114*'Cron. Físico'!R105 -> 0 | U114: =$H114*'Cron. Físico'!S105 -> 0 | V114: =$H114*'Cron. Físico'!T105 -> 0 | W114: =$H114*'Cron. Físico'!U105 -> 0 | X114: =$H114*'Cron. Físico'!V105 -> 0 | Y114: =$H114*'Cron. Físico'!W105 -> 0 | Z114: =$H114*'Cron. Físico'!X105 -> 0 | AA114: =$H114*'Cron. Físico'!Y105 -> 0 | AB114: =$H114*'Cron. Físico'!Z105 -> 0 | AC114: =$H114*'Cron. Físico'!AA105 -> 0 | AD114: =$H114*'Cron. Físico'!AB105 -> 0 | AE114: =$H114*'Cron. Físico'!AC105 -> 0 | AF114: =$H114*'Cron. Físico'!AD105 -> 0 | AG114: =$H114*'Cron. Físico'!AE105 -> 0 | AH114: =$H114*'Cron. Físico'!AF105 -> 0 | AI114: =$H114*'Cron. Físico'!AG105 -> 0 | AJ114: =$H114*'Cron. Físico'!AH105 -> 0 | AK114: =$H114*'Cron. Físico'!AI105 -> 0 | AL114: =$H114*'Cron. Físico'!AJ105 -> 0 | AM114: =$H114*'Cron. Físico'!AK105 -> 0 | AO114: TRUE
C115: 8.1.4.13 | E115: 491CMG0090 | F115: M2 | G115: =_xlfn.XLOOKUP($E115,'Resumo Quant.'!$C:$C,'Resumo Quant.'!$G:$G) -> 8,400.00 | H115: =_xlfn.XLOOKUP($E115,'Resumo Preços'!$C:$C,'Resumo Preços'!$G:$G) -> 585,480.00 | J115: =$H115*'Cron. Físico'!H106 -> 0 | K115: =$H115*'Cron. Físico'!I106 -> 0 | L115: =$H115*'Cron. Físico'!J106 -> 585,480.00 | M115: =$H115*'Cron. Físico'!K106 -> 0 | N115: =$H115*'Cron. Físico'!L106 -> 0 | O115: =$H115*'Cron. Físico'!M106 -> 0 | P115: =$H115*'Cron. Físico'!N106 -> 0 | Q115: =$H115*'Cron. Físico'!O106 -> 0 | R115: =$H115*'Cron. Físico'!P106 -> 0 | S115: =$H115*'Cron. Físico'!Q106 -> 0 | T115: =$H115*'Cron. Físico'!R106 -> 0 | U115: =$H115*'Cron. Físico'!S106 -> 0 | V115: =$H115*'Cron. Físico'!T106 -> 0 | W115: =$H115*'Cron. Físico'!U106 -> 0 | X115: =$H115*'Cron. Físico'!V106 -> 0 | Y115: =$H115*'Cron. Físico'!W106 -> 0 | Z115: =$H115*'Cron. Físico'!X106 -> 0 | AA115: =$H115*'Cron. Físico'!Y106 -> 0 | AB115: =$H115*'Cron. Físico'!Z106 -> 0 | AC115: =$H115*'Cron. Físico'!AA106 -> 0 | AD115: =$H115*'Cron. Físico'!AB106 -> 0 | AE115: =$H115*'Cron. Físico'!AC106 -> 0 | AF115: =$H115*'Cron. Físico'!AD106 -> 0 | AG115: =$H115*'Cron. Físico'!AE106 -> 0 | AH115: =$H115*'Cron. Físico'!AF106 -> 0 | AI115: =$H115*'Cron. Físico'!AG106 -> 0 | AJ115: =$H115*'Cron. Físico'!AH106 -> 0 | AK115: =$H115*'Cron. Físico'!AI106 -> 0 | AL115: =$H115*'Cron. Físico'!AJ106 -> 0 | AM115: =$H115*'Cron. Físico'!AK106 -> 0 | AN115: 100.00% | AO115: TRUE
C116: 8.1.4.14 | E116: 491CMG0100 | F116: M2 | G116: =_xlfn.XLOOKUP($E116,'Resumo Quant.'!$C:$C,'Resumo Quant.'!$G:$G) -> 33,634.29 | H116: =_xlfn.XLOOKUP($E116,'Resumo Preços'!$C:$C,'Resumo Preços'!$G:$G) -> 2,344,310.01 | J116: =$H116*'Cron. Físico'!H107 -> 0 | K116: =$H116*'Cron. Físico'!I107 -> 0 | L116: =$H116*'Cron. Físico'!J107 -> 0 | M116: =$H116*'Cron. Físico'!K107 -> 0 | N116: =$H116*'Cron. Físico'!L107 -> 0 | O116: =$H116*'Cron. Físico'!M107 -> 2,344,310.01 | P116: =$H116*'Cron. Físico'!N107 -> 0 | Q116: =$H116*'Cron. Físico'!O107 -> 0 | R116: =$H116*'Cron. Físico'!P107 -> 0 | S116: =$H116*'Cron. Físico'!Q107 -> 0 | T116: =$H116*'Cron. Físico'!R107 -> 0 | U116: =$H116*'Cron. Físico'!S107 -> 0 | V116: =$H116*'Cron. Físico'!T107 -> 0 | W116: =$H116*'Cron. Físico'!U107 -> 0 | X116: =$H116*'Cron. Físico'!V107 -> 0 | Y116: =$H116*'Cron. Físico'!W107 -> 0 | Z116: =$H116*'Cron. Físico'!X107 -> 0 | AA116: =$H116*'Cron. Físico'!Y107 -> 0 | AB116: =$H116*'Cron. Físico'!Z107 -> 0 | AC116: =$H116*'Cron. Físico'!AA107 -> 0 | AD116: =$H116*'Cron. Físico'!AB107 -> 0 | AE116: =$H116*'Cron. Físico'!AC107 -> 0 | AF116: =$H116*'Cron. Físico'!AD107 -> 0 | AG116: =$H116*'Cron. Físico'!AE107 -> 0 | AH116: =$H116*'Cron. Físico'!AF107 -> 0 | AI116: =$H116*'Cron. Físico'!AG107 -> 0 | AJ116: =$H116*'Cron. Físico'!AH107 -> 0 | AK116: =$H116*'Cron. Físico'!AI107 -> 0 | AL116: =$H116*'Cron. Físico'!AJ107 -> 0 | AM116: =$H116*'Cron. Físico'!AK107 -> 0 | AN116: 100.00% | AO116: TRUE
C117: 8.1.4.15 | E117: 491CMG0230 | F117: M2 | G117: =_xlfn.XLOOKUP($E117,'Resumo Quant.'!$C:$C,'Resumo Quant.'!$G:$G) -> 40,007.46 | H117: =_xlfn.XLOOKUP($E117,'Resumo Preços'!$C:$C,'Resumo Preços'!$G:$G) -> 2,788,519.96 | J117: =$H117*'Cron. Físico'!H108 -> 0 | K117: =$H117*'Cron. Físico'!I108 -> 0 | L117: =$H117*'Cron. Físico'!J108 -> 0 | M117: =$H117*'Cron. Físico'!K108 -> 0 | N117: =$H117*'Cron. Físico'!L108 -> 0 | O117: =$H117*'Cron. Físico'!M108 -> 2,788,519.96 | P117: =$H117*'Cron. Físico'!N108 -> 0 | Q117: =$H117*'Cron. Físico'!O108 -> 0 | R117: =$H117*'Cron. Físico'!P108 -> 0 | S117: =$H117*'Cron. Físico'!Q108 -> 0 | T117: =$H117*'Cron. Físico'!R108 -> 0 | U117: =$H117*'Cron. Físico'!S108 -> 0 | V117: =$H117*'Cron. Físico'!T108 -> 0 | W117: =$H117*'Cron. Físico'!U108 -> 0 | X117: =$H117*'Cron. Físico'!V108 -> 0 | Y117: =$H117*'Cron. Físico'!W108 -> 0 | Z117: =$H117*'Cron. Físico'!X108 -> 0 | AA117: =$H117*'Cron. Físico'!Y108 -> 0 | AB117: =$H117*'Cron. Físico'!Z108 -> 0 | AC117: =$H117*'Cron. Físico'!AA108 -> 0 | AD117: =$H117*'Cron. Físico'!AB108 -> 0 | AE117: =$H117*'Cron. Físico'!AC108 -> 0 | AF117: =$H117*'Cron. Físico'!AD108 -> 0 | AG117: =$H117*'Cron. Físico'!AE108 -> 0 | AH117: =$H117*'Cron. Físico'!AF108 -> 0 | AI117: =$H117*'Cron. Físico'!AG108 -> 0 | AJ117: =$H117*'Cron. Físico'!AH108 -> 0 | AK117: =$H117*'Cron. Físico'!AI108 -> 0 | AL117: =$H117*'Cron. Físico'!AJ108 -> 0 | AM117: =$H117*'Cron. Físico'!AK108 -> 0 | AN117: 100.00% | AO117: TRUE
C118: 8.1.4.16 | E118: 491CMG0030 | F118: M2 | G118: =_xlfn.XLOOKUP($E118,'Resumo Quant.'!$C:$C,'Resumo Quant.'!$G:$G) -> 39,680.00 | H118: =_xlfn.XLOOKUP($E118,'Resumo Preços'!$C:$C,'Resumo Preços'!$G:$G) -> 2,765,696.00 | J118: =$H118*'Cron. Físico'!H109 -> 0 | K118: =$H118*'Cron. Físico'!I109 -> 0 | L118: =$H118*'Cron. Físico'!J109 -> 0 | M118: =$H118*'Cron. Físico'!K109 -> 0 | N118: =$H118*'Cron. Físico'!L109 -> 0 | O118: =$H118*'Cron. Físico'!M109 -> 2,765,696.00 | P118: =$H118*'Cron. Físico'!N109 -> 0 | Q118: =$H118*'Cron. Físico'!O109 -> 0 | R118: =$H118*'Cron. Físico'!P109 -> 0 | S118: =$H118*'Cron. Físico'!Q109 -> 0 | T118: =$H118*'Cron. Físico'!R109 -> 0 | U118: =$H118*'Cron. Físico'!S109 -> 0 | V118: =$H118*'Cron. Físico'!T109 -> 0 | W118: =$H118*'Cron. Físico'!U109 -> 0 | X118: =$H118*'Cron. Físico'!V109 -> 0 | Y118: =$H118*'Cron. Físico'!W109 -> 0 | Z118: =$H118*'Cron. Físico'!X109 -> 0 | AA118: =$H118*'Cron. Físico'!Y109 -> 0 | AB118: =$H118*'Cron. Físico'!Z109 -> 0 | AC118: =$H118*'Cron. Físico'!AA109 -> 0 | AD118: =$H118*'Cron. Físico'!AB109 -> 0 | AE118: =$H118*'Cron. Físico'!AC109 -> 0 | AF118: =$H118*'Cron. Físico'!AD109 -> 0 | AG118: =$H118*'Cron. Físico'!AE109 -> 0 | AH118: =$H118*'Cron. Físico'!AF109 -> 0 | AI118: =$H118*'Cron. Físico'!AG109 -> 0 | AJ118: =$H118*'Cron. Físico'!AH109 -> 0 | AK118: =$H118*'Cron. Físico'!AI109 -> 0 | AL118: =$H118*'Cron. Físico'!AJ109 -> 0 | AM118: =$H118*'Cron. Físico'!AK109 -> 0 | AN118: 100.00% | AO118: TRUE
C119: 8.1.4.17 | E119: 491CMG0110 | F119: M2 | G119: =_xlfn.XLOOKUP($E119,'Resumo Quant.'!$C:$C,'Resumo Quant.'!$G:$G) -> 109,552.88 | H119: =_xlfn.XLOOKUP($E119,'Resumo Preços'!$C:$C,'Resumo Preços'!$G:$G) -> 7,635,835.74 | J119: =$H119*'Cron. Físico'!H110 -> 0 | K119: =$H119*'Cron. Físico'!I110 -> 0 | L119: =$H119*'Cron. Físico'!J110 -> 0 | M119: =$H119*'Cron. Físico'!K110 -> 0 | N119: =$H119*'Cron. Físico'!L110 -> 794,580.00 | O119: =$H119*'Cron. Físico'!M110 -> 6,841,255.74 | P119: =$H119*'Cron. Físico'!N110 -> 0 | Q119: =$H119*'Cron. Físico'!O110 -> 0 | R119: =$H119*'Cron. Físico'!P110 -> 0 | S119: =$H119*'Cron. Físico'!Q110 -> 0 | T119: =$H119*'Cron. Físico'!R110 -> 0 | U119: =$H119*'Cron. Físico'!S110 -> 0 | V119: =$H119*'Cron. Físico'!T110 -> 0 | W119: =$H119*'Cron. Físico'!U110 -> 0 | X119: =$H119*'Cron. Físico'!V110 -> 0 | Y119: =$H119*'Cron. Físico'!W110 -> 0 | Z119: =$H119*'Cron. Físico'!X110 -> 0 | AA119: =$H119*'Cron. Físico'!Y110 -> 0 | AB119: =$H119*'Cron. Físico'!Z110 -> 0 | AC119: =$H119*'Cron. Físico'!AA110 -> 0 | AD119: =$H119*'Cron. Físico'!AB110 -> 0 | AE119: =$H119*'Cron. Físico'!AC110 -> 0 | AF119: =$H119*'Cron. Físico'!AD110 -> 0 | AG119: =$H119*'Cron. Físico'!AE110 -> 0 | AH119: =$H119*'Cron. Físico'!AF110 -> 0 | AI119: =$H119*'Cron. Físico'!AG110 -> 0 | AJ119: =$H119*'Cron. Físico'!AH110 -> 0 | AK119: =$H119*'Cron. Físico'!AI110 -> 0 | AL119: =$H119*'Cron. Físico'!AJ110 -> 0 | AM119: =$H119*'Cron. Físico'!AK110 -> 0 | AN119: 100.00% | AO119: TRUE
C120: 8.1.4.18 | E120: 491CMG0130 | F120: M2 | G120: =_xlfn.XLOOKUP($E120,'Resumo Quant.'!$C:$C,'Resumo Quant.'!$G:$G) -> 27,343.87 | H120: =_xlfn.XLOOKUP($E120,'Resumo Preços'!$C:$C,'Resumo Preços'!$G:$G) -> 1,905,867.74 | J120: =$H120*'Cron. Físico'!H111 -> 0 | K120: =$H120*'Cron. Físico'!I111 -> 0 | L120: =$H120*'Cron. Físico'!J111 -> 0 | M120: =$H120*'Cron. Físico'!K111 -> 0 | N120: =$H120*'Cron. Físico'!L111 -> 0 | O120: =$H120*'Cron. Físico'!M111 -> 1,905,867.74 | P120: =$H120*'Cron. Físico'!N111 -> 0 | Q120: =$H120*'Cron. Físico'!O111 -> 0 | R120: =$H120*'Cron. Físico'!P111 -> 0 | S120: =$H120*'Cron. Físico'!Q111 -> 0 | T120: =$H120*'Cron. Físico'!R111 -> 0 | U120: =$H120*'Cron. Físico'!S111 -> 0 | V120: =$H120*'Cron. Físico'!T111 -> 0 | W120: =$H120*'Cron. Físico'!U111 -> 0 | X120: =$H120*'Cron. Físico'!V111 -> 0 | Y120: =$H120*'Cron. Físico'!W111 -> 0 | Z120: =$H120*'Cron. Físico'!X111 -> 0 | AA120: =$H120*'Cron. Físico'!Y111 -> 0 | AB120: =$H120*'Cron. Físico'!Z111 -> 0 | AC120: =$H120*'Cron. Físico'!AA111 -> 0 | AD120: =$H120*'Cron. Físico'!AB111 -> 0 | AE120: =$H120*'Cron. Físico'!AC111 -> 0 | AF120: =$H120*'Cron. Físico'!AD111 -> 0 | AG120: =$H120*'Cron. Físico'!AE111 -> 0 | AH120: =$H120*'Cron. Físico'!AF111 -> 0 | AI120: =$H120*'Cron. Físico'!AG111 -> 0 | AJ120: =$H120*'Cron. Físico'!AH111 -> 0 | AK120: =$H120*'Cron. Físico'!AI111 -> 0 | AL120: =$H120*'Cron. Físico'!AJ111 -> 0 | AM120: =$H120*'Cron. Físico'!AK111 -> 0 | AN120: 100.00% | AO120: TRUE
C121: 8.1.4.19 | E121: 491CMG0150 | F121: M2 | G121: =_xlfn.XLOOKUP($E121,'Resumo Quant.'!$C:$C,'Resumo Quant.'!$G:$G) -> 114,720.41 | H121: =_xlfn.XLOOKUP($E121,'Resumo Preços'!$C:$C,'Resumo Preços'!$G:$G) -> 7,996,012.58 | J121: =$H121*'Cron. Físico'!H112 -> 0 | K121: =$H121*'Cron. Físico'!I112 -> 0 | L121: =$H121*'Cron. Físico'!J112 -> 1,835,903.58 | M121: =$H121*'Cron. Físico'!K112 -> 2,091,000.00 | N121: =$H121*'Cron. Físico'!L112 -> 1,854,020.00 | O121: =$H121*'Cron. Físico'!M112 -> 2,215,089.00 | P121: =$H121*'Cron. Físico'!N112 -> 0 | Q121: =$H121*'Cron. Físico'!O112 -> 0 | R121: =$H121*'Cron. Físico'!P112 -> 0 | S121: =$H121*'Cron. Físico'!Q112 -> 0 | T121: =$H121*'Cron. Físico'!R112 -> 0 | U121: =$H121*'Cron. Físico'!S112 -> 0 | V121: =$H121*'Cron. Físico'!T112 -> 0 | W121: =$H121*'Cron. Físico'!U112 -> 0 | X121: =$H121*'Cron. Físico'!V112 -> 0 | Y121: =$H121*'Cron. Físico'!W112 -> 0 | Z121: =$H121*'Cron. Físico'!X112 -> 0 | AA121: =$H121*'Cron. Físico'!Y112 -> 0 | AB121: =$H121*'Cron. Físico'!Z112 -> 0 | AC121: =$H121*'Cron. Físico'!AA112 -> 0 | AD121: =$H121*'Cron. Físico'!AB112 -> 0 | AE121: =$H121*'Cron. Físico'!AC112 -> 0 | AF121: =$H121*'Cron. Físico'!AD112 -> 0 | AG121: =$H121*'Cron. Físico'!AE112 -> 0 | AH121: =$H121*'Cron. Físico'!AF112 -> 0 | AI121: =$H121*'Cron. Físico'!AG112 -> 0 | AJ121: =$H121*'Cron. Físico'!AH112 -> 0 | AK121: =$H121*'Cron. Físico'!AI112 -> 0 | AL121: =$H121*'Cron. Físico'!AJ112 -> 0 | AM121: =$H121*'Cron. Físico'!AK112 -> 0 | AN121: 100.00% | AO121: TRUE
C122: 8.1.4.20 | E122: 491CMG0170 | F122: M2 | G122: =_xlfn.XLOOKUP($E122,'Resumo Quant.'!$C:$C,'Resumo Quant.'!$G:$G) -> 105,447.20 | H122: =_xlfn.XLOOKUP($E122,'Resumo Preços'!$C:$C,'Resumo Preços'!$G:$G) -> 7,349,669.84 | J122: =$H122*'Cron. Físico'!H113 -> 0 | K122: =$H122*'Cron. Físico'!I113 -> 0 | L122: =$H122*'Cron. Físico'!J113 -> 0 | M122: =$H122*'Cron. Físico'!K113 -> 0 | N122: =$H122*'Cron. Físico'!L113 -> 7,008,139.84 | O122: =$H122*'Cron. Físico'!M113 -> 341,530.00 | P122: =$H122*'Cron. Físico'!N113 -> 0 | Q122: =$H122*'Cron. Físico'!O113 -> 0 | R122: =$H122*'Cron. Físico'!P113 -> 0 | S122: =$H122*'Cron. Físico'!Q113 -> 0 | T122: =$H122*'Cron. Físico'!R113 -> 0 | U122: =$H122*'Cron. Físico'!S113 -> 0 | V122: =$H122*'Cron. Físico'!T113 -> 0 | W122: =$H122*'Cron. Físico'!U113 -> 0 | X122: =$H122*'Cron. Físico'!V113 -> 0 | Y122: =$H122*'Cron. Físico'!W113 -> 0 | Z122: =$H122*'Cron. Físico'!X113 -> 0 | AA122: =$H122*'Cron. Físico'!Y113 -> 0 | AB122: =$H122*'Cron. Físico'!Z113 -> 0 | AC122: =$H122*'Cron. Físico'!AA113 -> 0 | AD122: =$H122*'Cron. Físico'!AB113 -> 0 | AE122: =$H122*'Cron. Físico'!AC113 -> 0 | AF122: =$H122*'Cron. Físico'!AD113 -> 0 | AG122: =$H122*'Cron. Físico'!AE113 -> 0 | AH122: =$H122*'Cron. Físico'!AF113 -> 0 | AI122: =$H122*'Cron. Físico'!AG113 -> 0 | AJ122: =$H122*'Cron. Físico'!AH113 -> 0 | AK122: =$H122*'Cron. Físico'!AI113 -> 0 | AL122: =$H122*'Cron. Físico'!AJ113 -> 0 | AM122: =$H122*'Cron. Físico'!AK113 -> 0 | AN122: 100.00% | AO122: TRUE
C123: 8.1.4.21 | E123: 491CMG0190 | F123: M2 | G123: =_xlfn.XLOOKUP($E123,'Resumo Quant.'!$C:$C,'Resumo Quant.'!$G:$G) -> 0 | H123: =_xlfn.XLOOKUP($E123,'Resumo Preços'!$C:$C,'Resumo Preços'!$G:$G) -> 0 | J123: =$H123*'Cron. Físico'!H114 -> 0 | K123: =$H123*'Cron. Físico'!I114 -> 0 | L123: =$H123*'Cron. Físico'!J114 -> 0 | M123: =$H123*'Cron. Físico'!K114 -> 0 | N123: =$H123*'Cron. Físico'!L114 -> 0 | O123: =$H123*'Cron. Físico'!M114 -> 0 | P123: =$H123*'Cron. Físico'!N114 -> 0 | Q123: =$H123*'Cron. Físico'!O114 -> 0 | R123: =$H123*'Cron. Físico'!P114 -> 0 | S123: =$H123*'Cron. Físico'!Q114 -> 0 | T123: =$H123*'Cron. Físico'!R114 -> 0 | U123: =$H123*'Cron. Físico'!S114 -> 0 | V123: =$H123*'Cron. Físico'!T114 -> 0 | W123: =$H123*'Cron. Físico'!U114 -> 0 | X123: =$H123*'Cron. Físico'!V114 -> 0 | Y123: =$H123*'Cron. Físico'!W114 -> 0 | Z123: =$H123*'Cron. Físico'!X114 -> 0 | AA123: =$H123*'Cron. Físico'!Y114 -> 0 | AB123: =$H123*'Cron. Físico'!Z114 -> 0 | AC123: =$H123*'Cron. Físico'!AA114 -> 0 | AD123: =$H123*'Cron. Físico'!AB114 -> 0 | AE123: =$H123*'Cron. Físico'!AC114 -> 0 | AF123: =$H123*'Cron. Físico'!AD114 -> 0 | AG123: =$H123*'Cron. Físico'!AE114 -> 0 | AH123: =$H123*'Cron. Físico'!AF114 -> 0 | AI123: =$H123*'Cron. Físico'!AG114 -> 0 | AJ123: =$H123*'Cron. Físico'!AH114 -> 0 | AK123: =$H123*'Cron. Físico'!AI114 -> 0 | AL123: =$H123*'Cron. Físico'!AJ114 -> 0 | AM123: =$H123*'Cron. Físico'!AK114 -> 0 | AO123: TRUE
C124: 8.1.4.22 | E124: 491CMG0210D | F124: M2 | G124: =_xlfn.XLOOKUP($E124,'Resumo Quant.'!$C:$C,'Resumo Quant.'!$G:$G) -> 11,900.00 | H124: =_xlfn.XLOOKUP($E124,'Resumo Preços'!$C:$C,'Resumo Preços'!$G:$G) -> 829,430.00 | J124: =$H124*'Cron. Físico'!H115 -> 0 | K124: =$H124*'Cron. Físico'!I115 -> 0 | L124: =$H124*'Cron. Físico'!J115 -> 0 | M124: =$H124*'Cron. Físico'!K115 -> 0 | N124: =$H124*'Cron. Físico'!L115 -> 829,430.00 | O124: =$H124*'Cron. Físico'!M115 -> 0 | P124: =$H124*'Cron. Físico'!N115 -> 0 | Q124: =$H124*'Cron. Físico'!O115 -> 0 | R124: =$H124*'Cron. Físico'!P115 -> 0 | S124: =$H124*'Cron. Físico'!Q115 -> 0 | T124: =$H124*'Cron. Físico'!R115 -> 0 | U124: =$H124*'Cron. Físico'!S115 -> 0 | V124: =$H124*'Cron. Físico'!T115 -> 0 | W124: =$H124*'Cron. Físico'!U115 -> 0 | X124: =$H124*'Cron. Físico'!V115 -> 0 | Y124: =$H124*'Cron. Físico'!W115 -> 0 | Z124: =$H124*'Cron. Físico'!X115 -> 0 | AA124: =$H124*'Cron. Físico'!Y115 -> 0 | AB124: =$H124*'Cron. Físico'!Z115 -> 0 | AC124: =$H124*'Cron. Físico'!AA115 -> 0 | AD124: =$H124*'Cron. Físico'!AB115 -> 0 | AE124: =$H124*'Cron. Físico'!AC115 -> 0 | AF124: =$H124*'Cron. Físico'!AD115 -> 0 | AG124: =$H124*'Cron. Físico'!AE115 -> 0 | AH124: =$H124*'Cron. Físico'!AF115 -> 0 | AI124: =$H124*'Cron. Físico'!AG115 -> 0 | AJ124: =$H124*'Cron. Físico'!AH115 -> 0 | AK124: =$H124*'Cron. Físico'!AI115 -> 0 | AL124: =$H124*'Cron. Físico'!AJ115 -> 0 | AM124: =$H124*'Cron. Físico'!AK115 -> 0 | AN124: 100.00% | AO124: TRUE
C125: 8.1.4.23 | E125: 146BMG0250 | F125: M2 | G125: =_xlfn.XLOOKUP($E125,'Resumo Quant.'!$C:$C,'Resumo Quant.'!$G:$G) -> 0 | H125: =_xlfn.XLOOKUP($E125,'Resumo Preços'!$C:$C,'Resumo Preços'!$G:$G) -> 0 | J125: =$H125*'Cron. Físico'!H116 -> 0 | K125: =$H125*'Cron. Físico'!I116 -> 0 | L125: =$H125*'Cron. Físico'!J116 -> 0 | M125: =$H125*'Cron. Físico'!K116 -> 0 | N125: =$H125*'Cron. Físico'!L116 -> 0 | O125: =$H125*'Cron. Físico'!M116 -> 0 | P125: =$H125*'Cron. Físico'!N116 -> 0 | Q125: =$H125*'Cron. Físico'!O116 -> 0 | R125: =$H125*'Cron. Físico'!P116 -> 0 | S125: =$H125*'Cron. Físico'!Q116 -> 0 | T125: =$H125*'Cron. Físico'!R116 -> 0 | U125: =$H125*'Cron. Físico'!S116 -> 0 | V125: =$H125*'Cron. Físico'!T116 -> 0 | W125: =$H125*'Cron. Físico'!U116 -> 0 | X125: =$H125*'Cron. Físico'!V116 -> 0 | Y125: =$H125*'Cron. Físico'!W116 -> 0 | Z125: =$H125*'Cron. Físico'!X116 -> 0 | AA125: =$H125*'Cron. Físico'!Y116 -> 0 | AB125: =$H125*'Cron. Físico'!Z116 -> 0 | AC125: =$H125*'Cron. Físico'!AA116 -> 0 | AD125: =$H125*'Cron. Físico'!AB116 -> 0 | AE125: =$H125*'Cron. Físico'!AC116 -> 0 | AF125: =$H125*'Cron. Físico'!AD116 -> 0 | AG125: =$H125*'Cron. Físico'!AE116 -> 0 | AH125: =$H125*'Cron. Físico'!AF116 -> 0 | AI125: =$H125*'Cron. Físico'!AG116 -> 0 | AJ125: =$H125*'Cron. Físico'!AH116 -> 0 | AK125: =$H125*'Cron. Físico'!AI116 -> 0 | AL125: =$H125*'Cron. Físico'!AJ116 -> 0 | AM125: =$H125*'Cron. Físico'!AK116 -> 0 | AO125: TRUE
C126: 8.1.4.24 | E126: 146BMG0252 | F126: M2 | G126: =_xlfn.XLOOKUP($E126,'Resumo Quant.'!$C:$C,'Resumo Quant.'!$G:$G) -> 0 | H126: =_xlfn.XLOOKUP($E126,'Resumo Preços'!$C:$C,'Resumo Preços'!$G:$G) -> 0 | J126: =$H126*'Cron. Físico'!H117 -> 0 | K126: =$H126*'Cron. Físico'!I117 -> 0 | L126: =$H126*'Cron. Físico'!J117 -> 0 | M126: =$H126*'Cron. Físico'!K117 -> 0 | N126: =$H126*'Cron. Físico'!L117 -> 0 | O126: =$H126*'Cron. Físico'!M117 -> 0 | P126: =$H126*'Cron. Físico'!N117 -> 0 | Q126: =$H126*'Cron. Físico'!O117 -> 0 | R126: =$H126*'Cron. Físico'!P117 -> 0 | S126: =$H126*'Cron. Físico'!Q117 -> 0 | T126: =$H126*'Cron. Físico'!R117 -> 0 | U126: =$H126*'Cron. Físico'!S117 -> 0 | V126: =$H126*'Cron. Físico'!T117 -> 0 | W126: =$H126*'Cron. Físico'!U117 -> 0 | X126: =$H126*'Cron. Físico'!V117 -> 0 | Y126: =$H126*'Cron. Físico'!W117 -> 0 | Z126: =$H126*'Cron. Físico'!X117 -> 0 | AA126: =$H126*'Cron. Físico'!Y117 -> 0 | AB126: =$H126*'Cron. Físico'!Z117 -> 0 | AC126: =$H126*'Cron. Físico'!AA117 -> 0 | AD126: =$H126*'Cron. Físico'!AB117 -> 0 | AE126: =$H126*'Cron. Físico'!AC117 -> 0 | AF126: =$H126*'Cron. Físico'!AD117 -> 0 | AG126: =$H126*'Cron. Físico'!AE117 -> 0 | AH126: =$H126*'Cron. Físico'!AF117 -> 0 | AI126: =$H126*'Cron. Físico'!AG117 -> 0 | AJ126: =$H126*'Cron. Físico'!AH117 -> 0 | AK126: =$H126*'Cron. Físico'!AI117 -> 0 | AL126: =$H126*'Cron. Físico'!AJ117 -> 0 | AM126: =$H126*'Cron. Físico'!AK117 -> 0 | AO126: TRUE
C127: 8.1.4.25 | E127: 369CMG0070 | F127: M2 | G127: =_xlfn.XLOOKUP($E127,'Resumo Quant.'!$C:$C,'Resumo Quant.'!$G:$G) -> 0 | H127: =_xlfn.XLOOKUP($E127,'Resumo Preços'!$C:$C,'Resumo Preços'!$G:$G) -> 0 | J127: =$H127*'Cron. Físico'!H118 -> 0 | K127: =$H127*'Cron. Físico'!I118 -> 0 | L127: =$H127*'Cron. Físico'!J118 -> 0 | M127: =$H127*'Cron. Físico'!K118 -> 0 | N127: =$H127*'Cron. Físico'!L118 -> 0 | O127: =$H127*'Cron. Físico'!M118 -> 0 | P127: =$H127*'Cron. Físico'!N118 -> 0 | Q127: =$H127*'Cron. Físico'!O118 -> 0 | R127: =$H127*'Cron. Físico'!P118 -> 0 | S127: =$H127*'Cron. Físico'!Q118 -> 0 | T127: =$H127*'Cron. Físico'!R118 -> 0 | U127: =$H127*'Cron. Físico'!S118 -> 0 | V127: =$H127*'Cron. Físico'!T118 -> 0 | W127: =$H127*'Cron. Físico'!U118 -> 0 | X127: =$H127*'Cron. Físico'!V118 -> 0 | Y127: =$H127*'Cron. Físico'!W118 -> 0 | Z127: =$H127*'Cron. Físico'!X118 -> 0 | AA127: =$H127*'Cron. Físico'!Y118 -> 0 | AB127: =$H127*'Cron. Físico'!Z118 -> 0 | AC127: =$H127*'Cron. Físico'!AA118 -> 0 | AD127: =$H127*'Cron. Físico'!AB118 -> 0 | AE127: =$H127*'Cron. Físico'!AC118 -> 0 | AF127: =$H127*'Cron. Físico'!AD118 -> 0 | AG127: =$H127*'Cron. Físico'!AE118 -> 0 | AH127: =$H127*'Cron. Físico'!AF118 -> 0 | AI127: =$H127*'Cron. Físico'!AG118 -> 0 | AJ127: =$H127*'Cron. Físico'!AH118 -> 0 | AK127: =$H127*'Cron. Físico'!AI118 -> 0 | AL127: =$H127*'Cron. Físico'!AJ118 -> 0 | AM127: =$H127*'Cron. Físico'!AK118 -> 0 | AO127: TRUE
C128: 8.1.4.26 | E128: 369CMG0090 | F128: M2 | G128: =_xlfn.XLOOKUP($E128,'Resumo Quant.'!$C:$C,'Resumo Quant.'!$G:$G) -> 122,037.56 | H128: =_xlfn.XLOOKUP($E128,'Resumo Preços'!$C:$C,'Resumo Preços'!$G:$G) -> 8,506,017.93 | J128: =$H128*'Cron. Físico'!H119 -> 0 | K128: =$H128*'Cron. Físico'!I119 -> 0 | L128: =$H128*'Cron. Físico'!J119 -> 2,188,539.57 | M128: =$H128*'Cron. Físico'!K119 -> 0 | N128: =$H128*'Cron. Físico'!L119 -> 2,439,500.00 | O128: =$H128*'Cron. Físico'!M119 -> 3,877,978.36 | P128: =$H128*'Cron. Físico'!N119 -> 0 | Q128: =$H128*'Cron. Físico'!O119 -> 0 | R128: =$H128*'Cron. Físico'!P119 -> 0 | S128: =$H128*'Cron. Físico'!Q119 -> 0 | T128: =$H128*'Cron. Físico'!R119 -> 0 | U128: =$H128*'Cron. Físico'!S119 -> 0 | V128: =$H128*'Cron. Físico'!T119 -> 0 | W128: =$H128*'Cron. Físico'!U119 -> 0 | X128: =$H128*'Cron. Físico'!V119 -> 0 | Y128: =$H128*'Cron. Físico'!W119 -> 0 | Z128: =$H128*'Cron. Físico'!X119 -> 0 | AA128: =$H128*'Cron. Físico'!Y119 -> 0 | AB128: =$H128*'Cron. Físico'!Z119 -> 0 | AC128: =$H128*'Cron. Físico'!AA119 -> 0 | AD128: =$H128*'Cron. Físico'!AB119 -> 0 | AE128: =$H128*'Cron. Físico'!AC119 -> 0 | AF128: =$H128*'Cron. Físico'!AD119 -> 0 | AG128: =$H128*'Cron. Físico'!AE119 -> 0 | AH128: =$H128*'Cron. Físico'!AF119 -> 0 | AI128: =$H128*'Cron. Físico'!AG119 -> 0 | AJ128: =$H128*'Cron. Físico'!AH119 -> 0 | AK128: =$H128*'Cron. Físico'!AI119 -> 0 | AL128: =$H128*'Cron. Físico'!AJ119 -> 0 | AM128: =$H128*'Cron. Físico'!AK119 -> 0 | AN128: 100.00% | AO128: TRUE
C129: 8.1.4.27 | E129: VARGINHA | F129: M2 | G129: =_xlfn.XLOOKUP($E129,'Resumo Quant.'!$C:$C,'Resumo Quant.'!$G:$G) ->  | H129: =_xlfn.XLOOKUP($E129,'Resumo Preços'!$C:$C,'Resumo Preços'!$G:$G) ->  | J129: =$H129*'Cron. Físico'!#REF! ->  | K129: =$H129*'Cron. Físico'!#REF! ->  | L129: =$H129*'Cron. Físico'!#REF! ->  | M129: =$H129*'Cron. Físico'!#REF! ->  | N129: =$H129*'Cron. Físico'!#REF! ->  | O129: =$H129*'Cron. Físico'!#REF! ->  | P129: =$H129*'Cron. Físico'!#REF! ->  | Q129: =$H129*'Cron. Físico'!#REF! ->  | R129: =$H129*'Cron. Físico'!#REF! ->  | S129: =$H129*'Cron. Físico'!#REF! ->  | T129: =$H129*'Cron. Físico'!#REF! ->  | U129: =$H129*'Cron. Físico'!#REF! ->  | V129: =$H129*'Cron. Físico'!#REF! ->  | W129: =$H129*'Cron. Físico'!#REF! ->  | X129: =$H129*'Cron. Físico'!#REF! ->  | Y129: =$H129*'Cron. Físico'!#REF! ->  | Z129: =$H129*'Cron. Físico'!#REF! ->  | AA129: =$H129*'Cron. Físico'!#REF! ->  | AB129: =$H129*'Cron. Físico'!#REF! ->  | AC129: =$H129*'Cron. Físico'!#REF! ->  | AD129: =$H129*'Cron. Físico'!#REF! ->  | AE129: =$H129*'Cron. Físico'!#REF! ->  | AF129: =$H129*'Cron. Físico'!#REF! ->  | AG129: =$H129*'Cron. Físico'!#REF! ->  | AH129: =$H129*'Cron. Físico'!#REF! ->  | AI129: =$H129*'Cron. Físico'!#REF! ->  | AJ129: =$H129*'Cron. Físico'!#REF! ->  | AK129: =$H129*'Cron. Físico'!#REF! ->  | AL129: =$H129*'Cron. Físico'!#REF! ->  | AM129: =$H129*'Cron. Físico'!#REF! ->  | AN129: =SUM(J129:AM129)/H129 ->  | AO129: =SUM(J129:AM129)=H129 -> 
C130: 8.1.4.28 | E130: CAMPOS GERAIS | F130: M2 | G130: =_xlfn.XLOOKUP($E130,'Resumo Quant.'!$C:$C,'Resumo Quant.'!$G:$G) ->  | H130: =_xlfn.XLOOKUP($E130,'Resumo Preços'!$C:$C,'Resumo Preços'!$G:$G) ->  | J130: =$H130*'Cron. Físico'!#REF! ->  | K130: =$H130*'Cron. Físico'!#REF! ->  | L130: =$H130*'Cron. Físico'!#REF! ->  | M130: =$H130*'Cron. Físico'!#REF! ->  | N130: =$H130*'Cron. Físico'!#REF! ->  | O130: =$H130*'Cron. Físico'!#REF! ->  | P130: =$H130*'Cron. Físico'!#REF! ->  | Q130: =$H130*'Cron. Físico'!#REF! ->  | R130: =$H130*'Cron. Físico'!#REF! ->  | S130: =$H130*'Cron. Físico'!#REF! ->  | T130: =$H130*'Cron. Físico'!#REF! ->  | U130: =$H130*'Cron. Físico'!#REF! ->  | V130: =$H130*'Cron. Físico'!#REF! ->  | W130: =$H130*'Cron. Físico'!#REF! ->  | X130: =$H130*'Cron. Físico'!#REF! ->  | Y130: =$H130*'Cron. Físico'!#REF! ->  | Z130: =$H130*'Cron. Físico'!#REF! ->  | AA130: =$H130*'Cron. Físico'!#REF! ->  | AB130: =$H130*'Cron. Físico'!#REF! ->  | AC130: =$H130*'Cron. Físico'!#REF! ->  | AD130: =$H130*'Cron. Físico'!#REF! ->  | AE130: =$H130*'Cron. Físico'!#REF! ->  | AF130: =$H130*'Cron. Físico'!#REF! ->  | AG130: =$H130*'Cron. Físico'!#REF! ->  | AH130: =$H130*'Cron. Físico'!#REF! ->  | AI130: =$H130*'Cron. Físico'!#REF! ->  | AJ130: =$H130*'Cron. Físico'!#REF! ->  | AK130: =$H130*'Cron. Físico'!#REF! ->  | AL130: =$H130*'Cron. Físico'!#REF! ->  | AM130: =$H130*'Cron. Físico'!#REF! -> 
C131: 8.1.4.29 | E131: ALFENAS | F131: M2 | G131: =_xlfn.XLOOKUP($E131,'Resumo Quant.'!$C:$C,'Resumo Quant.'!$G:$G) ->  | H131: =_xlfn.XLOOKUP($E131,'Resumo Preços'!$C:$C,'Resumo Preços'!$G:$G) ->  | J131: =$H131*'Cron. Físico'!#REF! ->  | K131: =$H131*'Cron. Físico'!#REF! ->  | L131: =$H131*'Cron. Físico'!#REF! ->  | M131: =$H131*'Cron. Físico'!#REF! ->  | N131: =$H131*'Cron. Físico'!#REF! ->  | O131: =$H131*'Cron. Físico'!#REF! ->  | P131: =$H131*'Cron. Físico'!#REF! ->  | Q131: =$H131*'Cron. Físico'!#REF! ->  | R131: =$H131*'Cron. Físico'!#REF! ->  | S131: =$H131*'Cron. Físico'!#REF! ->  | T131: =$H131*'Cron. Físico'!#REF! ->  | U131: =$H131*'Cron. Físico'!#REF! ->  | V131: =$H131*'Cron. Físico'!#REF! ->  | W131: =$H131*'Cron. Físico'!#REF! ->  | X131: =$H131*'Cron. Físico'!#REF! ->  | Y131: =$H131*'Cron. Físico'!#REF! ->  | Z131: =$H131*'Cron. Físico'!#REF! ->  | AA131: =$H131*'Cron. Físico'!#REF! ->  | AB131: =$H131*'Cron. Físico'!#REF! ->  | AC131: =$H131*'Cron. Físico'!#REF! ->  | AD131: =$H131*'Cron. Físico'!#REF! ->  | AE131: =$H131*'Cron. Físico'!#REF! ->  | AF131: =$H131*'Cron. Físico'!#REF! ->  | AG131: =$H131*'Cron. Físico'!#REF! ->  | AH131: =$H131*'Cron. Físico'!#REF! ->  | AI131: =$H131*'Cron. Físico'!#REF! ->  | AJ131: =$H131*'Cron. Físico'!#REF! ->  | AK131: =$H131*'Cron. Físico'!#REF! ->  | AL131: =$H131*'Cron. Físico'!#REF! ->  | AM131: =$H131*'Cron. Físico'!#REF! -> 
A132: x | C132: 8.1.5 | E132: Reparo Superficial | H132: =SUM(H133:H161) ->  | J132: =SUM(J133:J161) ->  | K132: =SUM(K133:K161) -> 
C133: 8.1.5.1 | E133: 167EMG0200 | F133: M2 | G133: =_xlfn.XLOOKUP($E133,'Resumo Quant.'!$C:$C,'Resumo Quant.'!$H:$H) -> 7,548.13 | H133: =_xlfn.XLOOKUP($E133,'Resumo Preços'!$C:$C,'Resumo Preços'!$H:$H) -> 96,767.03 | J133: =$H133*'Cron. Físico'!H121 -> 106.28 | K133: =$H133*'Cron. Físico'!I121 -> 96,660.75 | L133: =$H133*'Cron. Físico'!J121 -> 0 | M133: =$H133*'Cron. Físico'!K121 -> 0 | N133: =$H133*'Cron. Físico'!L121 -> 0 | O133: =$H133*'Cron. Físico'!M121 -> 0 | P133: =$H133*'Cron. Físico'!N121 -> 0 | Q133: =$H133*'Cron. Físico'!O121 -> 0 | R133: =$H133*'Cron. Físico'!P121 -> 0 | S133: =$H133*'Cron. Físico'!Q121 -> 0 | T133: =$H133*'Cron. Físico'!R121 -> 0 | U133: =$H133*'Cron. Físico'!S121 -> 0 | V133: =$H133*'Cron. Físico'!T121 -> 0 | W133: =$H133*'Cron. Físico'!U121 -> 0 | X133: =$H133*'Cron. Físico'!V121 -> 0 | Y133: =$H133*'Cron. Físico'!W121 -> 0 | Z133: =$H133*'Cron. Físico'!X121 -> 0 | AA133: =$H133*'Cron. Físico'!Y121 -> 0 | AB133: =$H133*'Cron. Físico'!Z121 -> 0 | AC133: =$H133*'Cron. Físico'!AA121 -> 0 | AD133: =$H133*'Cron. Físico'!AB121 -> 0 | AE133: =$H133*'Cron. Físico'!AC121 -> 0 | AF133: =$H133*'Cron. Físico'!AD121 -> 0 | AG133: =$H133*'Cron. Físico'!AE121 -> 0 | AH133: =$H133*'Cron. Físico'!AF121 -> 0 | AI133: =$H133*'Cron. Físico'!AG121 -> 0 | AJ133: =$H133*'Cron. Físico'!AH121 -> 0 | AK133: =$H133*'Cron. Físico'!AI121 -> 0 | AL133: =$H133*'Cron. Físico'!AJ121 -> 0 | AM133: =$H133*'Cron. Físico'!AK121 -> 0 | AN133: =SUM(J133:AM133)/H133 -> 100.00% | AO133: TRUE
C134: 8.1.5.2 | E134: 167EMG0205 | F134: M2 | G134: =_xlfn.XLOOKUP($E134,'Resumo Quant.'!$C:$C,'Resumo Quant.'!$H:$H) -> 3,648.67 | H134: =_xlfn.XLOOKUP($E134,'Resumo Preços'!$C:$C,'Resumo Preços'!$H:$H) -> 46,775.95 | J134: =$H134*'Cron. Físico'!H122 -> 21.41 | K134: =$H134*'Cron. Físico'!I122 -> 46,754.54 | L134: =$H134*'Cron. Físico'!J122 -> 0 | M134: =$H134*'Cron. Físico'!K122 -> 0 | N134: =$H134*'Cron. Físico'!L122 -> 0 | O134: =$H134*'Cron. Físico'!M122 -> 0 | P134: =$H134*'Cron. Físico'!N122 -> 0 | Q134: =$H134*'Cron. Físico'!O122 -> 0 | R134: =$H134*'Cron. Físico'!P122 -> 0 | S134: =$H134*'Cron. Físico'!Q122 -> 0 | T134: =$H134*'Cron. Físico'!R122 -> 0 | U134: =$H134*'Cron. Físico'!S122 -> 0 | V134: =$H134*'Cron. Físico'!T122 -> 0 | W134: =$H134*'Cron. Físico'!U122 -> 0 | X134: =$H134*'Cron. Físico'!V122 -> 0 | Y134: =$H134*'Cron. Físico'!W122 -> 0 | Z134: =$H134*'Cron. Físico'!X122 -> 0 | AA134: =$H134*'Cron. Físico'!Y122 -> 0 | AB134: =$H134*'Cron. Físico'!Z122 -> 0 | AC134: =$H134*'Cron. Físico'!AA122 -> 0 | AD134: =$H134*'Cron. Físico'!AB122 -> 0 | AE134: =$H134*'Cron. Físico'!AC122 -> 0 | AF134: =$H134*'Cron. Físico'!AD122 -> 0 | AG134: =$H134*'Cron. Físico'!AE122 -> 0 | AH134: =$H134*'Cron. Físico'!AF122 -> 0 | AI134: =$H134*'Cron. Físico'!AG122 -> 0 | AJ134: =$H134*'Cron. Físico'!AH122 -> 0 | AK134: =$H134*'Cron. Físico'!AI122 -> 0 | AL134: =$H134*'Cron. Físico'!AJ122 -> 0 | AM134: =$H134*'Cron. Físico'!AK122 -> 0 | AN134: 100.00% | AO134: TRUE
C135: 8.1.5.3 | E135: 167EMG0220 | F135: M2 | G135: =_xlfn.XLOOKUP($E135,'Resumo Quant.'!$C:$C,'Resumo Quant.'!$H:$H) -> 7,156.20 | H135: =_xlfn.XLOOKUP($E135,'Resumo Preços'!$C:$C,'Resumo Preços'!$H:$H) -> 91,742.48 | J135: =$H135*'Cron. Físico'!H123 -> 122.82 | K135: =$H135*'Cron. Físico'!I123 -> 91,619.67 | L135: =$H135*'Cron. Físico'!J123 -> 0 | M135: =$H135*'Cron. Físico'!K123 -> 0 | N135: =$H135*'Cron. Físico'!L123 -> 0 | O135: =$H135*'Cron. Físico'!M123 -> 0 | P135: =$H135*'Cron. Físico'!N123 -> 0 | Q135: =$H135*'Cron. Físico'!O123 -> 0 | R135: =$H135*'Cron. Físico'!P123 -> 0 | S135: =$H135*'Cron. Físico'!Q123 -> 0 | T135: =$H135*'Cron. Físico'!R123 -> 0 | U135: =$H135*'Cron. Físico'!S123 -> 0 | V135: =$H135*'Cron. Físico'!T123 -> 0 | W135: =$H135*'Cron. Físico'!U123 -> 0 | X135: =$H135*'Cron. Físico'!V123 -> 0 | Y135: =$H135*'Cron. Físico'!W123 -> 0 | Z135: =$H135*'Cron. Físico'!X123 -> 0 | AA135: =$H135*'Cron. Físico'!Y123 -> 0 | AB135: =$H135*'Cron. Físico'!Z123 -> 0 | AC135: =$H135*'Cron. Físico'!AA123 -> 0 | AD135: =$H135*'Cron. Físico'!AB123 -> 0 | AE135: =$H135*'Cron. Físico'!AC123 -> 0 | AF135: =$H135*'Cron. Físico'!AD123 -> 0 | AG135: =$H135*'Cron. Físico'!AE123 -> 0 | AH135: =$H135*'Cron. Físico'!AF123 -> 0 | AI135: =$H135*'Cron. Físico'!AG123 -> 0 | AJ135: =$H135*'Cron. Físico'!AH123 -> 0 | AK135: =$H135*'Cron. Físico'!AI123 -> 0 | AL135: =$H135*'Cron. Físico'!AJ123 -> 0 | AM135: =$H135*'Cron. Físico'!AK123 -> 0 | AN135: 100.00% | AO135: TRUE
C136: 8.1.5.4 | E136: 265BMG0270 | F136: M2 | G136: =_xlfn.XLOOKUP($E136,'Resumo Quant.'!$C:$C,'Resumo Quant.'!$H:$H) -> 330.22 | H136: =_xlfn.XLOOKUP($E136,'Resumo Preços'!$C:$C,'Resumo Preços'!$H:$H) -> 4,233.42 | J136: =$H136*'Cron. Físico'!H124 -> 4,233.42 | K136: =$H136*'Cron. Físico'!I124 -> 0 | L136: =$H136*'Cron. Físico'!J124 -> 0 | M136: =$H136*'Cron. Físico'!K124 -> 0 | N136: =$H136*'Cron. Físico'!L124 -> 0 | O136: =$H136*'Cron. Físico'!M124 -> 0 | P136: =$H136*'Cron. Físico'!N124 -> 0 | Q136: =$H136*'Cron. Físico'!O124 -> 0 | R136: =$H136*'Cron. Físico'!P124 -> 0 | S136: =$H136*'Cron. Físico'!Q124 -> 0 | T136: =$H136*'Cron. Físico'!R124 -> 0 | U136: =$H136*'Cron. Físico'!S124 -> 0 | V136: =$H136*'Cron. Físico'!T124 -> 0 | W136: =$H136*'Cron. Físico'!U124 -> 0 | X136: =$H136*'Cron. Físico'!V124 -> 0 | Y136: =$H136*'Cron. Físico'!W124 -> 0 | Z136: =$H136*'Cron. Físico'!X124 -> 0 | AA136: =$H136*'Cron. Físico'!Y124 -> 0 | AB136: =$H136*'Cron. Físico'!Z124 -> 0 | AC136: =$H136*'Cron. Físico'!AA124 -> 0 | AD136: =$H136*'Cron. Físico'!AB124 -> 0 | AE136: =$H136*'Cron. Físico'!AC124 -> 0 | AF136: =$H136*'Cron. Físico'!AD124 -> 0 | AG136: =$H136*'Cron. Físico'!AE124 -> 0 | AH136: =$H136*'Cron. Físico'!AF124 -> 0 | AI136: =$H136*'Cron. Físico'!AG124 -> 0 | AJ136: =$H136*'Cron. Físico'!AH124 -> 0 | AK136: =$H136*'Cron. Físico'!AI124 -> 0 | AL136: =$H136*'Cron. Físico'!AJ124 -> 0 | AM136: =$H136*'Cron. Físico'!AK124 -> 0 | AN136: 100.00% | AO136: TRUE
C137: 8.1.5.5 | E137: 265BMG0290 | F137: M2 | G137: =_xlfn.XLOOKUP($E137,'Resumo Quant.'!$C:$C,'Resumo Quant.'!$H:$H) -> 7.21 | H137: =_xlfn.XLOOKUP($E137,'Resumo Preços'!$C:$C,'Resumo Preços'!$H:$H) -> 92.43 | J137: =$H137*'Cron. Físico'!H125 -> 92.43 | K137: =$H137*'Cron. Físico'!I125 -> 0 | L137: =$H137*'Cron. Físico'!J125 -> 0 | M137: =$H137*'Cron. Físico'!K125 -> 0 | N137: =$H137*'Cron. Físico'!L125 -> 0 | O137: =$H137*'Cron. Físico'!M125 -> 0 | P137: =$H137*'Cron. Físico'!N125 -> 0 | Q137: =$H137*'Cron. Físico'!O125 -> 0 | R137: =$H137*'Cron. Físico'!P125 -> 0 | S137: =$H137*'Cron. Físico'!Q125 -> 0 | T137: =$H137*'Cron. Físico'!R125 -> 0 | U137: =$H137*'Cron. Físico'!S125 -> 0 | V137: =$H137*'Cron. Físico'!T125 -> 0 | W137: =$H137*'Cron. Físico'!U125 -> 0 | X137: =$H137*'Cron. Físico'!V125 -> 0 | Y137: =$H137*'Cron. Físico'!W125 -> 0 | Z137: =$H137*'Cron. Físico'!X125 -> 0 | AA137: =$H137*'Cron. Físico'!Y125 -> 0 | AB137: =$H137*'Cron. Físico'!Z125 -> 0 | AC137: =$H137*'Cron. Físico'!AA125 -> 0 | AD137: =$H137*'Cron. Físico'!AB125 -> 0 | AE137: =$H137*'Cron. Físico'!AC125 -> 0 | AF137: =$H137*'Cron. Físico'!AD125 -> 0 | AG137: =$H137*'Cron. Físico'!AE125 -> 0 | AH137: =$H137*'Cron. Físico'!AF125 -> 0 | AI137: =$H137*'Cron. Físico'!AG125 -> 0 | AJ137: =$H137*'Cron. Físico'!AH125 -> 0 | AK137: =$H137*'Cron. Físico'!AI125 -> 0 | AL137: =$H137*'Cron. Físico'!AJ125 -> 0 | AM137: =$H137*'Cron. Físico'!AK125 -> 0 | AN137: 100.00% | AO137: TRUE
C138: 8.1.5.6 | E138: 265BMG0305 | F138: M2 | G138: =_xlfn.XLOOKUP($E138,'Resumo Quant.'!$C:$C,'Resumo Quant.'!$H:$H) -> 5.18 | H138: =_xlfn.XLOOKUP($E138,'Resumo Preços'!$C:$C,'Resumo Preços'!$H:$H) -> 66.41 | J138: =$H138*'Cron. Físico'!H126 -> 66.41 | K138: =$H138*'Cron. Físico'!I126 -> 0 | L138: =$H138*'Cron. Físico'!J126 -> 0 | M138: =$H138*'Cron. Físico'!K126 -> 0 | N138: =$H138*'Cron. Físico'!L126 -> 0 | O138: =$H138*'Cron. Físico'!M126 -> 0 | P138: =$H138*'Cron. Físico'!N126 -> 0 | Q138: =$H138*'Cron. Físico'!O126 -> 0 | R138: =$H138*'Cron. Físico'!P126 -> 0 | S138: =$H138*'Cron. Físico'!Q126 -> 0 | T138: =$H138*'Cron. Físico'!R126 -> 0 | U138: =$H138*'Cron. Físico'!S126 -> 0 | V138: =$H138*'Cron. Físico'!T126 -> 0 | W138: =$H138*'Cron. Físico'!U126 -> 0 | X138: =$H138*'Cron. Físico'!V126 -> 0 | Y138: =$H138*'Cron. Físico'!W126 -> 0 | Z138: =$H138*'Cron. Físico'!X126 -> 0 | AA138: =$H138*'Cron. Físico'!Y126 -> 0 | AB138: =$H138*'Cron. Físico'!Z126 -> 0 | AC138: =$H138*'Cron. Físico'!AA126 -> 0 | AD138: =$H138*'Cron. Físico'!AB126 -> 0 | AE138: =$H138*'Cron. Físico'!AC126 -> 0 | AF138: =$H138*'Cron. Físico'!AD126 -> 0 | AG138: =$H138*'Cron. Físico'!AE126 -> 0 | AH138: =$H138*'Cron. Físico'!AF126 -> 0 | AI138: =$H138*'Cron. Físico'!AG126 -> 0 | AJ138: =$H138*'Cron. Físico'!AH126 -> 0 | AK138: =$H138*'Cron. Físico'!AI126 -> 0 | AL138: =$H138*'Cron. Físico'!AJ126 -> 0 | AM138: =$H138*'Cron. Físico'!AK126 -> 0 | AN138: 100.00% | AO138: TRUE
C139: 8.1.5.7 | E139: 265BMG0310 | F139: M2 | G139: =_xlfn.XLOOKUP($E139,'Resumo Quant.'!$C:$C,'Resumo Quant.'!$H:$H) -> 0 | H139: =_xlfn.XLOOKUP($E139,'Resumo Preços'!$C:$C,'Resumo Preços'!$H:$H) -> 0 | J139: =$H139*'Cron. Físico'!H127 -> 0 | K139: =$H139*'Cron. Físico'!I127 -> 0 | L139: =$H139*'Cron. Físico'!J127 -> 0 | M139: =$H139*'Cron. Físico'!K127 -> 0 | N139: =$H139*'Cron. Físico'!L127 -> 0 | O139: =$H139*'Cron. Físico'!M127 -> 0 | P139: =$H139*'Cron. Físico'!N127 -> 0 | Q139: =$H139*'Cron. Físico'!O127 -> 0 | R139: =$H139*'Cron. Físico'!P127 -> 0 | S139: =$H139*'Cron. Físico'!Q127 -> 0 | T139: =$H139*'Cron. Físico'!R127 -> 0 | U139: =$H139*'Cron. Físico'!S127 -> 0 | V139: =$H139*'Cron. Físico'!T127 -> 0 | W139: =$H139*'Cron. Físico'!U127 -> 0 | X139: =$H139*'Cron. Físico'!V127 -> 0 | Y139: =$H139*'Cron. Físico'!W127 -> 0 | Z139: =$H139*'Cron. Físico'!X127 -> 0 | AA139: =$H139*'Cron. Físico'!Y127 -> 0 | AB139: =$H139*'Cron. Físico'!Z127 -> 0 | AC139: =$H139*'Cron. Físico'!AA127 -> 0 | AD139: =$H139*'Cron. Físico'!AB127 -> 0 | AE139: =$H139*'Cron. Físico'!AC127 -> 0 | AF139: =$H139*'Cron. Físico'!AD127 -> 0 | AG139: =$H139*'Cron. Físico'!AE127 -> 0 | AH139: =$H139*'Cron. Físico'!AF127 -> 0 | AI139: =$H139*'Cron. Físico'!AG127 -> 0 | AJ139: =$H139*'Cron. Físico'!AH127 -> 0 | AK139: =$H139*'Cron. Físico'!AI127 -> 0 | AL139: =$H139*'Cron. Físico'!AJ127 -> 0 | AM139: =$H139*'Cron. Físico'!AK127 -> 0 | AO139: TRUE
C140: 8.1.5.8 | E140: 265BMG0311 | F140: M2 | G140: =_xlfn.XLOOKUP($E140,'Resumo Quant.'!$C:$C,'Resumo Quant.'!$H:$H) -> 9,187.29 | H140: =_xlfn.XLOOKUP($E140,'Resumo Preços'!$C:$C,'Resumo Preços'!$H:$H) -> 117,781.06 | J140: =$H140*'Cron. Físico'!H128 -> 44.74 | K140: =$H140*'Cron. Físico'!I128 -> 117,736.32 | L140: =$H140*'Cron. Físico'!J128 -> 0 | M140: =$H140*'Cron. Físico'!K128 -> 0 | N140: =$H140*'Cron. Físico'!L128 -> 0 | O140: =$H140*'Cron. Físico'!M128 -> 0 | P140: =$H140*'Cron. Físico'!N128 -> 0 | Q140: =$H140*'Cron. Físico'!O128 -> 0 | R140: =$H140*'Cron. Físico'!P128 -> 0 | S140: =$H140*'Cron. Físico'!Q128 -> 0 | T140: =$H140*'Cron. Físico'!R128 -> 0 | U140: =$H140*'Cron. Físico'!S128 -> 0 | V140: =$H140*'Cron. Físico'!T128 -> 0 | W140: =$H140*'Cron. Físico'!U128 -> 0 | X140: =$H140*'Cron. Físico'!V128 -> 0 | Y140: =$H140*'Cron. Físico'!W128 -> 0 | Z140: =$H140*'Cron. Físico'!X128 -> 0 | AA140: =$H140*'Cron. Físico'!Y128 -> 0 | AB140: =$H140*'Cron. Físico'!Z128 -> 0 | AC140: =$H140*'Cron. Físico'!AA128 -> 0 | AD140: =$H140*'Cron. Físico'!AB128 -> 0 | AE140: =$H140*'Cron. Físico'!AC128 -> 0 | AF140: =$H140*'Cron. Físico'!AD128 -> 0 | AG140: =$H140*'Cron. Físico'!AE128 -> 0 | AH140: =$H140*'Cron. Físico'!AF128 -> 0 | AI140: =$H140*'Cron. Físico'!AG128 -> 0 | AJ140: =$H140*'Cron. Físico'!AH128 -> 0 | AK140: =$H140*'Cron. Físico'!AI128 -> 0 | AL140: =$H140*'Cron. Físico'!AJ128 -> 0 | AM140: =$H140*'Cron. Físico'!AK128 -> 0 | AN140: 100.00% | AO140: =SUM(J140:AM140)=H140 -> TRUE
C141: 8.1.5.9 | E141: 863LMG0010 | F141: M2 | G141: =_xlfn.XLOOKUP($E141,'Resumo Quant.'!$C:$C,'Resumo Quant.'!$H:$H) -> 0 | H141: =_xlfn.XLOOKUP($E141,'Resumo Preços'!$C:$C,'Resumo Preços'!$H:$H) -> 0 | J141: =$H141*'Cron. Físico'!H129 -> 0 | K141: =$H141*'Cron. Físico'!I129 -> 0 | L141: =$H141*'Cron. Físico'!J129 -> 0 | M141: =$H141*'Cron. Físico'!K129 -> 0 | N141: =$H141*'Cron. Físico'!L129 -> 0 | O141: =$H141*'Cron. Físico'!M129 -> 0 | P141: =$H141*'Cron. Físico'!N129 -> 0 | Q141: =$H141*'Cron. Físico'!O129 -> 0 | R141: =$H141*'Cron. Físico'!P129 -> 0 | S141: =$H141*'Cron. Físico'!Q129 -> 0 | T141: =$H141*'Cron. Físico'!R129 -> 0 | U141: =$H141*'Cron. Físico'!S129 -> 0 | V141: =$H141*'Cron. Físico'!T129 -> 0 | W141: =$H141*'Cron. Físico'!U129 -> 0 | X141: =$H141*'Cron. Físico'!V129 -> 0 | Y141: =$H141*'Cron. Físico'!W129 -> 0 | Z141: =$H141*'Cron. Físico'!X129 -> 0 | AA141: =$H141*'Cron. Físico'!Y129 -> 0 | AB141: =$H141*'Cron. Físico'!Z129 -> 0 | AC141: =$H141*'Cron. Físico'!AA129 -> 0 | AD141: =$H141*'Cron. Físico'!AB129 -> 0 | AE141: =$H141*'Cron. Físico'!AC129 -> 0 | AF141: =$H141*'Cron. Físico'!AD129 -> 0 | AG141: =$H141*'Cron. Físico'!AE129 -> 0 | AH141: =$H141*'Cron. Físico'!AF129 -> 0 | AI141: =$H141*'Cron. Físico'!AG129 -> 0 | AJ141: =$H141*'Cron. Físico'!AH129 -> 0 | AK141: =$H141*'Cron. Físico'!AI129 -> 0 | AL141: =$H141*'Cron. Físico'!AJ129 -> 0 | AM141: =$H141*'Cron. Físico'!AK129 -> 0 | AO141: TRUE
C142: 8.1.5.10 | E142: 491CMG0010 | F142: M2 | G142: =_xlfn.XLOOKUP($E142,'Resumo Quant.'!$C:$C,'Resumo Quant.'!$H:$H) -> 11,388.86 | H142: =_xlfn.XLOOKUP($E142,'Resumo Preços'!$C:$C,'Resumo Preços'!$H:$H) -> 146,005.19 | J142: =$H142*'Cron. Físico'!H130 -> 3,809.98 | K142: =$H142*'Cron. Físico'!I130 -> 142,195.21 | L142: =$H142*'Cron. Físico'!J130 -> 0 | M142: =$H142*'Cron. Físico'!K130 -> 0 | N142: =$H142*'Cron. Físico'!L130 -> 0 | O142: =$H142*'Cron. Físico'!M130 -> 0 | P142: =$H142*'Cron. Físico'!N130 -> 0 | Q142: =$H142*'Cron. Físico'!O130 -> 0 | R142: =$H142*'Cron. Físico'!P130 -> 0 | S142: =$H142*'Cron. Físico'!Q130 -> 0 | T142: =$H142*'Cron. Físico'!R130 -> 0 | U142: =$H142*'Cron. Físico'!S130 -> 0 | V142: =$H142*'Cron. Físico'!T130 -> 0 | W142: =$H142*'Cron. Físico'!U130 -> 0 | X142: =$H142*'Cron. Físico'!V130 -> 0 | Y142: =$H142*'Cron. Físico'!W130 -> 0 | Z142: =$H142*'Cron. Físico'!X130 -> 0 | AA142: =$H142*'Cron. Físico'!Y130 -> 0 | AB142: =$H142*'Cron. Físico'!Z130 -> 0 | AC142: =$H142*'Cron. Físico'!AA130 -> 0 | AD142: =$H142*'Cron. Físico'!AB130 -> 0 | AE142: =$H142*'Cron. Físico'!AC130 -> 0 | AF142: =$H142*'Cron. Físico'!AD130 -> 0 | AG142: =$H142*'Cron. Físico'!AE130 -> 0 | AH142: =$H142*'Cron. Físico'!AF130 -> 0 | AI142: =$H142*'Cron. Físico'!AG130 -> 0 | AJ142: =$H142*'Cron. Físico'!AH130 -> 0 | AK142: =$H142*'Cron. Físico'!AI130 -> 0 | AL142: =$H142*'Cron. Físico'!AJ130 -> 0 | AM142: =$H142*'Cron. Físico'!AK130 -> 0 | AN142: 100.00% | AO142: TRUE
C143: 8.1.5.11 | E143: 491CMG0023 | F143: M2 | G143: =_xlfn.XLOOKUP($E143,'Resumo Quant.'!$C:$C,'Resumo Quant.'!$H:$H) -> 6,090.28 | H143: =_xlfn.XLOOKUP($E143,'Resumo Preços'!$C:$C,'Resumo Preços'!$H:$H) -> 78,077.39 | J143: =$H143*'Cron. Físico'!H131 -> 41.54 | K143: =$H143*'Cron. Físico'!I131 -> 0 | L143: =$H143*'Cron. Físico'!J131 -> 0 | M143: =$H143*'Cron. Físico'!K131 -> 0 | N143: =$H143*'Cron. Físico'!L131 -> 0 | O143: =$H143*'Cron. Físico'!M131 -> 78,035.85 | P143: =$H143*'Cron. Físico'!N131 -> 0 | Q143: =$H143*'Cron. Físico'!O131 -> 0 | R143: =$H143*'Cron. Físico'!P131 -> 0 | S143: =$H143*'Cron. Físico'!Q131 -> 0 | T143: =$H143*'Cron. Físico'!R131 -> 0 | U143: =$H143*'Cron. Físico'!S131 -> 0 | V143: =$H143*'Cron. Físico'!T131 -> 0 | W143: =$H143*'Cron. Físico'!U131 -> 0 | X143: =$H143*'Cron. Físico'!V131 -> 0 | Y143: =$H143*'Cron. Físico'!W131 -> 0 | Z143: =$H143*'Cron. Físico'!X131 -> 0 | AA143: =$H143*'Cron. Físico'!Y131 -> 0 | AB143: =$H143*'Cron. Físico'!Z131 -> 0 | AC143: =$H143*'Cron. Físico'!AA131 -> 0 | AD143: =$H143*'Cron. Físico'!AB131 -> 0 | AE143: =$H143*'Cron. Físico'!AC131 -> 0 | AF143: =$H143*'Cron. Físico'!AD131 -> 0 | AG143: =$H143*'Cron. Físico'!AE131 -> 0 | AH143: =$H143*'Cron. Físico'!AF131 -> 0 | AI143: =$H143*'Cron. Físico'!AG131 -> 0 | AJ143: =$H143*'Cron. Físico'!AH131 -> 0 | AK143: =$H143*'Cron. Físico'!AI131 -> 0 | AL143: =$H143*'Cron. Físico'!AJ131 -> 0 | AM143: =$H143*'Cron. Físico'!AK131 -> 0 | AN143: 100.00% | AO143: TRUE
C144: 8.1.5.12 | E144: 491CMG0050 | F144: M2 | G144: =_xlfn.XLOOKUP($E144,'Resumo Quant.'!$C:$C,'Resumo Quant.'!$H:$H) -> 7,215.45 | H144: =_xlfn.XLOOKUP($E144,'Resumo Preços'!$C:$C,'Resumo Preços'!$H:$H) -> 92,502.07 | J144: =$H144*'Cron. Físico'!H132 -> 14,488.27 | K144: =$H144*'Cron. Físico'!I132 -> 78,013.80 | L144: =$H144*'Cron. Físico'!J132 -> 0 | M144: =$H144*'Cron. Físico'!K132 -> 0 | N144: =$H144*'Cron. Físico'!L132 -> 0 | O144: =$H144*'Cron. Físico'!M132 -> 0 | P144: =$H144*'Cron. Físico'!N132 -> 0 | Q144: =$H144*'Cron. Físico'!O132 -> 0 | R144: =$H144*'Cron. Físico'!P132 -> 0 | S144: =$H144*'Cron. Físico'!Q132 -> 0 | T144: =$H144*'Cron. Físico'!R132 -> 0 | U144: =$H144*'Cron. Físico'!S132 -> 0 | V144: =$H144*'Cron. Físico'!T132 -> 0 | W144: =$H144*'Cron. Físico'!U132 -> 0 | X144: =$H144*'Cron. Físico'!V132 -> 0 | Y144: =$H144*'Cron. Físico'!W132 -> 0 | Z144: =$H144*'Cron. Físico'!X132 -> 0 | AA144: =$H144*'Cron. Físico'!Y132 -> 0 | AB144: =$H144*'Cron. Físico'!Z132 -> 0 | AC144: =$H144*'Cron. Físico'!AA132 -> 0 | AD144: =$H144*'Cron. Físico'!AB132 -> 0 | AE144: =$H144*'Cron. Físico'!AC132 -> 0 | AF144: =$H144*'Cron. Físico'!AD132 -> 0 | AG144: =$H144*'Cron. Físico'!AE132 -> 0 | AH144: =$H144*'Cron. Físico'!AF132 -> 0 | AI144: =$H144*'Cron. Físico'!AG132 -> 0 | AJ144: =$H144*'Cron. Físico'!AH132 -> 0 | AK144: =$H144*'Cron. Físico'!AI132 -> 0 | AL144: =$H144*'Cron. Físico'!AJ132 -> 0 | AM144: =$H144*'Cron. Físico'!AK132 -> 0 | AN144: 100.00% | AO144: TRUE
C145: 8.1.5.13 | E145: 491CMG0090 | F145: M2 | G145: =_xlfn.XLOOKUP($E145,'Resumo Quant.'!$C:$C,'Resumo Quant.'!$H:$H) -> 2,390.30 | H145: =_xlfn.XLOOKUP($E145,'Resumo Preços'!$C:$C,'Resumo Preços'!$H:$H) -> 30,643.65 | J145: =$H145*'Cron. Físico'!H133 -> 8,961.82 | K145: =$H145*'Cron. Físico'!I133 -> 12,391.56 | L145: =$H145*'Cron. Físico'!J133 -> 0 | M145: =$H145*'Cron. Físico'!K133 -> 0 | N145: =$H145*'Cron. Físico'!L133 -> 0 | O145: =$H145*'Cron. Físico'!M133 -> 9,290.27 | P145: =$H145*'Cron. Físico'!N133 -> 0 | Q145: =$H145*'Cron. Físico'!O133 -> 0 | R145: =$H145*'Cron. Físico'!P133 -> 0 | S145: =$H145*'Cron. Físico'!Q133 -> 0 | T145: =$H145*'Cron. Físico'!R133 -> 0 | U145: =$H145*'Cron. Físico'!S133 -> 0 | V145: =$H145*'Cron. Físico'!T133 -> 0 | W145: =$H145*'Cron. Físico'!U133 -> 0 | X145: =$H145*'Cron. Físico'!V133 -> 0 | Y145: =$H145*'Cron. Físico'!W133 -> 0 | Z145: =$H145*'Cron. Físico'!X133 -> 0 | AA145: =$H145*'Cron. Físico'!Y133 -> 0 | AB145: =$H145*'Cron. Físico'!Z133 -> 0 | AC145: =$H145*'Cron. Físico'!AA133 -> 0 | AD145: =$H145*'Cron. Físico'!AB133 -> 0 | AE145: =$H145*'Cron. Físico'!AC133 -> 0 | AF145: =$H145*'Cron. Físico'!AD133 -> 0 | AG145: =$H145*'Cron. Físico'!AE133 -> 0 | AH145: =$H145*'Cron. Físico'!AF133 -> 0 | AI145: =$H145*'Cron. Físico'!AG133 -> 0 | AJ145: =$H145*'Cron. Físico'!AH133 -> 0 | AK145: =$H145*'Cron. Físico'!AI133 -> 0 | AL145: =$H145*'Cron. Físico'!AJ133 -> 0 | AM145: =$H145*'Cron. Físico'!AK133 -> 0 | AN145: 100.00% | AO145: TRUE
C146: 8.1.5.14 | E146: 491CMG0100 | F146: M2 | G146: =_xlfn.XLOOKUP($E146,'Resumo Quant.'!$C:$C,'Resumo Quant.'!$H:$H) -> 0 | H146: =_xlfn.XLOOKUP($E146,'Resumo Preços'!$C:$C,'Resumo Preços'!$H:$H) -> 0 | J146: =$H146*'Cron. Físico'!H134 -> 0 | K146: =$H146*'Cron. Físico'!I134 -> 0 | L146: =$H146*'Cron. Físico'!J134 -> 0 | M146: =$H146*'Cron. Físico'!K134 -> 0 | N146: =$H146*'Cron. Físico'!L134 -> 0 | O146: =$H146*'Cron. Físico'!M134 -> 0 | P146: =$H146*'Cron. Físico'!N134 -> 0 | Q146: =$H146*'Cron. Físico'!O134 -> 0 | R146: =$H146*'Cron. Físico'!P134 -> 0 | S146: =$H146*'Cron. Físico'!Q134 -> 0 | T146: =$H146*'Cron. Físico'!R134 -> 0 | U146: =$H146*'Cron. Físico'!S134 -> 0 | V146: =$H146*'Cron. Físico'!T134 -> 0 | W146: =$H146*'Cron. Físico'!U134 -> 0 | X146: =$H146*'Cron. Físico'!V134 -> 0 | Y146: =$H146*'Cron. Físico'!W134 -> 0 | Z146: =$H146*'Cron. Físico'!X134 -> 0 | AA146: =$H146*'Cron. Físico'!Y134 -> 0 | AB146: =$H146*'Cron. Físico'!Z134 -> 0 | AC146: =$H146*'Cron. Físico'!AA134 -> 0 | AD146: =$H146*'Cron. Físico'!AB134 -> 0 | AE146: =$H146*'Cron. Físico'!AC134 -> 0 | AF146: =$H146*'Cron. Físico'!AD134 -> 0 | AG146: =$H146*'Cron. Físico'!AE134 -> 0 | AH146: =$H146*'Cron. Físico'!AF134 -> 0 | AI146: =$H146*'Cron. Físico'!AG134 -> 0 | AJ146: =$H146*'Cron. Físico'!AH134 -> 0 | AK146: =$H146*'Cron. Físico'!AI134 -> 0 | AL146: =$H146*'Cron. Físico'!AJ134 -> 0 | AM146: =$H146*'Cron. Físico'!AK134 -> 0 | AO146: TRUE
C147: 8.1.5.15 | E147: 491CMG0230 | F147: M2 | G147: =_xlfn.XLOOKUP($E147,'Resumo Quant.'!$C:$C,'Resumo Quant.'!$H:$H) -> 3,808.79 | H147: =_xlfn.XLOOKUP($E147,'Resumo Preços'!$C:$C,'Resumo Preços'!$H:$H) -> 48,828.69 | J147: =$H147*'Cron. Físico'!H135 -> 48,828.69 | K147: =$H147*'Cron. Físico'!I135 -> 0 | L147: =$H147*'Cron. Físico'!J135 -> 0 | M147: =$H147*'Cron. Físico'!K135 -> 0 | N147: =$H147*'Cron. Físico'!L135 -> 0 | O147: =$H147*'Cron. Físico'!M135 -> 0 | P147: =$H147*'Cron. Físico'!N135 -> 0 | Q147: =$H147*'Cron. Físico'!O135 -> 0 | R147: =$H147*'Cron. Físico'!P135 -> 0 | S147: =$H147*'Cron. Físico'!Q135 -> 0 | T147: =$H147*'Cron. Físico'!R135 -> 0 | U147: =$H147*'Cron. Físico'!S135 -> 0 | V147: =$H147*'Cron. Físico'!T135 -> 0 | W147: =$H147*'Cron. Físico'!U135 -> 0 | X147: =$H147*'Cron. Físico'!V135 -> 0 | Y147: =$H147*'Cron. Físico'!W135 -> 0 | Z147: =$H147*'Cron. Físico'!X135 -> 0 | AA147: =$H147*'Cron. Físico'!Y135 -> 0 | AB147: =$H147*'Cron. Físico'!Z135 -> 0 | AC147: =$H147*'Cron. Físico'!AA135 -> 0 | AD147: =$H147*'Cron. Físico'!AB135 -> 0 | AE147: =$H147*'Cron. Físico'!AC135 -> 0 | AF147: =$H147*'Cron. Físico'!AD135 -> 0 | AG147: =$H147*'Cron. Físico'!AE135 -> 0 | AH147: =$H147*'Cron. Físico'!AF135 -> 0 | AI147: =$H147*'Cron. Físico'!AG135 -> 0 | AJ147: =$H147*'Cron. Físico'!AH135 -> 0 | AK147: =$H147*'Cron. Físico'!AI135 -> 0 | AL147: =$H147*'Cron. Físico'!AJ135 -> 0 | AM147: =$H147*'Cron. Físico'!AK135 -> 0 | AN147: 100.00% | AO147: TRUE
C148: 8.1.5.16 | E148: 491CMG0030 | F148: M2 | G148: =_xlfn.XLOOKUP($E148,'Resumo Quant.'!$C:$C,'Resumo Quant.'!$H:$H) -> 3,447.45 | H148: =_xlfn.XLOOKUP($E148,'Resumo Preços'!$C:$C,'Resumo Preços'!$H:$H) -> 44,196.31 | J148: =$H148*'Cron. Físico'!H136 -> 0 | K148: =$H148*'Cron. Físico'!I136 -> 0 | L148: =$H148*'Cron. Físico'!J136 -> 0 | M148: =$H148*'Cron. Físico'!K136 -> 0 | N148: =$H148*'Cron. Físico'!L136 -> 0 | O148: =$H148*'Cron. Físico'!M136 -> 44,196.31 | P148: =$H148*'Cron. Físico'!N136 -> 0 | Q148: =$H148*'Cron. Físico'!O136 -> 0 | R148: =$H148*'Cron. Físico'!P136 -> 0 | S148: =$H148*'Cron. Físico'!Q136 -> 0 | T148: =$H148*'Cron. Físico'!R136 -> 0 | U148: =$H148*'Cron. Físico'!S136 -> 0 | V148: =$H148*'Cron. Físico'!T136 -> 0 | W148: =$H148*'Cron. Físico'!U136 -> 0 | X148: =$H148*'Cron. Físico'!V136 -> 0 | Y148: =$H148*'Cron. Físico'!W136 -> 0 | Z148: =$H148*'Cron. Físico'!X136 -> 0 | AA148: =$H148*'Cron. Físico'!Y136 -> 0 | AB148: =$H148*'Cron. Físico'!Z136 -> 0 | AC148: =$H148*'Cron. Físico'!AA136 -> 0 | AD148: =$H148*'Cron. Físico'!AB136 -> 0 | AE148: =$H148*'Cron. Físico'!AC136 -> 0 | AF148: =$H148*'Cron. Físico'!AD136 -> 0 | AG148: =$H148*'Cron. Físico'!AE136 -> 0 | AH148: =$H148*'Cron. Físico'!AF136 -> 0 | AI148: =$H148*'Cron. Físico'!AG136 -> 0 | AJ148: =$H148*'Cron. Físico'!AH136 -> 0 | AK148: =$H148*'Cron. Físico'!AI136 -> 0 | AL148: =$H148*'Cron. Físico'!AJ136 -> 0 | AM148: =$H148*'Cron. Físico'!AK136 -> 0 | AN148: 100.00% | AO148: TRUE
C149: 8.1.5.17 | E149: 491CMG0110 | F149: M2 | G149: =_xlfn.XLOOKUP($E149,'Resumo Quant.'!$C:$C,'Resumo Quant.'!$H:$H) -> 2,344.67 | H149: =_xlfn.XLOOKUP($E149,'Resumo Preços'!$C:$C,'Resumo Preços'!$H:$H) -> 30,058.67 | J149: =$H149*'Cron. Físico'!H137 -> 30,058.67 | K149: =$H149*'Cron. Físico'!I137 -> 0 | L149: =$H149*'Cron. Físico'!J137 -> 0 | M149: =$H149*'Cron. Físico'!K137 -> 0 | N149: =$H149*'Cron. Físico'!L137 -> 0 | O149: =$H149*'Cron. Físico'!M137 -> 0 | P149: =$H149*'Cron. Físico'!N137 -> 0 | Q149: =$H149*'Cron. Físico'!O137 -> 0 | R149: =$H149*'Cron. Físico'!P137 -> 0 | S149: =$H149*'Cron. Físico'!Q137 -> 0 | T149: =$H149*'Cron. Físico'!R137 -> 0 | U149: =$H149*'Cron. Físico'!S137 -> 0 | V149: =$H149*'Cron. Físico'!T137 -> 0 | W149: =$H149*'Cron. Físico'!U137 -> 0 | X149: =$H149*'Cron. Físico'!V137 -> 0 | Y149: =$H149*'Cron. Físico'!W137 -> 0 | Z149: =$H149*'Cron. Físico'!X137 -> 0 | AA149: =$H149*'Cron. Físico'!Y137 -> 0 | AB149: =$H149*'Cron. Físico'!Z137 -> 0 | AC149: =$H149*'Cron. Físico'!AA137 -> 0 | AD149: =$H149*'Cron. Físico'!AB137 -> 0 | AE149: =$H149*'Cron. Físico'!AC137 -> 0 | AF149: =$H149*'Cron. Físico'!AD137 -> 0 | AG149: =$H149*'Cron. Físico'!AE137 -> 0 | AH149: =$H149*'Cron. Físico'!AF137 -> 0 | AI149: =$H149*'Cron. Físico'!AG137 -> 0 | AJ149: =$H149*'Cron. Físico'!AH137 -> 0 | AK149: =$H149*'Cron. Físico'!AI137 -> 0 | AL149: =$H149*'Cron. Físico'!AJ137 -> 0 | AM149: =$H149*'Cron. Físico'!AK137 -> 0 | AN149: 100.00% | AO149: TRUE
C150: 8.1.5.18 | E150: 491CMG0130 | F150: M2 | G150: =_xlfn.XLOOKUP($E150,'Resumo Quant.'!$C:$C,'Resumo Quant.'!$H:$H) -> 1,086.80 | H150: =_xlfn.XLOOKUP($E150,'Resumo Preços'!$C:$C,'Resumo Preços'!$H:$H) -> 13,932.78 | J150: =$H150*'Cron. Físico'!H138 -> 13,932.78 | K150: =$H150*'Cron. Físico'!I138 -> 0 | L150: =$H150*'Cron. Físico'!J138 -> 0 | M150: =$H150*'Cron. Físico'!K138 -> 0 | N150: =$H150*'Cron. Físico'!L138 -> 0 | O150: =$H150*'Cron. Físico'!M138 -> 0 | P150: =$H150*'Cron. Físico'!N138 -> 0 | Q150: =$H150*'Cron. Físico'!O138 -> 0 | R150: =$H150*'Cron. Físico'!P138 -> 0 | S150: =$H150*'Cron. Físico'!Q138 -> 0 | T150: =$H150*'Cron. Físico'!R138 -> 0 | U150: =$H150*'Cron. Físico'!S138 -> 0 | V150: =$H150*'Cron. Físico'!T138 -> 0 | W150: =$H150*'Cron. Físico'!U138 -> 0 | X150: =$H150*'Cron. Físico'!V138 -> 0 | Y150: =$H150*'Cron. Físico'!W138 -> 0 | Z150: =$H150*'Cron. Físico'!X138 -> 0 | AA150: =$H150*'Cron. Físico'!Y138 -> 0 | AB150: =$H150*'Cron. Físico'!Z138 -> 0 | AC150: =$H150*'Cron. Físico'!AA138 -> 0 | AD150: =$H150*'Cron. Físico'!AB138 -> 0 | AE150: =$H150*'Cron. Físico'!AC138 -> 0 | AF150: =$H150*'Cron. Físico'!AD138 -> 0 | AG150: =$H150*'Cron. Físico'!AE138 -> 0 | AH150: =$H150*'Cron. Físico'!AF138 -> 0 | AI150: =$H150*'Cron. Físico'!AG138 -> 0 | AJ150: =$H150*'Cron. Físico'!AH138 -> 0 | AK150: =$H150*'Cron. Físico'!AI138 -> 0 | AL150: =$H150*'Cron. Físico'!AJ138 -> 0 | AM150: =$H150*'Cron. Físico'!AK138 -> 0 | AN150: 100.00% | AO150: TRUE
C151: 8.1.5.19 | E151: 491CMG0150 | F151: M2 | G151: =_xlfn.XLOOKUP($E151,'Resumo Quant.'!$C:$C,'Resumo Quant.'!$H:$H) -> 13,341.90 | H151: =_xlfn.XLOOKUP($E151,'Resumo Preços'!$C:$C,'Resumo Preços'!$H:$H) -> 171,043.16 | J151: =$H151*'Cron. Físico'!H139 -> 127.69 | K151: =$H151*'Cron. Físico'!I139 -> 140,713.73 | L151: =$H151*'Cron. Físico'!J139 -> 0 | M151: =$H151*'Cron. Físico'!K139 -> 0 | N151: =$H151*'Cron. Físico'!L139 -> 0 | O151: =$H151*'Cron. Físico'!M139 -> 30,201.74 | P151: =$H151*'Cron. Físico'!N139 -> 0 | Q151: =$H151*'Cron. Físico'!O139 -> 0 | R151: =$H151*'Cron. Físico'!P139 -> 0 | S151: =$H151*'Cron. Físico'!Q139 -> 0 | T151: =$H151*'Cron. Físico'!R139 -> 0 | U151: =$H151*'Cron. Físico'!S139 -> 0 | V151: =$H151*'Cron. Físico'!T139 -> 0 | W151: =$H151*'Cron. Físico'!U139 -> 0 | X151: =$H151*'Cron. Físico'!V139 -> 0 | Y151: =$H151*'Cron. Físico'!W139 -> 0 | Z151: =$H151*'Cron. Físico'!X139 -> 0 | AA151: =$H151*'Cron. Físico'!Y139 -> 0 | AB151: =$H151*'Cron. Físico'!Z139 -> 0 | AC151: =$H151*'Cron. Físico'!AA139 -> 0 | AD151: =$H151*'Cron. Físico'!AB139 -> 0 | AE151: =$H151*'Cron. Físico'!AC139 -> 0 | AF151: =$H151*'Cron. Físico'!AD139 -> 0 | AG151: =$H151*'Cron. Físico'!AE139 -> 0 | AH151: =$H151*'Cron. Físico'!AF139 -> 0 | AI151: =$H151*'Cron. Físico'!AG139 -> 0 | AJ151: =$H151*'Cron. Físico'!AH139 -> 0 | AK151: =$H151*'Cron. Físico'!AI139 -> 0 | AL151: =$H151*'Cron. Físico'!AJ139 -> 0 | AM151: =$H151*'Cron. Físico'!AK139 -> 0 | AN151: 100.00% | AO151: TRUE
C152: 8.1.5.20 | E152: 491CMG0170 | F152: M2 | G152: =_xlfn.XLOOKUP($E152,'Resumo Quant.'!$C:$C,'Resumo Quant.'!$H:$H) -> 0.46 | H152: =_xlfn.XLOOKUP($E152,'Resumo Preços'!$C:$C,'Resumo Preços'!$H:$H) -> 5.90 | J152: =$H152*'Cron. Físico'!H140 -> 5.90 | K152: =$H152*'Cron. Físico'!I140 -> 0 | L152: =$H152*'Cron. Físico'!J140 -> 0 | M152: =$H152*'Cron. Físico'!K140 -> 0 | N152: =$H152*'Cron. Físico'!L140 -> 0 | O152: =$H152*'Cron. Físico'!M140 -> 0 | P152: =$H152*'Cron. Físico'!N140 -> 0 | Q152: =$H152*'Cron. Físico'!O140 -> 0 | R152: =$H152*'Cron. Físico'!P140 -> 0 | S152: =$H152*'Cron. Físico'!Q140 -> 0 | T152: =$H152*'Cron. Físico'!R140 -> 0 | U152: =$H152*'Cron. Físico'!S140 -> 0 | V152: =$H152*'Cron. Físico'!T140 -> 0 | W152: =$H152*'Cron. Físico'!U140 -> 0 | X152: =$H152*'Cron. Físico'!V140 -> 0 | Y152: =$H152*'Cron. Físico'!W140 -> 0 | Z152: =$H152*'Cron. Físico'!X140 -> 0 | AA152: =$H152*'Cron. Físico'!Y140 -> 0 | AB152: =$H152*'Cron. Físico'!Z140 -> 0 | AC152: =$H152*'Cron. Físico'!AA140 -> 0 | AD152: =$H152*'Cron. Físico'!AB140 -> 0 | AE152: =$H152*'Cron. Físico'!AC140 -> 0 | AF152: =$H152*'Cron. Físico'!AD140 -> 0 | AG152: =$H152*'Cron. Físico'!AE140 -> 0 | AH152: =$H152*'Cron. Físico'!AF140 -> 0 | AI152: =$H152*'Cron. Físico'!AG140 -> 0 | AJ152: =$H152*'Cron. Físico'!AH140 -> 0 | AK152: =$H152*'Cron. Físico'!AI140 -> 0 | AL152: =$H152*'Cron. Físico'!AJ140 -> 0 | AM152: =$H152*'Cron. Físico'!AK140 -> 0 | AN152: 100.00% | AO152: TRUE
C153: 8.1.5.21 | E153: 491CMG0190 | F153: M2 | G153: =_xlfn.XLOOKUP($E153,'Resumo Quant.'!$C:$C,'Resumo Quant.'!$H:$H) -> 3.01 | H153: =_xlfn.XLOOKUP($E153,'Resumo Preços'!$C:$C,'Resumo Preços'!$H:$H) -> 38.59 | J153: =$H153*'Cron. Físico'!H141 -> 38.59 | K153: =$H153*'Cron. Físico'!I141 -> 0 | L153: =$H153*'Cron. Físico'!J141 -> 0 | M153: =$H153*'Cron. Físico'!K141 -> 0 | N153: =$H153*'Cron. Físico'!L141 -> 0 | O153: =$H153*'Cron. Físico'!M141 -> 0 | P153: =$H153*'Cron. Físico'!N141 -> 0 | Q153: =$H153*'Cron. Físico'!O141 -> 0 | R153: =$H153*'Cron. Físico'!P141 -> 0 | S153: =$H153*'Cron. Físico'!Q141 -> 0 | T153: =$H153*'Cron. Físico'!R141 -> 0 | U153: =$H153*'Cron. Físico'!S141 -> 0 | V153: =$H153*'Cron. Físico'!T141 -> 0 | W153: =$H153*'Cron. Físico'!U141 -> 0 | X153: =$H153*'Cron. Físico'!V141 -> 0 | Y153: =$H153*'Cron. Físico'!W141 -> 0 | Z153: =$H153*'Cron. Físico'!X141 -> 0 | AA153: =$H153*'Cron. Físico'!Y141 -> 0 | AB153: =$H153*'Cron. Físico'!Z141 -> 0 | AC153: =$H153*'Cron. Físico'!AA141 -> 0 | AD153: =$H153*'Cron. Físico'!AB141 -> 0 | AE153: =$H153*'Cron. Físico'!AC141 -> 0 | AF153: =$H153*'Cron. Físico'!AD141 -> 0 | AG153: =$H153*'Cron. Físico'!AE141 -> 0 | AH153: =$H153*'Cron. Físico'!AF141 -> 0 | AI153: =$H153*'Cron. Físico'!AG141 -> 0 | AJ153: =$H153*'Cron. Físico'!AH141 -> 0 | AK153: =$H153*'Cron. Físico'!AI141 -> 0 | AL153: =$H153*'Cron. Físico'!AJ141 -> 0 | AM153: =$H153*'Cron. Físico'!AK141 -> 0 | AN153: 100.00% | AO153: TRUE
C154: 8.1.5.22 | E154: 491CMG0210D | F154: M2 | G154: =_xlfn.XLOOKUP($E154,'Resumo Quant.'!$C:$C,'Resumo Quant.'!$H:$H) -> 0 | H154: =_xlfn.XLOOKUP($E154,'Resumo Preços'!$C:$C,'Resumo Preços'!$H:$H) -> 0 | J154: =$H154*'Cron. Físico'!H142 -> 0 | K154: =$H154*'Cron. Físico'!I142 -> 0 | L154: =$H154*'Cron. Físico'!J142 -> 0 | M154: =$H154*'Cron. Físico'!K142 -> 0 | N154: =$H154*'Cron. Físico'!L142 -> 0 | O154: =$H154*'Cron. Físico'!M142 -> 0 | P154: =$H154*'Cron. Físico'!N142 -> 0 | Q154: =$H154*'Cron. Físico'!O142 -> 0 | R154: =$H154*'Cron. Físico'!P142 -> 0 | S154: =$H154*'Cron. Físico'!Q142 -> 0 | T154: =$H154*'Cron. Físico'!R142 -> 0 | U154: =$H154*'Cron. Físico'!S142 -> 0 | V154: =$H154*'Cron. Físico'!T142 -> 0 | W154: =$H154*'Cron. Físico'!U142 -> 0 | X154: =$H154*'Cron. Físico'!V142 -> 0 | Y154: =$H154*'Cron. Físico'!W142 -> 0 | Z154: =$H154*'Cron. Físico'!X142 -> 0 | AA154: =$H154*'Cron. Físico'!Y142 -> 0 | AB154: =$H154*'Cron. Físico'!Z142 -> 0 | AC154: =$H154*'Cron. Físico'!AA142 -> 0 | AD154: =$H154*'Cron. Físico'!AB142 -> 0 | AE154: =$H154*'Cron. Físico'!AC142 -> 0 | AF154: =$H154*'Cron. Físico'!AD142 -> 0 | AG154: =$H154*'Cron. Físico'!AE142 -> 0 | AH154: =$H154*'Cron. Físico'!AF142 -> 0 | AI154: =$H154*'Cron. Físico'!AG142 -> 0 | AJ154: =$H154*'Cron. Físico'!AH142 -> 0 | AK154: =$H154*'Cron. Físico'!AI142 -> 0 | AL154: =$H154*'Cron. Físico'!AJ142 -> 0 | AM154: =$H154*'Cron. Físico'!AK142 -> 0 | AO154: TRUE
C155: 8.1.5.23 | E155: 146BMG0250 | F155: M2 | G155: =_xlfn.XLOOKUP($E155,'Resumo Quant.'!$C:$C,'Resumo Quant.'!$H:$H) -> 1,564.26 | H155: =_xlfn.XLOOKUP($E155,'Resumo Preços'!$C:$C,'Resumo Preços'!$H:$H) -> 20,053.81 | J155: =$H155*'Cron. Físico'!H143 -> 20,053.81 | K155: =$H155*'Cron. Físico'!I143 -> 0 | L155: =$H155*'Cron. Físico'!J143 -> 0 | M155: =$H155*'Cron. Físico'!K143 -> 0 | N155: =$H155*'Cron. Físico'!L143 -> 0 | O155: =$H155*'Cron. Físico'!M143 -> 0 | P155: =$H155*'Cron. Físico'!N143 -> 0 | Q155: =$H155*'Cron. Físico'!O143 -> 0 | R155: =$H155*'Cron. Físico'!P143 -> 0 | S155: =$H155*'Cron. Físico'!Q143 -> 0 | T155: =$H155*'Cron. Físico'!R143 -> 0 | U155: =$H155*'Cron. Físico'!S143 -> 0 | V155: =$H155*'Cron. Físico'!T143 -> 0 | W155: =$H155*'Cron. Físico'!U143 -> 0 | X155: =$H155*'Cron. Físico'!V143 -> 0 | Y155: =$H155*'Cron. Físico'!W143 -> 0 | Z155: =$H155*'Cron. Físico'!X143 -> 0 | AA155: =$H155*'Cron. Físico'!Y143 -> 0 | AB155: =$H155*'Cron. Físico'!Z143 -> 0 | AC155: =$H155*'Cron. Físico'!AA143 -> 0 | AD155: =$H155*'Cron. Físico'!AB143 -> 0 | AE155: =$H155*'Cron. Físico'!AC143 -> 0 | AF155: =$H155*'Cron. Físico'!AD143 -> 0 | AG155: =$H155*'Cron. Físico'!AE143 -> 0 | AH155: =$H155*'Cron. Físico'!AF143 -> 0 | AI155: =$H155*'Cron. Físico'!AG143 -> 0 | AJ155: =$H155*'Cron. Físico'!AH143 -> 0 | AK155: =$H155*'Cron. Físico'!AI143 -> 0 | AL155: =$H155*'Cron. Físico'!AJ143 -> 0 | AM155: =$H155*'Cron. Físico'!AK143 -> 0 | AN155: 100.00% | AO155: TRUE
C156: 8.1.5.24 | E156: 146BMG0252 | F156: M2 | G156: =_xlfn.XLOOKUP($E156,'Resumo Quant.'!$C:$C,'Resumo Quant.'!$H:$H) -> 3,263.60 | H156: =_xlfn.XLOOKUP($E156,'Resumo Preços'!$C:$C,'Resumo Preços'!$H:$H) -> 41,839.35 | J156: =$H156*'Cron. Físico'!H144 -> 3,003.34 | K156: =$H156*'Cron. Físico'!I144 -> 38,836.01 | L156: =$H156*'Cron. Físico'!J144 -> 0 | M156: =$H156*'Cron. Físico'!K144 -> 0 | N156: =$H156*'Cron. Físico'!L144 -> 0 | O156: =$H156*'Cron. Físico'!M144 -> 0 | P156: =$H156*'Cron. Físico'!N144 -> 0 | Q156: =$H156*'Cron. Físico'!O144 -> 0 | R156: =$H156*'Cron. Físico'!P144 -> 0 | S156: =$H156*'Cron. Físico'!Q144 -> 0 | T156: =$H156*'Cron. Físico'!R144 -> 0 | U156: =$H156*'Cron. Físico'!S144 -> 0 | V156: =$H156*'Cron. Físico'!T144 -> 0 | W156: =$H156*'Cron. Físico'!U144 -> 0 | X156: =$H156*'Cron. Físico'!V144 -> 0 | Y156: =$H156*'Cron. Físico'!W144 -> 0 | Z156: =$H156*'Cron. Físico'!X144 -> 0 | AA156: =$H156*'Cron. Físico'!Y144 -> 0 | AB156: =$H156*'Cron. Físico'!Z144 -> 0 | AC156: =$H156*'Cron. Físico'!AA144 -> 0 | AD156: =$H156*'Cron. Físico'!AB144 -> 0 | AE156: =$H156*'Cron. Físico'!AC144 -> 0 | AF156: =$H156*'Cron. Físico'!AD144 -> 0 | AG156: =$H156*'Cron. Físico'!AE144 -> 0 | AH156: =$H156*'Cron. Físico'!AF144 -> 0 | AI156: =$H156*'Cron. Físico'!AG144 -> 0 | AJ156: =$H156*'Cron. Físico'!AH144 -> 0 | AK156: =$H156*'Cron. Físico'!AI144 -> 0 | AL156: =$H156*'Cron. Físico'!AJ144 -> 0 | AM156: =$H156*'Cron. Físico'!AK144 -> 0 | AN156: 100.00% | AO156: TRUE
C157: 8.1.5.25 | E157: 369CMG0070 | F157: M2 | G157: =_xlfn.XLOOKUP($E157,'Resumo Quant.'!$C:$C,'Resumo Quant.'!$H:$H) -> 2,278.89 | H157: =_xlfn.XLOOKUP($E157,'Resumo Preços'!$C:$C,'Resumo Preços'!$H:$H) -> 29,215.37 | J157: =$H157*'Cron. Físico'!H145 -> 29,215.37 | K157: =$H157*'Cron. Físico'!I145 -> 0 | L157: =$H157*'Cron. Físico'!J145 -> 0 | M157: =$H157*'Cron. Físico'!K145 -> 0 | N157: =$H157*'Cron. Físico'!L145 -> 0 | O157: =$H157*'Cron. Físico'!M145 -> 0 | P157: =$H157*'Cron. Físico'!N145 -> 0 | Q157: =$H157*'Cron. Físico'!O145 -> 0 | R157: =$H157*'Cron. Físico'!P145 -> 0 | S157: =$H157*'Cron. Físico'!Q145 -> 0 | T157: =$H157*'Cron. Físico'!R145 -> 0 | U157: =$H157*'Cron. Físico'!S145 -> 0 | V157: =$H157*'Cron. Físico'!T145 -> 0 | W157: =$H157*'Cron. Físico'!U145 -> 0 | X157: =$H157*'Cron. Físico'!V145 -> 0 | Y157: =$H157*'Cron. Físico'!W145 -> 0 | Z157: =$H157*'Cron. Físico'!X145 -> 0 | AA157: =$H157*'Cron. Físico'!Y145 -> 0 | AB157: =$H157*'Cron. Físico'!Z145 -> 0 | AC157: =$H157*'Cron. Físico'!AA145 -> 0 | AD157: =$H157*'Cron. Físico'!AB145 -> 0 | AE157: =$H157*'Cron. Físico'!AC145 -> 0 | AF157: =$H157*'Cron. Físico'!AD145 -> 0 | AG157: =$H157*'Cron. Físico'!AE145 -> 0 | AH157: =$H157*'Cron. Físico'!AF145 -> 0 | AI157: =$H157*'Cron. Físico'!AG145 -> 0 | AJ157: =$H157*'Cron. Físico'!AH145 -> 0 | AK157: =$H157*'Cron. Físico'!AI145 -> 0 | AL157: =$H157*'Cron. Físico'!AJ145 -> 0 | AM157: =$H157*'Cron. Físico'!AK145 -> 0 | AN157: 100.00% | AO157: TRUE
C158: 8.1.5.26 | E158: 369CMG0090 | F158: M2 | G158: =_xlfn.XLOOKUP($E158,'Resumo Quant.'!$C:$C,'Resumo Quant.'!$H:$H) -> 13,548.37 | H158: =_xlfn.XLOOKUP($E158,'Resumo Preços'!$C:$C,'Resumo Preços'!$H:$H) -> 173,690.10 | J158: =$H158*'Cron. Físico'!H146 -> 8,946.82 | K158: =$H158*'Cron. Físico'!I146 -> 164,743.28 | L158: =$H158*'Cron. Físico'!J146 -> 0 | M158: =$H158*'Cron. Físico'!K146 -> 0 | N158: =$H158*'Cron. Físico'!L146 -> 0 | O158: =$H158*'Cron. Físico'!M146 -> 0 | P158: =$H158*'Cron. Físico'!N146 -> 0 | Q158: =$H158*'Cron. Físico'!O146 -> 0 | R158: =$H158*'Cron. Físico'!P146 -> 0 | S158: =$H158*'Cron. Físico'!Q146 -> 0 | T158: =$H158*'Cron. Físico'!R146 -> 0 | U158: =$H158*'Cron. Físico'!S146 -> 0 | V158: =$H158*'Cron. Físico'!T146 -> 0 | W158: =$H158*'Cron. Físico'!U146 -> 0 | X158: =$H158*'Cron. Físico'!V146 -> 0 | Y158: =$H158*'Cron. Físico'!W146 -> 0 | Z158: =$H158*'Cron. Físico'!X146 -> 0 | AA158: =$H158*'Cron. Físico'!Y146 -> 0 | AB158: =$H158*'Cron. Físico'!Z146 -> 0 | AC158: =$H158*'Cron. Físico'!AA146 -> 0 | AD158: =$H158*'Cron. Físico'!AB146 -> 0 | AE158: =$H158*'Cron. Físico'!AC146 -> 0 | AF158: =$H158*'Cron. Físico'!AD146 -> 0 | AG158: =$H158*'Cron. Físico'!AE146 -> 0 | AH158: =$H158*'Cron. Físico'!AF146 -> 0 | AI158: =$H158*'Cron. Físico'!AG146 -> 0 | AJ158: =$H158*'Cron. Físico'!AH146 -> 0 | AK158: =$H158*'Cron. Físico'!AI146 -> 0 | AL158: =$H158*'Cron. Físico'!AJ146 -> 0 | AM158: =$H158*'Cron. Físico'!AK146 -> 0 | AN158: 100.00% | AO158: TRUE
C159: 8.1.5.27 | E159: VARGINHA | F159: M2 | G159: =_xlfn.XLOOKUP($E159,'Resumo Quant.'!$C:$C,'Resumo Quant.'!$H:$H) ->  | H159: =_xlfn.XLOOKUP($E159,'Resumo Preços'!$C:$C,'Resumo Preços'!$H:$H) ->  | J159: =$H159*'Cron. Físico'!#REF! ->  | K159: =$H159*'Cron. Físico'!#REF! ->  | L159: =$H159*'Cron. Físico'!#REF! ->  | M159: =$H159*'Cron. Físico'!#REF! ->  | N159: =$H159*'Cron. Físico'!#REF! ->  | O159: =$H159*'Cron. Físico'!#REF! ->  | P159: =$H159*'Cron. Físico'!#REF! ->  | Q159: =$H159*'Cron. Físico'!#REF! ->  | R159: =$H159*'Cron. Físico'!#REF! ->  | S159: =$H159*'Cron. Físico'!#REF! ->  | T159: =$H159*'Cron. Físico'!#REF! ->  | U159: =$H159*'Cron. Físico'!#REF! ->  | V159: =$H159*'Cron. Físico'!#REF! ->  | W159: =$H159*'Cron. Físico'!#REF! ->  | X159: =$H159*'Cron. Físico'!#REF! ->  | Y159: =$H159*'Cron. Físico'!#REF! ->  | Z159: =$H159*'Cron. Físico'!#REF! ->  | AA159: =$H159*'Cron. Físico'!#REF! ->  | AB159: =$H159*'Cron. Físico'!#REF! ->  | AC159: =$H159*'Cron. Físico'!#REF! ->  | AD159: =$H159*'Cron. Físico'!#REF! ->  | AE159: =$H159*'Cron. Físico'!#REF! ->  | AF159: =$H159*'Cron. Físico'!#REF! ->  | AG159: =$H159*'Cron. Físico'!#REF! ->  | AH159: =$H159*'Cron. Físico'!#REF! ->  | AI159: =$H159*'Cron. Físico'!#REF! ->  | AJ159: =$H159*'Cron. Físico'!#REF! ->  | AK159: =$H159*'Cron. Físico'!#REF! ->  | AL159: =$H159*'Cron. Físico'!#REF! ->  | AM159: =$H159*'Cron. Físico'!#REF! ->  | AN159: =SUM(J159:AM159)/H159 ->  | AO159: =SUM(J159:AM159)=H159 -> 
C160: 8.1.5.28 | E160: CAMPOS GERAIS | F160: M2 | G160: =_xlfn.XLOOKUP($E160,'Resumo Quant.'!$C:$C,'Resumo Quant.'!$H:$H) ->  | H160: =_xlfn.XLOOKUP($E160,'Resumo Preços'!$C:$C,'Resumo Preços'!$H:$H) ->  | J160: =$H160*'Cron. Físico'!#REF! ->  | K160: =$H160*'Cron. Físico'!#REF! ->  | L160: =$H160*'Cron. Físico'!#REF! ->  | M160: =$H160*'Cron. Físico'!#REF! ->  | N160: =$H160*'Cron. Físico'!#REF! ->  | O160: =$H160*'Cron. Físico'!#REF! ->  | P160: =$H160*'Cron. Físico'!#REF! ->  | Q160: =$H160*'Cron. Físico'!#REF! ->  | R160: =$H160*'Cron. Físico'!#REF! ->  | S160: =$H160*'Cron. Físico'!#REF! ->  | T160: =$H160*'Cron. Físico'!#REF! ->  | U160: =$H160*'Cron. Físico'!#REF! ->  | V160: =$H160*'Cron. Físico'!#REF! ->  | W160: =$H160*'Cron. Físico'!#REF! ->  | X160: =$H160*'Cron. Físico'!#REF! ->  | Y160: =$H160*'Cron. Físico'!#REF! ->  | Z160: =$H160*'Cron. Físico'!#REF! ->  | AA160: =$H160*'Cron. Físico'!#REF! ->  | AB160: =$H160*'Cron. Físico'!#REF! ->  | AC160: =$H160*'Cron. Físico'!#REF! ->  | AD160: =$H160*'Cron. Físico'!#REF! ->  | AE160: =$H160*'Cron. Físico'!#REF! ->  | AF160: =$H160*'Cron. Físico'!#REF! ->  | AG160: =$H160*'Cron. Físico'!#REF! ->  | AH160: =$H160*'Cron. Físico'!#REF! ->  | AI160: =$H160*'Cron. Físico'!#REF! ->  | AJ160: =$H160*'Cron. Físico'!#REF! ->  | AK160: =$H160*'Cron. Físico'!#REF! ->  | AL160: =$H160*'Cron. Físico'!#REF! ->  | AM160: =$H160*'Cron. Físico'!#REF! -> 
C161: 8.1.5.29 | E161: ALFENAS | F161: M2 | G161: =_xlfn.XLOOKUP($E161,'Resumo Quant.'!$C:$C,'Resumo Quant.'!$H:$H) ->  | H161: =_xlfn.XLOOKUP($E161,'Resumo Preços'!$C:$C,'Resumo Preços'!$H:$H) ->  | J161: =$H161*'Cron. Físico'!#REF! ->  | K161: =$H161*'Cron. Físico'!#REF! ->  | L161: =$H161*'Cron. Físico'!#REF! ->  | M161: =$H161*'Cron. Físico'!#REF! ->  | N161: =$H161*'Cron. Físico'!#REF! ->  | O161: =$H161*'Cron. Físico'!#REF! ->  | P161: =$H161*'Cron. Físico'!#REF! ->  | Q161: =$H161*'Cron. Físico'!#REF! ->  | R161: =$H161*'Cron. Físico'!#REF! ->  | S161: =$H161*'Cron. Físico'!#REF! ->  | T161: =$H161*'Cron. Físico'!#REF! ->  | U161: =$H161*'Cron. Físico'!#REF! ->  | V161: =$H161*'Cron. Físico'!#REF! ->  | W161: =$H161*'Cron. Físico'!#REF! ->  | X161: =$H161*'Cron. Físico'!#REF! ->  | Y161: =$H161*'Cron. Físico'!#REF! ->  | Z161: =$H161*'Cron. Físico'!#REF! ->  | AA161: =$H161*'Cron. Físico'!#REF! ->  | AB161: =$H161*'Cron. Físico'!#REF! ->  | AC161: =$H161*'Cron. Físico'!#REF! ->  | AD161: =$H161*'Cron. Físico'!#REF! ->  | AE161: =$H161*'Cron. Físico'!#REF! ->  | AF161: =$H161*'Cron. Físico'!#REF! ->  | AG161: =$H161*'Cron. Físico'!#REF! ->  | AH161: =$H161*'Cron. Físico'!#REF! ->  | AI161: =$H161*'Cron. Físico'!#REF! ->  | AJ161: =$H161*'Cron. Físico'!#REF! ->  | AK161: =$H161*'Cron. Físico'!#REF! ->  | AL161: =$H161*'Cron. Físico'!#REF! ->  | AM161: =$H161*'Cron. Físico'!#REF! -> 
A162: x | C162: 8.1.6 | E162: Selagem de Trincas | H162: =SUM(H163:H191) ->  | J162: =SUM(J163:J191) ->  | K162: =SUM(K163:K191) -> 
C163: 8.1.6.1 | E163: 167EMG0200 | F163: M2 | G163: =_xlfn.XLOOKUP($E163,'Resumo Quant.'!$C:$C,'Resumo Quant.'!$I:$I) -> 0 | H163: =_xlfn.XLOOKUP($E163,'Resumo Preços'!$C:$C,'Resumo Preços'!$I:$I) -> 0 | J163: =$H163*'Cron. Físico'!H148 -> 0 | K163: =$H163*'Cron. Físico'!I148 -> 0 | L163: =$H163*'Cron. Físico'!J148 -> 0 | M163: =$H163*'Cron. Físico'!K148 -> 0 | N163: =$H163*'Cron. Físico'!L148 -> 0 | O163: =$H163*'Cron. Físico'!M148 -> 0 | P163: =$H163*'Cron. Físico'!N148 -> 0 | Q163: =$H163*'Cron. Físico'!O148 -> 0 | R163: =$H163*'Cron. Físico'!P148 -> 0 | S163: =$H163*'Cron. Físico'!Q148 -> 0 | T163: =$H163*'Cron. Físico'!R148 -> 0 | U163: =$H163*'Cron. Físico'!S148 -> 0 | V163: =$H163*'Cron. Físico'!T148 -> 0 | W163: =$H163*'Cron. Físico'!U148 -> 0 | X163: =$H163*'Cron. Físico'!V148 -> 0 | Y163: =$H163*'Cron. Físico'!W148 -> 0 | Z163: =$H163*'Cron. Físico'!X148 -> 0 | AA163: =$H163*'Cron. Físico'!Y148 -> 0 | AB163: =$H163*'Cron. Físico'!Z148 -> 0 | AC163: =$H163*'Cron. Físico'!AA148 -> 0 | AD163: =$H163*'Cron. Físico'!AB148 -> 0 | AE163: =$H163*'Cron. Físico'!AC148 -> 0 | AF163: =$H163*'Cron. Físico'!AD148 -> 0 | AG163: =$H163*'Cron. Físico'!AE148 -> 0 | AH163: =$H163*'Cron. Físico'!AF148 -> 0 | AI163: =$H163*'Cron. Físico'!AG148 -> 0 | AJ163: =$H163*'Cron. Físico'!AH148 -> 0 | AK163: =$H163*'Cron. Físico'!AI148 -> 0 | AL163: =$H163*'Cron. Físico'!AJ148 -> 0 | AM163: =$H163*'Cron. Físico'!AK148 -> 0 | AN163: =SUM(J163:AM163)/H163 ->  | AO163: TRUE
C164: 8.1.6.2 | E164: 167EMG0205 | F164: M2 | G164: =_xlfn.XLOOKUP($E164,'Resumo Quant.'!$C:$C,'Resumo Quant.'!$I:$I) -> 0 | H164: =_xlfn.XLOOKUP($E164,'Resumo Preços'!$C:$C,'Resumo Preços'!$I:$I) -> 0 | J164: =$H164*'Cron. Físico'!H149 -> 0 | K164: =$H164*'Cron. Físico'!I149 -> 0 | L164: =$H164*'Cron. Físico'!J149 -> 0 | M164: =$H164*'Cron. Físico'!K149 -> 0 | N164: =$H164*'Cron. Físico'!L149 -> 0 | O164: =$H164*'Cron. Físico'!M149 -> 0 | P164: =$H164*'Cron. Físico'!N149 -> 0 | Q164: =$H164*'Cron. Físico'!O149 -> 0 | R164: =$H164*'Cron. Físico'!P149 -> 0 | S164: =$H164*'Cron. Físico'!Q149 -> 0 | T164: =$H164*'Cron. Físico'!R149 -> 0 | U164: =$H164*'Cron. Físico'!S149 -> 0 | V164: =$H164*'Cron. Físico'!T149 -> 0 | W164: =$H164*'Cron. Físico'!U149 -> 0 | X164: =$H164*'Cron. Físico'!V149 -> 0 | Y164: =$H164*'Cron. Físico'!W149 -> 0 | Z164: =$H164*'Cron. Físico'!X149 -> 0 | AA164: =$H164*'Cron. Físico'!Y149 -> 0 | AB164: =$H164*'Cron. Físico'!Z149 -> 0 | AC164: =$H164*'Cron. Físico'!AA149 -> 0 | AD164: =$H164*'Cron. Físico'!AB149 -> 0 | AE164: =$H164*'Cron. Físico'!AC149 -> 0 | AF164: =$H164*'Cron. Físico'!AD149 -> 0 | AG164: =$H164*'Cron. Físico'!AE149 -> 0 | AH164: =$H164*'Cron. Físico'!AF149 -> 0 | AI164: =$H164*'Cron. Físico'!AG149 -> 0 | AJ164: =$H164*'Cron. Físico'!AH149 -> 0 | AK164: =$H164*'Cron. Físico'!AI149 -> 0 | AL164: =$H164*'Cron. Físico'!AJ149 -> 0 | AM164: =$H164*'Cron. Físico'!AK149 -> 0 | AO164: TRUE
C165: 8.1.6.3 | E165: 167EMG0220 | F165: M2 | G165: =_xlfn.XLOOKUP($E165,'Resumo Quant.'!$C:$C,'Resumo Quant.'!$I:$I) -> 0 | H165: =_xlfn.XLOOKUP($E165,'Resumo Preços'!$C:$C,'Resumo Preços'!$I:$I) -> 0 | J165: =$H165*'Cron. Físico'!H150 -> 0 | K165: =$H165*'Cron. Físico'!I150 -> 0 | L165: =$H165*'Cron. Físico'!J150 -> 0 | M165: =$H165*'Cron. Físico'!K150 -> 0 | N165: =$H165*'Cron. Físico'!L150 -> 0 | O165: =$H165*'Cron. Físico'!M150 -> 0 | P165: =$H165*'Cron. Físico'!N150 -> 0 | Q165: =$H165*'Cron. Físico'!O150 -> 0 | R165: =$H165*'Cron. Físico'!P150 -> 0 | S165: =$H165*'Cron. Físico'!Q150 -> 0 | T165: =$H165*'Cron. Físico'!R150 -> 0 | U165: =$H165*'Cron. Físico'!S150 -> 0 | V165: =$H165*'Cron. Físico'!T150 -> 0 | W165: =$H165*'Cron. Físico'!U150 -> 0 | X165: =$H165*'Cron. Físico'!V150 -> 0 | Y165: =$H165*'Cron. Físico'!W150 -> 0 | Z165: =$H165*'Cron. Físico'!X150 -> 0 | AA165: =$H165*'Cron. Físico'!Y150 -> 0 | AB165: =$H165*'Cron. Físico'!Z150 -> 0 | AC165: =$H165*'Cron. Físico'!AA150 -> 0 | AD165: =$H165*'Cron. Físico'!AB150 -> 0 | AE165: =$H165*'Cron. Físico'!AC150 -> 0 | AF165: =$H165*'Cron. Físico'!AD150 -> 0 | AG165: =$H165*'Cron. Físico'!AE150 -> 0 | AH165: =$H165*'Cron. Físico'!AF150 -> 0 | AI165: =$H165*'Cron. Físico'!AG150 -> 0 | AJ165: =$H165*'Cron. Físico'!AH150 -> 0 | AK165: =$H165*'Cron. Físico'!AI150 -> 0 | AL165: =$H165*'Cron. Físico'!AJ150 -> 0 | AM165: =$H165*'Cron. Físico'!AK150 -> 0 | AO165: TRUE
C166: 8.1.6.4 | E166: 265BMG0270 | F166: M2 | G166: =_xlfn.XLOOKUP($E166,'Resumo Quant.'!$C:$C,'Resumo Quant.'!$I:$I) -> 0 | H166: =_xlfn.XLOOKUP($E166,'Resumo Preços'!$C:$C,'Resumo Preços'!$I:$I) -> 0 | J166: =$H166*'Cron. Físico'!H151 -> 0 | K166: =$H166*'Cron. Físico'!I151 -> 0 | L166: =$H166*'Cron. Físico'!J151 -> 0 | M166: =$H166*'Cron. Físico'!K151 -> 0 | N166: =$H166*'Cron. Físico'!L151 -> 0 | O166: =$H166*'Cron. Físico'!M151 -> 0 | P166: =$H166*'Cron. Físico'!N151 -> 0 | Q166: =$H166*'Cron. Físico'!O151 -> 0 | R166: =$H166*'Cron. Físico'!P151 -> 0 | S166: =$H166*'Cron. Físico'!Q151 -> 0 | T166: =$H166*'Cron. Físico'!R151 -> 0 | U166: =$H166*'Cron. Físico'!S151 -> 0 | V166: =$H166*'Cron. Físico'!T151 -> 0 | W166: =$H166*'Cron. Físico'!U151 -> 0 | X166: =$H166*'Cron. Físico'!V151 -> 0 | Y166: =$H166*'Cron. Físico'!W151 -> 0 | Z166: =$H166*'Cron. Físico'!X151 -> 0 | AA166: =$H166*'Cron. Físico'!Y151 -> 0 | AB166: =$H166*'Cron. Físico'!Z151 -> 0 | AC166: =$H166*'Cron. Físico'!AA151 -> 0 | AD166: =$H166*'Cron. Físico'!AB151 -> 0 | AE166: =$H166*'Cron. Físico'!AC151 -> 0 | AF166: =$H166*'Cron. Físico'!AD151 -> 0 | AG166: =$H166*'Cron. Físico'!AE151 -> 0 | AH166: =$H166*'Cron. Físico'!AF151 -> 0 | AI166: =$H166*'Cron. Físico'!AG151 -> 0 | AJ166: =$H166*'Cron. Físico'!AH151 -> 0 | AK166: =$H166*'Cron. Físico'!AI151 -> 0 | AL166: =$H166*'Cron. Físico'!AJ151 -> 0 | AM166: =$H166*'Cron. Físico'!AK151 -> 0 | AO166: TRUE
C167: 8.1.6.5 | E167: 265BMG0290 | F167: M2 | G167: =_xlfn.XLOOKUP($E167,'Resumo Quant.'!$C:$C,'Resumo Quant.'!$I:$I) -> 8,549.14 | H167: =_xlfn.XLOOKUP($E167,'Resumo Preços'!$C:$C,'Resumo Preços'!$I:$I) -> 23,510.14 | J167: =$H167*'Cron. Físico'!H152 -> 23,510.14 | K167: =$H167*'Cron. Físico'!I152 -> 0 | L167: =$H167*'Cron. Físico'!J152 -> 0 | M167: =$H167*'Cron. Físico'!K152 -> 0 | N167: =$H167*'Cron. Físico'!L152 -> 0 | O167: =$H167*'Cron. Físico'!M152 -> 0 | P167: =$H167*'Cron. Físico'!N152 -> 0 | Q167: =$H167*'Cron. Físico'!O152 -> 0 | R167: =$H167*'Cron. Físico'!P152 -> 0 | S167: =$H167*'Cron. Físico'!Q152 -> 0 | T167: =$H167*'Cron. Físico'!R152 -> 0 | U167: =$H167*'Cron. Físico'!S152 -> 0 | V167: =$H167*'Cron. Físico'!T152 -> 0 | W167: =$H167*'Cron. Físico'!U152 -> 0 | X167: =$H167*'Cron. Físico'!V152 -> 0 | Y167: =$H167*'Cron. Físico'!W152 -> 0 | Z167: =$H167*'Cron. Físico'!X152 -> 0 | AA167: =$H167*'Cron. Físico'!Y152 -> 0 | AB167: =$H167*'Cron. Físico'!Z152 -> 0 | AC167: =$H167*'Cron. Físico'!AA152 -> 0 | AD167: =$H167*'Cron. Físico'!AB152 -> 0 | AE167: =$H167*'Cron. Físico'!AC152 -> 0 | AF167: =$H167*'Cron. Físico'!AD152 -> 0 | AG167: =$H167*'Cron. Físico'!AE152 -> 0 | AH167: =$H167*'Cron. Físico'!AF152 -> 0 | AI167: =$H167*'Cron. Físico'!AG152 -> 0 | AJ167: =$H167*'Cron. Físico'!AH152 -> 0 | AK167: =$H167*'Cron. Físico'!AI152 -> 0 | AL167: =$H167*'Cron. Físico'!AJ152 -> 0 | AM167: =$H167*'Cron. Físico'!AK152 -> 0 | AN167: 100.00% | AO167: TRUE
C168: 8.1.6.6 | E168: 265BMG0305 | F168: M2 | G168: =_xlfn.XLOOKUP($E168,'Resumo Quant.'!$C:$C,'Resumo Quant.'!$I:$I) -> 4,071.63 | H168: =_xlfn.XLOOKUP($E168,'Resumo Preços'!$C:$C,'Resumo Preços'!$I:$I) -> 11,196.98 | J168: =$H168*'Cron. Físico'!H153 -> 11,196.98 | K168: =$H168*'Cron. Físico'!I153 -> 0 | L168: =$H168*'Cron. Físico'!J153 -> 0 | M168: =$H168*'Cron. Físico'!K153 -> 0 | N168: =$H168*'Cron. Físico'!L153 -> 0 | O168: =$H168*'Cron. Físico'!M153 -> 0 | P168: =$H168*'Cron. Físico'!N153 -> 0 | Q168: =$H168*'Cron. Físico'!O153 -> 0 | R168: =$H168*'Cron. Físico'!P153 -> 0 | S168: =$H168*'Cron. Físico'!Q153 -> 0 | T168: =$H168*'Cron. Físico'!R153 -> 0 | U168: =$H168*'Cron. Físico'!S153 -> 0 | V168: =$H168*'Cron. Físico'!T153 -> 0 | W168: =$H168*'Cron. Físico'!U153 -> 0 | X168: =$H168*'Cron. Físico'!V153 -> 0 | Y168: =$H168*'Cron. Físico'!W153 -> 0 | Z168: =$H168*'Cron. Físico'!X153 -> 0 | AA168: =$H168*'Cron. Físico'!Y153 -> 0 | AB168: =$H168*'Cron. Físico'!Z153 -> 0 | AC168: =$H168*'Cron. Físico'!AA153 -> 0 | AD168: =$H168*'Cron. Físico'!AB153 -> 0 | AE168: =$H168*'Cron. Físico'!AC153 -> 0 | AF168: =$H168*'Cron. Físico'!AD153 -> 0 | AG168: =$H168*'Cron. Físico'!AE153 -> 0 | AH168: =$H168*'Cron. Físico'!AF153 -> 0 | AI168: =$H168*'Cron. Físico'!AG153 -> 0 | AJ168: =$H168*'Cron. Físico'!AH153 -> 0 | AK168: =$H168*'Cron. Físico'!AI153 -> 0 | AL168: =$H168*'Cron. Físico'!AJ153 -> 0 | AM168: =$H168*'Cron. Físico'!AK153 -> 0 | AN168: 100.00% | AO168: TRUE
C169: 8.1.6.7 | E169: 265BMG0310 | F169: M2 | G169: =_xlfn.XLOOKUP($E169,'Resumo Quant.'!$C:$C,'Resumo Quant.'!$I:$I) -> 0 | H169: =_xlfn.XLOOKUP($E169,'Resumo Preços'!$C:$C,'Resumo Preços'!$I:$I) -> 0 | J169: =$H169*'Cron. Físico'!H154 -> 0 | K169: =$H169*'Cron. Físico'!I154 -> 0 | L169: =$H169*'Cron. Físico'!J154 -> 0 | M169: =$H169*'Cron. Físico'!K154 -> 0 | N169: =$H169*'Cron. Físico'!L154 -> 0 | O169: =$H169*'Cron. Físico'!M154 -> 0 | P169: =$H169*'Cron. Físico'!N154 -> 0 | Q169: =$H169*'Cron. Físico'!O154 -> 0 | R169: =$H169*'Cron. Físico'!P154 -> 0 | S169: =$H169*'Cron. Físico'!Q154 -> 0 | T169: =$H169*'Cron. Físico'!R154 -> 0 | U169: =$H169*'Cron. Físico'!S154 -> 0 | V169: =$H169*'Cron. Físico'!T154 -> 0 | W169: =$H169*'Cron. Físico'!U154 -> 0 | X169: =$H169*'Cron. Físico'!V154 -> 0 | Y169: =$H169*'Cron. Físico'!W154 -> 0 | Z169: =$H169*'Cron. Físico'!X154 -> 0 | AA169: =$H169*'Cron. Físico'!Y154 -> 0 | AB169: =$H169*'Cron. Físico'!Z154 -> 0 | AC169: =$H169*'Cron. Físico'!AA154 -> 0 | AD169: =$H169*'Cron. Físico'!AB154 -> 0 | AE169: =$H169*'Cron. Físico'!AC154 -> 0 | AF169: =$H169*'Cron. Físico'!AD154 -> 0 | AG169: =$H169*'Cron. Físico'!AE154 -> 0 | AH169: =$H169*'Cron. Físico'!AF154 -> 0 | AI169: =$H169*'Cron. Físico'!AG154 -> 0 | AJ169: =$H169*'Cron. Físico'!AH154 -> 0 | AK169: =$H169*'Cron. Físico'!AI154 -> 0 | AL169: =$H169*'Cron. Físico'!AJ154 -> 0 | AM169: =$H169*'Cron. Físico'!AK154 -> 0 | AO169: TRUE
C170: 8.1.6.8 | E170: 265BMG0311 | F170: M2 | G170: =_xlfn.XLOOKUP($E170,'Resumo Quant.'!$C:$C,'Resumo Quant.'!$I:$I) -> 0 | H170: =_xlfn.XLOOKUP($E170,'Resumo Preços'!$C:$C,'Resumo Preços'!$I:$I) -> 0 | J170: =$H170*'Cron. Físico'!H155 -> 0 | K170: =$H170*'Cron. Físico'!I155 -> 0 | L170: =$H170*'Cron. Físico'!J155 -> 0 | M170: =$H170*'Cron. Físico'!K155 -> 0 | N170: =$H170*'Cron. Físico'!L155 -> 0 | O170: =$H170*'Cron. Físico'!M155 -> 0 | P170: =$H170*'Cron. Físico'!N155 -> 0 | Q170: =$H170*'Cron. Físico'!O155 -> 0 | R170: =$H170*'Cron. Físico'!P155 -> 0 | S170: =$H170*'Cron. Físico'!Q155 -> 0 | T170: =$H170*'Cron. Físico'!R155 -> 0 | U170: =$H170*'Cron. Físico'!S155 -> 0 | V170: =$H170*'Cron. Físico'!T155 -> 0 | W170: =$H170*'Cron. Físico'!U155 -> 0 | X170: =$H170*'Cron. Físico'!V155 -> 0 | Y170: =$H170*'Cron. Físico'!W155 -> 0 | Z170: =$H170*'Cron. Físico'!X155 -> 0 | AA170: =$H170*'Cron. Físico'!Y155 -> 0 | AB170: =$H170*'Cron. Físico'!Z155 -> 0 | AC170: =$H170*'Cron. Físico'!AA155 -> 0 | AD170: =$H170*'Cron. Físico'!AB155 -> 0 | AE170: =$H170*'Cron. Físico'!AC155 -> 0 | AF170: =$H170*'Cron. Físico'!AD155 -> 0 | AG170: =$H170*'Cron. Físico'!AE155 -> 0 | AH170: =$H170*'Cron. Físico'!AF155 -> 0 | AI170: =$H170*'Cron. Físico'!AG155 -> 0 | AJ170: =$H170*'Cron. Físico'!AH155 -> 0 | AK170: =$H170*'Cron. Físico'!AI155 -> 0 | AL170: =$H170*'Cron. Físico'!AJ155 -> 0 | AM170: =$H170*'Cron. Físico'!AK155 -> 0 | AO170: =SUM(J170:AM170)=H170 -> TRUE
C171: 8.1.6.9 | E171: 863LMG0010 | F171: M2 | G171: =_xlfn.XLOOKUP($E171,'Resumo Quant.'!$C:$C,'Resumo Quant.'!$I:$I) -> 0 | H171: =_xlfn.XLOOKUP($E171,'Resumo Preços'!$C:$C,'Resumo Preços'!$I:$I) -> 0 | J171: =$H171*'Cron. Físico'!H156 -> 0 | K171: =$H171*'Cron. Físico'!I156 -> 0 | L171: =$H171*'Cron. Físico'!J156 -> 0 | M171: =$H171*'Cron. Físico'!K156 -> 0 | N171: =$H171*'Cron. Físico'!L156 -> 0 | O171: =$H171*'Cron. Físico'!M156 -> 0 | P171: =$H171*'Cron. Físico'!N156 -> 0 | Q171: =$H171*'Cron. Físico'!O156 -> 0 | R171: =$H171*'Cron. Físico'!P156 -> 0 | S171: =$H171*'Cron. Físico'!Q156 -> 0 | T171: =$H171*'Cron. Físico'!R156 -> 0 | U171: =$H171*'Cron. Físico'!S156 -> 0 | V171: =$H171*'Cron. Físico'!T156 -> 0 | W171: =$H171*'Cron. Físico'!U156 -> 0 | X171: =$H171*'Cron. Físico'!V156 -> 0 | Y171: =$H171*'Cron. Físico'!W156 -> 0 | Z171: =$H171*'Cron. Físico'!X156 -> 0 | AA171: =$H171*'Cron. Físico'!Y156 -> 0 | AB171: =$H171*'Cron. Físico'!Z156 -> 0 | AC171: =$H171*'Cron. Físico'!AA156 -> 0 | AD171: =$H171*'Cron. Físico'!AB156 -> 0 | AE171: =$H171*'Cron. Físico'!AC156 -> 0 | AF171: =$H171*'Cron. Físico'!AD156 -> 0 | AG171: =$H171*'Cron. Físico'!AE156 -> 0 | AH171: =$H171*'Cron. Físico'!AF156 -> 0 | AI171: =$H171*'Cron. Físico'!AG156 -> 0 | AJ171: =$H171*'Cron. Físico'!AH156 -> 0 | AK171: =$H171*'Cron. Físico'!AI156 -> 0 | AL171: =$H171*'Cron. Físico'!AJ156 -> 0 | AM171: =$H171*'Cron. Físico'!AK156 -> 0 | AO171: TRUE
C172: 8.1.6.10 | E172: 491CMG0010 | F172: M2 | G172: =_xlfn.XLOOKUP($E172,'Resumo Quant.'!$C:$C,'Resumo Quant.'!$I:$I) -> 6,258.56 | H172: =_xlfn.XLOOKUP($E172,'Resumo Preços'!$C:$C,'Resumo Preços'!$I:$I) -> 17,211.04 | J172: =$H172*'Cron. Físico'!H157 -> 17,211.04 | K172: =$H172*'Cron. Físico'!I157 -> 0 | L172: =$H172*'Cron. Físico'!J157 -> 0 | M172: =$H172*'Cron. Físico'!K157 -> 0 | N172: =$H172*'Cron. Físico'!L157 -> 0 | O172: =$H172*'Cron. Físico'!M157 -> 0 | P172: =$H172*'Cron. Físico'!N157 -> 0 | Q172: =$H172*'Cron. Físico'!O157 -> 0 | R172: =$H172*'Cron. Físico'!P157 -> 0 | S172: =$H172*'Cron. Físico'!Q157 -> 0 | T172: =$H172*'Cron. Físico'!R157 -> 0 | U172: =$H172*'Cron. Físico'!S157 -> 0 | V172: =$H172*'Cron. Físico'!T157 -> 0 | W172: =$H172*'Cron. Físico'!U157 -> 0 | X172: =$H172*'Cron. Físico'!V157 -> 0 | Y172: =$H172*'Cron. Físico'!W157 -> 0 | Z172: =$H172*'Cron. Físico'!X157 -> 0 | AA172: =$H172*'Cron. Físico'!Y157 -> 0 | AB172: =$H172*'Cron. Físico'!Z157 -> 0 | AC172: =$H172*'Cron. Físico'!AA157 -> 0 | AD172: =$H172*'Cron. Físico'!AB157 -> 0 | AE172: =$H172*'Cron. Físico'!AC157 -> 0 | AF172: =$H172*'Cron. Físico'!AD157 -> 0 | AG172: =$H172*'Cron. Físico'!AE157 -> 0 | AH172: =$H172*'Cron. Físico'!AF157 -> 0 | AI172: =$H172*'Cron. Físico'!AG157 -> 0 | AJ172: =$H172*'Cron. Físico'!AH157 -> 0 | AK172: =$H172*'Cron. Físico'!AI157 -> 0 | AL172: =$H172*'Cron. Físico'!AJ157 -> 0 | AM172: =$H172*'Cron. Físico'!AK157 -> 0 | AN172: 100.00% | AO172: TRUE
C173: 8.1.6.11 | E173: 491CMG0023 | F173: M2 | G173: =_xlfn.XLOOKUP($E173,'Resumo Quant.'!$C:$C,'Resumo Quant.'!$I:$I) -> 0 | H173: =_xlfn.XLOOKUP($E173,'Resumo Preços'!$C:$C,'Resumo Preços'!$I:$I) -> 0 | J173: =$H173*'Cron. Físico'!H158 -> 0 | K173: =$H173*'Cron. Físico'!I158 -> 0 | L173: =$H173*'Cron. Físico'!J158 -> 0 | M173: =$H173*'Cron. Físico'!K158 -> 0 | N173: =$H173*'Cron. Físico'!L158 -> 0 | O173: =$H173*'Cron. Físico'!M158 -> 0 | P173: =$H173*'Cron. Físico'!N158 -> 0 | Q173: =$H173*'Cron. Físico'!O158 -> 0 | R173: =$H173*'Cron. Físico'!P158 -> 0 | S173: =$H173*'Cron. Físico'!Q158 -> 0 | T173: =$H173*'Cron. Físico'!R158 -> 0 | U173: =$H173*'Cron. Físico'!S158 -> 0 | V173: =$H173*'Cron. Físico'!T158 -> 0 | W173: =$H173*'Cron. Físico'!U158 -> 0 | X173: =$H173*'Cron. Físico'!V158 -> 0 | Y173: =$H173*'Cron. Físico'!W158 -> 0 | Z173: =$H173*'Cron. Físico'!X158 -> 0 | AA173: =$H173*'Cron. Físico'!Y158 -> 0 | AB173: =$H173*'Cron. Físico'!Z158 -> 0 | AC173: =$H173*'Cron. Físico'!AA158 -> 0 | AD173: =$H173*'Cron. Físico'!AB158 -> 0 | AE173: =$H173*'Cron. Físico'!AC158 -> 0 | AF173: =$H173*'Cron. Físico'!AD158 -> 0 | AG173: =$H173*'Cron. Físico'!AE158 -> 0 | AH173: =$H173*'Cron. Físico'!AF158 -> 0 | AI173: =$H173*'Cron. Físico'!AG158 -> 0 | AJ173: =$H173*'Cron. Físico'!AH158 -> 0 | AK173: =$H173*'Cron. Físico'!AI158 -> 0 | AL173: =$H173*'Cron. Físico'!AJ158 -> 0 | AM173: =$H173*'Cron. Físico'!AK158 -> 0 | AO173: TRUE
C174: 8.1.6.12 | E174: 491CMG0050 | F174: M2 | G174: =_xlfn.XLOOKUP($E174,'Resumo Quant.'!$C:$C,'Resumo Quant.'!$I:$I) -> 11,218.90 | H174: =_xlfn.XLOOKUP($E174,'Resumo Preços'!$C:$C,'Resumo Preços'!$I:$I) -> 30,851.98 | J174: =$H174*'Cron. Físico'!H159 -> 30,851.98 | K174: =$H174*'Cron. Físico'!I159 -> 0 | L174: =$H174*'Cron. Físico'!J159 -> 0 | M174: =$H174*'Cron. Físico'!K159 -> 0 | N174: =$H174*'Cron. Físico'!L159 -> 0 | O174: =$H174*'Cron. Físico'!M159 -> 0 | P174: =$H174*'Cron. Físico'!N159 -> 0 | Q174: =$H174*'Cron. Físico'!O159 -> 0 | R174: =$H174*'Cron. Físico'!P159 -> 0 | S174: =$H174*'Cron. Físico'!Q159 -> 0 | T174: =$H174*'Cron. Físico'!R159 -> 0 | U174: =$H174*'Cron. Físico'!S159 -> 0 | V174: =$H174*'Cron. Físico'!T159 -> 0 | W174: =$H174*'Cron. Físico'!U159 -> 0 | X174: =$H174*'Cron. Físico'!V159 -> 0 | Y174: =$H174*'Cron. Físico'!W159 -> 0 | Z174: =$H174*'Cron. Físico'!X159 -> 0 | AA174: =$H174*'Cron. Físico'!Y159 -> 0 | AB174: =$H174*'Cron. Físico'!Z159 -> 0 | AC174: =$H174*'Cron. Físico'!AA159 -> 0 | AD174: =$H174*'Cron. Físico'!AB159 -> 0 | AE174: =$H174*'Cron. Físico'!AC159 -> 0 | AF174: =$H174*'Cron. Físico'!AD159 -> 0 | AG174: =$H174*'Cron. Físico'!AE159 -> 0 | AH174: =$H174*'Cron. Físico'!AF159 -> 0 | AI174: =$H174*'Cron. Físico'!AG159 -> 0 | AJ174: =$H174*'Cron. Físico'!AH159 -> 0 | AK174: =$H174*'Cron. Físico'!AI159 -> 0 | AL174: =$H174*'Cron. Físico'!AJ159 -> 0 | AM174: =$H174*'Cron. Físico'!AK159 -> 0 | AN174: 100.00% | AO174: TRUE
C175: 8.1.6.13 | E175: 491CMG0090 | F175: M2 | G175: =_xlfn.XLOOKUP($E175,'Resumo Quant.'!$C:$C,'Resumo Quant.'!$I:$I) -> 0 | H175: =_xlfn.XLOOKUP($E175,'Resumo Preços'!$C:$C,'Resumo Preços'!$I:$I) -> 0 | J175: =$H175*'Cron. Físico'!H160 -> 0 | K175: =$H175*'Cron. Físico'!I160 -> 0 | L175: =$H175*'Cron. Físico'!J160 -> 0 | M175: =$H175*'Cron. Físico'!K160 -> 0 | N175: =$H175*'Cron. Físico'!L160 -> 0 | O175: =$H175*'Cron. Físico'!M160 -> 0 | P175: =$H175*'Cron. Físico'!N160 -> 0 | Q175: =$H175*'Cron. Físico'!O160 -> 0 | R175: =$H175*'Cron. Físico'!P160 -> 0 | S175: =$H175*'Cron. Físico'!Q160 -> 0 | T175: =$H175*'Cron. Físico'!R160 -> 0 | U175: =$H175*'Cron. Físico'!S160 -> 0 | V175: =$H175*'Cron. Físico'!T160 -> 0 | W175: =$H175*'Cron. Físico'!U160 -> 0 | X175: =$H175*'Cron. Físico'!V160 -> 0 | Y175: =$H175*'Cron. Físico'!W160 -> 0 | Z175: =$H175*'Cron. Físico'!X160 -> 0 | AA175: =$H175*'Cron. Físico'!Y160 -> 0 | AB175: =$H175*'Cron. Físico'!Z160 -> 0 | AC175: =$H175*'Cron. Físico'!AA160 -> 0 | AD175: =$H175*'Cron. Físico'!AB160 -> 0 | AE175: =$H175*'Cron. Físico'!AC160 -> 0 | AF175: =$H175*'Cron. Físico'!AD160 -> 0 | AG175: =$H175*'Cron. Físico'!AE160 -> 0 | AH175: =$H175*'Cron. Físico'!AF160 -> 0 | AI175: =$H175*'Cron. Físico'!AG160 -> 0 | AJ175: =$H175*'Cron. Físico'!AH160 -> 0 | AK175: =$H175*'Cron. Físico'!AI160 -> 0 | AL175: =$H175*'Cron. Físico'!AJ160 -> 0 | AM175: =$H175*'Cron. Físico'!AK160 -> 0 | AO175: TRUE
C176: 8.1.6.14 | E176: 491CMG0100 | F176: M2 | G176: =_xlfn.XLOOKUP($E176,'Resumo Quant.'!$C:$C,'Resumo Quant.'!$I:$I) -> 0 | H176: =_xlfn.XLOOKUP($E176,'Resumo Preços'!$C:$C,'Resumo Preços'!$I:$I) -> 0 | J176: =$H176*'Cron. Físico'!H161 -> 0 | K176: =$H176*'Cron. Físico'!I161 -> 0 | L176: =$H176*'Cron. Físico'!J161 -> 0 | M176: =$H176*'Cron. Físico'!K161 -> 0 | N176: =$H176*'Cron. Físico'!L161 -> 0 | O176: =$H176*'Cron. Físico'!M161 -> 0 | P176: =$H176*'Cron. Físico'!N161 -> 0 | Q176: =$H176*'Cron. Físico'!O161 -> 0 | R176: =$H176*'Cron. Físico'!P161 -> 0 | S176: =$H176*'Cron. Físico'!Q161 -> 0 | T176: =$H176*'Cron. Físico'!R161 -> 0 | U176: =$H176*'Cron. Físico'!S161 -> 0 | V176: =$H176*'Cron. Físico'!T161 -> 0 | W176: =$H176*'Cron. Físico'!U161 -> 0 | X176: =$H176*'Cron. Físico'!V161 -> 0 | Y176: =$H176*'Cron. Físico'!W161 -> 0 | Z176: =$H176*'Cron. Físico'!X161 -> 0 | AA176: =$H176*'Cron. Físico'!Y161 -> 0 | AB176: =$H176*'Cron. Físico'!Z161 -> 0 | AC176: =$H176*'Cron. Físico'!AA161 -> 0 | AD176: =$H176*'Cron. Físico'!AB161 -> 0 | AE176: =$H176*'Cron. Físico'!AC161 -> 0 | AF176: =$H176*'Cron. Físico'!AD161 -> 0 | AG176: =$H176*'Cron. Físico'!AE161 -> 0 | AH176: =$H176*'Cron. Físico'!AF161 -> 0 | AI176: =$H176*'Cron. Físico'!AG161 -> 0 | AJ176: =$H176*'Cron. Físico'!AH161 -> 0 | AK176: =$H176*'Cron. Físico'!AI161 -> 0 | AL176: =$H176*'Cron. Físico'!AJ161 -> 0 | AM176: =$H176*'Cron. Físico'!AK161 -> 0 | AO176: TRUE
C177: 8.1.6.15 | E177: 491CMG0230 | F177: M2 | G177: =_xlfn.XLOOKUP($E177,'Resumo Quant.'!$C:$C,'Resumo Quant.'!$I:$I) -> 0 | H177: =_xlfn.XLOOKUP($E177,'Resumo Preços'!$C:$C,'Resumo Preços'!$I:$I) -> 0 | J177: =$H177*'Cron. Físico'!H162 -> 0 | K177: =$H177*'Cron. Físico'!I162 -> 0 | L177: =$H177*'Cron. Físico'!J162 -> 0 | M177: =$H177*'Cron. Físico'!K162 -> 0 | N177: =$H177*'Cron. Físico'!L162 -> 0 | O177: =$H177*'Cron. Físico'!M162 -> 0 | P177: =$H177*'Cron. Físico'!N162 -> 0 | Q177: =$H177*'Cron. Físico'!O162 -> 0 | R177: =$H177*'Cron. Físico'!P162 -> 0 | S177: =$H177*'Cron. Físico'!Q162 -> 0 | T177: =$H177*'Cron. Físico'!R162 -> 0 | U177: =$H177*'Cron. Físico'!S162 -> 0 | V177: =$H177*'Cron. Físico'!T162 -> 0 | W177: =$H177*'Cron. Físico'!U162 -> 0 | X177: =$H177*'Cron. Físico'!V162 -> 0 | Y177: =$H177*'Cron. Físico'!W162 -> 0 | Z177: =$H177*'Cron. Físico'!X162 -> 0 | AA177: =$H177*'Cron. Físico'!Y162 -> 0 | AB177: =$H177*'Cron. Físico'!Z162 -> 0 | AC177: =$H177*'Cron. Físico'!AA162 -> 0 | AD177: =$H177*'Cron. Físico'!AB162 -> 0 | AE177: =$H177*'Cron. Físico'!AC162 -> 0 | AF177: =$H177*'Cron. Físico'!AD162 -> 0 | AG177: =$H177*'Cron. Físico'!AE162 -> 0 | AH177: =$H177*'Cron. Físico'!AF162 -> 0 | AI177: =$H177*'Cron. Físico'!AG162 -> 0 | AJ177: =$H177*'Cron. Físico'!AH162 -> 0 | AK177: =$H177*'Cron. Físico'!AI162 -> 0 | AL177: =$H177*'Cron. Físico'!AJ162 -> 0 | AM177: =$H177*'Cron. Físico'!AK162 -> 0 | AO177: TRUE
C178: 8.1.6.16 | E178: 491CMG0030 | F178: M2 | G178: =_xlfn.XLOOKUP($E178,'Resumo Quant.'!$C:$C,'Resumo Quant.'!$I:$I) -> 0 | H178: =_xlfn.XLOOKUP($E178,'Resumo Preços'!$C:$C,'Resumo Preços'!$I:$I) -> 0 | J178: =$H178*'Cron. Físico'!H163 -> 0 | K178: =$H178*'Cron. Físico'!I163 -> 0 | L178: =$H178*'Cron. Físico'!J163 -> 0 | M178: =$H178*'Cron. Físico'!K163 -> 0 | N178: =$H178*'Cron. Físico'!L163 -> 0 | O178: =$H178*'Cron. Físico'!M163 -> 0 | P178: =$H178*'Cron. Físico'!N163 -> 0 | Q178: =$H178*'Cron. Físico'!O163 -> 0 | R178: =$H178*'Cron. Físico'!P163 -> 0 | S178: =$H178*'Cron. Físico'!Q163 -> 0 | T178: =$H178*'Cron. Físico'!R163 -> 0 | U178: =$H178*'Cron. Físico'!S163 -> 0 | V178: =$H178*'Cron. Físico'!T163 -> 0 | W178: =$H178*'Cron. Físico'!U163 -> 0 | X178: =$H178*'Cron. Físico'!V163 -> 0 | Y178: =$H178*'Cron. Físico'!W163 -> 0 | Z178: =$H178*'Cron. Físico'!X163 -> 0 | AA178: =$H178*'Cron. Físico'!Y163 -> 0 | AB178: =$H178*'Cron. Físico'!Z163 -> 0 | AC178: =$H178*'Cron. Físico'!AA163 -> 0 | AD178: =$H178*'Cron. Físico'!AB163 -> 0 | AE178: =$H178*'Cron. Físico'!AC163 -> 0 | AF178: =$H178*'Cron. Físico'!AD163 -> 0 | AG178: =$H178*'Cron. Físico'!AE163 -> 0 | AH178: =$H178*'Cron. Físico'!AF163 -> 0 | AI178: =$H178*'Cron. Físico'!AG163 -> 0 | AJ178: =$H178*'Cron. Físico'!AH163 -> 0 | AK178: =$H178*'Cron. Físico'!AI163 -> 0 | AL178: =$H178*'Cron. Físico'!AJ163 -> 0 | AM178: =$H178*'Cron. Físico'!AK163 -> 0 | AO178: TRUE
C179: 8.1.6.17 | E179: 491CMG0110 | F179: M2 | G179: =_xlfn.XLOOKUP($E179,'Resumo Quant.'!$C:$C,'Resumo Quant.'!$I:$I) -> 4,848.92 | H179: =_xlfn.XLOOKUP($E179,'Resumo Preços'!$C:$C,'Resumo Preços'!$I:$I) -> 13,334.53 | J179: =$H179*'Cron. Físico'!H164 -> 13,334.53 | K179: =$H179*'Cron. Físico'!I164 -> 0 | L179: =$H179*'Cron. Físico'!J164 -> 0 | M179: =$H179*'Cron. Físico'!K164 -> 0 | N179: =$H179*'Cron. Físico'!L164 -> 0 | O179: =$H179*'Cron. Físico'!M164 -> 0 | P179: =$H179*'Cron. Físico'!N164 -> 0 | Q179: =$H179*'Cron. Físico'!O164 -> 0 | R179: =$H179*'Cron. Físico'!P164 -> 0 | S179: =$H179*'Cron. Físico'!Q164 -> 0 | T179: =$H179*'Cron. Físico'!R164 -> 0 | U179: =$H179*'Cron. Físico'!S164 -> 0 | V179: =$H179*'Cron. Físico'!T164 -> 0 | W179: =$H179*'Cron. Físico'!U164 -> 0 | X179: =$H179*'Cron. Físico'!V164 -> 0 | Y179: =$H179*'Cron. Físico'!W164 -> 0 | Z179: =$H179*'Cron. Físico'!X164 -> 0 | AA179: =$H179*'Cron. Físico'!Y164 -> 0 | AB179: =$H179*'Cron. Físico'!Z164 -> 0 | AC179: =$H179*'Cron. Físico'!AA164 -> 0 | AD179: =$H179*'Cron. Físico'!AB164 -> 0 | AE179: =$H179*'Cron. Físico'!AC164 -> 0 | AF179: =$H179*'Cron. Físico'!AD164 -> 0 | AG179: =$H179*'Cron. Físico'!AE164 -> 0 | AH179: =$H179*'Cron. Físico'!AF164 -> 0 | AI179: =$H179*'Cron. Físico'!AG164 -> 0 | AJ179: =$H179*'Cron. Físico'!AH164 -> 0 | AK179: =$H179*'Cron. Físico'!AI164 -> 0 | AL179: =$H179*'Cron. Físico'!AJ164 -> 0 | AM179: =$H179*'Cron. Físico'!AK164 -> 0 | AN179: 100.00% | AO179: TRUE
C180: 8.1.6.18 | E180: 491CMG0130 | F180: M2 | G180: =_xlfn.XLOOKUP($E180,'Resumo Quant.'!$C:$C,'Resumo Quant.'!$I:$I) -> 15,525.47 | H180: =_xlfn.XLOOKUP($E180,'Resumo Preços'!$C:$C,'Resumo Preços'!$I:$I) -> 42,695.04 | J180: =$H180*'Cron. Físico'!H165 -> 42,695.04 | K180: =$H180*'Cron. Físico'!I165 -> 0 | L180: =$H180*'Cron. Físico'!J165 -> 0 | M180: =$H180*'Cron. Físico'!K165 -> 0 | N180: =$H180*'Cron. Físico'!L165 -> 0 | O180: =$H180*'Cron. Físico'!M165 -> 0 | P180: =$H180*'Cron. Físico'!N165 -> 0 | Q180: =$H180*'Cron. Físico'!O165 -> 0 | R180: =$H180*'Cron. Físico'!P165 -> 0 | S180: =$H180*'Cron. Físico'!Q165 -> 0 | T180: =$H180*'Cron. Físico'!R165 -> 0 | U180: =$H180*'Cron. Físico'!S165 -> 0 | V180: =$H180*'Cron. Físico'!T165 -> 0 | W180: =$H180*'Cron. Físico'!U165 -> 0 | X180: =$H180*'Cron. Físico'!V165 -> 0 | Y180: =$H180*'Cron. Físico'!W165 -> 0 | Z180: =$H180*'Cron. Físico'!X165 -> 0 | AA180: =$H180*'Cron. Físico'!Y165 -> 0 | AB180: =$H180*'Cron. Físico'!Z165 -> 0 | AC180: =$H180*'Cron. Físico'!AA165 -> 0 | AD180: =$H180*'Cron. Físico'!AB165 -> 0 | AE180: =$H180*'Cron. Físico'!AC165 -> 0 | AF180: =$H180*'Cron. Físico'!AD165 -> 0 | AG180: =$H180*'Cron. Físico'!AE165 -> 0 | AH180: =$H180*'Cron. Físico'!AF165 -> 0 | AI180: =$H180*'Cron. Físico'!AG165 -> 0 | AJ180: =$H180*'Cron. Físico'!AH165 -> 0 | AK180: =$H180*'Cron. Físico'!AI165 -> 0 | AL180: =$H180*'Cron. Físico'!AJ165 -> 0 | AM180: =$H180*'Cron. Físico'!AK165 -> 0 | AN180: 100.00% | AO180: TRUE
C181: 8.1.6.19 | E181: 491CMG0150 | F181: M2 | G181: =_xlfn.XLOOKUP($E181,'Resumo Quant.'!$C:$C,'Resumo Quant.'!$I:$I) -> 3,971.72 | H181: =_xlfn.XLOOKUP($E181,'Resumo Preços'!$C:$C,'Resumo Preços'!$I:$I) -> 10,922.23 | J181: =$H181*'Cron. Físico'!H166 -> 10,922.23 | K181: =$H181*'Cron. Físico'!I166 -> 0 | L181: =$H181*'Cron. Físico'!J166 -> 0 | M181: =$H181*'Cron. Físico'!K166 -> 0 | N181: =$H181*'Cron. Físico'!L166 -> 0 | O181: =$H181*'Cron. Físico'!M166 -> 0 | P181: =$H181*'Cron. Físico'!N166 -> 0 | Q181: =$H181*'Cron. Físico'!O166 -> 0 | R181: =$H181*'Cron. Físico'!P166 -> 0 | S181: =$H181*'Cron. Físico'!Q166 -> 0 | T181: =$H181*'Cron. Físico'!R166 -> 0 | U181: =$H181*'Cron. Físico'!S166 -> 0 | V181: =$H181*'Cron. Físico'!T166 -> 0 | W181: =$H181*'Cron. Físico'!U166 -> 0 | X181: =$H181*'Cron. Físico'!V166 -> 0 | Y181: =$H181*'Cron. Físico'!W166 -> 0 | Z181: =$H181*'Cron. Físico'!X166 -> 0 | AA181: =$H181*'Cron. Físico'!Y166 -> 0 | AB181: =$H181*'Cron. Físico'!Z166 -> 0 | AC181: =$H181*'Cron. Físico'!AA166 -> 0 | AD181: =$H181*'Cron. Físico'!AB166 -> 0 | AE181: =$H181*'Cron. Físico'!AC166 -> 0 | AF181: =$H181*'Cron. Físico'!AD166 -> 0 | AG181: =$H181*'Cron. Físico'!AE166 -> 0 | AH181: =$H181*'Cron. Físico'!AF166 -> 0 | AI181: =$H181*'Cron. Físico'!AG166 -> 0 | AJ181: =$H181*'Cron. Físico'!AH166 -> 0 | AK181: =$H181*'Cron. Físico'!AI166 -> 0 | AL181: =$H181*'Cron. Físico'!AJ166 -> 0 | AM181: =$H181*'Cron. Físico'!AK166 -> 0 | AN181: 100.00% | AO181: TRUE
C182: 8.1.6.20 | E182: 491CMG0170 | F182: M2 | G182: =_xlfn.XLOOKUP($E182,'Resumo Quant.'!$C:$C,'Resumo Quant.'!$I:$I) -> 0 | H182: =_xlfn.XLOOKUP($E182,'Resumo Preços'!$C:$C,'Resumo Preços'!$I:$I) -> 0 | J182: =$H182*'Cron. Físico'!H167 -> 0 | K182: =$H182*'Cron. Físico'!I167 -> 0 | L182: =$H182*'Cron. Físico'!J167 -> 0 | M182: =$H182*'Cron. Físico'!K167 -> 0 | N182: =$H182*'Cron. Físico'!L167 -> 0 | O182: =$H182*'Cron. Físico'!M167 -> 0 | P182: =$H182*'Cron. Físico'!N167 -> 0 | Q182: =$H182*'Cron. Físico'!O167 -> 0 | R182: =$H182*'Cron. Físico'!P167 -> 0 | S182: =$H182*'Cron. Físico'!Q167 -> 0 | T182: =$H182*'Cron. Físico'!R167 -> 0 | U182: =$H182*'Cron. Físico'!S167 -> 0 | V182: =$H182*'Cron. Físico'!T167 -> 0 | W182: =$H182*'Cron. Físico'!U167 -> 0 | X182: =$H182*'Cron. Físico'!V167 -> 0 | Y182: =$H182*'Cron. Físico'!W167 -> 0 | Z182: =$H182*'Cron. Físico'!X167 -> 0 | AA182: =$H182*'Cron. Físico'!Y167 -> 0 | AB182: =$H182*'Cron. Físico'!Z167 -> 0 | AC182: =$H182*'Cron. Físico'!AA167 -> 0 | AD182: =$H182*'Cron. Físico'!AB167 -> 0 | AE182: =$H182*'Cron. Físico'!AC167 -> 0 | AF182: =$H182*'Cron. Físico'!AD167 -> 0 | AG182: =$H182*'Cron. Físico'!AE167 -> 0 | AH182: =$H182*'Cron. Físico'!AF167 -> 0 | AI182: =$H182*'Cron. Físico'!AG167 -> 0 | AJ182: =$H182*'Cron. Físico'!AH167 -> 0 | AK182: =$H182*'Cron. Físico'!AI167 -> 0 | AL182: =$H182*'Cron. Físico'!AJ167 -> 0 | AM182: =$H182*'Cron. Físico'!AK167 -> 0 | AO182: TRUE
C183: 8.1.6.21 | E183: 491CMG0190 | F183: M2 | G183: =_xlfn.XLOOKUP($E183,'Resumo Quant.'!$C:$C,'Resumo Quant.'!$I:$I) -> 0 | H183: =_xlfn.XLOOKUP($E183,'Resumo Preços'!$C:$C,'Resumo Preços'!$I:$I) -> 0 | J183: =$H183*'Cron. Físico'!H168 -> 0 | K183: =$H183*'Cron. Físico'!I168 -> 0 | L183: =$H183*'Cron. Físico'!J168 -> 0 | M183: =$H183*'Cron. Físico'!K168 -> 0 | N183: =$H183*'Cron. Físico'!L168 -> 0 | O183: =$H183*'Cron. Físico'!M168 -> 0 | P183: =$H183*'Cron. Físico'!N168 -> 0 | Q183: =$H183*'Cron. Físico'!O168 -> 0 | R183: =$H183*'Cron. Físico'!P168 -> 0 | S183: =$H183*'Cron. Físico'!Q168 -> 0 | T183: =$H183*'Cron. Físico'!R168 -> 0 | U183: =$H183*'Cron. Físico'!S168 -> 0 | V183: =$H183*'Cron. Físico'!T168 -> 0 | W183: =$H183*'Cron. Físico'!U168 -> 0 | X183: =$H183*'Cron. Físico'!V168 -> 0 | Y183: =$H183*'Cron. Físico'!W168 -> 0 | Z183: =$H183*'Cron. Físico'!X168 -> 0 | AA183: =$H183*'Cron. Físico'!Y168 -> 0 | AB183: =$H183*'Cron. Físico'!Z168 -> 0 | AC183: =$H183*'Cron. Físico'!AA168 -> 0 | AD183: =$H183*'Cron. Físico'!AB168 -> 0 | AE183: =$H183*'Cron. Físico'!AC168 -> 0 | AF183: =$H183*'Cron. Físico'!AD168 -> 0 | AG183: =$H183*'Cron. Físico'!AE168 -> 0 | AH183: =$H183*'Cron. Físico'!AF168 -> 0 | AI183: =$H183*'Cron. Físico'!AG168 -> 0 | AJ183: =$H183*'Cron. Físico'!AH168 -> 0 | AK183: =$H183*'Cron. Físico'!AI168 -> 0 | AL183: =$H183*'Cron. Físico'!AJ168 -> 0 | AM183: =$H183*'Cron. Físico'!AK168 -> 0 | AO183: TRUE
C184: 8.1.6.22 | E184: 491CMG0210D | F184: M2 | G184: =_xlfn.XLOOKUP($E184,'Resumo Quant.'!$C:$C,'Resumo Quant.'!$I:$I) -> 0 | H184: =_xlfn.XLOOKUP($E184,'Resumo Preços'!$C:$C,'Resumo Preços'!$I:$I) -> 0 | J184: =$H184*'Cron. Físico'!H169 -> 0 | K184: =$H184*'Cron. Físico'!I169 -> 0 | L184: =$H184*'Cron. Físico'!J169 -> 0 | M184: =$H184*'Cron. Físico'!K169 -> 0 | N184: =$H184*'Cron. Físico'!L169 -> 0 | O184: =$H184*'Cron. Físico'!M169 -> 0 | P184: =$H184*'Cron. Físico'!N169 -> 0 | Q184: =$H184*'Cron. Físico'!O169 -> 0 | R184: =$H184*'Cron. Físico'!P169 -> 0 | S184: =$H184*'Cron. Físico'!Q169 -> 0 | T184: =$H184*'Cron. Físico'!R169 -> 0 | U184: =$H184*'Cron. Físico'!S169 -> 0 | V184: =$H184*'Cron. Físico'!T169 -> 0 | W184: =$H184*'Cron. Físico'!U169 -> 0 | X184: =$H184*'Cron. Físico'!V169 -> 0 | Y184: =$H184*'Cron. Físico'!W169 -> 0 | Z184: =$H184*'Cron. Físico'!X169 -> 0 | AA184: =$H184*'Cron. Físico'!Y169 -> 0 | AB184: =$H184*'Cron. Físico'!Z169 -> 0 | AC184: =$H184*'Cron. Físico'!AA169 -> 0 | AD184: =$H184*'Cron. Físico'!AB169 -> 0 | AE184: =$H184*'Cron. Físico'!AC169 -> 0 | AF184: =$H184*'Cron. Físico'!AD169 -> 0 | AG184: =$H184*'Cron. Físico'!AE169 -> 0 | AH184: =$H184*'Cron. Físico'!AF169 -> 0 | AI184: =$H184*'Cron. Físico'!AG169 -> 0 | AJ184: =$H184*'Cron. Físico'!AH169 -> 0 | AK184: =$H184*'Cron. Físico'!AI169 -> 0 | AL184: =$H184*'Cron. Físico'!AJ169 -> 0 | AM184: =$H184*'Cron. Físico'!AK169 -> 0 | AO184: TRUE
C185: 8.1.6.23 | E185: 146BMG0250 | F185: M2 | G185: =_xlfn.XLOOKUP($E185,'Resumo Quant.'!$C:$C,'Resumo Quant.'!$I:$I) -> 3,110.28 | H185: =_xlfn.XLOOKUP($E185,'Resumo Preços'!$C:$C,'Resumo Preços'!$I:$I) -> 8,553.27 | J185: =$H185*'Cron. Físico'!H170 -> 8,553.27 | K185: =$H185*'Cron. Físico'!I170 -> 0 | L185: =$H185*'Cron. Físico'!J170 -> 0 | M185: =$H185*'Cron. Físico'!K170 -> 0 | N185: =$H185*'Cron. Físico'!L170 -> 0 | O185: =$H185*'Cron. Físico'!M170 -> 0 | P185: =$H185*'Cron. Físico'!N170 -> 0 | Q185: =$H185*'Cron. Físico'!O170 -> 0 | R185: =$H185*'Cron. Físico'!P170 -> 0 | S185: =$H185*'Cron. Físico'!Q170 -> 0 | T185: =$H185*'Cron. Físico'!R170 -> 0 | U185: =$H185*'Cron. Físico'!S170 -> 0 | V185: =$H185*'Cron. Físico'!T170 -> 0 | W185: =$H185*'Cron. Físico'!U170 -> 0 | X185: =$H185*'Cron. Físico'!V170 -> 0 | Y185: =$H185*'Cron. Físico'!W170 -> 0 | Z185: =$H185*'Cron. Físico'!X170 -> 0 | AA185: =$H185*'Cron. Físico'!Y170 -> 0 | AB185: =$H185*'Cron. Físico'!Z170 -> 0 | AC185: =$H185*'Cron. Físico'!AA170 -> 0 | AD185: =$H185*'Cron. Físico'!AB170 -> 0 | AE185: =$H185*'Cron. Físico'!AC170 -> 0 | AF185: =$H185*'Cron. Físico'!AD170 -> 0 | AG185: =$H185*'Cron. Físico'!AE170 -> 0 | AH185: =$H185*'Cron. Físico'!AF170 -> 0 | AI185: =$H185*'Cron. Físico'!AG170 -> 0 | AJ185: =$H185*'Cron. Físico'!AH170 -> 0 | AK185: =$H185*'Cron. Físico'!AI170 -> 0 | AL185: =$H185*'Cron. Físico'!AJ170 -> 0 | AM185: =$H185*'Cron. Físico'!AK170 -> 0 | AN185: 100.00% | AO185: TRUE
C186: 8.1.6.24 | E186: 146BMG0252 | F186: M2 | G186: =_xlfn.XLOOKUP($E186,'Resumo Quant.'!$C:$C,'Resumo Quant.'!$I:$I) -> 0 | H186: =_xlfn.XLOOKUP($E186,'Resumo Preços'!$C:$C,'Resumo Preços'!$I:$I) -> 0 | J186: =$H186*'Cron. Físico'!H171 -> 0 | K186: =$H186*'Cron. Físico'!I171 -> 0 | L186: =$H186*'Cron. Físico'!J171 -> 0 | M186: =$H186*'Cron. Físico'!K171 -> 0 | N186: =$H186*'Cron. Físico'!L171 -> 0 | O186: =$H186*'Cron. Físico'!M171 -> 0 | P186: =$H186*'Cron. Físico'!N171 -> 0 | Q186: =$H186*'Cron. Físico'!O171 -> 0 | R186: =$H186*'Cron. Físico'!P171 -> 0 | S186: =$H186*'Cron. Físico'!Q171 -> 0 | T186: =$H186*'Cron. Físico'!R171 -> 0 | U186: =$H186*'Cron. Físico'!S171 -> 0 | V186: =$H186*'Cron. Físico'!T171 -> 0 | W186: =$H186*'Cron. Físico'!U171 -> 0 | X186: =$H186*'Cron. Físico'!V171 -> 0 | Y186: =$H186*'Cron. Físico'!W171 -> 0 | Z186: =$H186*'Cron. Físico'!X171 -> 0 | AA186: =$H186*'Cron. Físico'!Y171 -> 0 | AB186: =$H186*'Cron. Físico'!Z171 -> 0 | AC186: =$H186*'Cron. Físico'!AA171 -> 0 | AD186: =$H186*'Cron. Físico'!AB171 -> 0 | AE186: =$H186*'Cron. Físico'!AC171 -> 0 | AF186: =$H186*'Cron. Físico'!AD171 -> 0 | AG186: =$H186*'Cron. Físico'!AE171 -> 0 | AH186: =$H186*'Cron. Físico'!AF171 -> 0 | AI186: =$H186*'Cron. Físico'!AG171 -> 0 | AJ186: =$H186*'Cron. Físico'!AH171 -> 0 | AK186: =$H186*'Cron. Físico'!AI171 -> 0 | AL186: =$H186*'Cron. Físico'!AJ171 -> 0 | AM186: =$H186*'Cron. Físico'!AK171 -> 0 | AO186: TRUE
C187: 8.1.6.25 | E187: 369CMG0070 | F187: M2 | G187: =_xlfn.XLOOKUP($E187,'Resumo Quant.'!$C:$C,'Resumo Quant.'!$I:$I) -> 11,524.34 | H187: =_xlfn.XLOOKUP($E187,'Resumo Preços'!$C:$C,'Resumo Preços'!$I:$I) -> 31,691.94 | J187: =$H187*'Cron. Físico'!H172 -> 31,691.94 | K187: =$H187*'Cron. Físico'!I172 -> 0 | L187: =$H187*'Cron. Físico'!J172 -> 0 | M187: =$H187*'Cron. Físico'!K172 -> 0 | N187: =$H187*'Cron. Físico'!L172 -> 0 | O187: =$H187*'Cron. Físico'!M172 -> 0 | P187: =$H187*'Cron. Físico'!N172 -> 0 | Q187: =$H187*'Cron. Físico'!O172 -> 0 | R187: =$H187*'Cron. Físico'!P172 -> 0 | S187: =$H187*'Cron. Físico'!Q172 -> 0 | T187: =$H187*'Cron. Físico'!R172 -> 0 | U187: =$H187*'Cron. Físico'!S172 -> 0 | V187: =$H187*'Cron. Físico'!T172 -> 0 | W187: =$H187*'Cron. Físico'!U172 -> 0 | X187: =$H187*'Cron. Físico'!V172 -> 0 | Y187: =$H187*'Cron. Físico'!W172 -> 0 | Z187: =$H187*'Cron. Físico'!X172 -> 0 | AA187: =$H187*'Cron. Físico'!Y172 -> 0 | AB187: =$H187*'Cron. Físico'!Z172 -> 0 | AC187: =$H187*'Cron. Físico'!AA172 -> 0 | AD187: =$H187*'Cron. Físico'!AB172 -> 0 | AE187: =$H187*'Cron. Físico'!AC172 -> 0 | AF187: =$H187*'Cron. Físico'!AD172 -> 0 | AG187: =$H187*'Cron. Físico'!AE172 -> 0 | AH187: =$H187*'Cron. Físico'!AF172 -> 0 | AI187: =$H187*'Cron. Físico'!AG172 -> 0 | AJ187: =$H187*'Cron. Físico'!AH172 -> 0 | AK187: =$H187*'Cron. Físico'!AI172 -> 0 | AL187: =$H187*'Cron. Físico'!AJ172 -> 0 | AM187: =$H187*'Cron. Físico'!AK172 -> 0 | AN187: 100.00% | AO187: TRUE
C188: 8.1.6.26 | E188: 369CMG0090 | F188: M2 | G188: =_xlfn.XLOOKUP($E188,'Resumo Quant.'!$C:$C,'Resumo Quant.'!$I:$I) -> 11,052.05 | H188: =_xlfn.XLOOKUP($E188,'Resumo Preços'!$C:$C,'Resumo Preços'!$I:$I) -> 30,393.14 | J188: =$H188*'Cron. Físico'!H173 -> 30,393.14 | K188: =$H188*'Cron. Físico'!I173 -> 0 | L188: =$H188*'Cron. Físico'!J173 -> 0 | M188: =$H188*'Cron. Físico'!K173 -> 0 | N188: =$H188*'Cron. Físico'!L173 -> 0 | O188: =$H188*'Cron. Físico'!M173 -> 0 | P188: =$H188*'Cron. Físico'!N173 -> 0 | Q188: =$H188*'Cron. Físico'!O173 -> 0 | R188: =$H188*'Cron. Físico'!P173 -> 0 | S188: =$H188*'Cron. Físico'!Q173 -> 0 | T188: =$H188*'Cron. Físico'!R173 -> 0 | U188: =$H188*'Cron. Físico'!S173 -> 0 | V188: =$H188*'Cron. Físico'!T173 -> 0 | W188: =$H188*'Cron. Físico'!U173 -> 0 | X188: =$H188*'Cron. Físico'!V173 -> 0 | Y188: =$H188*'Cron. Físico'!W173 -> 0 | Z188: =$H188*'Cron. Físico'!X173 -> 0 | AA188: =$H188*'Cron. Físico'!Y173 -> 0 | AB188: =$H188*'Cron. Físico'!Z173 -> 0 | AC188: =$H188*'Cron. Físico'!AA173 -> 0 | AD188: =$H188*'Cron. Físico'!AB173 -> 0 | AE188: =$H188*'Cron. Físico'!AC173 -> 0 | AF188: =$H188*'Cron. Físico'!AD173 -> 0 | AG188: =$H188*'Cron. Físico'!AE173 -> 0 | AH188: =$H188*'Cron. Físico'!AF173 -> 0 | AI188: =$H188*'Cron. Físico'!AG173 -> 0 | AJ188: =$H188*'Cron. Físico'!AH173 -> 0 | AK188: =$H188*'Cron. Físico'!AI173 -> 0 | AL188: =$H188*'Cron. Físico'!AJ173 -> 0 | AM188: =$H188*'Cron. Físico'!AK173 -> 0 | AN188: 100.00% | AO188: TRUE
C189: 8.1.6.27 | E189: VARGINHA | F189: M2 | G189: =_xlfn.XLOOKUP($E189,'Resumo Quant.'!$C:$C,'Resumo Quant.'!$I:$I) ->  | H189: =_xlfn.XLOOKUP($E189,'Resumo Preços'!$C:$C,'Resumo Preços'!$I:$I) ->  | J189: =$H189*'Cron. Físico'!#REF! ->  | K189: =$H189*'Cron. Físico'!#REF! ->  | L189: =$H189*'Cron. Físico'!#REF! ->  | M189: =$H189*'Cron. Físico'!#REF! ->  | N189: =$H189*'Cron. Físico'!#REF! ->  | O189: =$H189*'Cron. Físico'!#REF! ->  | P189: =$H189*'Cron. Físico'!#REF! ->  | Q189: =$H189*'Cron. Físico'!#REF! ->  | R189: =$H189*'Cron. Físico'!#REF! ->  | S189: =$H189*'Cron. Físico'!#REF! ->  | T189: =$H189*'Cron. Físico'!#REF! ->  | U189: =$H189*'Cron. Físico'!#REF! ->  | V189: =$H189*'Cron. Físico'!#REF! ->  | W189: =$H189*'Cron. Físico'!#REF! ->  | X189: =$H189*'Cron. Físico'!#REF! ->  | Y189: =$H189*'Cron. Físico'!#REF! ->  | Z189: =$H189*'Cron. Físico'!#REF! ->  | AA189: =$H189*'Cron. Físico'!#REF! ->  | AB189: =$H189*'Cron. Físico'!#REF! ->  | AC189: =$H189*'Cron. Físico'!#REF! ->  | AD189: =$H189*'Cron. Físico'!#REF! ->  | AE189: =$H189*'Cron. Físico'!#REF! ->  | AF189: =$H189*'Cron. Físico'!#REF! ->  | AG189: =$H189*'Cron. Físico'!#REF! ->  | AH189: =$H189*'Cron. Físico'!#REF! ->  | AI189: =$H189*'Cron. Físico'!#REF! ->  | AJ189: =$H189*'Cron. Físico'!#REF! ->  | AK189: =$H189*'Cron. Físico'!#REF! ->  | AL189: =$H189*'Cron. Físico'!#REF! ->  | AM189: =$H189*'Cron. Físico'!#REF! ->  | AN189: =SUM(J189:AM189)/H189 ->  | AO189: =SUM(J189:AM189)=H189 -> 
C190: 8.1.6.28 | E190: CAMPOS GERAIS | F190: M2 | G190: =_xlfn.XLOOKUP($E190,'Resumo Quant.'!$C:$C,'Resumo Quant.'!$I:$I) ->  | H190: =_xlfn.XLOOKUP($E190,'Resumo Preços'!$C:$C,'Resumo Preços'!$I:$I) ->  | J190: =$H190*'Cron. Físico'!#REF! ->  | K190: =$H190*'Cron. Físico'!#REF! ->  | L190: =$H190*'Cron. Físico'!#REF! ->  | M190: =$H190*'Cron. Físico'!#REF! ->  | N190: =$H190*'Cron. Físico'!#REF! ->  | O190: =$H190*'Cron. Físico'!#REF! ->  | P190: =$H190*'Cron. Físico'!#REF! ->  | Q190: =$H190*'Cron. Físico'!#REF! ->  | R190: =$H190*'Cron. Físico'!#REF! ->  | S190: =$H190*'Cron. Físico'!#REF! ->  | T190: =$H190*'Cron. Físico'!#REF! ->  | U190: =$H190*'Cron. Físico'!#REF! ->  | V190: =$H190*'Cron. Físico'!#REF! ->  | W190: =$H190*'Cron. Físico'!#REF! ->  | X190: =$H190*'Cron. Físico'!#REF! ->  | Y190: =$H190*'Cron. Físico'!#REF! ->  | Z190: =$H190*'Cron. Físico'!#REF! ->  | AA190: =$H190*'Cron. Físico'!#REF! ->  | AB190: =$H190*'Cron. Físico'!#REF! ->  | AC190: =$H190*'Cron. Físico'!#REF! ->  | AD190: =$H190*'Cron. Físico'!#REF! ->  | AE190: =$H190*'Cron. Físico'!#REF! ->  | AF190: =$H190*'Cron. Físico'!#REF! ->  | AG190: =$H190*'Cron. Físico'!#REF! ->  | AH190: =$H190*'Cron. Físico'!#REF! ->  | AI190: =$H190*'Cron. Físico'!#REF! ->  | AJ190: =$H190*'Cron. Físico'!#REF! ->  | AK190: =$H190*'Cron. Físico'!#REF! ->  | AL190: =$H190*'Cron. Físico'!#REF! ->  | AM190: =$H190*'Cron. Físico'!#REF! -> 
C191: 8.1.6.29 | E191: ALFENAS | F191: M2 | G191: =_xlfn.XLOOKUP($E191,'Resumo Quant.'!$C:$C,'Resumo Quant.'!$I:$I) ->  | H191: =_xlfn.XLOOKUP($E191,'Resumo Preços'!$C:$C,'Resumo Preços'!$I:$I) ->  | J191: =$H191*'Cron. Físico'!#REF! ->  | K191: =$H191*'Cron. Físico'!#REF! ->  | L191: =$H191*'Cron. Físico'!#REF! ->  | M191: =$H191*'Cron. Físico'!#REF! ->  | N191: =$H191*'Cron. Físico'!#REF! ->  | O191: =$H191*'Cron. Físico'!#REF! ->  | P191: =$H191*'Cron. Físico'!#REF! ->  | Q191: =$H191*'Cron. Físico'!#REF! ->  | R191: =$H191*'Cron. Físico'!#REF! ->  | S191: =$H191*'Cron. Físico'!#REF! ->  | T191: =$H191*'Cron. Físico'!#REF! ->  | U191: =$H191*'Cron. Físico'!#REF! ->  | V191: =$H191*'Cron. Físico'!#REF! ->  | W191: =$H191*'Cron. Físico'!#REF! ->  | X191: =$H191*'Cron. Físico'!#REF! ->  | Y191: =$H191*'Cron. Físico'!#REF! ->  | Z191: =$H191*'Cron. Físico'!#REF! ->  | AA191: =$H191*'Cron. Físico'!#REF! ->  | AB191: =$H191*'Cron. Físico'!#REF! ->  | AC191: =$H191*'Cron. Físico'!#REF! ->  | AD191: =$H191*'Cron. Físico'!#REF! ->  | AE191: =$H191*'Cron. Físico'!#REF! ->  | AF191: =$H191*'Cron. Físico'!#REF! ->  | AG191: =$H191*'Cron. Físico'!#REF! ->  | AH191: =$H191*'Cron. Físico'!#REF! ->  | AI191: =$H191*'Cron. Físico'!#REF! ->  | AJ191: =$H191*'Cron. Físico'!#REF! ->  | AK191: =$H191*'Cron. Físico'!#REF! ->  | AL191: =$H191*'Cron. Físico'!#REF! ->  | AM191: =$H191*'Cron. Físico'!#REF! -> 
A192: x | C192: 8.1.7 | E192: Fresagem3+Recomposição4conv | H192: =SUM(H193:H221) ->  | J192: =SUM(J193:J221) ->  | K192: =SUM(K193:K221) ->  | AO192: =SUM(J192:AM192)=H192 -> 
C193: 8.1.7.1 | E193: 167EMG0200 | F193: M2 | G193: =_xlfn.XLOOKUP($E193,'Resumo Quant.'!$C:$C,'Resumo Quant.'!$J:$J) -> 59,292.14 | H193: =_xlfn.XLOOKUP($E193,'Resumo Preços'!$C:$C,'Resumo Preços'!$J:$J) -> 783,842.09 | J193: =$H193*'Cron. Físico'!H175 -> 0 | K193: =$H193*'Cron. Físico'!I175 -> 783,842.09 | L193: =$H193*'Cron. Físico'!J175 -> 0 | M193: =$H193*'Cron. Físico'!K175 -> 0 | N193: =$H193*'Cron. Físico'!L175 -> 0 | O193: =$H193*'Cron. Físico'!M175 -> 0 | P193: =$H193*'Cron. Físico'!N175 -> 0 | Q193: =$H193*'Cron. Físico'!O175 -> 0 | R193: =$H193*'Cron. Físico'!P175 -> 0 | S193: =$H193*'Cron. Físico'!Q175 -> 0 | T193: =$H193*'Cron. Físico'!R175 -> 0 | U193: =$H193*'Cron. Físico'!S175 -> 0 | V193: =$H193*'Cron. Físico'!T175 -> 0 | W193: =$H193*'Cron. Físico'!U175 -> 0 | X193: =$H193*'Cron. Físico'!V175 -> 0 | Y193: =$H193*'Cron. Físico'!W175 -> 0 | Z193: =$H193*'Cron. Físico'!X175 -> 0 | AA193: =$H193*'Cron. Físico'!Y175 -> 0 | AB193: =$H193*'Cron. Físico'!Z175 -> 0 | AC193: =$H193*'Cron. Físico'!AA175 -> 0 | AD193: =$H193*'Cron. Físico'!AB175 -> 0 | AE193: =$H193*'Cron. Físico'!AC175 -> 0 | AF193: =$H193*'Cron. Físico'!AD175 -> 0 | AG193: =$H193*'Cron. Físico'!AE175 -> 0 | AH193: =$H193*'Cron. Físico'!AF175 -> 0 | AI193: =$H193*'Cron. Físico'!AG175 -> 0 | AJ193: =$H193*'Cron. Físico'!AH175 -> 0 | AK193: =$H193*'Cron. Físico'!AI175 -> 0 | AL193: =$H193*'Cron. Físico'!AJ175 -> 0 | AM193: =$H193*'Cron. Físico'!AK175 -> 0 | AN193: =SUM(J193:AM193)/H193 -> 100.00% | AO193: TRUE
C194: 8.1.7.2 | E194: 167EMG0205 | F194: M2 | G194: =_xlfn.XLOOKUP($E194,'Resumo Quant.'!$C:$C,'Resumo Quant.'!$J:$J) -> 0 | H194: =_xlfn.XLOOKUP($E194,'Resumo Preços'!$C:$C,'Resumo Preços'!$J:$J) -> 0 | J194: =$H194*'Cron. Físico'!H176 -> 0 | K194: =$H194*'Cron. Físico'!I176 -> 0 | L194: =$H194*'Cron. Físico'!J176 -> 0 | M194: =$H194*'Cron. Físico'!K176 -> 0 | N194: =$H194*'Cron. Físico'!L176 -> 0 | O194: =$H194*'Cron. Físico'!M176 -> 0 | P194: =$H194*'Cron. Físico'!N176 -> 0 | Q194: =$H194*'Cron. Físico'!O176 -> 0 | R194: =$H194*'Cron. Físico'!P176 -> 0 | S194: =$H194*'Cron. Físico'!Q176 -> 0 | T194: =$H194*'Cron. Físico'!R176 -> 0 | U194: =$H194*'Cron. Físico'!S176 -> 0 | V194: =$H194*'Cron. Físico'!T176 -> 0 | W194: =$H194*'Cron. Físico'!U176 -> 0 | X194: =$H194*'Cron. Físico'!V176 -> 0 | Y194: =$H194*'Cron. Físico'!W176 -> 0 | Z194: =$H194*'Cron. Físico'!X176 -> 0 | AA194: =$H194*'Cron. Físico'!Y176 -> 0 | AB194: =$H194*'Cron. Físico'!Z176 -> 0 | AC194: =$H194*'Cron. Físico'!AA176 -> 0 | AD194: =$H194*'Cron. Físico'!AB176 -> 0 | AE194: =$H194*'Cron. Físico'!AC176 -> 0 | AF194: =$H194*'Cron. Físico'!AD176 -> 0 | AG194: =$H194*'Cron. Físico'!AE176 -> 0 | AH194: =$H194*'Cron. Físico'!AF176 -> 0 | AI194: =$H194*'Cron. Físico'!AG176 -> 0 | AJ194: =$H194*'Cron. Físico'!AH176 -> 0 | AK194: =$H194*'Cron. Físico'!AI176 -> 0 | AL194: =$H194*'Cron. Físico'!AJ176 -> 0 | AM194: =$H194*'Cron. Físico'!AK176 -> 0 | AO194: TRUE
C195: 8.1.7.3 | E195: 167EMG0220 | F195: M2 | G195: =_xlfn.XLOOKUP($E195,'Resumo Quant.'!$C:$C,'Resumo Quant.'!$J:$J) -> 165,853.01 | H195: =_xlfn.XLOOKUP($E195,'Resumo Preços'!$C:$C,'Resumo Preços'!$J:$J) -> 2,192,576.79 | J195: =$H195*'Cron. Físico'!H177 -> 1,237,392.00 | K195: =$H195*'Cron. Físico'!I177 -> 955,184.79 | L195: =$H195*'Cron. Físico'!J177 -> 0 | M195: =$H195*'Cron. Físico'!K177 -> 0 | N195: =$H195*'Cron. Físico'!L177 -> 0 | O195: =$H195*'Cron. Físico'!M177 -> 0 | P195: =$H195*'Cron. Físico'!N177 -> 0 | Q195: =$H195*'Cron. Físico'!O177 -> 0 | R195: =$H195*'Cron. Físico'!P177 -> 0 | S195: =$H195*'Cron. Físico'!Q177 -> 0 | T195: =$H195*'Cron. Físico'!R177 -> 0 | U195: =$H195*'Cron. Físico'!S177 -> 0 | V195: =$H195*'Cron. Físico'!T177 -> 0 | W195: =$H195*'Cron. Físico'!U177 -> 0 | X195: =$H195*'Cron. Físico'!V177 -> 0 | Y195: =$H195*'Cron. Físico'!W177 -> 0 | Z195: =$H195*'Cron. Físico'!X177 -> 0 | AA195: =$H195*'Cron. Físico'!Y177 -> 0 | AB195: =$H195*'Cron. Físico'!Z177 -> 0 | AC195: =$H195*'Cron. Físico'!AA177 -> 0 | AD195: =$H195*'Cron. Físico'!AB177 -> 0 | AE195: =$H195*'Cron. Físico'!AC177 -> 0 | AF195: =$H195*'Cron. Físico'!AD177 -> 0 | AG195: =$H195*'Cron. Físico'!AE177 -> 0 | AH195: =$H195*'Cron. Físico'!AF177 -> 0 | AI195: =$H195*'Cron. Físico'!AG177 -> 0 | AJ195: =$H195*'Cron. Físico'!AH177 -> 0 | AK195: =$H195*'Cron. Físico'!AI177 -> 0 | AL195: =$H195*'Cron. Físico'!AJ177 -> 0 | AM195: =$H195*'Cron. Físico'!AK177 -> 0 | AN195: 100.00% | AO195: TRUE
C196: 8.1.7.4 | E196: 265BMG0270 | F196: M2 | G196: =_xlfn.XLOOKUP($E196,'Resumo Quant.'!$C:$C,'Resumo Quant.'!$J:$J) -> 76,141.86 | H196: =_xlfn.XLOOKUP($E196,'Resumo Preços'!$C:$C,'Resumo Preços'!$J:$J) -> 1,006,595.39 | J196: =$H196*'Cron. Físico'!H178 -> 437,141.51 | K196: =$H196*'Cron. Físico'!I178 -> 569,453.88 | L196: =$H196*'Cron. Físico'!J178 -> 0 | M196: =$H196*'Cron. Físico'!K178 -> 0 | N196: =$H196*'Cron. Físico'!L178 -> 0 | O196: =$H196*'Cron. Físico'!M178 -> 0 | P196: =$H196*'Cron. Físico'!N178 -> 0 | Q196: =$H196*'Cron. Físico'!O178 -> 0 | R196: =$H196*'Cron. Físico'!P178 -> 0 | S196: =$H196*'Cron. Físico'!Q178 -> 0 | T196: =$H196*'Cron. Físico'!R178 -> 0 | U196: =$H196*'Cron. Físico'!S178 -> 0 | V196: =$H196*'Cron. Físico'!T178 -> 0 | W196: =$H196*'Cron. Físico'!U178 -> 0 | X196: =$H196*'Cron. Físico'!V178 -> 0 | Y196: =$H196*'Cron. Físico'!W178 -> 0 | Z196: =$H196*'Cron. Físico'!X178 -> 0 | AA196: =$H196*'Cron. Físico'!Y178 -> 0 | AB196: =$H196*'Cron. Físico'!Z178 -> 0 | AC196: =$H196*'Cron. Físico'!AA178 -> 0 | AD196: =$H196*'Cron. Físico'!AB178 -> 0 | AE196: =$H196*'Cron. Físico'!AC178 -> 0 | AF196: =$H196*'Cron. Físico'!AD178 -> 0 | AG196: =$H196*'Cron. Físico'!AE178 -> 0 | AH196: =$H196*'Cron. Físico'!AF178 -> 0 | AI196: =$H196*'Cron. Físico'!AG178 -> 0 | AJ196: =$H196*'Cron. Físico'!AH178 -> 0 | AK196: =$H196*'Cron. Físico'!AI178 -> 0 | AL196: =$H196*'Cron. Físico'!AJ178 -> 0 | AM196: =$H196*'Cron. Físico'!AK178 -> 0 | AN196: 100.00% | AO196: TRUE
C197: 8.1.7.5 | E197: 265BMG0290 | F197: M2 | G197: =_xlfn.XLOOKUP($E197,'Resumo Quant.'!$C:$C,'Resumo Quant.'!$J:$J) -> 35,290.43 | H197: =_xlfn.XLOOKUP($E197,'Resumo Preços'!$C:$C,'Resumo Preços'!$J:$J) -> 466,539.48 | J197: =$H197*'Cron. Físico'!H179 -> 466,539.48 | K197: =$H197*'Cron. Físico'!I179 -> 0 | L197: =$H197*'Cron. Físico'!J179 -> 0 | M197: =$H197*'Cron. Físico'!K179 -> 0 | N197: =$H197*'Cron. Físico'!L179 -> 0 | O197: =$H197*'Cron. Físico'!M179 -> 0 | P197: =$H197*'Cron. Físico'!N179 -> 0 | Q197: =$H197*'Cron. Físico'!O179 -> 0 | R197: =$H197*'Cron. Físico'!P179 -> 0 | S197: =$H197*'Cron. Físico'!Q179 -> 0 | T197: =$H197*'Cron. Físico'!R179 -> 0 | U197: =$H197*'Cron. Físico'!S179 -> 0 | V197: =$H197*'Cron. Físico'!T179 -> 0 | W197: =$H197*'Cron. Físico'!U179 -> 0 | X197: =$H197*'Cron. Físico'!V179 -> 0 | Y197: =$H197*'Cron. Físico'!W179 -> 0 | Z197: =$H197*'Cron. Físico'!X179 -> 0 | AA197: =$H197*'Cron. Físico'!Y179 -> 0 | AB197: =$H197*'Cron. Físico'!Z179 -> 0 | AC197: =$H197*'Cron. Físico'!AA179 -> 0 | AD197: =$H197*'Cron. Físico'!AB179 -> 0 | AE197: =$H197*'Cron. Físico'!AC179 -> 0 | AF197: =$H197*'Cron. Físico'!AD179 -> 0 | AG197: =$H197*'Cron. Físico'!AE179 -> 0 | AH197: =$H197*'Cron. Físico'!AF179 -> 0 | AI197: =$H197*'Cron. Físico'!AG179 -> 0 | AJ197: =$H197*'Cron. Físico'!AH179 -> 0 | AK197: =$H197*'Cron. Físico'!AI179 -> 0 | AL197: =$H197*'Cron. Físico'!AJ179 -> 0 | AM197: =$H197*'Cron. Físico'!AK179 -> 0 | AN197: 100.00% | AO197: TRUE
C198: 8.1.7.6 | E198: 265BMG0305 | F198: M2 | G198: =_xlfn.XLOOKUP($E198,'Resumo Quant.'!$C:$C,'Resumo Quant.'!$J:$J) -> 0 | H198: =_xlfn.XLOOKUP($E198,'Resumo Preços'!$C:$C,'Resumo Preços'!$J:$J) -> 0 | J198: =$H198*'Cron. Físico'!H180 -> 0 | K198: =$H198*'Cron. Físico'!I180 -> 0 | L198: =$H198*'Cron. Físico'!J180 -> 0 | M198: =$H198*'Cron. Físico'!K180 -> 0 | N198: =$H198*'Cron. Físico'!L180 -> 0 | O198: =$H198*'Cron. Físico'!M180 -> 0 | P198: =$H198*'Cron. Físico'!N180 -> 0 | Q198: =$H198*'Cron. Físico'!O180 -> 0 | R198: =$H198*'Cron. Físico'!P180 -> 0 | S198: =$H198*'Cron. Físico'!Q180 -> 0 | T198: =$H198*'Cron. Físico'!R180 -> 0 | U198: =$H198*'Cron. Físico'!S180 -> 0 | V198: =$H198*'Cron. Físico'!T180 -> 0 | W198: =$H198*'Cron. Físico'!U180 -> 0 | X198: =$H198*'Cron. Físico'!V180 -> 0 | Y198: =$H198*'Cron. Físico'!W180 -> 0 | Z198: =$H198*'Cron. Físico'!X180 -> 0 | AA198: =$H198*'Cron. Físico'!Y180 -> 0 | AB198: =$H198*'Cron. Físico'!Z180 -> 0 | AC198: =$H198*'Cron. Físico'!AA180 -> 0 | AD198: =$H198*'Cron. Físico'!AB180 -> 0 | AE198: =$H198*'Cron. Físico'!AC180 -> 0 | AF198: =$H198*'Cron. Físico'!AD180 -> 0 | AG198: =$H198*'Cron. Físico'!AE180 -> 0 | AH198: =$H198*'Cron. Físico'!AF180 -> 0 | AI198: =$H198*'Cron. Físico'!AG180 -> 0 | AJ198: =$H198*'Cron. Físico'!AH180 -> 0 | AK198: =$H198*'Cron. Físico'!AI180 -> 0 | AL198: =$H198*'Cron. Físico'!AJ180 -> 0 | AM198: =$H198*'Cron. Físico'!AK180 -> 0 | AO198: TRUE
C199: 8.1.7.7 | E199: 265BMG0310 | F199: M2 | G199: =_xlfn.XLOOKUP($E199,'Resumo Quant.'!$C:$C,'Resumo Quant.'!$J:$J) -> 76,337.31 | H199: =_xlfn.XLOOKUP($E199,'Resumo Preços'!$C:$C,'Resumo Preços'!$J:$J) -> 1,009,179.24 | J199: =$H199*'Cron. Físico'!H181 -> 1,009,179.24 | K199: =$H199*'Cron. Físico'!I181 -> 0 | L199: =$H199*'Cron. Físico'!J181 -> 0 | M199: =$H199*'Cron. Físico'!K181 -> 0 | N199: =$H199*'Cron. Físico'!L181 -> 0 | O199: =$H199*'Cron. Físico'!M181 -> 0 | P199: =$H199*'Cron. Físico'!N181 -> 0 | Q199: =$H199*'Cron. Físico'!O181 -> 0 | R199: =$H199*'Cron. Físico'!P181 -> 0 | S199: =$H199*'Cron. Físico'!Q181 -> 0 | T199: =$H199*'Cron. Físico'!R181 -> 0 | U199: =$H199*'Cron. Físico'!S181 -> 0 | V199: =$H199*'Cron. Físico'!T181 -> 0 | W199: =$H199*'Cron. Físico'!U181 -> 0 | X199: =$H199*'Cron. Físico'!V181 -> 0 | Y199: =$H199*'Cron. Físico'!W181 -> 0 | Z199: =$H199*'Cron. Físico'!X181 -> 0 | AA199: =$H199*'Cron. Físico'!Y181 -> 0 | AB199: =$H199*'Cron. Físico'!Z181 -> 0 | AC199: =$H199*'Cron. Físico'!AA181 -> 0 | AD199: =$H199*'Cron. Físico'!AB181 -> 0 | AE199: =$H199*'Cron. Físico'!AC181 -> 0 | AF199: =$H199*'Cron. Físico'!AD181 -> 0 | AG199: =$H199*'Cron. Físico'!AE181 -> 0 | AH199: =$H199*'Cron. Físico'!AF181 -> 0 | AI199: =$H199*'Cron. Físico'!AG181 -> 0 | AJ199: =$H199*'Cron. Físico'!AH181 -> 0 | AK199: =$H199*'Cron. Físico'!AI181 -> 0 | AL199: =$H199*'Cron. Físico'!AJ181 -> 0 | AM199: =$H199*'Cron. Físico'!AK181 -> 0 | AN199: 100.00% | AO199: TRUE
C200: 8.1.7.8 | E200: 265BMG0311 | F200: M2 | G200: =_xlfn.XLOOKUP($E200,'Resumo Quant.'!$C:$C,'Resumo Quant.'!$J:$J) -> 19,398.34 | H200: =_xlfn.XLOOKUP($E200,'Resumo Preços'!$C:$C,'Resumo Preços'!$J:$J) -> 256,446.05 | J200: =$H200*'Cron. Físico'!H182 -> 256,446.05 | K200: =$H200*'Cron. Físico'!I182 -> 0 | L200: =$H200*'Cron. Físico'!J182 -> 0 | M200: =$H200*'Cron. Físico'!K182 -> 0 | N200: =$H200*'Cron. Físico'!L182 -> 0 | O200: =$H200*'Cron. Físico'!M182 -> 0 | P200: =$H200*'Cron. Físico'!N182 -> 0 | Q200: =$H200*'Cron. Físico'!O182 -> 0 | R200: =$H200*'Cron. Físico'!P182 -> 0 | S200: =$H200*'Cron. Físico'!Q182 -> 0 | T200: =$H200*'Cron. Físico'!R182 -> 0 | U200: =$H200*'Cron. Físico'!S182 -> 0 | V200: =$H200*'Cron. Físico'!T182 -> 0 | W200: =$H200*'Cron. Físico'!U182 -> 0 | X200: =$H200*'Cron. Físico'!V182 -> 0 | Y200: =$H200*'Cron. Físico'!W182 -> 0 | Z200: =$H200*'Cron. Físico'!X182 -> 0 | AA200: =$H200*'Cron. Físico'!Y182 -> 0 | AB200: =$H200*'Cron. Físico'!Z182 -> 0 | AC200: =$H200*'Cron. Físico'!AA182 -> 0 | AD200: =$H200*'Cron. Físico'!AB182 -> 0 | AE200: =$H200*'Cron. Físico'!AC182 -> 0 | AF200: =$H200*'Cron. Físico'!AD182 -> 0 | AG200: =$H200*'Cron. Físico'!AE182 -> 0 | AH200: =$H200*'Cron. Físico'!AF182 -> 0 | AI200: =$H200*'Cron. Físico'!AG182 -> 0 | AJ200: =$H200*'Cron. Físico'!AH182 -> 0 | AK200: =$H200*'Cron. Físico'!AI182 -> 0 | AL200: =$H200*'Cron. Físico'!AJ182 -> 0 | AM200: =$H200*'Cron. Físico'!AK182 -> 0 | AN200: 100.00% | AO200: =SUM(J200:AM200)=H200 -> TRUE
C201: 8.1.7.9 | E201: 863LMG0010 | F201: M2 | G201: =_xlfn.XLOOKUP($E201,'Resumo Quant.'!$C:$C,'Resumo Quant.'!$J:$J) -> 33,053.91 | H201: =_xlfn.XLOOKUP($E201,'Resumo Preços'!$C:$C,'Resumo Preços'!$J:$J) -> 436,972.69 | J201: =$H201*'Cron. Físico'!H183 -> 436,972.69 | K201: =$H201*'Cron. Físico'!I183 -> 0 | L201: =$H201*'Cron. Físico'!J183 -> 0 | M201: =$H201*'Cron. Físico'!K183 -> 0 | N201: =$H201*'Cron. Físico'!L183 -> 0 | O201: =$H201*'Cron. Físico'!M183 -> 0 | P201: =$H201*'Cron. Físico'!N183 -> 0 | Q201: =$H201*'Cron. Físico'!O183 -> 0 | R201: =$H201*'Cron. Físico'!P183 -> 0 | S201: =$H201*'Cron. Físico'!Q183 -> 0 | T201: =$H201*'Cron. Físico'!R183 -> 0 | U201: =$H201*'Cron. Físico'!S183 -> 0 | V201: =$H201*'Cron. Físico'!T183 -> 0 | W201: =$H201*'Cron. Físico'!U183 -> 0 | X201: =$H201*'Cron. Físico'!V183 -> 0 | Y201: =$H201*'Cron. Físico'!W183 -> 0 | Z201: =$H201*'Cron. Físico'!X183 -> 0 | AA201: =$H201*'Cron. Físico'!Y183 -> 0 | AB201: =$H201*'Cron. Físico'!Z183 -> 0 | AC201: =$H201*'Cron. Físico'!AA183 -> 0 | AD201: =$H201*'Cron. Físico'!AB183 -> 0 | AE201: =$H201*'Cron. Físico'!AC183 -> 0 | AF201: =$H201*'Cron. Físico'!AD183 -> 0 | AG201: =$H201*'Cron. Físico'!AE183 -> 0 | AH201: =$H201*'Cron. Físico'!AF183 -> 0 | AI201: =$H201*'Cron. Físico'!AG183 -> 0 | AJ201: =$H201*'Cron. Físico'!AH183 -> 0 | AK201: =$H201*'Cron. Físico'!AI183 -> 0 | AL201: =$H201*'Cron. Físico'!AJ183 -> 0 | AM201: =$H201*'Cron. Físico'!AK183 -> 0 | AN201: 100.00% | AO201: TRUE
C202: 8.1.7.10 | E202: 491CMG0010 | F202: M2 | G202: =_xlfn.XLOOKUP($E202,'Resumo Quant.'!$C:$C,'Resumo Quant.'!$J:$J) -> 12,600.00 | H202: =_xlfn.XLOOKUP($E202,'Resumo Preços'!$C:$C,'Resumo Preços'!$J:$J) -> 166,572.00 | J202: =$H202*'Cron. Físico'!H184 -> 0 | K202: =$H202*'Cron. Físico'!I184 -> 166,572.00 | L202: =$H202*'Cron. Físico'!J184 -> 0 | M202: =$H202*'Cron. Físico'!K184 -> 0 | N202: =$H202*'Cron. Físico'!L184 -> 0 | O202: =$H202*'Cron. Físico'!M184 -> 0 | P202: =$H202*'Cron. Físico'!N184 -> 0 | Q202: =$H202*'Cron. Físico'!O184 -> 0 | R202: =$H202*'Cron. Físico'!P184 -> 0 | S202: =$H202*'Cron. Físico'!Q184 -> 0 | T202: =$H202*'Cron. Físico'!R184 -> 0 | U202: =$H202*'Cron. Físico'!S184 -> 0 | V202: =$H202*'Cron. Físico'!T184 -> 0 | W202: =$H202*'Cron. Físico'!U184 -> 0 | X202: =$H202*'Cron. Físico'!V184 -> 0 | Y202: =$H202*'Cron. Físico'!W184 -> 0 | Z202: =$H202*'Cron. Físico'!X184 -> 0 | AA202: =$H202*'Cron. Físico'!Y184 -> 0 | AB202: =$H202*'Cron. Físico'!Z184 -> 0 | AC202: =$H202*'Cron. Físico'!AA184 -> 0 | AD202: =$H202*'Cron. Físico'!AB184 -> 0 | AE202: =$H202*'Cron. Físico'!AC184 -> 0 | AF202: =$H202*'Cron. Físico'!AD184 -> 0 | AG202: =$H202*'Cron. Físico'!AE184 -> 0 | AH202: =$H202*'Cron. Físico'!AF184 -> 0 | AI202: =$H202*'Cron. Físico'!AG184 -> 0 | AJ202: =$H202*'Cron. Físico'!AH184 -> 0 | AK202: =$H202*'Cron. Físico'!AI184 -> 0 | AL202: =$H202*'Cron. Físico'!AJ184 -> 0 | AM202: =$H202*'Cron. Físico'!AK184 -> 0 | AN202: 100.00% | AO202: TRUE
C203: 8.1.7.11 | E203: 491CMG0023 | F203: M2 | G203: =_xlfn.XLOOKUP($E203,'Resumo Quant.'!$C:$C,'Resumo Quant.'!$J:$J) -> 71,656.59 | H203: =_xlfn.XLOOKUP($E203,'Resumo Preços'!$C:$C,'Resumo Preços'!$J:$J) -> 947,300.12 | J203: =$H203*'Cron. Físico'!H185 -> 396,600.00 | K203: =$H203*'Cron. Físico'!I185 -> 550,700.12 | L203: =$H203*'Cron. Físico'!J185 -> 0 | M203: =$H203*'Cron. Físico'!K185 -> 0 | N203: =$H203*'Cron. Físico'!L185 -> 0 | O203: =$H203*'Cron. Físico'!M185 -> 0 | P203: =$H203*'Cron. Físico'!N185 -> 0 | Q203: =$H203*'Cron. Físico'!O185 -> 0 | R203: =$H203*'Cron. Físico'!P185 -> 0 | S203: =$H203*'Cron. Físico'!Q185 -> 0 | T203: =$H203*'Cron. Físico'!R185 -> 0 | U203: =$H203*'Cron. Físico'!S185 -> 0 | V203: =$H203*'Cron. Físico'!T185 -> 0 | W203: =$H203*'Cron. Físico'!U185 -> 0 | X203: =$H203*'Cron. Físico'!V185 -> 0 | Y203: =$H203*'Cron. Físico'!W185 -> 0 | Z203: =$H203*'Cron. Físico'!X185 -> 0 | AA203: =$H203*'Cron. Físico'!Y185 -> 0 | AB203: =$H203*'Cron. Físico'!Z185 -> 0 | AC203: =$H203*'Cron. Físico'!AA185 -> 0 | AD203: =$H203*'Cron. Físico'!AB185 -> 0 | AE203: =$H203*'Cron. Físico'!AC185 -> 0 | AF203: =$H203*'Cron. Físico'!AD185 -> 0 | AG203: =$H203*'Cron. Físico'!AE185 -> 0 | AH203: =$H203*'Cron. Físico'!AF185 -> 0 | AI203: =$H203*'Cron. Físico'!AG185 -> 0 | AJ203: =$H203*'Cron. Físico'!AH185 -> 0 | AK203: =$H203*'Cron. Físico'!AI185 -> 0 | AL203: =$H203*'Cron. Físico'!AJ185 -> 0 | AM203: =$H203*'Cron. Físico'!AK185 -> 0 | AN203: 100.00% | AO203: TRUE
... 1582 more rows

Sheet PSP 8.1
D2: Cliente: | E2: BNDES - Banco Nacional de Desenvolvimento
D3: Trecho: | E3: Minas Gerais - Lote 3 | J3: 2022 | K3: 2023 | L3: 2024 | M3: 2025 | N3: 2026 | O3: 2027 | P3: 2028 | Q3: 2029 | R3: 2030 | S3: 2031 | T3: 2032 | U3: 2033 | V3: 2034 | W3: 2035 | X3: 2036 | Y3: 2037 | Z3: 2038 | AA3: 2039 | AB3: 2040 | AC3: 2041 | AD3: 2042 | AE3: 2043 | AF3: 2044 | AG3: 2045 | AH3: 2046 | AI3: 2047 | AJ3: 2048 | AK3: 2049 | AL3: 2050 | AM3: 2051
D4: Objeto: | E4: Contratação de serviços técnicos especializados necessários à desestatização do sistema rodoviário no Estado de Minas Gerais, de até 2.798,6 km de extensão
E6: MEMÓRIA DE CÁLCULO - HDM4 | J6: SERVIÇOS INICIAIS | L6: RECUPERAÇÃO RODOVIÁRIA | P6: MANUTENÇÃO RODOVIÁRIA
C8: Item | D8: Código | E8: Descrição | F8: unidade | G8: Quanitdade Total | H8: Preço Total | J8: Ano 1 | K8: Ano 2 | L8: Ano 3 | M8: Ano 4 | N8: Ano 5 | O8: Ano 6 | P8: Ano 7 | Q8: Ano 8 | R8: Ano 9 | S8: Ano 10 | T8: Ano 11 | U8: Ano 12 | V8: Ano 13 | W8: Ano 14 | X8: Ano 15 | Y8: Ano 16 | Z8: Ano 17 | AA8: Ano 18 | AB8: Ano 19 | AC8: Ano 20 | AD8: Ano 21 | AE8: Ano 22 | AF8: Ano 23 | AG8: Ano 24 | AH8: Ano 25 | AI8: Ano 26 | AJ8: Ano 27 | AK8: Ano 28 | AL8: Ano 29 | AM8: Ano 30
A10: x | B10: 8.1 | C10: 8.0 | E10: MANUTENÇÃO PAVIMENTAÇÃO | H10: =H11+H588+H1165+H1451 -> 479,818,149.08 | J10: =J11+J588+J1165+J1451 -> 0 | K10: 0 | L10: 0 | M10: 0 | N10: 0 | O10: 0 | P10: 6,359,328.74 | Q10: 13,123,179.64 | R10: 46,116,386.95 | S10: 39,509,160.12 | T10: 28,837,507.85 | U10: 16,272,354.55 | V10: 21,057,797.85 | W10: 13,408,426.90 | X10: 11,436,256.04 | Y10: 36,339,026.62 | Z10: 26,980,254.09 | AA10: 10,539,164.20 | AB10: 18,020,045.97 | AC10: 16,925,987.52 | AD10: 23,280,678.52 | AE10: 17,867,738.58 | AF10: 15,109,730.95 | AG10: 22,124,152.33 | AH10: 17,499,864.91 | AI10: 11,728,006.12 | AJ10: 23,219,138.86 | AK10: 16,260,589.94 | AL10: 21,293,039.60 | AM10: 6,510,332.24
A11: x | B11: 8.1.1 | C11: 8.1 | E11: PISTAS | H11: =H42+H219+H366+H393+H420+H447+H474+H501 -> 324,238,226.70 | P11: =P42+P219+P366+P393+P420+P447+P474+P501 -> 4,742,221.04 | Q11: =Q42+Q219+Q366+Q393+Q420+Q447+Q474+Q501 -> 9,971,538.71 | R11: 29,455,998.68 | S11: 27,241,226.20 | T11: 15,083,443.65 | U11: 11,451,049.14 | V11: 11,883,046.99 | W11: 9,793,900.03 | X11: 7,736,932.55 | Y11: 25,133,251.08 | Z11: 16,728,754.93 | AA11: 7,896,745.59 | AB11: 11,985,640.80 | AC11: 12,056,157.85 | AD11: 13,843,529.02 | AE11: 13,208,331.29 | AF11: 9,987,749.11 | AG11: 15,732,192.79 | AH11: 9,534,875.52 | AI11: 8,521,739.82 | AJ11: 15,840,893.95 | AK11: 11,882,259.73 | AL11: 18,351,174.95 | AM11: 6,175,573.29 | AO11: =SUM(J11:AM11)=H11 -> TRUE
A12: x | C12: 8.1.1 | E12: Fresagem5+Recomposição5p | H12: =SUM(H13:H41) ->  | P12: =SUM(P13:P41) ->  | AN12: =SUM(J12:AM12) ->  | AO12: =SUM(J12:AM12)=H12 -> 
C13: 8.1.1.1 | E13: 167EMG0200 | F13: M2 | G13: =_xlfn.XLOOKUP($E13,'Resumo Quant.'!$C:$C,'Resumo Quant.'!$D:$D) -> 0 | H13: =_xlfn.XLOOKUP($E13,'Resumo Preços'!$C:$C,'Resumo Preços'!$D:$D) -> 0 | P13: =$H13*'Cron. Físico'!N13 -> 0 | Q13: =$H13*'Cron. Físico'!O13 -> 0 | R13: =$H13*'Cron. Físico'!P13 -> 0 | S13: =$H13*'Cron. Físico'!Q13 -> 0 | T13: =$H13*'Cron. Físico'!R13 -> 0 | U13: =$H13*'Cron. Físico'!S13 -> 0 | V13: =$H13*'Cron. Físico'!T13 -> 0 | W13: =$H13*'Cron. Físico'!U13 -> 0 | X13: =$H13*'Cron. Físico'!V13 -> 0 | Y13: =$H13*'Cron. Físico'!W13 -> 0 | Z13: =$H13*'Cron. Físico'!X13 -> 0 | AA13: =$H13*'Cron. Físico'!Y13 -> 0 | AB13: =$H13*'Cron. Físico'!Z13 -> 0 | AC13: =$H13*'Cron. Físico'!AA13 -> 0 | AD13: =$H13*'Cron. Físico'!AB13 -> 0 | AE13: =$H13*'Cron. Físico'!AC13 -> 0 | AF13: =$H13*'Cron. Físico'!AD13 -> 0 | AG13: =$H13*'Cron. Físico'!AE13 -> 0 | AH13: =$H13*'Cron. Físico'!AF13 -> 0 | AI13: =$H13*'Cron. Físico'!AG13 -> 0 | AJ13: =$H13*'Cron. Físico'!AH13 -> 0 | AK13: =$H13*'Cron. Físico'!AI13 -> 0 | AL13: =$H13*'Cron. Físico'!AJ13 -> 0 | AM13: =$H13*'Cron. Físico'!AK13 -> 0 | AN13: =SUM(J13:AM13)/H13 ->  | AO13: TRUE
C14: 8.1.1.2 | E14: 167EMG0205 | F14: M2 | G14: =_xlfn.XLOOKUP($E14,'Resumo Quant.'!$C:$C,'Resumo Quant.'!$D:$D) -> 0 | H14: =_xlfn.XLOOKUP($E14,'Resumo Preços'!$C:$C,'Resumo Preços'!$D:$D) -> 0 | P14: =$H14*'Cron. Físico'!N14 -> 0 | Q14: =$H14*'Cron. Físico'!O14 -> 0 | R14: =$H14*'Cron. Físico'!P14 -> 0 | S14: =$H14*'Cron. Físico'!Q14 -> 0 | T14: =$H14*'Cron. Físico'!R14 -> 0 | U14: =$H14*'Cron. Físico'!S14 -> 0 | V14: =$H14*'Cron. Físico'!T14 -> 0 | W14: =$H14*'Cron. Físico'!U14 -> 0 | X14: =$H14*'Cron. Físico'!V14 -> 0 | Y14: =$H14*'Cron. Físico'!W14 -> 0 | Z14: =$H14*'Cron. Físico'!X14 -> 0 | AA14: =$H14*'Cron. Físico'!Y14 -> 0 | AB14: =$H14*'Cron. Físico'!Z14 -> 0 | AC14: =$H14*'Cron. Físico'!AA14 -> 0 | AD14: =$H14*'Cron. Físico'!AB14 -> 0 | AE14: =$H14*'Cron. Físico'!AC14 -> 0 | AF14: =$H14*'Cron. Físico'!AD14 -> 0 | AG14: =$H14*'Cron. Físico'!AE14 -> 0 | AH14: =$H14*'Cron. Físico'!AF14 -> 0 | AI14: =$H14*'Cron. Físico'!AG14 -> 0 | AJ14: =$H14*'Cron. Físico'!AH14 -> 0 | AK14: =$H14*'Cron. Físico'!AI14 -> 0 | AL14: =$H14*'Cron. Físico'!AJ14 -> 0 | AM14: =$H14*'Cron. Físico'!AK14 -> 0 | AO14: TRUE
C15: 8.1.1.3 | E15: 167EMG0220 | F15: M2 | G15: =_xlfn.XLOOKUP($E15,'Resumo Quant.'!$C:$C,'Resumo Quant.'!$D:$D) -> 36,000.00 | H15: =_xlfn.XLOOKUP($E15,'Resumo Preços'!$C:$C,'Resumo Preços'!$D:$D) -> 645,480.00 | P15: =$H15*'Cron. Físico'!N15 -> 0 | Q15: =$H15*'Cron. Físico'!O15 -> 0 | R15: =$H15*'Cron. Físico'!P15 -> 0 | S15: =$H15*'Cron. Físico'!Q15 -> 0 | T15: =$H15*'Cron. Físico'!R15 -> 0 | U15: =$H15*'Cron. Físico'!S15 -> 0 | V15: =$H15*'Cron. Físico'!T15 -> 0 | W15: =$H15*'Cron. Físico'!U15 -> 0 | X15: =$H15*'Cron. Físico'!V15 -> 0 | Y15: =$H15*'Cron. Físico'!W15 -> 0 | Z15: =$H15*'Cron. Físico'!X15 -> 0 | AA15: =$H15*'Cron. Físico'!Y15 -> 0 | AB15: =$H15*'Cron. Físico'!Z15 -> 0 | AC15: =$H15*'Cron. Físico'!AA15 -> 0 | AD15: =$H15*'Cron. Físico'!AB15 -> 0 | AE15: =$H15*'Cron. Físico'!AC15 -> 0 | AF15: =$H15*'Cron. Físico'!AD15 -> 0 | AG15: =$H15*'Cron. Físico'!AE15 -> 0 | AH15: =$H15*'Cron. Físico'!AF15 -> 0 | AI15: =$H15*'Cron. Físico'!AG15 -> 0 | AJ15: =$H15*'Cron. Físico'!AH15 -> 0 | AK15: =$H15*'Cron. Físico'!AI15 -> 0 | AL15: =$H15*'Cron. Físico'!AJ15 -> 0 | AM15: =$H15*'Cron. Físico'!AK15 -> 0 | AN15: 0.00% | AO15: FALSE
C16: 8.1.1.4 | E16: 265BMG0270 | F16: M2 | G16: =_xlfn.XLOOKUP($E16,'Resumo Quant.'!$C:$C,'Resumo Quant.'!$D:$D) -> 0 | H16: =_xlfn.XLOOKUP($E16,'Resumo Preços'!$C:$C,'Resumo Preços'!$D:$D) -> 0 | P16: =$H16*'Cron. Físico'!N16 -> 0 | Q16: =$H16*'Cron. Físico'!O16 -> 0 | R16: =$H16*'Cron. Físico'!P16 -> 0 | S16: =$H16*'Cron. Físico'!Q16 -> 0 | T16: =$H16*'Cron. Físico'!R16 -> 0 | U16: =$H16*'Cron. Físico'!S16 -> 0 | V16: =$H16*'Cron. Físico'!T16 -> 0 | W16: =$H16*'Cron. Físico'!U16 -> 0 | X16: =$H16*'Cron. Físico'!V16 -> 0 | Y16: =$H16*'Cron. Físico'!W16 -> 0 | Z16: =$H16*'Cron. Físico'!X16 -> 0 | AA16: =$H16*'Cron. Físico'!Y16 -> 0 | AB16: =$H16*'Cron. Físico'!Z16 -> 0 | AC16: =$H16*'Cron. Físico'!AA16 -> 0 | AD16: =$H16*'Cron. Físico'!AB16 -> 0 | AE16: =$H16*'Cron. Físico'!AC16 -> 0 | AF16: =$H16*'Cron. Físico'!AD16 -> 0 | AG16: =$H16*'Cron. Físico'!AE16 -> 0 | AH16: =$H16*'Cron. Físico'!AF16 -> 0 | AI16: =$H16*'Cron. Físico'!AG16 -> 0 | AJ16: =$H16*'Cron. Físico'!AH16 -> 0 | AK16: =$H16*'Cron. Físico'!AI16 -> 0 | AL16: =$H16*'Cron. Físico'!AJ16 -> 0 | AM16: =$H16*'Cron. Físico'!AK16 -> 0 | AO16: TRUE
C17: 8.1.1.5 | E17: 265BMG0290 | F17: M2 | G17: =_xlfn.XLOOKUP($E17,'Resumo Quant.'!$C:$C,'Resumo Quant.'!$D:$D) -> 0 | H17: =_xlfn.XLOOKUP($E17,'Resumo Preços'!$C:$C,'Resumo Preços'!$D:$D) -> 0 | P17: =$H17*'Cron. Físico'!N17 -> 0 | Q17: =$H17*'Cron. Físico'!O17 -> 0 | R17: =$H17*'Cron. Físico'!P17 -> 0 | S17: =$H17*'Cron. Físico'!Q17 -> 0 | T17: =$H17*'Cron. Físico'!R17 -> 0 | U17: =$H17*'Cron. Físico'!S17 -> 0 | V17: =$H17*'Cron. Físico'!T17 -> 0 | W17: =$H17*'Cron. Físico'!U17 -> 0 | X17: =$H17*'Cron. Físico'!V17 -> 0 | Y17: =$H17*'Cron. Físico'!W17 -> 0 | Z17: =$H17*'Cron. Físico'!X17 -> 0 | AA17: =$H17*'Cron. Físico'!Y17 -> 0 | AB17: =$H17*'Cron. Físico'!Z17 -> 0 | AC17: =$H17*'Cron. Físico'!AA17 -> 0 | AD17: =$H17*'Cron. Físico'!AB17 -> 0 | AE17: =$H17*'Cron. Físico'!AC17 -> 0 | AF17: =$H17*'Cron. Físico'!AD17 -> 0 | AG17: =$H17*'Cron. Físico'!AE17 -> 0 | AH17: =$H17*'Cron. Físico'!AF17 -> 0 | AI17: =$H17*'Cron. Físico'!AG17 -> 0 | AJ17: =$H17*'Cron. Físico'!AH17 -> 0 | AK17: =$H17*'Cron. Físico'!AI17 -> 0 | AL17: =$H17*'Cron. Físico'!AJ17 -> 0 | AM17: =$H17*'Cron. Físico'!AK17 -> 0 | AO17: TRUE
C18: 8.1.1.6 | E18: 265BMG0305 | F18: M2 | G18: =_xlfn.XLOOKUP($E18,'Resumo Quant.'!$C:$C,'Resumo Quant.'!$D:$D) -> 0 | H18: =_xlfn.XLOOKUP($E18,'Resumo Preços'!$C:$C,'Resumo Preços'!$D:$D) -> 0 | P18: =$H18*'Cron. Físico'!N18 -> 0 | Q18: =$H18*'Cron. Físico'!O18 -> 0 | R18: =$H18*'Cron. Físico'!P18 -> 0 | S18: =$H18*'Cron. Físico'!Q18 -> 0 | T18: =$H18*'Cron. Físico'!R18 -> 0 | U18: =$H18*'Cron. Físico'!S18 -> 0 | V18: =$H18*'Cron. Físico'!T18 -> 0 | W18: =$H18*'Cron. Físico'!U18 -> 0 | X18: =$H18*'Cron. Físico'!V18 -> 0 | Y18: =$H18*'Cron. Físico'!W18 -> 0 | Z18: =$H18*'Cron. Físico'!X18 -> 0 | AA18: =$H18*'Cron. Físico'!Y18 -> 0 | AB18: =$H18*'Cron. Físico'!Z18 -> 0 | AC18: =$H18*'Cron. Físico'!AA18 -> 0 | AD18: =$H18*'Cron. Físico'!AB18 -> 0 | AE18: =$H18*'Cron. Físico'!AC18 -> 0 | AF18: =$H18*'Cron. Físico'!AD18 -> 0 | AG18: =$H18*'Cron. Físico'!AE18 -> 0 | AH18: =$H18*'Cron. Físico'!AF18 -> 0 | AI18: =$H18*'Cron. Físico'!AG18 -> 0 | AJ18: =$H18*'Cron. Físico'!AH18 -> 0 | AK18: =$H18*'Cron. Físico'!AI18 -> 0 | AL18: =$H18*'Cron. Físico'!AJ18 -> 0 | AM18: =$H18*'Cron. Físico'!AK18 -> 0 | AO18: TRUE
C19: 8.1.1.7 | E19: 265BMG0310 | F19: M2 | G19: =_xlfn.XLOOKUP($E19,'Resumo Quant.'!$C:$C,'Resumo Quant.'!$D:$D) -> 0 | H19: =_xlfn.XLOOKUP($E19,'Resumo Preços'!$C:$C,'Resumo Preços'!$D:$D) -> 0 | P19: =$H19*'Cron. Físico'!N19 -> 0 | Q19: =$H19*'Cron. Físico'!O19 -> 0 | R19: =$H19*'Cron. Físico'!P19 -> 0 | S19: =$H19*'Cron. Físico'!Q19 -> 0 | T19: =$H19*'Cron. Físico'!R19 -> 0 | U19: =$H19*'Cron. Físico'!S19 -> 0 | V19: =$H19*'Cron. Físico'!T19 -> 0 | W19: =$H19*'Cron. Físico'!U19 -> 0 | X19: =$H19*'Cron. Físico'!V19 -> 0 | Y19: =$H19*'Cron. Físico'!W19 -> 0 | Z19: =$H19*'Cron. Físico'!X19 -> 0 | AA19: =$H19*'Cron. Físico'!Y19 -> 0 | AB19: =$H19*'Cron. Físico'!Z19 -> 0 | AC19: =$H19*'Cron. Físico'!AA19 -> 0 | AD19: =$H19*'Cron. Físico'!AB19 -> 0 | AE19: =$H19*'Cron. Físico'!AC19 -> 0 | AF19: =$H19*'Cron. Físico'!AD19 -> 0 | AG19: =$H19*'Cron. Físico'!AE19 -> 0 | AH19: =$H19*'Cron. Físico'!AF19 -> 0 | AI19: =$H19*'Cron. Físico'!AG19 -> 0 | AJ19: =$H19*'Cron. Físico'!AH19 -> 0 | AK19: =$H19*'Cron. Físico'!AI19 -> 0 | AL19: =$H19*'Cron. Físico'!AJ19 -> 0 | AM19: =$H19*'Cron. Físico'!AK19 -> 0 | AO19: TRUE
C20: 8.1.1.8 | E20: 265BMG0311 | F20: M2 | G20: =_xlfn.XLOOKUP($E20,'Resumo Quant.'!$C:$C,'Resumo Quant.'!$D:$D) -> 19,398.34 | H20: =_xlfn.XLOOKUP($E20,'Resumo Preços'!$C:$C,'Resumo Preços'!$D:$D) -> 347,812.24 | P20: =$H20*'Cron. Físico'!N20 -> 0 | Q20: =$H20*'Cron. Físico'!O20 -> 0 | R20: =$H20*'Cron. Físico'!P20 -> 0 | S20: =$H20*'Cron. Físico'!Q20 -> 0 | T20: =$H20*'Cron. Físico'!R20 -> 0 | U20: =$H20*'Cron. Físico'!S20 -> 0 | V20: =$H20*'Cron. Físico'!T20 -> 0 | W20: =$H20*'Cron. Físico'!U20 -> 0 | X20: =$H20*'Cron. Físico'!V20 -> 0 | Y20: =$H20*'Cron. Físico'!W20 -> 0 | Z20: =$H20*'Cron. Físico'!X20 -> 0 | AA20: =$H20*'Cron. Físico'!Y20 -> 0 | AB20: =$H20*'Cron. Físico'!Z20 -> 0 | AC20: =$H20*'Cron. Físico'!AA20 -> 0 | AD20: =$H20*'Cron. Físico'!AB20 -> 0 | AE20: =$H20*'Cron. Físico'!AC20 -> 0 | AF20: =$H20*'Cron. Físico'!AD20 -> 0 | AG20: =$H20*'Cron. Físico'!AE20 -> 0 | AH20: =$H20*'Cron. Físico'!AF20 -> 0 | AI20: =$H20*'Cron. Físico'!AG20 -> 0 | AJ20: =$H20*'Cron. Físico'!AH20 -> 0 | AK20: =$H20*'Cron. Físico'!AI20 -> 0 | AL20: =$H20*'Cron. Físico'!AJ20 -> 0 | AM20: =$H20*'Cron. Físico'!AK20 -> 0 | AN20: 0.00% | AO20: FALSE
C21: 8.1.1.9 | E21: 863LMG0010 | F21: M2 | G21: =_xlfn.XLOOKUP($E21,'Resumo Quant.'!$C:$C,'Resumo Quant.'!$D:$D) -> 0 | H21: =_xlfn.XLOOKUP($E21,'Resumo Preços'!$C:$C,'Resumo Preços'!$D:$D) -> 0 | P21: =$H21*'Cron. Físico'!N21 -> 0 | Q21: =$H21*'Cron. Físico'!O21 -> 0 | R21: =$H21*'Cron. Físico'!P21 -> 0 | S21: =$H21*'Cron. Físico'!Q21 -> 0 | T21: =$H21*'Cron. Físico'!R21 -> 0 | U21: =$H21*'Cron. Físico'!S21 -> 0 | V21: =$H21*'Cron. Físico'!T21 -> 0 | W21: =$H21*'Cron. Físico'!U21 -> 0 | X21: =$H21*'Cron. Físico'!V21 -> 0 | Y21: =$H21*'Cron. Físico'!W21 -> 0 | Z21: =$H21*'Cron. Físico'!X21 -> 0 | AA21: =$H21*'Cron. Físico'!Y21 -> 0 | AB21: =$H21*'Cron. Físico'!Z21 -> 0 | AC21: =$H21*'Cron. Físico'!AA21 -> 0 | AD21: =$H21*'Cron. Físico'!AB21 -> 0 | AE21: =$H21*'Cron. Físico'!AC21 -> 0 | AF21: =$H21*'Cron. Físico'!AD21 -> 0 | AG21: =$H21*'Cron. Físico'!AE21 -> 0 | AH21: =$H21*'Cron. Físico'!AF21 -> 0 | AI21: =$H21*'Cron. Físico'!AG21 -> 0 | AJ21: =$H21*'Cron. Físico'!AH21 -> 0 | AK21: =$H21*'Cron. Físico'!AI21 -> 0 | AL21: =$H21*'Cron. Físico'!AJ21 -> 0 | AM21: =$H21*'Cron. Físico'!AK21 -> 0 | AO21: TRUE
C22: 8.1.1.10 | E22: 491CMG0010 | F22: M2 | G22: =_xlfn.XLOOKUP($E22,'Resumo Quant.'!$C:$C,'Resumo Quant.'!$D:$D) -> 0 | H22: =_xlfn.XLOOKUP($E22,'Resumo Preços'!$C:$C,'Resumo Preços'!$D:$D) -> 0 | P22: =$H22*'Cron. Físico'!N22 -> 0 | Q22: =$H22*'Cron. Físico'!O22 -> 0 | R22: =$H22*'Cron. Físico'!P22 -> 0 | S22: =$H22*'Cron. Físico'!Q22 -> 0 | T22: =$H22*'Cron. Físico'!R22 -> 0 | U22: =$H22*'Cron. Físico'!S22 -> 0 | V22: =$H22*'Cron. Físico'!T22 -> 0 | W22: =$H22*'Cron. Físico'!U22 -> 0 | X22: =$H22*'Cron. Físico'!V22 -> 0 | Y22: =$H22*'Cron. Físico'!W22 -> 0 | Z22: =$H22*'Cron. Físico'!X22 -> 0 | AA22: =$H22*'Cron. Físico'!Y22 -> 0 | AB22: =$H22*'Cron. Físico'!Z22 -> 0 | AC22: =$H22*'Cron. Físico'!AA22 -> 0 | AD22: =$H22*'Cron. Físico'!AB22 -> 0 | AE22: =$H22*'Cron. Físico'!AC22 -> 0 | AF22: =$H22*'Cron. Físico'!AD22 -> 0 | AG22: =$H22*'Cron. Físico'!AE22 -> 0 | AH22: =$H22*'Cron. Físico'!AF22 -> 0 | AI22: =$H22*'Cron. Físico'!AG22 -> 0 | AJ22: =$H22*'Cron. Físico'!AH22 -> 0 | AK22: =$H22*'Cron. Físico'!AI22 -> 0 | AL22: =$H22*'Cron. Físico'!AJ22 -> 0 | AM22: =$H22*'Cron. Físico'!AK22 -> 0 | AO22: TRUE
C23: 8.1.1.11 | E23: 491CMG0023 | F23: M2 | G23: =_xlfn.XLOOKUP($E23,'Resumo Quant.'!$C:$C,'Resumo Quant.'!$D:$D) -> 0 | H23: =_xlfn.XLOOKUP($E23,'Resumo Preços'!$C:$C,'Resumo Preços'!$D:$D) -> 0 | P23: =$H23*'Cron. Físico'!N23 -> 0 | Q23: =$H23*'Cron. Físico'!O23 -> 0 | R23: =$H23*'Cron. Físico'!P23 -> 0 | S23: =$H23*'Cron. Físico'!Q23 -> 0 | T23: =$H23*'Cron. Físico'!R23 -> 0 | U23: =$H23*'Cron. Físico'!S23 -> 0 | V23: =$H23*'Cron. Físico'!T23 -> 0 | W23: =$H23*'Cron. Físico'!U23 -> 0 | X23: =$H23*'Cron. Físico'!V23 -> 0 | Y23: =$H23*'Cron. Físico'!W23 -> 0 | Z23: =$H23*'Cron. Físico'!X23 -> 0 | AA23: =$H23*'Cron. Físico'!Y23 -> 0 | AB23: =$H23*'Cron. Físico'!Z23 -> 0 | AC23: =$H23*'Cron. Físico'!AA23 -> 0 | AD23: =$H23*'Cron. Físico'!AB23 -> 0 | AE23: =$H23*'Cron. Físico'!AC23 -> 0 | AF23: =$H23*'Cron. Físico'!AD23 -> 0 | AG23: =$H23*'Cron. Físico'!AE23 -> 0 | AH23: =$H23*'Cron. Físico'!AF23 -> 0 | AI23: =$H23*'Cron. Físico'!AG23 -> 0 | AJ23: =$H23*'Cron. Físico'!AH23 -> 0 | AK23: =$H23*'Cron. Físico'!AI23 -> 0 | AL23: =$H23*'Cron. Físico'!AJ23 -> 0 | AM23: =$H23*'Cron. Físico'!AK23 -> 0 | AO23: TRUE
C24: 8.1.1.12 | E24: 491CMG0050 | F24: M2 | G24: =_xlfn.XLOOKUP($E24,'Resumo Quant.'!$C:$C,'Resumo Quant.'!$D:$D) -> 10,052.08 | H24: =_xlfn.XLOOKUP($E24,'Resumo Preços'!$C:$C,'Resumo Preços'!$D:$D) -> 180,233.79 | P24: =$H24*'Cron. Físico'!N24 -> 0 | Q24: =$H24*'Cron. Físico'!O24 -> 0 | R24: =$H24*'Cron. Físico'!P24 -> 0 | S24: =$H24*'Cron. Físico'!Q24 -> 0 | T24: =$H24*'Cron. Físico'!R24 -> 0 | U24: =$H24*'Cron. Físico'!S24 -> 0 | V24: =$H24*'Cron. Físico'!T24 -> 0 | W24: =$H24*'Cron. Físico'!U24 -> 0 | X24: =$H24*'Cron. Físico'!V24 -> 0 | Y24: =$H24*'Cron. Físico'!W24 -> 0 | Z24: =$H24*'Cron. Físico'!X24 -> 0 | AA24: =$H24*'Cron. Físico'!Y24 -> 0 | AB24: =$H24*'Cron. Físico'!Z24 -> 0 | AC24: =$H24*'Cron. Físico'!AA24 -> 0 | AD24: =$H24*'Cron. Físico'!AB24 -> 0 | AE24: =$H24*'Cron. Físico'!AC24 -> 0 | AF24: =$H24*'Cron. Físico'!AD24 -> 0 | AG24: =$H24*'Cron. Físico'!AE24 -> 0 | AH24: =$H24*'Cron. Físico'!AF24 -> 0 | AI24: =$H24*'Cron. Físico'!AG24 -> 0 | AJ24: =$H24*'Cron. Físico'!AH24 -> 0 | AK24: =$H24*'Cron. Físico'!AI24 -> 0 | AL24: =$H24*'Cron. Físico'!AJ24 -> 0 | AM24: =$H24*'Cron. Físico'!AK24 -> 0 | AN24: 0.00% | AO24: FALSE
C25: 8.1.1.13 | E25: 491CMG0090 | F25: M2 | G25: =_xlfn.XLOOKUP($E25,'Resumo Quant.'!$C:$C,'Resumo Quant.'!$D:$D) -> 0 | H25: =_xlfn.XLOOKUP($E25,'Resumo Preços'!$C:$C,'Resumo Preços'!$D:$D) -> 0 | P25: =$H25*'Cron. Físico'!N25 -> 0 | Q25: =$H25*'Cron. Físico'!O25 -> 0 | R25: =$H25*'Cron. Físico'!P25 -> 0 | S25: =$H25*'Cron. Físico'!Q25 -> 0 | T25: =$H25*'Cron. Físico'!R25 -> 0 | U25: =$H25*'Cron. Físico'!S25 -> 0 | V25: =$H25*'Cron. Físico'!T25 -> 0 | W25: =$H25*'Cron. Físico'!U25 -> 0 | X25: =$H25*'Cron. Físico'!V25 -> 0 | Y25: =$H25*'Cron. Físico'!W25 -> 0 | Z25: =$H25*'Cron. Físico'!X25 -> 0 | AA25: =$H25*'Cron. Físico'!Y25 -> 0 | AB25: =$H25*'Cron. Físico'!Z25 -> 0 | AC25: =$H25*'Cron. Físico'!AA25 -> 0 | AD25: =$H25*'Cron. Físico'!AB25 -> 0 | AE25: =$H25*'Cron. Físico'!AC25 -> 0 | AF25: =$H25*'Cron. Físico'!AD25 -> 0 | AG25: =$H25*'Cron. Físico'!AE25 -> 0 | AH25: =$H25*'Cron. Físico'!AF25 -> 0 | AI25: =$H25*'Cron. Físico'!AG25 -> 0 | AJ25: =$H25*'Cron. Físico'!AH25 -> 0 | AK25: =$H25*'Cron. Físico'!AI25 -> 0 | AL25: =$H25*'Cron. Físico'!AJ25 -> 0 | AM25: =$H25*'Cron. Físico'!AK25 -> 0 | AO25: TRUE
C26: 8.1.1.14 | E26: 491CMG0100 | F26: M2 | G26: =_xlfn.XLOOKUP($E26,'Resumo Quant.'!$C:$C,'Resumo Quant.'!$D:$D) -> 0 | H26: =_xlfn.XLOOKUP($E26,'Resumo Preços'!$C:$C,'Resumo Preços'!$D:$D) -> 0 | P26: =$H26*'Cron. Físico'!N26 -> 0 | Q26: =$H26*'Cron. Físico'!O26 -> 0 | R26: =$H26*'Cron. Físico'!P26 -> 0 | S26: =$H26*'Cron. Físico'!Q26 -> 0 | T26: =$H26*'Cron. Físico'!R26 -> 0 | U26: =$H26*'Cron. Físico'!S26 -> 0 | V26: =$H26*'Cron. Físico'!T26 -> 0 | W26: =$H26*'Cron. Físico'!U26 -> 0 | X26: =$H26*'Cron. Físico'!V26 -> 0 | Y26: =$H26*'Cron. Físico'!W26 -> 0 | Z26: =$H26*'Cron. Físico'!X26 -> 0 | AA26: =$H26*'Cron. Físico'!Y26 -> 0 | AB26: =$H26*'Cron. Físico'!Z26 -> 0 | AC26: =$H26*'Cron. Físico'!AA26 -> 0 | AD26: =$H26*'Cron. Físico'!AB26 -> 0 | AE26: =$H26*'Cron. Físico'!AC26 -> 0 | AF26: =$H26*'Cron. Físico'!AD26 -> 0 | AG26: =$H26*'Cron. Físico'!AE26 -> 0 | AH26: =$H26*'Cron. Físico'!AF26 -> 0 | AI26: =$H26*'Cron. Físico'!AG26 -> 0 | AJ26: =$H26*'Cron. Físico'!AH26 -> 0 | AK26: =$H26*'Cron. Físico'!AI26 -> 0 | AL26: =$H26*'Cron. Físico'!AJ26 -> 0 | AM26: =$H26*'Cron. Físico'!AK26 -> 0 | AO26: TRUE
C27: 8.1.1.15 | E27: 491CMG0230 | F27: M2 | G27: =_xlfn.XLOOKUP($E27,'Resumo Quant.'!$C:$C,'Resumo Quant.'!$D:$D) -> 36,981.45 | H27: =_xlfn.XLOOKUP($E27,'Resumo Preços'!$C:$C,'Resumo Preços'!$D:$D) -> 663,077.40 | P27: =$H27*'Cron. Físico'!N27 -> 0 | Q27: =$H27*'Cron. Físico'!O27 -> 0 | R27: =$H27*'Cron. Físico'!P27 -> 0 | S27: =$H27*'Cron. Físico'!Q27 -> 0 | T27: =$H27*'Cron. Físico'!R27 -> 0 | U27: =$H27*'Cron. Físico'!S27 -> 0 | V27: =$H27*'Cron. Físico'!T27 -> 0 | W27: =$H27*'Cron. Físico'!U27 -> 0 | X27: =$H27*'Cron. Físico'!V27 -> 0 | Y27: =$H27*'Cron. Físico'!W27 -> 0 | Z27: =$H27*'Cron. Físico'!X27 -> 0 | AA27: =$H27*'Cron. Físico'!Y27 -> 0 | AB27: =$H27*'Cron. Físico'!Z27 -> 0 | AC27: =$H27*'Cron. Físico'!AA27 -> 0 | AD27: =$H27*'Cron. Físico'!AB27 -> 0 | AE27: =$H27*'Cron. Físico'!AC27 -> 0 | AF27: =$H27*'Cron. Físico'!AD27 -> 0 | AG27: =$H27*'Cron. Físico'!AE27 -> 0 | AH27: =$H27*'Cron. Físico'!AF27 -> 0 | AI27: =$H27*'Cron. Físico'!AG27 -> 0 | AJ27: =$H27*'Cron. Físico'!AH27 -> 0 | AK27: =$H27*'Cron. Físico'!AI27 -> 0 | AL27: =$H27*'Cron. Físico'!AJ27 -> 0 | AM27: =$H27*'Cron. Físico'!AK27 -> 0 | AN27: 0.00% | AO27: FALSE
C28: 8.1.1.16 | E28: 491CMG0030 | F28: M2 | G28: =_xlfn.XLOOKUP($E28,'Resumo Quant.'!$C:$C,'Resumo Quant.'!$D:$D) -> 30,396.86 | H28: =_xlfn.XLOOKUP($E28,'Resumo Preços'!$C:$C,'Resumo Preços'!$D:$D) -> 545,015.70 | P28: =$H28*'Cron. Físico'!N28 -> 0 | Q28: =$H28*'Cron. Físico'!O28 -> 0 | R28: =$H28*'Cron. Físico'!P28 -> 0 | S28: =$H28*'Cron. Físico'!Q28 -> 0 | T28: =$H28*'Cron. Físico'!R28 -> 0 | U28: =$H28*'Cron. Físico'!S28 -> 0 | V28: =$H28*'Cron. Físico'!T28 -> 0 | W28: =$H28*'Cron. Físico'!U28 -> 0 | X28: =$H28*'Cron. Físico'!V28 -> 0 | Y28: =$H28*'Cron. Físico'!W28 -> 0 | Z28: =$H28*'Cron. Físico'!X28 -> 0 | AA28: =$H28*'Cron. Físico'!Y28 -> 0 | AB28: =$H28*'Cron. Físico'!Z28 -> 0 | AC28: =$H28*'Cron. Físico'!AA28 -> 0 | AD28: =$H28*'Cron. Físico'!AB28 -> 0 | AE28: =$H28*'Cron. Físico'!AC28 -> 0 | AF28: =$H28*'Cron. Físico'!AD28 -> 0 | AG28: =$H28*'Cron. Físico'!AE28 -> 0 | AH28: =$H28*'Cron. Físico'!AF28 -> 0 | AI28: =$H28*'Cron. Físico'!AG28 -> 0 | AJ28: =$H28*'Cron. Físico'!AH28 -> 0 | AK28: =$H28*'Cron. Físico'!AI28 -> 0 | AL28: =$H28*'Cron. Físico'!AJ28 -> 0 | AM28: =$H28*'Cron. Físico'!AK28 -> 0 | AN28: 0.00% | AO28: FALSE
C29: 8.1.1.17 | E29: 491CMG0110 | F29: M2 | G29: =_xlfn.XLOOKUP($E29,'Resumo Quant.'!$C:$C,'Resumo Quant.'!$D:$D) -> 0 | H29: =_xlfn.XLOOKUP($E29,'Resumo Preços'!$C:$C,'Resumo Preços'!$D:$D) -> 0 | P29: =$H29*'Cron. Físico'!N29 -> 0 | Q29: =$H29*'Cron. Físico'!O29 -> 0 | R29: =$H29*'Cron. Físico'!P29 -> 0 | S29: =$H29*'Cron. Físico'!Q29 -> 0 | T29: =$H29*'Cron. Físico'!R29 -> 0 | U29: =$H29*'Cron. Físico'!S29 -> 0 | V29: =$H29*'Cron. Físico'!T29 -> 0 | W29: =$H29*'Cron. Físico'!U29 -> 0 | X29: =$H29*'Cron. Físico'!V29 -> 0 | Y29: =$H29*'Cron. Físico'!W29 -> 0 | Z29: =$H29*'Cron. Físico'!X29 -> 0 | AA29: =$H29*'Cron. Físico'!Y29 -> 0 | AB29: =$H29*'Cron. Físico'!Z29 -> 0 | AC29: =$H29*'Cron. Físico'!AA29 -> 0 | AD29: =$H29*'Cron. Físico'!AB29 -> 0 | AE29: =$H29*'Cron. Físico'!AC29 -> 0 | AF29: =$H29*'Cron. Físico'!AD29 -> 0 | AG29: =$H29*'Cron. Físico'!AE29 -> 0 | AH29: =$H29*'Cron. Físico'!AF29 -> 0 | AI29: =$H29*'Cron. Físico'!AG29 -> 0 | AJ29: =$H29*'Cron. Físico'!AH29 -> 0 | AK29: =$H29*'Cron. Físico'!AI29 -> 0 | AL29: =$H29*'Cron. Físico'!AJ29 -> 0 | AM29: =$H29*'Cron. Físico'!AK29 -> 0 | AO29: TRUE
C30: 8.1.1.18 | E30: 491CMG0130 | F30: M2 | G30: =_xlfn.XLOOKUP($E30,'Resumo Quant.'!$C:$C,'Resumo Quant.'!$D:$D) -> 0 | H30: =_xlfn.XLOOKUP($E30,'Resumo Preços'!$C:$C,'Resumo Preços'!$D:$D) -> 0 | P30: =$H30*'Cron. Físico'!N30 -> 0 | Q30: =$H30*'Cron. Físico'!O30 -> 0 | R30: =$H30*'Cron. Físico'!P30 -> 0 | S30: =$H30*'Cron. Físico'!Q30 -> 0 | T30: =$H30*'Cron. Físico'!R30 -> 0 | U30: =$H30*'Cron. Físico'!S30 -> 0 | V30: =$H30*'Cron. Físico'!T30 -> 0 | W30: =$H30*'Cron. Físico'!U30 -> 0 | X30: =$H30*'Cron. Físico'!V30 -> 0 | Y30: =$H30*'Cron. Físico'!W30 -> 0 | Z30: =$H30*'Cron. Físico'!X30 -> 0 | AA30: =$H30*'Cron. Físico'!Y30 -> 0 | AB30: =$H30*'Cron. Físico'!Z30 -> 0 | AC30: =$H30*'Cron. Físico'!AA30 -> 0 | AD30: =$H30*'Cron. Físico'!AB30 -> 0 | AE30: =$H30*'Cron. Físico'!AC30 -> 0 | AF30: =$H30*'Cron. Físico'!AD30 -> 0 | AG30: =$H30*'Cron. Físico'!AE30 -> 0 | AH30: =$H30*'Cron. Físico'!AF30 -> 0 | AI30: =$H30*'Cron. Físico'!AG30 -> 0 | AJ30: =$H30*'Cron. Físico'!AH30 -> 0 | AK30: =$H30*'Cron. Físico'!AI30 -> 0 | AL30: =$H30*'Cron. Físico'!AJ30 -> 0 | AM30: =$H30*'Cron. Físico'!AK30 -> 0 | AO30: TRUE
C31: 8.1.1.19 | E31: 491CMG0150 | F31: M2 | G31: =_xlfn.XLOOKUP($E31,'Resumo Quant.'!$C:$C,'Resumo Quant.'!$D:$D) -> 0 | H31: =_xlfn.XLOOKUP($E31,'Resumo Preços'!$C:$C,'Resumo Preços'!$D:$D) -> 0 | P31: =$H31*'Cron. Físico'!N31 -> 0 | Q31: =$H31*'Cron. Físico'!O31 -> 0 | R31: =$H31*'Cron. Físico'!P31 -> 0 | S31: =$H31*'Cron. Físico'!Q31 -> 0 | T31: =$H31*'Cron. Físico'!R31 -> 0 | U31: =$H31*'Cron. Físico'!S31 -> 0 | V31: =$H31*'Cron. Físico'!T31 -> 0 | W31: =$H31*'Cron. Físico'!U31 -> 0 | X31: =$H31*'Cron. Físico'!V31 -> 0 | Y31: =$H31*'Cron. Físico'!W31 -> 0 | Z31: =$H31*'Cron. Físico'!X31 -> 0 | AA31: =$H31*'Cron. Físico'!Y31 -> 0 | AB31: =$H31*'Cron. Físico'!Z31 -> 0 | AC31: =$H31*'Cron. Físico'!AA31 -> 0 | AD31: =$H31*'Cron. Físico'!AB31 -> 0 | AE31: =$H31*'Cron. Físico'!AC31 -> 0 | AF31: =$H31*'Cron. Físico'!AD31 -> 0 | AG31: =$H31*'Cron. Físico'!AE31 -> 0 | AH31: =$H31*'Cron. Físico'!AF31 -> 0 | AI31: =$H31*'Cron. Físico'!AG31 -> 0 | AJ31: =$H31*'Cron. Físico'!AH31 -> 0 | AK31: =$H31*'Cron. Físico'!AI31 -> 0 | AL31: =$H31*'Cron. Físico'!AJ31 -> 0 | AM31: =$H31*'Cron. Físico'!AK31 -> 0 | AO31: TRUE
C32: 8.1.1.20 | E32: 491CMG0170 | F32: M2 | G32: =_xlfn.XLOOKUP($E32,'Resumo Quant.'!$C:$C,'Resumo Quant.'!$D:$D) -> 0 | H32: =_xlfn.XLOOKUP($E32,'Resumo Preços'!$C:$C,'Resumo Preços'!$D:$D) -> 0 | P32: =$H32*'Cron. Físico'!N32 -> 0 | Q32: =$H32*'Cron. Físico'!O32 -> 0 | R32: =$H32*'Cron. Físico'!P32 -> 0 | S32: =$H32*'Cron. Físico'!Q32 -> 0 | T32: =$H32*'Cron. Físico'!R32 -> 0 | U32: =$H32*'Cron. Físico'!S32 -> 0 | V32: =$H32*'Cron. Físico'!T32 -> 0 | W32: =$H32*'Cron. Físico'!U32 -> 0 | X32: =$H32*'Cron. Físico'!V32 -> 0 | Y32: =$H32*'Cron. Físico'!W32 -> 0 | Z32: =$H32*'Cron. Físico'!X32 -> 0 | AA32: =$H32*'Cron. Físico'!Y32 -> 0 | AB32: =$H32*'Cron. Físico'!Z32 -> 0 | AC32: =$H32*'Cron. Físico'!AA32 -> 0 | AD32: =$H32*'Cron. Físico'!AB32 -> 0 | AE32: =$H32*'Cron. Físico'!AC32 -> 0 | AF32: =$H32*'Cron. Físico'!AD32 -> 0 | AG32: =$H32*'Cron. Físico'!AE32 -> 0 | AH32: =$H32*'Cron. Físico'!AF32 -> 0 | AI32: =$H32*'Cron. Físico'!AG32 -> 0 | AJ32: =$H32*'Cron. Físico'!AH32 -> 0 | AK32: =$H32*'Cron. Físico'!AI32 -> 0 | AL32: =$H32*'Cron. Físico'!AJ32 -> 0 | AM32: =$H32*'Cron. Físico'!AK32 -> 0 | AO32: TRUE
C33: 8.1.1.21 | E33: 491CMG0190 | F33: M2 | G33: =_xlfn.XLOOKUP($E33,'Resumo Quant.'!$C:$C,'Resumo Quant.'!$D:$D) -> 20,811.21 | H33: =_xlfn.XLOOKUP($E33,'Resumo Preços'!$C:$C,'Resumo Preços'!$D:$D) -> 373,145.00 | P33: =$H33*'Cron. Físico'!N33 -> 0 | Q33: =$H33*'Cron. Físico'!O33 -> 0 | R33: =$H33*'Cron. Físico'!P33 -> 0 | S33: =$H33*'Cron. Físico'!Q33 -> 0 | T33: =$H33*'Cron. Físico'!R33 -> 0 | U33: =$H33*'Cron. Físico'!S33 -> 0 | V33: =$H33*'Cron. Físico'!T33 -> 0 | W33: =$H33*'Cron. Físico'!U33 -> 0 | X33: =$H33*'Cron. Físico'!V33 -> 0 | Y33: =$H33*'Cron. Físico'!W33 -> 0 | Z33: =$H33*'Cron. Físico'!X33 -> 0 | AA33: =$H33*'Cron. Físico'!Y33 -> 0 | AB33: =$H33*'Cron. Físico'!Z33 -> 0 | AC33: =$H33*'Cron. Físico'!AA33 -> 0 | AD33: =$H33*'Cron. Físico'!AB33 -> 0 | AE33: =$H33*'Cron. Físico'!AC33 -> 0 | AF33: =$H33*'Cron. Físico'!AD33 -> 0 | AG33: =$H33*'Cron. Físico'!AE33 -> 0 | AH33: =$H33*'Cron. Físico'!AF33 -> 0 | AI33: =$H33*'Cron. Físico'!AG33 -> 0 | AJ33: =$H33*'Cron. Físico'!AH33 -> 0 | AK33: =$H33*'Cron. Físico'!AI33 -> 0 | AL33: =$H33*'Cron. Físico'!AJ33 -> 0 | AM33: =$H33*'Cron. Físico'!AK33 -> 0 | AN33: 0.00% | AO33: FALSE
C34: 8.1.1.22 | E34: 491CMG0210D | F34: M2 | G34: =_xlfn.XLOOKUP($E34,'Resumo Quant.'!$C:$C,'Resumo Quant.'!$D:$D) -> 0 | H34: =_xlfn.XLOOKUP($E34,'Resumo Preços'!$C:$C,'Resumo Preços'!$D:$D) -> 0 | P34: =$H34*'Cron. Físico'!N34 -> 0 | Q34: =$H34*'Cron. Físico'!O34 -> 0 | R34: =$H34*'Cron. Físico'!P34 -> 0 | S34: =$H34*'Cron. Físico'!Q34 -> 0 | T34: =$H34*'Cron. Físico'!R34 -> 0 | U34: =$H34*'Cron. Físico'!S34 -> 0 | V34: =$H34*'Cron. Físico'!T34 -> 0 | W34: =$H34*'Cron. Físico'!U34 -> 0 | X34: =$H34*'Cron. Físico'!V34 -> 0 | Y34: =$H34*'Cron. Físico'!W34 -> 0 | Z34: =$H34*'Cron. Físico'!X34 -> 0 | AA34: =$H34*'Cron. Físico'!Y34 -> 0 | AB34: =$H34*'Cron. Físico'!Z34 -> 0 | AC34: =$H34*'Cron. Físico'!AA34 -> 0 | AD34: =$H34*'Cron. Físico'!AB34 -> 0 | AE34: =$H34*'Cron. Físico'!AC34 -> 0 | AF34: =$H34*'Cron. Físico'!AD34 -> 0 | AG34: =$H34*'Cron. Físico'!AE34 -> 0 | AH34: =$H34*'Cron. Físico'!AF34 -> 0 | AI34: =$H34*'Cron. Físico'!AG34 -> 0 | AJ34: =$H34*'Cron. Físico'!AH34 -> 0 | AK34: =$H34*'Cron. Físico'!AI34 -> 0 | AL34: =$H34*'Cron. Físico'!AJ34 -> 0 | AM34: =$H34*'Cron. Físico'!AK34 -> 0 | AO34: TRUE
C35: 8.1.1.23 | E35: 146BMG0250 | F35: M2 | G35: =_xlfn.XLOOKUP($E35,'Resumo Quant.'!$C:$C,'Resumo Quant.'!$D:$D) -> 0 | H35: =_xlfn.XLOOKUP($E35,'Resumo Preços'!$C:$C,'Resumo Preços'!$D:$D) -> 0 | P35: =$H35*'Cron. Físico'!N35 -> 0 | Q35: =$H35*'Cron. Físico'!O35 -> 0 | R35: =$H35*'Cron. Físico'!P35 -> 0 | S35: =$H35*'Cron. Físico'!Q35 -> 0 | T35: =$H35*'Cron. Físico'!R35 -> 0 | U35: =$H35*'Cron. Físico'!S35 -> 0 | V35: =$H35*'Cron. Físico'!T35 -> 0 | W35: =$H35*'Cron. Físico'!U35 -> 0 | X35: =$H35*'Cron. Físico'!V35 -> 0 | Y35: =$H35*'Cron. Físico'!W35 -> 0 | Z35: =$H35*'Cron. Físico'!X35 -> 0 | AA35: =$H35*'Cron. Físico'!Y35 -> 0 | AB35: =$H35*'Cron. Físico'!Z35 -> 0 | AC35: =$H35*'Cron. Físico'!AA35 -> 0 | AD35: =$H35*'Cron. Físico'!AB35 -> 0 | AE35: =$H35*'Cron. Físico'!AC35 -> 0 | AF35: =$H35*'Cron. Físico'!AD35 -> 0 | AG35: =$H35*'Cron. Físico'!AE35 -> 0 | AH35: =$H35*'Cron. Físico'!AF35 -> 0 | AI35: =$H35*'Cron. Físico'!AG35 -> 0 | AJ35: =$H35*'Cron. Físico'!AH35 -> 0 | AK35: =$H35*'Cron. Físico'!AI35 -> 0 | AL35: =$H35*'Cron. Físico'!AJ35 -> 0 | AM35: =$H35*'Cron. Físico'!AK35 -> 0 | AO35: TRUE
C36: 8.1.1.24 | E36: 146BMG0252 | F36: M2 | G36: =_xlfn.XLOOKUP($E36,'Resumo Quant.'!$C:$C,'Resumo Quant.'!$D:$D) -> 0 | H36: =_xlfn.XLOOKUP($E36,'Resumo Preços'!$C:$C,'Resumo Preços'!$D:$D) -> 0 | P36: =$H36*'Cron. Físico'!N36 -> 0 | Q36: =$H36*'Cron. Físico'!O36 -> 0 | R36: =$H36*'Cron. Físico'!P36 -> 0 | S36: =$H36*'Cron. Físico'!Q36 -> 0 | T36: =$H36*'Cron. Físico'!R36 -> 0 | U36: =$H36*'Cron. Físico'!S36 -> 0 | V36: =$H36*'Cron. Físico'!T36 -> 0 | W36: =$H36*'Cron. Físico'!U36 -> 0 | X36: =$H36*'Cron. Físico'!V36 -> 0 | Y36: =$H36*'Cron. Físico'!W36 -> 0 | Z36: =$H36*'Cron. Físico'!X36 -> 0 | AA36: =$H36*'Cron. Físico'!Y36 -> 0 | AB36: =$H36*'Cron. Físico'!Z36 -> 0 | AC36: =$H36*'Cron. Físico'!AA36 -> 0 | AD36: =$H36*'Cron. Físico'!AB36 -> 0 | AE36: =$H36*'Cron. Físico'!AC36 -> 0 | AF36: =$H36*'Cron. Físico'!AD36 -> 0 | AG36: =$H36*'Cron. Físico'!AE36 -> 0 | AH36: =$H36*'Cron. Físico'!AF36 -> 0 | AI36: =$H36*'Cron. Físico'!AG36 -> 0 | AJ36: =$H36*'Cron. Físico'!AH36 -> 0 | AK36: =$H36*'Cron. Físico'!AI36 -> 0 | AL36: =$H36*'Cron. Físico'!AJ36 -> 0 | AM36: =$H36*'Cron. Físico'!AK36 -> 0 | AO36: TRUE
C37: 8.1.1.25 | E37: 369CMG0070 | F37: M2 | G37: =_xlfn.XLOOKUP($E37,'Resumo Quant.'!$C:$C,'Resumo Quant.'!$D:$D) -> 0 | H37: =_xlfn.XLOOKUP($E37,'Resumo Preços'!$C:$C,'Resumo Preços'!$D:$D) -> 0 | P37: =$H37*'Cron. Físico'!N37 -> 0 | Q37: =$H37*'Cron. Físico'!O37 -> 0 | R37: =$H37*'Cron. Físico'!P37 -> 0 | S37: =$H37*'Cron. Físico'!Q37 -> 0 | T37: =$H37*'Cron. Físico'!R37 -> 0 | U37: =$H37*'Cron. Físico'!S37 -> 0 | V37: =$H37*'Cron. Físico'!T37 -> 0 | W37: =$H37*'Cron. Físico'!U37 -> 0 | X37: =$H37*'Cron. Físico'!V37 -> 0 | Y37: =$H37*'Cron. Físico'!W37 -> 0 | Z37: =$H37*'Cron. Físico'!X37 -> 0 | AA37: =$H37*'Cron. Físico'!Y37 -> 0 | AB37: =$H37*'Cron. Físico'!Z37 -> 0 | AC37: =$H37*'Cron. Físico'!AA37 -> 0 | AD37: =$H37*'Cron. Físico'!AB37 -> 0 | AE37: =$H37*'Cron. Físico'!AC37 -> 0 | AF37: =$H37*'Cron. Físico'!AD37 -> 0 | AG37: =$H37*'Cron. Físico'!AE37 -> 0 | AH37: =$H37*'Cron. Físico'!AF37 -> 0 | AI37: =$H37*'Cron. Físico'!AG37 -> 0 | AJ37: =$H37*'Cron. Físico'!AH37 -> 0 | AK37: =$H37*'Cron. Físico'!AI37 -> 0 | AL37: =$H37*'Cron. Físico'!AJ37 -> 0 | AM37: =$H37*'Cron. Físico'!AK37 -> 0 | AO37: TRUE
